Workbook

Sheet LDC Info
AA3: Algoma Power Inc.
AA4: Atikokan Hydro Inc.
AA5: Attawapiskat Power Corporation
AA6: Bluewater Power Distribution Corp.
AA7: Brant County Power
AA8: Brantford Power Inc.
AA9: Burlington Hydro Inc.
AA10: Cambridge and North Dumfries Hydro
AA11: Canadian Niagara Power Inc. – Eastern Ontario Power/Fort Erie/Port Colborne
AA12: Centre Wellington Hydro Ltd.
N13: Version 2.0 | AA13: Chapleau Public Utilities Corporation
D14: Utility Name | E14: Burlington Hydro Inc. | AA14: COLLUS Power Corp.
AA15: Cooperative Hydro Embrun Inc.
D16: Assigned EB Number | E16: EB-2013-0115 | AA16: E.L.K. Energy Inc.
AA17: Enersource Hydro Mississauga Inc.
D18: Name of Contact and Title | E18: Kathi Farmer | AA18: Entegrus Powerlines Inc.
AA19: ENWIN Utilities Ltd.
D20: Phone Number | E20: 416-332-1851 ext 284 | AA20: Erie Thames Powerlines Corp.
AA21: Espanola Regional Hydro Distribution Corporation
D22: Email Address | E22: kfarmer@burlingtonhydro.com | AA22: Essex Powerlines Corporation
AA23: Festival Hydro Inc.
D24: Test Year | E24: 2014 | AA24: Fort Albany Power Corporation
AA25: Fort Frances Power Corporation
D26: Bridge Year | E26: =E24-1 -> 2013 | AA26: Greater Sudbury Hydro Inc.
AA27: Grimsby Power Inc.
D28: Last Rebasing Year | E28: 2010 | AA28: Guelph Hydro Electric Systems Inc.
AA29: Haldimand County Hydro Inc.
A30: Identify the accounting standard used for the test year
E31: CGAAP
A33: Did you update your depreciation and capitalization policies?
E34: Yes
A36: When did you update your depreciation and capitalization policies?
E37: 2013-01-01
A39: Identify the year that the applicant has adopted or is expected to adopt IFRS for financial reporting purposes
E40: 2014 or Later
A42: Identify the year that the applicant has made the required changes to capitalization and depreciation expense policies under CGAAP or ASPE
E43: 2013
A45: Are you applying for cost recovery for the test and/or future year(s) for Green Energy initiatives?
E46: No
A48: ="Is " & E14 & " an embedded distributor?" -> Is Burlington Hydro Inc. an embedded distributor? | E48: No
A52: Once all selections have been made above, press the following button to reveal the appropriate worksheets.
A56: To unhide all worksheets in this workbook, press the following button:
B59: Notes | AA59: Guelph Hydro Electric Systems Inc.
AA60: Halton Hills Hydro Inc.
C61: Pale green cells represent input cells. | AA61: Hearst Power Distribution Co. Ltd.
AA62: Horizon Utilities Corporation
C63: Pale blue cells represent drop-down lists. The applicant should select the appropriate item from the drop-down list. | AA63: Hydro 2000 Inc.
AA64: Hydro Hawkesbury Inc.
C65: White cells contain fixed values, automatically generated values or formulae. | AA65: Hydro One Brampton Networks Inc.
AA66: Hydro One Networks Inc.
AA67: Hydro One Remote Communities Inc.
AA68: Hydro Ottawa Limited
AA69: Innisfil Hydro Dist. Systems Limited
AA70: Kashechewan Power Corporation
AA71: Kenora Hydro Electric Corporation Ltd.
AA72: Kingston Hydro Corporation
AA73: Kitchener-Wilmot Hydro Inc.
AA74: Lakefront Utilities Inc.
AA75: Lakeland Power Distribution Ltd.
AA76: London Hydro Inc.
AA77: Midland Power Utility Corporation
AA78: Milton Hydro Distribution Inc.
AA79: Newmarket – Tay Power Distribution Ltd.
AA80: Niagara Peninsula Energy Inc.
AA81: Niagara-on-the-Lake Hydro Inc.
AA82: Norfolk Power Distribution Ltd.
AA83: North Bay Hydro Distribution Limited
AA84: Northern Ontario Wires Inc.
AA85: Oakville Hydro Distribution Inc.
AA86: Orangeville Hydro Limited
AA87: Orillia Power Distribution Corp.
AA88: Oshawa PUC Networks Inc.
AA89: Ottawa River Power Corporation
AA90: Parry Sound Power Corporation
AA91: Peterborough Distribution Inc.
AA92: PowerStream Inc.
AA93: PUC Distribution Inc.
AA94: Renfrew Hydro Inc.
AA95: Rideau St. Lawrence Distribution Inc.
AA96: St. Thomas Energy Inc.
AA97: Sioux Lookout Hydro Inc.
AA98: Thunder Bay Hydro Electricity Distribution
AA99: Tillsonburg Hydro Inc.
AA100: Toronto Hydro-Electric System Limited
AA101: Veridian Connections Inc.
AA102: Wasaga Distribution Inc.
AA103: Waterloo North Hydro Inc.
AA104: Welland Hydro Electric System Corp.
AA105: Wellington North Power Inc.
AA106: West Coast Huron Energy Inc.
AA107: Westario Power Inc.
AA108: Whitby Hydro Electric Corporation
AA109: Woodstock Hydro Services Inc.

Sheet Table of Contents
A15: 1 | B15: LDC Information Sheet | E15: 35 | F15: Appendix 2-DB: Overhead Expense (CGAAP or ASPE)
A16: 2 | B16: Index | E16: 36 | F16: Appendix 2-EA: PP&E Deferral Account (2012 IFRS Adopters)
A17: 3 | B17: Cost of Service Application Flowchart | E17: 37 | F17: Appendix 2-EB: PP&E Deferral Account (2013 IFRS Adopters)
A18: 4 | B18: List of Key References | E18: 38 | F18: Appendix 2-EC: PP&E Deferral Account (2014 IFRS Adopters)
A19: 5 | B19: Appendix 2-AA: Capital Projects Table | E19: 39 | F19: Appendix 2-ED: Account 1576 - Accounting Changes Under CGAAP (2012 Changes)
A20: 6 | B20: Appendix 2-AB: Capital Expenditures | E20: 40 | F20: Appendix 2-EE: Account 1576 - Accounting Changes Under CGAAP (2013 Changes)
A21: 7 | B21: Appendix 2-BA1: Fixed Asset Continuity Schedule (CGAAP/ASPE/USGAAP) | E21: 41 | F21: Appendix 2-FA: Renewable Generation Connection Investment Summary
A22: 8 | B22: Appendix 2-BA2: Fixed Asset Continuity Schedule (MIFRS) | E22: 42 | F22: Appendix 2-FB: Calculation of Renewable Generation Connection Direct Benefits/Provincial Amount: Renewable Enabling Improvement Investments
A23: 9 | B23: Appendix 2-BB: Service Life Comparison | E23: 43 | F23: Appendix 2-FC: Calculation of Renewable Generation Connection Direct Benefits/Provincial Amount: Renewable Expansion Investments
A24: 10 | B24: General Instructions to MIFRS Appendices | E24: 44 | F24: Appendix 2-G: Service Reliability Indicators
A25: 11 | B25: Appendix 2-CA: 2011 Depreciation and Amortization Expense (CGAAP) | E25: 45 | F25: Appendix 2-H: Other Operating Revenue
A26: 12 | B26: Appendix 2-CB: 2011 Depreciation and Amortization Expense (MIFRS) | E26: 46 | F26: Appendix 2-I: Load Forecast CDM Adjustment Work Form
A27: 13 | B27: Appendix 2-CC: 2012 Depreciation and Amortization Expense (MIFRS) | E27: 47 | F27: Appendix 2-JA: Summary of Recoverable OM&A Expenses
A28: 14 | B28: Appendix 2-CD: 2013 Depreciation and Amortization Expense (MIFRS) | E28: 48 | F28: Appendix 2-JB: Recoverable OM&A Cost Driver Table
A29: 15 | B29: Appendix 2-CE: 2014 Depreciation and Amortization Expense (MIFRS) | E29: 49 | F29: Appendix 2-JC: OMA Programs Table
A30: 16 | B30: Appendix 2-CF: 2012 Depreciation and Amortization Expense (CGAAP) | E30: 50 | F30: Appendix 2-K: Employee Costs
A31: 17 | B31: Appendix 2-CG: 2012 Depreciation and Amortization Expense (MIFRS) | E31: 51 | F31: Appendix 2-L: Recoverable OM&A Cost per Customer and per FTE
A32: 18 | B32: Appendix 2-CH: 2013 Depreciation and Amortization Expense (MIFRS) | E32: 52 | F32: Appendix 2-M: Regulatory Cost Schedule
A33: 19 | B33: Appendix 2-CI: 2014 Depreciation and Amortization Expense (MIFRS) | E33: 53 | F33: Appendix 2-N: Shared Services and Corporate Cost Allocation
A34: 20 | B34: Appendix 2-CJ: 2012 Depreciation and Amortization Expense (CGAAP) | E34: 54 | F34: Appendix 2-OA: Capital Structure and Cost of Capital
A35: 21 | B35: Appendix 2-CK: 2013 Depreciation and Amortization Expense (CGAAP) | E35: 55 | F35: Appendix 2-OB: Debt Instruments
A36: 22 | B36: Appendix 2-CL: 2013 Depreciation and Amortization Expense (MIFRS) | E36: 56 | F36: Appendix 2-P: Cost Allocation
A37: 23 | B37: Appendix 2-CM: 2014 Depreciation and Amortization Expense (MIFRS) | E37: 57 | F37: Appendix 2-Q: Cost of Serving Embedded Distributor(s)
A38: 24 | B38: General Instructions to CGAAP-ASPE Appendices | E38: 58 | F38: Appendix 2-R: Loss Factors
A39: 25 | B39: Appendix 2-CN: 2012 Depreciation and Amortization Expense (Old CGAAP) | E39: 59 | F39: Appendix 2-S: Stranded Meter Treatment
A40: 26 | B40: Appendix 2-CO: 2012 Depreciation and Amortization Expense (New CGAAP) | E40: 60 | F40: Appendix 2-TA: Account 1592, PILs and Tax Variances
A41: 27 | B41: Appendix 2-CP: 2013 Depreciation and Amortization Expense (New CGAAP) | E41: 61 | F41: Appendix 2-TB: Account 1592, HST-OVAT Input Tax Credits
A42: 28 | B42: Appendix 2-CQ: 2014 Depreciation and Amortization Expense (New CGAAP) | E42: 62 | F42: Appendix 2-U: One-Time Incremental IFRS Transition Costs
A43: 29 | B43: Appendix 2-CR: 2012 Depreciation and Amortization Expense (Old CGAAP) | E43: 63 | F43: Appendix 2-V: Revenue Reconciliation
A44: 30 | B44: Appendix 2-CS: 2013 Depreciation and Amortization Expense (Old CGAAP) | E44: 64 | F44: Appendix 2-W: Bill Impacts
A45: 31 | B45: Appendix 2-CT: 2013 Depreciation and Amortization Expense (New CGAAP) | E45: 65 | F45: Appendix 2-YA: Transition to MIFRS Summary Impacts
A46: 32 | B46: Appendix 2-CU: 2014 Depreciation and Amortization Expense (New CGAAP) | E46: 66 | F46: Appendix 2-YB: Accounting Changes under CGAAP/ASPE Summary Impacts
A47: 33 | B47: Appendix 2-CV: Depreciation and Amortization Expense (USGAAP) | E47: 67 | F47: App.2-Z: Tariff Schedule
A48: 34 | B48: Appendix 2-DA: Overhead Expense (MIFRS)
B51: Legend
B52: To be completed by MIFRS filers
B53: To be completed by CGAAP and ASPE filers
B54: To be completed by USGAAP filers
B55: To be completed by both CGAAP, ASPE and USGAAP filers

Sheet COS Flowchart
B4: Cost of Service Rate Application Schematic
B6: The Cost of Service Rate Application Schematic is a flowchart appended to Chapter 2 of the Filing Requirements as a guide for the components of an application and how demand and costs interrelate to derive the revenue requirement and then how the revenue requirement is allocated between classes and through fixed/variable splits to derive rates that will be compensatory for the annual revenue requirement, based on the the forecasted demand. There is no form to be filled out; therefore, this Schedule is not required to be filed.

Sheet List of Key References
B3: List of Key References
A5: A list of key references for understanding the Filing Requirements has been embedded in the document below. To access the list of references and associated hyperlinks doublt click the icon below.

Sheet App.2-AA_Capital Projects
G1: File Number: | H1: =EBNUMBER -> EB-2013-0115
G2: Exhibit:
G3: Tab:
G4: Schedule:
G5: Page:
G7: Date:
A9: Appendix 2-AA
A10: Capital Projects Table
A13: Projects | C13: 2008 | D13: 2009 | E13: 2010 | F13: 2011 | G13: 2012 | H13: 2013 CGAAP | I13: 2014 CGAAP
A14: Reporting Basis
A15: Project Name #1 Buildings
A16: 1340 Brant St. & Substation Properties | B16: D | D16: 458125 | E16: 225968 | F16: 225998 | G16: 251765 | H16: 40000 | I16: 332000
A18: Easements | I18: 60000
A21: Sub-Total Buildings | C21: 0 | D21: 458125 | E21: 225968 | F21: 225998 | G21: 251765 | H21: 40000 | I21: 392000
A23: Project Name #2 Substation Equipment
A24: Upgrade Relays to Solid State | B24: C | D24: 42243 | E24: 56271 | G24: 4404 | H24: 36196 | I24: 31104
A25: Recomission Substations | B25: B | D25: 124734 | E25: 156313 | F25: 142458 | G25: 158246 | H25: 115624 | I25: 90299
A26: Metalclad Equipment Refurbish/Paint | B26: B | D26: 0 | E26: 0 | F26: 30212 | G26: 22845 | H26: 34614 | I26: 34601
A27: Upgrade RTUs | B27: C | D27: 9164 | E27: 30245 | F27: 40169 | G27: 64163 | H27: 48780 | I27: 38675
A28: Battery banks & Chargers | B28: B | D28: 2725 | E28: 0 | G28: 4799 | H28: 7692 | I28: 7692
A29: Control Room Upgrade | B29: B | D29: 141105 | E29: 4055 | G29: 0
A30: Transducers | B30: C | D30: 0 | E30: 2252 | F30: 5190 | G30: 0 | H30: 3846 | I30: 3846
A31: Vacuum Breaker Conversions (Asbestos Rmvl) | B31: B | D31: 0 | E31: 58645 | F31: 120145 | G31: 0
A32: Misc. Projects | B32: B | D32: 3653 | E32: 0
A33: Replacement of Substation Breakers | B33: B | H33: 56281 | I33: 46241
A34: Power transformers(substation) | B34: B | F34: 352524 | G34: 401108 | I34: 386478
A36: Sub-Total Substation Equipment | C36: 0 | D36: 323624 | E36: 307781 | F36: 690698 | G36: 655565 | H36: 303033 | I36: 638936
A38: Project Name #3 Underground Distribution
A39: Performing Arts Centre | B39: A | D39: 1760286 | E39: 12201
A40: General Service Underground | B40: A | D40: 1273706 | E40: 1835256 | F40: 1498305 | G40: 1520576 | H40: 1338527 | I40: 1104892
A41: Underground Rebuilds (North Brant Hills) | B41: B | E41: 456739 | F41: 404426
A42: Underground Rebuilds (Faversham/Cavendish) | B42: B | G42: 26727 | I42: 345520
A43: Burlington Mall | B43: B | D43: 110396 | E43: 0
A44: Butyl Cable Replacement | B44: B | D44: 14811 | E44: 12112 | F44: 42047
A45: Subdivisions Assumed | B45: A | D45: 3887728 | E45: 1366078 | F45: 665947 | G45: 2137623 | H45: 1400000 | I45: 1400000
A46: Downtown/Lakeshore Elizabeth/Lakeshore to Martha MS | B46: A | H46: 339561 | I46: 740406
A47: Subdivision Buybacks | B47: A | H47: 1200000 | I47: 1200000
A48: Sub-Total Underground Distribution | C48: 0 | D48: 7046927 | E48: 3682386 | F48: 2610725 | G48: 3684926 | H48: 4278088 | I48: 4790818
A50: Project Name #4 Overhead Distribution
A51: Pole Replacement Program | B51: B | D51: 449944 | E51: 565248 | F51: 738621 | G51: 164706 | H51: 167554 | I51: 246957
A52: Motorized ABS Program | B52: C | D52: 299924 | E52: 274249 | F52: 385055 | G52: 728132 | H52: 409548 | I52: 262834
A53: City Projects | B53: A | D53: 551466 | E53: 641769 | F53: 41116 | G53: 962011 | I53: 667704
A54: Rebuild Crossing | B54: B | D54: 9678 | E54: 132938
A55: Region Projects | B55: A | D55: 857285 | E55: 573712 | F55: 122009 | G55: 0 | I55: 68922
A56: General Service Overhead | B56: A | D56: 1201052 | E56: 1477221 | F56: 2427652 | G56: 1965315 | H56: 1423355 | I56: 1259668
A57: MTO Projects | B57: A | D57: 1308018 | E57: 35326 | F57: 17305
A58: Purchase Milton Hydro Assets | B58: A | D58: 743 | E58: 0
A59: Sherwood Forest Park Feeder Tie | B59: C | E59: 54250
A60: NE Burlington TS Egress | B60: C | F60: 397882 | G60: 1235729 | H60: 3341399 | I60: 151791
A61: Bronte Feeder Doubel CCT Egress | B61: C | I61: 420290
A62: Sub-Total Overhead Distribution | C62: 0 | D62: 4678110 | E62: 3754713 | F62: 4129640 | G62: 5055893 | H62: 5341856 | I62: 3078166
A64: Project Name #5 Transformers
A65: Installed (Including replacement) | B65: A | D65: 1617306 | E65: 1388125 | F65: 1043047 | G65: 1222639 | H65: 702662 | I65: 614742
A66: PCB Free Transformer Replacement | B66: B | D66: 599974 | E66: 79463 | F66: 160881 | G66: 34652 | H66: 195136 | I66: 172704
A67: Subdivision Assumed Transformers | B67: A | D67: 1396605 | E67: 334074 | F67: 145613 | G67: 500248 | H67: 600000 | I67: 600000
A68: Spare Transformers | B68: A | D68: 52510 | E68: 94249 | F68: -702027
A72: Sub-Total Transformers | C72: 0 | D72: 3666395 | E72: 1895911 | F72: 647514 | G72: 1757539 | H72: 1497798 | I72: 1387446
A74: Project Name #6 Meters
A75: Current Limiters | B75: A | D75: 5192 | E75: 0
A76: Primary Metering Tank Replacement | B76: B | D76: 47312 | E76: 38800 | F76: 74169 | G76: 33210 | H76: 58779 | I76: 18749
A77: Installed | B77: A | D77: 343935 | E77: 730749 | F77: -88158 | G77: 335834 | H77: 271398 | I77: 240309
A78: Spare Meters & Misc. Equipment | B78: A | D78: 42109 | E78: -14872
A79: Smart Meters (Installed by BHI staff) | B79: A | E79: 686500 | F79: 310133
A80: Wholesale Metering (IT Metering at Cumberland TS) | B80: A | E80: 704449
A81: Smart Synch for G50 meters | B81: B | F81: 38077
A82: SSE04 Measurement Canada Inspection of Quadlogics | B82: A | H82: 8696
A83: MSP Metering for Tremaine TS and Meters | B83: A | G83: 45834 | H83: 96957
A84: Quadlogix Condominium Sub-Metering Conversion Program | B84: A | H84: 198913 | I84: 347826
A85: Sub-Total Meters | C85: 0 | D85: 438548 | E85: 2145626 | F85: 334221 | G85: 414878 | H85: 634743 | I85: 606884
A87: Project Name #7 Tools
A88: UG, Station Maintenance & Meters | B88: D | D88: 23516 | E88: 21559 | F88: 15735 | G88: 19171 | H88: 21000 | I88: 12000
A89: Measurement & Test Equipment | B89: D | E89: 3995 | F89: 2722
A92: Sub-Total Tools | C92: 0 | D92: 23516 | E92: 25554 | F92: 18457 | G92: 19171 | H92: 21000 | I92: 12000
A94: Project Name #8 Rolling Stock
A95: New and/or Replacements (>4500kg) | B95: D | D95: 406635 | E95: 42572 | H95: 46000 | I95: 50000
A96: New and/or Replacements (<4500kg) | B96: D | D96: 145446 | E96: 38406 | F96: 64228 | G96: 64539
A97: Sub-Total Rolling Stock | C97: 0 | D97: 552081 | E97: 80978 | F97: 64228 | G97: 64539 | H97: 46000 | I97: 50000
A99: Project Name #9 Office Equipment
A100: Misc. Office Equipment | B100: D | D100: 82457 | E100: 24379 | F100: 71790 | G100: 81205 | H100: 54000 | I100: 38000
A101: Telephone Upgrade | B101: D | E101: 27776 | F101: 37529 | G101: 0
A104: Sub-Total Office Equipment | C104: 0 | D104: 82457 | E104: 52155 | F104: 109319 | G104: 81205 | H104: 54000 | I104: 38000
A106: Project Name #10 Computer H/ware & S/ware
A107: Personal Computers | B107: D | D107: 28284 | E107: 30294 | F107: 42470 | G107: 37170 | H107: 73000 | I107: 50000
A108: Backup Server, Mapping system & Oracle Database | B108: D | G108: 27877
A109: Computer Room Network Communications Eqpmnt | B109: D | E109: 23197 | G109: 8350 | H109: 5000
A110: Daffron Custom Programming | B110: D | D110: 2533 | E110: 12816 | F110: 18742 | G110: 25392 | H110: 20000 | I110: 20000
A111: Windows Software upgrade | B111: D | E111: 19579 | I111: 75000
A112: GIS Interfaces | B112: D | E112: 169669 | F112: 450905 | H112: 100000
A113: GIS Mapping System Upgrades | B113: D | D113: 780293 | E113: 0 | G113: 123173 | I113: 50000
A114: Daffron iXP Dashboard | B114: D | E114: 35470 | F114: 24254
A115: Daffron iXP Implementation | B115: D | H115: 100000
A116: Misc. (Tablets, Software, Document Manager) | B116: D | E116: 33217
A117: Field Force Automation Enhancements | B117: D | G117: 54275 | H117: 20000 | I117: 20000
A118: Upgrade Network Capabilities to 1 Gb | B118: D | H118: 100000
A119: SpatialNet User Licence | B119: D | G119: 16200
A120: Complete Mobile Asset Inspection Sysytem (MAIS) | B120: D | G120: 33379
A121: Pin Mapping | B121: D | G121: 117296
A122: SCADA / GIS / AMI / CIS Integration, Replicator Software | B122: D | G122: 33680 | I122: 100000
A123: Spidacalc Licence | H123: 14000
A124: Ortho Imaging | H124: 11000
A127: Sub-Total Computer H/ware & S/ware | C127: 0 | D127: 811110 | E127: 324242 | F127: 536371 | G127: 476792 | H127: 443000 | I127: 315000
A129: Project Name #11 Substations
A130: New Transformer Station - N/E Burlington | B130: C | F130: 943057 | G130: 5855000 | H130: -2105000
A131: Subtotal - New Transformer Station - N/E Burlington | C131: 0 | D131: 0 | E131: 0 | F131: 943057 | G131: 5855000 | H131: -2105000 | I131: 0
A134: Project Name #12 Contributions & Grants
A135: Contributions & Grants | D135: -6661564 | E135: -2905190 | F135: -1447615 | G135: -3238245 | H135: -3217443 | I135: -3579205
A136: Sub-Total Contributions & Grants | C136: 0 | D136: -6661564 | E136: -2905190 | F136: -1447615 | G136: -3238245 | H136: -3217443 | I136: -3579205
A138: Transformer Station (N/E Burlington) - Capital Contribution H1
A139: Bronte TS Breaker | B139: C | H139: 628000
A140: Miscellaneous | C140: 0 | D140: 0 | E140: 0 | F140: 0 | G140: 0 | H140: 628000 | I140: 0
A141: Total | C141: 0 | D141: 11419329 | E141: 9590124 | F141: 8862613 | G141: 15079028 | H141: 7965075 | I141: 7730045
A142: *2012 total is net of smart meter additions

Sheet App.2-AB_Capital Expenditures
S1: File Number: | U1: =EBNUMBER -> EB-2013-0115
S2: Exhibit:
S3: Tab:
S4: Schedule:
S5: Page:
S7: Date:
A9: Appendix 2-AB
A10: Table 2 - Capital Expenditure Summary from Chapter 5 Consolidated Distribution System Plan Filing Requirements
A12: First year of Forecast Period: | B12: =TestYear -> 2014
A13: CATEGORY | B13: Historical Period (previous plan1 & actual) | Q13: Forecast Period (planned)
B14: 2009 | E14: 2010 | H14: 2011 | K14: 2012 | N14: 2013 | Q14: 2014 | R14: =Q14+1 -> 2015 | S14: =R14+1 -> 2016 | T14: =S14+1 -> 2017 | U14: =T14+1 -> 2018
C15: Actual | D15: Var | E15: Previous Year | F15: Actual | G15: Var | H15: Previous Year | I15: Actual | J15: Var | K15: Previous Year | L15: Actual | M15: Var | N15: Previous Year | O15: Actual2 | P15: Var
B16: $ | D16: % | E16: $ | G16: % | H16: $ | J16: % | K16: $ | M16: % | N16: $ | P16: % | Q16: $
A17: System Access | C17: 14297941 | D17: =IF(ISERROR((C17-B17)/B17),"--",(C17-B17)/B17) -> -- | E17: =C17 -> 14297941 | F17: 9864837 | G17: =IF(ISERROR((F17-E17)/E17),"--",(F17-E17)/E17) -> -0.3100519159 | H17: =F17 -> 9864837 | I17: 5480942 | J17: =IF(ISERROR((I17-H17)/H17),"--",(I17-H17)/H17) -> -0.4443960909 | K17: =I17 -> 5480942 | L17: 8690080 | M17: =IF(ISERROR((L17-K17)/K17),"--",(L17-K17)/K17) -> 0.5855084765 | N17: =L17 -> 8690080 | O17: 7580069 | P17: =IF(ISERROR((O17-N17)/N17),"--",(O17-N17)/N17) -> -0.1277331164 | Q17: 8244469 | R17: 7396054 | S17: 6925561 | T17: 6925561 | U17: 7621934
A18: System Renewal | C18: 1504332 | D18: -- | E18: =C18 -> 1504332 | F18: 1504313 | G18: -1.263019068e-05 | H18: =F18 -> 1504313 | I18: 2103560 | J18: 0.3983526035 | K18: =I18 -> 2103560 | L18: 846293 | M18: -0.5976853525 | N18: =L18 -> 846293 | O18: 635680 | P18: -0.2488653457 | Q18: 1349241 | R18: 1311959 | S18: 1309651 | T18: 1309651 | U18: 1309561
A19: System Service | C19: 351331 | D19: -- | E19: 351331 | F19: 417267 | G19: 0.1876748707 | H19: 417267 | I19: 1771353 | J19: 3.245130816 | K19: 1771353 | L19: 7887428 | M19: 3.452770284 | N19: 7887428 | O19: 1783314 | P19: -0.7739042436 | Q19: 908540 | R19: 650832 | S19: 966547 | T19: 966547 | U19: 650832
A20: General Plant | C20: 1927289 | D20: -- | E20: 1927289 | F20: 708897 | G20: -0.6321791906 | H20: 708897 | I20: 954373 | J20: 0.3462787965 | K20: 954373 | L20: 893472 | M20: -0.06381257642 | N20: 893472 | O20: =604000+579455 -> 1183455 | P20: 0.3245574568 | Q20: 807000 | R20: 644000 | S20: 496000 | T20: 656500 | U20: 278900
A21: Subtotal (net of Capt Contr). | C21: =SUM(C17:C20) -> 18080893 | E21: =SUM(E17:E20) -> 18080893 | F21: =SUM(F17:F20) -> 12495314 | G21: -0.3089216335 | H21: =SUM(H17:H20) -> 12495314 | I21: =SUM(I17:I20) -> 10310228 | J21: -0.1748724362 | K21: =SUM(K17:K20) -> 10310228 | L21: =SUM(L17:L20) -> 18317273 | M21: 0.7766118266 | N21: =SUM(N17:N20) -> 18317273 | O21: =SUM(O17:O20) -> 11182518 | P21: -0.3895096721 | Q21: =SUM(Q17:Q20) -> 11309250 | R21: =SUM(R17:R20) -> 10002845 | S21: =SUM(S17:S20) -> 9697759 | T21: =SUM(T17:T20) -> 9858259 | U21: =SUM(U17:U20) -> 9861227
A23: Capital Contribution | C23: -6661564 | E23: =C23 -> -6661564 | F23: -2905190 | H23: =F23 -> -2905190 | I23: -1447615 | K23: =I23 -> -1447615 | L23: -3238245 | N23: =L23 -> -3238245 | O23: -3217443 | Q23: -3579205
A24: TOTAL EXPENDITURE | B24: =SUM(B17:B20) -> 0 | C24: =SUM(C21:C23) -> 11419329 | D24: -- | E24: =SUM(E21:E23) -> 11419329 | F24: =SUM(F21:F23) -> 9590124 | G24: -0.1601849811 | H24: =SUM(H21:H23) -> 9590124 | I24: =SUM(I21:I23) -> 8862613 | J24: -0.07586043726 | K24: =SUM(K21:K23) -> 8862613 | L24: =SUM(L21:L23) -> 15079028 | M24: 0.7014201117 | N24: =SUM(N21:N23) -> 15079028 | O24: =SUM(O21:O23) -> 7965075 | P24: -0.4717779554 | Q24: =SUM(Q21:Q23) -> 7730045
A25: System O&M | D25: -- | F25: ='[8]App.2-JA_OM&A_Summary_Analys'!C17 -> 6323045 | G25: -- | H25: =F25 -> 6323045 | I25: ='[8]App.2-JA_OM&A_Summary_Analys'!D17 -> 7187610 | J25: 0.1367323813 | K25: =I25 -> 7187610 | L25: ='[8]App.2-JA_OM&A_Summary_Analys'!E17 -> 7536406 | M25: 0.04852739645 | N25: =L25 -> 7536406 | O25: ='[8]App.2-JA_OM&A_Summary_Analys'!F17 -> 9223725.13 | P25: 0.2238890965 | Q25: ='[8]App.2-JA_OM&A_Summary_Analys'!G17 -> 10006700.13
A27: Notes to the Table:
A28: 1. Historical “previous plan” data is not required unless a plan has previously been filed
A29: 2. Indicate the number of months of 'actual' data included in the last year of the Historical Period (normally a 'bridge' year):
A31: Explanatory Notes on Variances (complete only if applicable)
A32: Notes on shifts in forecast vs. histrical budgets by category
A35: Notes on year over year Plan vs. Actual variances for Total Expenditures
A38: Notes on Plan vs. Actual variance trends for individual expenditure categories

Sheet App.2-BA1_Fix Asset Cont.CGAAP
L1: File Number: | M1: =EBNUMBER -> EB-2013-0115
L2: Exhibit:
L3: Tab:
L4: Schedule:
L5: Page:
L7: Date:
A9: Appendix 2-BA
A10: Fixed Asset Continuity Schedule - CGAAP/ASPE/USGAAP
E12: Year | F12: 2014 | G12: NewCGAAP
D14: Cost | J14: Accumulated Depreciation
B15: OEB | C15: Description | D15: Opening Balance | E15: Additions | F15: Disposals | G15: Closing Balance | I15: Opening Balance | J15: Additions | K15: Disposals | L15: Closing Balance | M15: Net Book Value
A16: CCA Class | B16: 1611 | C16: Computer Software (Formally known as Account 1925) | D16: 5883926 | E16: 245000 | G16: =D16+E16+F16 -> 6128926 | I16: -4355566.04 | J16: -363440.46 | L16: =I16+J16+K16 -> -4719006.5 | M16: =G16+L16 -> 1409919.5
A17: 12 | B17: 1612 | C17: Land Rights (Formally known as Account 1906) | D17: 189351 | E17: 60000 | G17: =D17+E17+F17 -> 249351 | I17: -29344.3 | J17: -3328.3 | L17: =I17+J17+K17 -> -32672.6 | M17: =G17+L17 -> 216678.4
A18: CEC | B18: 1805 | C18: Land | D18: 202703 | G18: =D18+E18+F18 -> 202703 | I18: 0 | L18: =I18+J18+K18 -> 0 | M18: =G18+L18 -> 202703
A19: N/A | B19: 1808 | C19: Buildings | D19: 2301844 | E19: 5000 | G19: =D19+E19+F19 -> 2306844 | I19: -1218984.52 | J19: -63385.32 | L19: =I19+J19+K19 -> -1282369.84 | M19: =G19+L19 -> 1024474.16
A20: 47 | B20: 1810 | C20: Leasehold Improvements | D20: 0 | G20: 0 | I20: 0 | L20: 0 | M20: 0
A21: 13 | B21: 1815 | C21: Transformer Station Equipment >50 kV | D21: 0 | G21: 0 | I21: 0 | L21: 0 | M21: 0
A22: 47 | B22: 1820 | C22: Distribution Station Equipment <50 kV | D22: 14635108 | E22: 565311.79 | G22: 15200419.79 | I22: -9325298.48 | J22: -227603.9 | L22: -9552902.38 | M22: 5647517.41
A23: 47 | B23: 1825 | C23: Storage Battery Equipment | D23: 0 | G23: 0 | I23: 0 | L23: 0 | M23: 0
A24: 47 | B24: 1830 | C24: Poles, Towers & Fixtures | D24: 34432808 | E24: 1686482.61 | G24: 36119290.61 | I24: -15351932.58 | J24: -597865.3 | L24: -15949797.88 | M24: 20169492.73
A25: 47 | B25: 1835 | C25: Overhead Conductors & Devices | D25: 42038372 | E25: 847206.28 | G25: 42885578.28 | I25: -24509930.2 | J25: -504774.31 | L25: -25014704.51 | M25: 17870873.77
A26: 47 | B26: 1840 | C26: Underground Conduit | D26: 18168947 | E26: 1669427.94 | G26: 19838374.94 | I26: -7990753.12 | J26: -207976.06 | L26: -8198729.18 | M26: 11639645.76
A27: 47 | B27: 1845 | C27: Underground Conductors & Devices | D27: 28691075 | E27: 1882472.27 | G27: 30573547.27 | I27: -14730321.35 | J27: -595919.62 | L27: -15326240.97 | M27: 15247306.3
A28: 47 | B28: 1850 | C28: Line Transformers | D28: 50280853 | E28: 1909204.91 | G28: 52190057.91 | I28: -28200485.28 | J28: -745869.03 | L28: -28946354.31 | M28: 23243703.6
A29: 47 | B29: 1855 | C29: Services (Overhead & Underground) | D29: 33530149 | E29: 1261636.54 | G29: 34791785.54 | I29: -18471213.43 | J29: -304487.16 | L29: -18775700.59 | M29: 16016084.95
A30: 47 | B30: 1860 | C30: Meters | D30: 19097612 | E30: 606883.39 | G30: 19704495.39 | I30: -7456675.47 | J30: -947134.21 | L30: -8403809.68 | M30: 11300685.71
A31: 47 | B31: 1860 | C31: Meters (Smart Meters) | D31: 0 | G31: 0 | I31: 0 | L31: 0 | M31: 0
A32: 47 | B32: 1905 | C32: Land | D32: 96300 | G32: 96300 | I32: 0 | L32: 0 | M32: 96300
A33: N/A | B33: 1908 | C33: Buildings & Fixtures | D33: 8498856 | E33: 327000 | G33: 8825856 | I33: -4124687.77 | J33: -246284.34 | L33: -4370972.11 | M33: 4454883.89
A34: 47 | B34: 1910 | C34: Leasehold Improvements | D34: 0 | G34: 0 | I34: 0 | L34: 0 | M34: 0
A35: 13 | B35: 1915 | C35: Office Furniture & Equipment (10 years) | D35: 1532168 | E35: 38000 | G35: 1570168 | I35: -1219273.49 | J35: -57568.63 | L35: -1276842.12 | M35: 293325.88
A36: 8 | B36: 1915 | C36: Office Furniture & Equipment (5 years) | D36: 0 | G36: 0 | I36: 0 | L36: 0 | M36: 0
A37: 8 | B37: 1920 | C37: Computer Equipment - Hardware | D37: 866207 | E37: 70000 | G37: 936207 | I37: -644225.85 | J37: -64916 | L37: -709141.85 | M37: 227065.15
A38: 10 | B38: 1920 | C38: Computer Equip.-Hardware(Post Mar. 22/04) | D38: 0 | G38: 0 | I38: 0 | L38: 0 | M38: 0
A39: 45 | B39: 1920 | C39: Computer Equip.-Hardware(Post Mar. 19/07) | D39: 0 | G39: 0 | I39: 0 | L39: 0 | M39: 0
A40: 45.1 | B40: 1930 | C40: Transportation Equipment | D40: 3575754 | E40: 50000 | G40: 3625754 | I40: -2772730.67 | J40: -75768.66 | L40: -2848499.33 | M40: 777254.67
A41: 10 | B41: 1935 | C41: Stores Equipment | D41: 292425 | G41: 292425 | I41: -292080 | L41: -292080 | M41: 345
A42: 8 | B42: 1940 | C42: Tools, Shop & Garage Equipment | D42: 1364938 | E42: 9000 | G42: 1373938 | I42: -1239256.63 | J42: -26531.58 | L42: -1265788.21 | M42: 108149.79
A43: 8 | B43: 1945 | C43: Measurement & Testing Equipment | D43: 384931 | E43: 3000 | G43: 387931 | I43: -352389.3 | J43: -4625.65 | L43: -357014.95 | M43: 30916.05
A44: 8 | B44: 1950 | C44: Power Operated Equipment | D44: 0 | G44: 0 | I44: 0 | L44: 0 | M44: 0
A45: 8 | B45: 1955 | C45: Communications Equipment | D45: 191861 | G45: 191861 | I45: -191861 | L45: -191861 | M45: 0
A46: 8 | B46: 1955 | C46: Communication Equipment (Smart Meters) | D46: 0 | G46: 0 | I46: 0 | L46: 0 | M46: 0
A47: 8 | B47: 1960 | C47: Miscellaneous Equipment | D47: 0 | G47: 0 | I47: 0 | L47: 0 | M47: 0
A48: 8 | B48: 1970 | C48: Load Management Controls Customer Premises | D48: 0 | G48: 0 | I48: 0 | L48: 0 | M48: 0
A49: 47 | B49: 1975 | C49: Load Management Controls Utility Premises | D49: 0 | G49: 0 | I49: 0 | L49: 0 | M49: 0
A50: 47 | B50: 1980 | C50: System Supervisor Equipment | D50: 3174543 | E50: 73624.27 | G50: 3248167.27 | I50: -2891393.64 | J50: -72483.14 | L50: -2963876.78 | M50: 284290.49
A51: 47 | B51: 1985 | C51: Miscellaneous Fixed Assets | D51: 0 | G51: 0 | I51: 0 | L51: 0 | M51: 0
A52: 47 | B52: 1990 | C52: Other Tangible Property | D52: 5321057 | G52: 5321057 | I52: 557058.55 | J52: -88684.29 | L52: 468374.26 | M52: 5789431.26
A53: 47 | B53: 1995 | C53: Contributions & Grants | D53: -30562122 | E53: -3579205 | G53: -34141327 | I53: 5753949.86 | J53: 632185.68 | L53: 6386135.54 | M53: -27755191.46
A54: 47 | B54: etc. | D54: 0 | G54: 0 | I54: 0 | L54: 0 | M54: 0
D55: 0 | G55: 0 | I55: 0 | L55: 0 | M55: 0
C56: Sub-Total | D56: =SUM(D16:D55) -> 244189666 | E56: =SUM(E16:E55) -> 7730045 | F56: 0 | G56: 251919711 | I56: =SUM(I16:I55) -> -139057394.7 | J56: =SUM(J16:J55) -> -4566460.28 | K56: 0 | L56: -143623855 | M56: 108295856
C57: Less Socialized Renewable Energy Generation Investments (input as negative) | G57: =D57+E57+F57 -> 0 | L57: =I57+J57+K57 -> 0 | M57: =G57+L57 -> 0
C58: Less Other Non Rate-Regulated Utility Assets (input as negative) | G58: 0 | L58: 0 | M58: 0
C59: Total PP&E | D59: =SUM(D56:D58) -> 244189666 | E59: =SUM(E56:E58) -> 7730045 | F59: 0 | G59: 251919711 | I59: =SUM(I56:I58) -> -139057394.7 | J59: -4566460.28 | K59: 0 | L59: -143623855 | M59: 108295856
I61: Depreciation Allocated to Other Departments:
I62: Administration | K62: 260
I63: I/S AS 400 | K63: 127934.26
C64: Transportation | I64: Engineering | K64: 180063.45
A65: 10 | C65: Stores Equipment | I65: Fleet | K65: 75768.66
A66: 8 | I66: Net Depreciation | K66: -4182433.91
E70: Year | F70: 2013 | G70: NewCGAAP
D72: Cost | J72: Accumulated Depreciation
B73: OEB | C73: Description | D73: Opening Balance | E73: Additions | F73: Disposals | G73: Closing Balance | I73: Opening Balance | J73: Additions | K73: Disposals | L73: Closing Balance | M73: Net Book Value
A74: CCA Class | B74: 1611 | C74: Computer Software (Formally known as Account 1925) | D74: 5538926 | E74: 345000 | G74: =D74+E74+F74 -> 5883926 | I74: -4077459 | J74: -278107.04 | L74: =I74+J74+K74 -> -4355566.04 | M74: =G74+L74 -> 1528359.96
A75: 12 | B75: 1612 | C75: Land Rights (Formally known as Account 1906) | D75: 189351 | G75: =D75+E75+F75 -> 189351 | I75: -26516 | J75: -2828.3 | L75: =I75+J75+K75 -> -29344.3 | M75: =G75+L75 -> 160006.7
A76: CEC | B76: 1805 | C76: Land | D76: 202703 | G76: =D76+E76+F76 -> 202703 | I76: 0 | L76: =I76+J76+K76 -> 0 | M76: =G76+L76 -> 202703
A77: N/A | B77: 1808 | C77: Buildings | D77: 2296844 | E77: 5000 | G77: =D77+E77+F77 -> 2301844 | I77: -1153915 | J77: -65069.52 | L77: =I77+J77+K77 -> -1218984.52 | M77: =G77+L77 -> 1082859.48
A78: 47 | B78: 1810 | C78: Leasehold Improvements | D78: 0 | G78: 0 | I78: 0 | L78: 0 | M78: 0
A79: 13 | B79: 1815 | C79: Transformer Station Equipment >50 kV | D79: 0 | G79: 0 | I79: 0 | L79: 0 | M79: 0
A80: 47 | B80: 1820 | C80: Distribution Station Equipment <50 kV | D80: 14420893 | E80: 214215 | G80: 14635108 | I80: -9107631 | J80: -217667.48 | L80: -9325298.48 | M80: 5309809.52
A81: 47 | B81: 1825 | C81: Storage Battery Equipment | D81: 0 | G81: 0 | I81: 0 | L81: 0 | M81: 0
A82: 47 | B82: 1830 | C82: Poles, Towers & Fixtures | D82: 31180513 | E82: 3252295 | G82: 34432808 | I82: -14815802 | J82: -536130.58 | L82: -15351932.58 | M82: 19080875.42
A83: 47 | B83: 1835 | C83: Overhead Conductors & Devices | D83: 41356602 | E83: 681770 | G83: 42038372 | I83: -23945999 | J83: -563931.2 | L83: -24509930.2 | M83: 17528441.8
A84: 47 | B84: 1840 | C84: Underground Conduit | D84: 16187382 | E84: 1981565 | G84: 18168947 | I84: -7813202 | J84: -177551.12 | L84: -7990753.12 | M84: 10178193.88
A85: 47 | B85: 1845 | C85: Underground Conductors & Devices | D85: 27086750 | E85: 1604325 | G85: 28691075 | I85: -14126796 | J85: -603525.35 | L85: -14730321.35 | M85: 13960753.65
A86: 47 | B86: 1850 | C86: Line Transformers | D86: 48272718 | E86: 2008135 | G86: 50280853 | I86: -27503583 | J86: -696902.28 | L86: -28200485.28 | M86: 22080367.72
A87: 47 | B87: 1855 | C87: Services (Overhead & Underground) | D87: 31940499 | E87: 1589650 | G87: 33530149 | I87: -18190487 | J87: -280726.43 | L87: -18471213.43 | M87: 15058935.57
A88: 47 | B88: 1860 | C88: Meters | D88: 18462867 | E88: 634745 | G88: 19097612 | I88: -6461433 | J88: -995242.47 | L88: -7456675.47 | M88: 11640936.53
A89: 47 | B89: 1860 | C89: Meters (Smart Meters) | D89: 0 | G89: 0 | I89: 0 | L89: 0 | M89: 0
A90: 47 | B90: 1905 | C90: Land | D90: 96300 | G90: 96300 | I90: 0 | L90: 0 | M90: 96300
A91: N/A | B91: 1908 | C91: Buildings & Fixtures | D91: 8463856 | E91: 35000 | G91: 8498856 | I91: -3879841 | J91: -244846.77 | L91: -4124687.77 | M91: 4374168.23
A92: 47 | B92: 1910 | C92: Leasehold Improvements | D92: 0 | G92: 0 | I92: 0 | L92: 0 | M92: 0
A93: 13 | B93: 1915 | C93: Office Furniture & Equipment (10 years) | D93: 1478168 | E93: 54000 | G93: 1532168 | I93: -1159084 | J93: -60189.49 | L93: -1219273.49 | M93: 312894.51
A94: 8 | B94: 1915 | C94: Office Furniture & Equipment (5 years) | D94: 0 | G94: 0 | I94: 0 | L94: 0 | M94: 0
A95: 8 | B95: 1920 | C95: Computer Equipment - Hardware | D95: 768207 | E95: 98000 | G95: 866207 | I95: -584557 | J95: -59668.85 | L95: -644225.85 | M95: 221981.15
A96: 10 | B96: 1920 | C96: Computer Equip.-Hardware(Post Mar. 22/04) | D96: 0 | G96: 0 | I96: 0 | L96: 0 | M96: 0
A97: 45 | B97: 1920 | C97: Computer Equip.-Hardware(Post Mar. 19/07) | D97: 0 | G97: 0 | I97: 0 | L97: 0 | M97: 0
A98: 45.1 | B98: 1930 | C98: Transportation Equipment | D98: 3529754 | E98: 46000 | G98: 3575754 | I98: -2700962 | J98: -71768.67 | L98: -2772730.67 | M98: 803023.33
A99: 10 | B99: 1935 | C99: Stores Equipment | D99: 292425 | G99: 292425 | I99: -292080 | L99: -292080 | M99: 345
A100: 8 | B100: 1940 | C100: Tools, Shop & Garage Equipment | D100: 1346938 | E100: 18000 | G100: 1364938 | I100: -1208155 | J100: -31101.63 | L100: -1239256.63 | M100: 125681.37
A101: 8 | B101: 1945 | C101: Measurement & Testing Equipment | D101: 381931 | E101: 3000 | G101: 384931 | I101: -346796 | J101: -5593.3 | L101: -352389.3 | M101: 32541.7
A102: 8 | B102: 1950 | C102: Power Operated Equipment | D102: 0 | G102: 0 | I102: 0 | L102: 0 | M102: 0
A103: 8 | B103: 1955 | C103: Communications Equipment | D103: 191861 | G103: 191861 | I103: -191861 | L103: -191861 | M103: 0
A104: 8 | B104: 1955 | C104: Communication Equipment (Smart Meters) | D104: 0 | G104: 0 | I104: 0 | L104: 0 | M104: 0
A105: 8 | B105: 1960 | C105: Miscellaneous Equipment | D105: 0 | G105: 0 | I105: 0 | L105: 0 | M105: 0
A106: 8 | B106: 1970 | C106: Load Management Controls Customer Premises | D106: 0 | G106: 0 | I106: 0 | L106: 0 | M106: 0
A107: 47 | B107: 1975 | C107: Load Management Controls Utility Premises | D107: 0 | G107: 0 | I107: 0 | L107: 0 | M107: 0
A108: 47 | B108: 1980 | C108: System Supervisor Equipment | D108: 3085723 | E108: 88820 | G108: 3174543 | I108: -2722830 | J108: -168563.64 | L108: -2891393.64 | M108: 283149.36
A109: 47 | B109: 1985 | C109: Miscellaneous Fixed Assets | D109: 0 | G109: 0 | I109: 0 | L109: 0 | M109: 0
A110: 47 | B110: 1990 | C110: Other Tangible Property | D110: 6798057 | E110: -1477000 | G110: 5321057 | I110: 0 | J110: 557058.55 | L110: 557058.55 | M110: 5878115.55
A111: 47 | B111: 1995 | C111: Contributions & Grants | D111: -27344679 | E111: -3217443 | G111: -30562122 | I111: 5798292 | J111: -44342.14 | L111: 5753949.86 | M111: -24808172.14
A112: 47 | B112: etc. | D112: 0 | G112: 0 | I112: 0 | L112: 0 | M112: 0
D113: 0 | G113: 0 | I113: 0 | L113: 0 | M113: 0
C114: Sub-Total | D114: =SUM(D74:D113) -> 236224589 | E114: =SUM(E74:E113) -> 7965077 | F114: 0 | G114: 244189666 | I114: =SUM(I74:I113) -> -134510697 | J114: =SUM(J74:J113) -> -4546697.71 | K114: 0 | L114: -139057394.7 | M114: 105132271.3
C115: Less Socialized Renewable Energy Generation Investments (input as negative) | G115: =D115+E115+F115 -> 0 | L115: =I115+J115+K115 -> 0 | M115: =G115+L115 -> 0
C116: Less Other Non Rate-Regulated Utility Assets (input as negative) | G116: 0 | L116: =I116+J116+K116 -> 0 | M116: 0
C117: Total PP&E | D117: =SUM(D114:D116) -> 236224589 | E117: =SUM(E114:E116) -> 7965077 | F117: 0 | G117: 244189666 | I117: =SUM(I114:I116) -> -134510697 | J117: =SUM(J114:J116) -> -4546697.71 | K117: =SUM(K114:K116) -> 0 | L117: =SUM(L114:L116) -> -139057394.7 | M117: =SUM(M114:M116) -> 105132271.3
I119: Depreciation Allocated to Other Departments:
C120: Transportation | I120: Administration | K120: 260
A121: 10 | C121: Stores Equipment | I121: I/S AS 400 | K121: 87353
A122: 8 | I122: Engineering | K122: 183058
I123: Fleet | K123: 71769
I124: Net Depreciation | K124: -4204259
E126: Year | F126: 2013 | G126: OldCGAAP
D128: Cost | J128: Accumulated Depreciation
B129: OEB | C129: Description | D129: Opening Balance | E129: Additions | F129: Disposals | G129: Closing Balance | I129: Opening Balance | J129: Additions | K129: Disposals | L129: Closing Balance | M129: Net Book Value
A130: CCA Class | B130: 1611 | C130: Computer Software (Formally known as Account 1925) | D130: 5538926 | E130: 345000 | G130: =D130+E130+F130 -> 5883926 | I130: -4077459 | J130: -500459 | L130: =I130+J130+K130 -> -4577918 | M130: =G130+L130 -> 1306008
A131: 12 | B131: 1612 | C131: Land Rights (Formally known as Account 1906) | D131: 189351 | G131: =D131+E131+F131 -> 189351 | I131: -26516 | J131: -2828.3 | L131: =I131+J131+K131 -> -29344.3 | M131: =G131+L131 -> 160006.7
A132: CEC | B132: 1805 | C132: Land | D132: 202703 | G132: =D132+E132+F132 -> 202703 | I132: 0 | L132: =I132+J132+K132 -> 0 | M132: =G132+L132 -> 202703
A133: N/A | B133: 1808 | C133: Buildings | D133: 2296844 | E133: 5000 | G133: =D133+E133+F133 -> 2301844 | I133: -1153915 | J133: -64700 | L133: =I133+J133+K133 -> -1218615 | M133: =G133+L133 -> 1083229
A134: 47 | B134: 1810 | C134: Leasehold Improvements | D134: 0 | G134: 0 | I134: 0 | L134: 0 | M134: 0
A135: 13 | B135: 1815 | C135: Transformer Station Equipment >50 kV | D135: 0 | G135: 0 | I135: 0 | L135: 0 | M135: 0
A136: 47 | B136: 1820 | C136: Distribution Station Equipment <50 kV | D136: 14420893 | E136: 229738.99 | G136: 14650631.99 | I136: -9107631 | J136: -385229 | L136: -9492860 | M136: 5157771.99
A137: 47 | B137: 1825 | C137: Storage Battery Equipment | D137: 0 | G137: 0 | I137: 0 | L137: 0 | M137: 0
A138: 47 | B138: 1830 | C138: Poles, Towers & Fixtures | D138: 31180513 | E138: 3720150.82 | G138: 34900663.82 | I138: -14815802 | J138: -1137556 | L138: -15953358 | M138: 18947305.82
A139: 47 | B139: 1835 | C139: Overhead Conductors & Devices | D139: 41356602 | E139: 1205634.42 | G139: 42562236.42 | I139: -23945999 | J139: -1361372 | L139: -25307371 | M139: 17254865.42
A140: 47 | B140: 1840 | C140: Underground Conduit | D140: 16187382 | E140: 2113875.24 | G140: 18301257.24 | I140: -7813202 | J140: -587513 | L140: -8400715 | M140: 9900542.24
A141: 47 | B141: 1845 | C141: Underground Conductors & Devices | D141: 27086750 | E141: 1710859.43 | G141: 28797609.43 | I141: -14126796 | J141: -943846 | L141: -15070642 | M141: 13726967.43
A142: 47 | B142: 1850 | C142: Line Transformers | D142: 48272718 | E142: 2142678.45 | G142: 50415396.45 | I142: -27503583 | J142: -1656855 | L142: -29160438 | M142: 21254958.45
A143: 47 | B143: 1855 | C143: Services (Overhead & Underground) | D143: 31940499 | E143: 1210801.65 | G143: 33151300.65 | I143: -18190487 | J143: -1056413 | L143: -19246900 | M143: 13904400.65
A144: 47 | B144: 1860 | C144: Meters | D144: 18462867 | E144: 670000 | G144: 19132867 | I144: -6461433 | J144: -647207 | L144: -7108640 | M144: 12024227
A145: 47 | B145: 1860 | C145: Meters (Smart Meters) | D145: 0 | G145: 0 | I145: 0 | L145: 0 | M145: 0
A146: 47 | B146: 1905 | C146: Land | D146: 96300 | G146: 96300 | I146: 0 | L146: 0 | M146: 96300
A147: N/A | B147: 1908 | C147: Buildings & Fixtures | D147: 8463856 | E147: 35000 | G147: 8498856 | I147: -3879841 | J147: -235544 | L147: -4115385 | M147: 4383471
A148: 47 | B148: 1910 | C148: Leasehold Improvements | D148: 0 | G148: 0 | I148: 0 | L148: 0 | M148: 0
A149: 13 | B149: 1915 | C149: Office Furniture & Equipment (10 years) | D149: 1478168 | E149: 54000 | G149: 1532168 | I149: -1159084 | J149: -64116 | L149: -1223200 | M149: 308968
A150: 8 | B150: 1915 | C150: Office Furniture & Equipment (5 years) | D150: 0 | G150: 0 | I150: 0 | L150: 0 | M150: 0
A151: 8 | B151: 1920 | C151: Computer Equipment - Hardware | D151: 768207 | E151: 98000 | G151: 866207 | I151: -584557 | J151: -54349 | L151: -638906 | M151: 227301
A152: 10 | B152: 1920 | C152: Computer Equip.-Hardware(Post Mar. 22/04) | D152: 0 | G152: 0 | I152: 0 | L152: 0 | M152: 0
A153: 45 | B153: 1920 | C153: Computer Equip.-Hardware(Post Mar. 19/07) | D153: 0 | G153: 0 | I153: 0 | L153: 0 | M153: 0
A154: 45.1 | B154: 1930 | C154: Transportation Equipment | D154: 3529754 | E154: 46000 | G154: 3575754 | I154: -2700962 | J154: -243813 | L154: -2944775 | M154: 630979
A155: 10 | B155: 1935 | C155: Stores Equipment | D155: 292425 | G155: 292425 | I155: -292080 | L155: -292080 | M155: 345
A156: 8 | B156: 1940 | C156: Tools, Shop & Garage Equipment | D156: 1346938 | E156: 18000 | G156: 1364938 | I156: -1208155 | J156: -56872 | L156: -1265027 | M156: 99911
A157: 8 | B157: 1945 | C157: Measurement & Testing Equipment | D157: 381931 | E157: 3000 | G157: 384931 | I157: -346796 | J157: -7264 | L157: -354060 | M157: 30871
A158: 8 | B158: 1950 | C158: Power Operated Equipment | D158: 0 | G158: 0 | I158: 0 | L158: 0 | M158: 0
A159: 8 | B159: 1955 | C159: Communications Equipment | D159: 191861 | G159: 191861 | I159: -191861 | L159: -191861 | M159: 0
A160: 8 | B160: 1955 | C160: Communication Equipment (Smart Meters) | D160: 0 | G160: 0 | I160: 0 | L160: 0 | M160: 0
A161: 8 | B161: 1960 | C161: Miscellaneous Equipment | D161: 0 | G161: 0 | I161: 0 | L161: 0 | M161: 0
A162: 8 | B162: 1970 | C162: Load Management Controls Customer Premises | D162: 0 | G162: 0 | I162: 0 | L162: 0 | M162: 0
A163: 47 | B163: 1975 | C163: Load Management Controls Utility Premises | D163: 0 | G163: 0 | I163: 0 | L163: 0 | M163: 0
A164: 47 | B164: 1980 | C164: System Supervisor Equipment | D164: 3085723 | E164: 95261.01 | G164: 3180984.01 | I164: -2722830 | J164: -35418 | L164: -2758248 | M164: 422736.01
A165: 47 | B165: 1985 | C165: Miscellaneous Fixed Assets | D165: 0 | G165: 0 | I165: 0 | L165: 0 | M165: 0
A166: 47 | B166: 1990 | C166: Other Tangible Property | D166: 6798057 | E166: -1477000 | G166: 5321057 | I166: 0 | J166: -44342.14 | L166: -44342.14 | M166: 5276714.86
A167: 47 | B167: 1995 | C167: Contributions & Grants | D167: -27344679 | E167: -3460000 | G167: -30804679 | I167: 5798292 | J167: 1162987.59 | L167: 6961279.59 | M167: -23843399.41
A168: 47 | B168: etc. | D168: 0 | G168: 0 | I168: 0 | L168: 0 | M168: 0
D169: 0 | G169: 0 | I169: 0 | L169: 0 | M169: 0
C170: Sub-Total | D170: =SUM(D130:D169) -> 236224589 | E170: =SUM(E130:E169) -> 8766000.01 | F170: 0 | G170: 244990589 | I170: =SUM(I130:I169) -> -134510697 | J170: =SUM(J130:J169) -> -7922708.85 | K170: 0 | L170: -142433405.8 | M170: 102557183.2
C171: Less Socialized Renewable Energy Generation Investments (input as negative) | G171: =D171+E171+F171 -> 0 | L171: =I171+J171+K171 -> 0 | M171: =G171+L171 -> 0
C172: Less Other Non Rate-Regulated Utility Assets (input as negative) | G172: 0 | L172: 0 | M172: 0
C173: Total PP&E | D173: =SUM(D170:D172) -> 236224589 | E173: =SUM(E170:E172) -> 8766000.01 | F173: 0 | G173: 244990589 | I173: =SUM(I170:I172) -> -134510697 | J173: -7922708.85 | K173: 0 | L173: -142433405.8 | M173: 102557183.2
I175: Less: Fully Allocated Depreciation
C176: Transportation | I176: Transportation
A177: 10 | C177: Stores Equipment | I177: Stores Equipment
A178: 8 | I178: Net Depreciation | K178: =J173-K176-K177 -> -7922708.85
E182: Year | F182: 2012 | G182: OldCGAAP
D184: Cost | J184: Accumulated Depreciation
B185: OEB | C185: Description | D185: Opening Balance | E185: Additions | F185: Disposals | G185: Closing Balance | I185: Opening Balance | J185: Additions | K185: Disposals | L185: Closing Balance | M185: Net Book Value
A186: CCA Class | B186: 1611 | C186: Computer Software (Formally known as Account 1925) | D186: 4972576 | E186: 566350 | G186: =D186+E186+F186 -> 5538926 | I186: -3600562 | J186: -476897 | L186: =I186+J186+K186 -> -4077459 | M186: =G186+L186 -> 1461467
A187: 12 | B187: 1612 | C187: Land Rights (Formally known as Account 1906) | D187: 189351 | G187: =D187+E187+F187 -> 189351 | I187: -23687 | J187: -2829 | L187: =I187+J187+K187 -> -26516 | M187: =G187+L187 -> 162835
A188: CEC | B188: 1805 | C188: Land | D188: 202703 | G188: =D188+E188+F188 -> 202703 | I188: 0 | L188: =I188+J188+K188 -> 0 | M188: =G188+L188 -> 202703
A189: N/A | B189: 1808 | C189: Buildings | D189: 2291394 | E189: 5450 | G189: =D189+E189+F189 -> 2296844 | I189: -1087554 | J189: -66361 | L189: =I189+J189+K189 -> -1153915 | M189: =G189+L189 -> 1142929
A190: 47 | B190: 1810 | C190: Leasehold Improvements | D190: 0 | G190: 0 | I190: 0 | L190: 0 | M190: 0
A191: 13 | B191: 1815 | C191: Transformer Station Equipment >50 kV | D191: 0 | G191: 0 | I191: 0 | L191: 0 | M191: 0
A192: 47 | B192: 1820 | C192: Distribution Station Equipment <50 kV | D192: 13826211 | E192: 594682 | G192: 14420893 | I192: -8739802 | J192: -367829 | L192: -9107631 | M192: 5313262
A193: 47 | B193: 1825 | C193: Storage Battery Equipment | D193: 0 | G193: 0 | I193: 0 | L193: 0 | M193: 0
A194: 47 | B194: 1830 | C194: Poles, Towers & Fixtures | D194: 28590097 | E194: 2590416 | G194: 31180513 | I194: -13776509 | J194: -1039293 | L194: -14815802 | M194: 16364711
A195: 47 | B195: 1835 | C195: Overhead Conductors & Devices | D195: 39722237 | E195: 1634365 | G195: 41356602 | I195: -22593293 | J195: -1352706 | L195: -23945999 | M195: 17410603
A196: 47 | B196: 1840 | C196: Underground Conduit | D196: 14422386 | E196: 1764996 | G196: 16187382 | I196: -7287739 | J196: -525463 | L196: -7813202 | M196: 8374180
A197: 47 | B197: 1845 | C197: Underground Conductors & Devices | D197: 25777253 | E197: 1309497 | G197: 27086750 | I197: -13216961 | J197: -909835 | L197: -14126796 | M197: 12959954
A198: 47 | B198: 1850 | C198: Line Transformers | D198: 46417593 | E198: 1855125 | G198: 48272718 | I198: -25870363 | J198: -1633220 | L198: -27503583 | M198: 20769135
A199: 47 | B199: 1855 | C199: Services (Overhead & Underground) | D199: 30612057 | E199: 1328442 | G199: 31940499 | I199: -17147594 | J199: -1042893 | L199: -18190487 | M199: 13750012
A200: 47 | B200: 1860 | C200: Meters | D200: 8476769 | E200: 9986098 | G200: 18462867 | I200: -4600850 | J200: -1860583 | L200: -6461433 | M200: 12001434
A201: 47 | B201: 1860 | C201: Meters (Smart Meters) | D201: 0 | G201: 0 | I201: 0 | L201: 0 | M201: 0
A202: 47 | B202: 1905 | C202: Land | D202: 96300 | G202: 96300 | I202: 0 | L202: 0 | M202: 96300
A203: N/A | B203: 1908 | C203: Buildings & Fixtures | D203: 8237061 | E203: 226795 | G203: 8463856 | I203: -3652251 | J203: -227590 | L203: -3879841 | M203: 4584015
A204: 47 | B204: 1910 | C204: Leasehold Improvements | D204: 0 | G204: 0 | I204: 0 | L204: 0 | M204: 0
A205: 13 | B205: 1915 | C205: Office Furniture & Equipment (10 years) | D205: 1396963 | E205: 81205 | G205: 1478168 | I205: -1106992 | J205: -52092 | L205: -1159084 | M205: 319084
A206: 8 | B206: 1915 | C206: Office Furniture & Equipment (5 years) | D206: 0 | G206: 0 | I206: 0 | L206: 0 | M206: 0
A207: 8 | B207: 1920 | C207: Computer Equipment - Hardware | D207: 855550 | E207: 89640 | F207: -176983 | G207: 768207 | I207: -695560 | J207: -60434 | K207: 171437 | L207: -584557 | M207: 183650
A208: 10 | B208: 1920 | C208: Computer Equip.-Hardware(Post Mar. 22/04) | D208: 0 | G208: 0 | I208: 0 | L208: 0 | M208: 0
A209: 45 | B209: 1920 | C209: Computer Equip.-Hardware(Post Mar. 19/07) | D209: 0 | G209: 0 | I209: 0 | L209: 0 | M209: 0
A210: 45.1 | B210: 1930 | C210: Transportation Equipment | D210: 3664600 | E210: 64539 | F210: -199385 | G210: 3529754 | I210: -2666146 | J210: -234201 | K210: 199385 | L210: -2700962 | M210: 828792
A211: 10 | B211: 1935 | C211: Stores Equipment | D211: 292425 | G211: 292425 | I211: -292080 | L211: -292080 | M211: 345
A212: 8 | B212: 1940 | C212: Tools, Shop & Garage Equipment | D212: 1330286 | E212: 16652 | G212: 1346938 | I212: -1176115 | J212: -32040 | L212: -1208155 | M212: 138783
A213: 8 | B213: 1945 | C213: Measurement & Testing Equipment | D213: 368936 | E213: 12995 | G213: 381931 | I213: -341391 | J213: -5405 | L213: -346796 | M213: 35135
A214: 8 | B214: 1950 | C214: Power Operated Equipment | D214: 0 | G214: 0 | I214: 0 | L214: 0 | M214: 0
A215: 8 | B215: 1955 | C215: Communications Equipment | D215: 191861 | G215: 191861 | I215: -191861 | L215: -191861 | M215: 0
A216: 8 | B216: 1955 | C216: Communication Equipment (Smart Meters) | D216: 0 | G216: 0 | I216: 0 | L216: 0 | M216: 0
A217: 8 | B217: 1960 | C217: Miscellaneous Equipment | D217: 0 | G217: 0 | I217: 0 | L217: 0 | M217: 0
... 169 more rows

Sheet App.2-BA2_Fix Asset Cont.MIFRS
L1: File Number: | M1: =EBNUMBER -> EB-2013-0115
L2: Exhibit:
L3: Tab:
L4: Schedule:
L5: Page:
L7: Date:
A9: Appendix 2-BA
A10: Fixed Asset Continuity Schedule - MIFRS
E12: Year
D14: Cost | J14: Accumulated Depreciation
A15: CCA Class | B15: OEB | C15: Description | D15: Opening Balance | E15: Additions | F15: Disposals | G15: Closing Balance | I15: Opening Balance | J15: Additions | K15: Disposals | L15: Closing Balance | M15: Net Book Value
A16: 12 | B16: 1611 | C16: Computer Software (Formally known as Account 1925) | G16: =D16+E16+F16 -> 0 | L16: =I16+J16+K16 -> 0 | M16: =G16+L16 -> 0
A17: CEC | B17: 1612 | C17: Land Rights (Formally known as Account 1906) | G17: =D17+E17+F17 -> 0 | L17: =I17+J17+K17 -> 0 | M17: =G17+L17 -> 0
A18: N/A | B18: 1805 | C18: Land | G18: =D18+E18+F18 -> 0 | L18: =I18+J18+K18 -> 0 | M18: =G18+L18 -> 0
A19: 47 | B19: 1808 | C19: Buildings | G19: =D19+E19+F19 -> 0 | L19: =I19+J19+K19 -> 0 | M19: =G19+L19 -> 0
A20: 13 | B20: 1810 | C20: Leasehold Improvements | G20: 0 | L20: 0 | M20: 0
A21: 47 | B21: 1815 | C21: Transformer Station Equipment >50 kV | G21: 0 | L21: 0 | M21: 0
A22: 47 | B22: 1820 | C22: Distribution Station Equipment <50 kV | G22: 0 | L22: 0 | M22: 0
A23: 47 | B23: 1825 | C23: Storage Battery Equipment | G23: 0 | L23: 0 | M23: 0
A24: 47 | B24: 1830 | C24: Poles, Towers & Fixtures | G24: 0 | L24: 0 | M24: 0
A25: 47 | B25: 1835 | C25: Overhead Conductors & Devices | G25: 0 | L25: 0 | M25: 0
A26: 47 | B26: 1840 | C26: Underground Conduit | G26: 0 | L26: 0 | M26: 0
A27: 47 | B27: 1845 | C27: Underground Conductors & Devices | G27: 0 | L27: 0 | M27: 0
A28: 47 | B28: 1850 | C28: Line Transformers | G28: 0 | L28: 0 | M28: 0
A29: 47 | B29: 1855 | C29: Services (Overhead & Underground) | G29: 0 | L29: 0 | M29: 0
A30: 47 | B30: 1860 | C30: Meters | G30: 0 | L30: 0 | M30: 0
A31: 47 | B31: 1860 | C31: Meters (Smart Meters) | G31: 0 | L31: 0 | M31: 0
A32: N/A | B32: 1905 | C32: Land | G32: 0 | L32: 0 | M32: 0
A33: 47 | B33: 1908 | C33: Buildings & Fixtures | G33: 0 | L33: 0 | M33: 0
A34: 13 | B34: 1910 | C34: Leasehold Improvements | G34: 0 | L34: 0 | M34: 0
A35: 8 | B35: 1915 | C35: Office Furniture & Equipment (10 years) | G35: 0 | L35: 0 | M35: 0
A36: 8 | B36: 1915 | C36: Office Furniture & Equipment (5 years) | G36: 0 | L36: 0 | M36: 0
A37: 10 | B37: 1920 | C37: Computer Equipment - Hardware | G37: 0 | L37: 0 | M37: 0
A38: 45 | B38: 1920 | C38: Computer Equip.-Hardware(Post Mar. 22/04) | G38: 0 | L38: 0 | M38: 0
A39: 45.1 | B39: 1920 | C39: Computer Equip.-Hardware(Post Mar. 19/07) | G39: 0 | L39: 0 | M39: 0
A40: 10 | B40: 1930 | C40: Transportation Equipment | G40: 0 | L40: 0 | M40: 0
A41: 8 | B41: 1935 | C41: Stores Equipment | G41: 0 | L41: 0 | M41: 0
A42: 8 | B42: 1940 | C42: Tools, Shop & Garage Equipment | G42: 0 | L42: 0 | M42: 0
A43: 8 | B43: 1945 | C43: Measurement & Testing Equipment | G43: 0 | L43: 0 | M43: 0
A44: 8 | B44: 1950 | C44: Power Operated Equipment | G44: 0 | L44: 0 | M44: 0
A45: 8 | B45: 1955 | C45: Communications Equipment | G45: 0 | L45: 0 | M45: 0
A46: 8 | B46: 1955 | C46: Communication Equipment (Smart Meters) | G46: 0 | L46: 0 | M46: 0
A47: 8 | B47: 1960 | C47: Miscellaneous Equipment | G47: 0 | L47: 0 | M47: 0
A48: 47 | B48: 1970 | C48: Load Management Controls Customer Premises | G48: 0 | L48: 0 | M48: 0
A49: 47 | B49: 1975 | C49: Load Management Controls Utility Premises | G49: 0 | L49: 0 | M49: 0
A50: 47 | B50: 1980 | C50: System Supervisor Equipment | G50: 0 | L50: 0 | M50: 0
A51: 47 | B51: 1985 | C51: Miscellaneous Fixed Assets | G51: 0 | L51: 0 | M51: 0
A52: 47 | B52: 1990 | C52: Other Tangible Property | G52: 0 | L52: 0 | M52: 0
A53: 47 | B53: 1995 | C53: Contributions & Grants | G53: 0 | L53: 0 | M53: 0
B54: etc. | G54: 0 | L54: 0 | M54: 0
G55: 0 | L55: 0 | M55: 0
C56: Sub-Total | D56: =SUM(D16:D55) -> 0 | E56: =SUM(E16:E55) -> 0 | F56: 0 | G56: 0 | I56: =SUM(I16:I55) -> 0 | J56: =SUM(J16:J55) -> 0 | K56: 0 | L56: 0 | M56: 0
C57: Less Socialized Renewable Energy Generation Investments (input as negative) | G57: =D57+E57+F57 -> 0 | L57: =I57+J57+K57 -> 0 | M57: =G57+L57 -> 0
C58: Less Other Non Rate-Regulated Utility Assets (input as negative) | G58: 0 | L58: 0 | M58: 0
C59: Total PP&E | D59: =SUM(D56:D58) -> 0 | E59: =SUM(E56:E58) -> 0 | F59: 0 | G59: 0 | I59: =SUM(I56:I58) -> 0 | J59: 0 | K59: 0 | L59: 0 | M59: 0
C60: Depreciation Expense adj. from gain or loss on the retirement of assets (pool of like assets)
C61: Total | J61: =J59+J60 -> 0
I63: Less: Fully Allocated Depreciation
A64: 10 | C64: Transportation | I64: Transportation
A65: 8 | C65: Stores Equipment | I65: Stores Equipment
I66: Net Depreciation | K66: =J61-K64-K65 -> 0
A68: Notes:
A70: 1 | B70: Tables in the format outlined above covering all fixed asset accounts should be submitted for the Test Year, Bridge Year and all relevant historical years. At a minimum , the applicant must provide data for the earlier of: 1) all historical years back to its last rebasing; or 2) at least three years of historical actuals, in addition to Bridge Year and Test Year forecasts.
A73: 2 | B73: The "CCA Class" for fixed assets should agree with the CCA Class used for tax purposes in Tax Returns. Fixed Assets sub-components may be used where the underlying asset components are classified under multiple CCA Classes for tax purposes. If an applicant uses any different classes from those shown in the table, an explanation should be provided. (also see note 3 below).
A76: 3 | B76: The table may need to be customized for a utility's asset categories or for any new asset accounts announced or authorized by the Board.
A78: 4 | B78: The additions column (F) must not include construction work in progress (CWIP).

Sheet Appendix 2-BB Service Life Comp
M1: File Number: | O1: =EBNUMBER -> EB-2013-0115
M2: Exhibit:
M3: Tab:
M4: Schedule:
M5: Page:
M7: Date:
A9: Appendix 2-BB
A10: Service Life Comparison
A11: Table F-1 from Kinetrics Report1
C13: Asset Details | F13: Useful Life | J13: USoA Account Number | K13: USoA Account Description | L13: Current | N13: Proposed
A14: Parent* | B14: # | C14: Category| Component | Type | F14: MIN UL | G14: TUL | H14: MAX UL | L14: Years | M14: Rate | N14: Years | O14: Rate
A15: OH | B15: 1 | C15: Fully Dressed Wood Poles | D15: Overall | F15: 35 | G15: 45 | H15: 75 | J15: 1830 | K15: Poles, Towers and Fixtures | L15: 25 | M15: =IF(ISERROR(1/L15), "", 1/L15) -> 0.04 | N15: 40 | O15: =IF(ISERROR(1/N15), "", 1/N15) -> 0.025
D16: Cross Arm | E16: Wood | F16: 20 | G16: 40 | H16: 55 | J16: 1830 | K16: Poles, Towers and Fixtures | L16: 25 | M16: =IF(ISERROR(1/L16), "", 1/L16) -> 0.04 | N16: 40 | O16: =IF(ISERROR(1/N16), "", 1/N16) -> 0.025
E17: Steel | F17: 30 | G17: 70 | H17: 95 | J17: 1830 | K17: Poles, Towers and Fixtures | L17: 25 | M17: 0.04 | N17: 40 | O17: 0.025
B18: 2 | C18: Fully Dressed Concrete Poles | D18: Overall | F18: 50 | G18: 60 | H18: 80 | J18: 1830 | K18: Poles, Towers and Fixtures | L18: 25 | M18: 0.04 | N18: 40 | O18: 0.025
D19: Cross Arm | E19: Wood | F19: 20 | G19: 40 | H19: 55 | J19: 1830 | K19: Poles, Towers and Fixtures | L19: 25 | M19: 0.04 | N19: 40 | O19: 0.025
E20: Steel | F20: 30 | G20: 70 | H20: 95 | J20: 1830 | K20: Poles, Towers and Fixtures | L20: 25 | M20: 0.04 | N20: 40 | O20: 0.025
B21: 3 | C21: Fully Dressed Steel Poles | D21: Overall | F21: 60 | G21: 60 | H21: 80 | J21: N/A
D22: Cross Arm | E22: Wood | F22: 20 | G22: 40 | H22: 55 | J22: N/A
E23: Steel | F23: 30 | G23: 70 | H23: 95 | J23: N/A
B24: 4 | C24: OH Line Switch | F24: 30 | G24: 45 | H24: 55 | J24: 1835 | K24: Overhead Conductors & Devices | L24: 25 | M24: 0.04 | N24: 40 | O24: 0.025
B25: 5 | C25: OH Line Switch Motor | F25: 15 | G25: 25 | H25: 25 | J25: 1835 | K25: Overhead Conductors & Devices | L25: 25 | M25: 0.04 | N25: 20 | O25: 0.05
B26: 6 | C26: OH Line Switch RTU | F26: 15 | G26: 20 | H26: 20 | J26: 1835 | K26: Overhead Conductors & Devices | L26: 25 | M26: 0.04 | N26: 20 | O26: 0.05
B27: 7 | C27: OH Integral Switches | F27: 35 | G27: 45 | H27: 60 | J27: 1835 | K27: Overhead Conductors & Devices | L27: 25 | M27: 0.04 | N27: 40 | O27: 0.025
B28: 8 | C28: OH Conductors | F28: 50 | G28: 60 | H28: 75 | J28: 1835 | K28: Overhead Conductors & Devices | L28: 25 | M28: 0.04 | N28: 60 | O28: 0.01666666667
B29: 9 | C29: OH Transformers & Voltage Regulators | F29: 30 | G29: 40 | H29: 60 | J29: 1850 | K29: Line Transformers | L29: 25 | M29: 0.04 | N29: 40 | O29: 0.025
B30: 10 | C30: OH Shunt Capacitor Banks | F30: 25 | G30: 30 | H30: 40 | J30: N/A
B31: 11 | C31: Reclosers | F31: 25 | G31: 40 | H31: 55 | J31: N/A
A32: TS & MS | B32: 12 | C32: Power Transformers | D32: Overall | F32: 30 | G32: 45 | H32: 60 | J32: 1850 | K32: Line Transformers | L32: 25 | M32: 0.04 | N32: 40 | O32: 0.025
D33: Bushing | F33: 10 | G33: 20 | H33: 30
D34: Tap Changer | F34: 20 | G34: 30 | H34: 60
B35: 13 | C35: Station Service Transformer | F35: 30 | G35: 45 | H35: 55
B36: 14 | C36: Station Grounding Transformer | F36: 30 | G36: 40 | H36: 40
B37: 15 | C37: Station DC System | D37: Overall | F37: 10 | G37: 20 | H37: 30
D38: Battery Bank | F38: 10 | G38: 15 | H38: 15 | J38: 1820 | K38: Distribution Station Equipment | L38: 30 | M38: 0.03333333333 | N38: 20 | O38: 0.05
D39: Charger | F39: 20 | G39: 20 | H39: 30 | J39: 1820 | K39: Distribution Station Equipment | L39: 30 | M39: 0.03333333333 | N39: 20 | O39: 0.05
B40: 16 | C40: Station Metal Clad Switchgear | D40: Overall | F40: 30 | G40: 40 | H40: 60 | J40: 1820 | K40: Distribution Station Equipment | L40: 25 | M40: 0.04 | N40: 40 | O40: 0.025
D41: Removable Breaker | F41: 25 | G41: 40 | H41: 60
B42: 17 | C42: Station Independent Breakers | F42: 35 | G42: 45 | H42: 65
B43: 18 | C43: Station Switch | F43: 30 | G43: 50 | H43: 60
B44: 19 | C44: Electromechanical Relays | F44: 25 | G44: 35 | H44: 50
B45: 20 | C45: Solid State Relays | F45: 10 | G45: 30 | H45: 45 | J45: 1820 | K45: Distribution Station Equipment | L45: 25 | M45: 0.04 | N45: 30 | O45: 0.03333333333
B46: 21 | C46: Digital & Numeric Relays | F46: 15 | G46: 20 | H46: 20
B47: 22 | C47: Rigid Busbars | F47: 30 | G47: 55 | H47: 60
B48: 23 | C48: Steel Structure | F48: 35 | G48: 50 | H48: 90
A49: UG | B49: 24 | C49: Primary Paper Insulated Lead Covered (PILC) Cables | F49: 60 | G49: 65 | H49: 75 | J49: N/A
B50: 25 | C50: Primary Ethylene-Propylene Rubber (EPR) Cables | F50: 20 | G50: 25 | H50: 25 | J50: 1845 | K50: Underground Conductors & Devices | L50: 25 | M50: 0.04 | N50: 40 | O50: 0.025
B51: 26 | C51: Primary Non-Tree Retardant (TR) Cross Linked Polyethylene (XLPE) Cables Direct BuriedPrimary Non-Tree Retardant (TR) Cross Linked Polyethylene (XLPE) Cables Direct Buried | F51: 20 | G51: 25 | H51: 30 | J51: 1845 | K51: Underground Conductors & Devices | L51: 25 | M51: 0.04 | N51: 40 | O51: 0.025
B52: 27 | C52: Primary Non-TR XLPE Cables in Duct | F52: 20 | G52: 25 | H52: 30 | J52: 1845 | K52: Underground Conductors & Devices | L52: 25 | M52: 0.04 | N52: 40 | O52: 0.025
B53: 28 | C53: Primary TR XLPE Cables Direct Buried | F53: 25 | G53: 30 | H53: 35 | J53: 1845 | K53: Underground Conductors & Devices | L53: 25 | M53: 0.04 | N53: 40 | O53: 0.025
B54: 29 | C54: Primary TR XLPE Cables in Duct | F54: 35 | G54: 40 | H54: 55 | J54: 1845 | K54: Underground Conductors & Devices | L54: 25 | M54: 0.04 | N54: 40 | O54: 0.025
B55: 30 | C55: Secondary PILC Cables | F55: 70 | G55: 75 | H55: 80 | J55: N/A
B56: 31 | C56: Secondary Cables Direct Buried | F56: 25 | G56: 35 | H56: 40 | J56: 1855 | K56: Services | L56: 25 | M56: 0.04 | N56: 60 | O56: 0.01666666667
B57: 32 | C57: Secondary Cables in Duct | F57: 35 | G57: 40 | H57: 60 | J57: 1855 | K57: Services | L57: 25 | M57: 0.04 | N57: 60 | O57: 0.01666666667
B58: 33 | C58: Network Tranformers | D58: Overall | F58: 20 | G58: 35 | H58: 50 | J58: N/A
D59: Protector | F59: 20 | G59: 35 | H59: 40 | J59: N/A
B60: 34 | C60: Pad-Mounted Transformers | F60: 25 | G60: 40 | H60: 45 | J60: 1850 | K60: Line Transformers | L60: 25 | M60: 0.04 | N60: 40 | O60: 0.025
B61: 35 | C61: Submersible/Vault Transformers | F61: 25 | G61: 35 | H61: 45 | J61: 1850 | K61: Line Transformers | L61: 25 | M61: 0.04 | N61: 40 | O61: 0.025
B62: 36 | C62: UG Foundation | F62: 35 | G62: 55 | H62: 70 | J62: 1840 | K62: Underground Conduit | L62: 25 | M62: 0.04 | N62: 60 | O62: 0.01666666667
B63: 37 | C63: UG Vaults | D63: Overall | F63: 40 | G63: 60 | H63: 80 | J63: N/A
D64: Roof | F64: 20 | G64: 30 | H64: 45 | J64: N/A
B65: 38 | C65: UG Vault Switches | F65: 20 | G65: 35 | H65: 50 | J65: 1845 | K65: Underground Conductors & Devices | L65: 25 | M65: 0.04 | N65: 30 | O65: 0.03333333333
B66: 39 | C66: Pad-Mounted Switchgear | F66: 20 | G66: 30 | H66: 45 | J66: 1845 | K66: Underground Conductors & Devices | L66: 25 | M66: 0.04 | N66: 30 | O66: 0.03333333333
B67: 40 | C67: Ducts | F67: 30 | G67: 50 | H67: 85 | J67: 1840 | K67: Underground Conduit | L67: 25 | M67: 0.04 | N67: 60 | O67: 0.01666666667
B68: 41 | C68: Concrete Encased Duct Banks | F68: 35 | G68: 55 | H68: 80 | J68: 1840 | K68: Underground Conduit | L68: 25 | M68: 0.04 | N68: 60 | O68: 0.01666666667
B69: 42 | C69: Cable Chambers | F69: 50 | G69: 60 | H69: 80 | J69: 1840 | K69: Underground Conduit | L69: 25 | M69: 0.04 | N69: 60 | O69: 0.01666666667
A70: S | B70: 43 | C70: Remote SCADA | F70: 15 | G70: 20 | H70: 30
A73: Table F-2 from Kinetrics Report1
C75: Asset Details | F75: Useful Life Range | J75: USoA Account Number | K75: USoA Account Description | L75: Current | N75: Proposed
B76: # | C76: Category| Component | Type | L76: Years | M76: Rate | N76: Years | O76: Rate
B77: 1 | C77: Office Equipment | F77: 5-15 | J77: 1915 | K77: Office Furniture & Equipment | L77: 10 | M77: =IF(ISERROR(1/L77), "", 1/L77) -> 0.1 | N77: 10 | O77: =IF(ISERROR(1/N77), "", 1/N77) -> 0.1
B78: 2 | C78: Vehicles | D78: Trucks & Buckets | F78: 5-15 | J78: 1930 | K78: Transportation Equipment | L78: 8 | M78: =IF(ISERROR(1/L78), "", 1/L78) -> 0.125 | N78: 15 | O78: =IF(ISERROR(1/N78), "", 1/N78) -> 0.06666666667
D79: Trailers | F79: 5-20 | J79: 1930 | K79: Transportation Equipment | L79: 8 | M79: 0.125 | N79: 20 | O79: 0.05
D80: Vans | F80: 5-10 | J80: 1930 | K80: Transportation Equipment | L80: 5 | M80: 0.2 | N80: 12 | O80: 0.08333333333
B81: 3 | C81: Administrative Buildings | F81: 50-75 | J81: 200/201 | K81: Building & Fixtures | L81: 5-50 | M81: 5.43951262e-05 | N81: 5-50 | O81: 5.43951262e-05
B82: 4 | C82: Leasehold Improvements | F82: Lease dependent | J82: N/A | L82: 0 | N82: 0
B83: 5 | C83: Station Buildings | D83: Station Buildings | F83: 50-75 | J83: 1808 | K83: Building & Fixtures | L83: 50 | M83: 0.02 | N83: 50 | O83: 0.02
D84: Parking | F84: 25-30 | J84: 1808 | K84: Building & Fixtures | L84: 30 | M84: 0.03333333333 | N84: 30 | O84: 0.03333333333
D85: Fence | F85: 25-60 | J85: 1808 | K85: Building & Fixtures | L85: 25 | M85: 0.04 | N85: 25 | O85: 0.04
D86: Roof | F86: 20-30 | J86: 1808 | K86: Building & Fixtures | L86: 20 | M86: 0.05 | N86: 20 | O86: 0.05
B87: 6 | C87: Computer Equipment | D87: Hardware | F87: 3-5 | J87: 1920 | K87: Computer Equipment - Hardware | L87: 5 | M87: 0.2 | N87: 5 | O87: 0.2
D88: Software | F88: 2-5 | J88: 1925 | K88: Computer Equipment - Software | L88: 5 | M88: 0.2 | N88: 5 | O88: 0.2
B89: 7 | C89: Equipment | D89: Power Operated | F89: 5-10 | J89: N/A
D90: Stores | F90: 5-10 | J90: 1935 | K90: Stores Equipment | L90: 10 | M90: 0.1 | N90: 10 | O90: 0.1
D91: Tools, Shop, Garage Equipment | F91: 5-10 | J91: 1940 | K91: Tools, Shops Garage Equipment | L91: 10 | M91: 0.1 | N91: 10 | O91: 0.1
D92: Measurement & Testing Equipment | F92: 5-10 | J92: 1945 | K92: Measurement and Testing Equipment | L92: 10 | M92: 0.1 | N92: 10 | O92: 0.1
B93: 8 | C93: Communication | D93: Towers | F93: 60-70 | J93: 1955 | K93: Communication Equipment | L93: 10 | M93: 0.1 | N93: 10 | O93: 0.1
D94: Wireless | F94: 2-10 | J94: 1955 | K94: Communication Equipment | L94: 10 | M94: 0.1 | N94: 10 | O94: 0.1
B95: 9 | C95: Residential Energy Meters | F95: 25-35 | J95: 1860 | K95: Meters | L95: 25 | M95: 0.04 | N95: 15 | O95: 0.06666666667
B96: 10 | C96: Industrial/Commercial Energy Meters | F96: 25-35 | J96: 1860 | K96: Meters | N96: 20 | O96: 0.05
B97: 11 | C97: Wholesale Energy Meters | F97: 15-30 | J97: N/A
B98: 12 | C98: Current & Potential Transformer (CT & PT) | F98: 35-50 | J98: 1860 | K98: Meters | N98: 45 | O98: 0.02222222222
B99: 13 | C99: Smart Meters | F99: 5-15 | J99: 1860 | K99: Meters | L99: 15 | M99: 0.06666666667 | N99: 15 | O99: 0.06666666667
B100: 14 | C100: Repeaters - Smart Metering | F100: 10-15 | J100: 1915 | K100: Office Furniture & Equipment | L100: 5 | M100: 0.2 | N100: 5 | O100: 0.2
B101: 15 | C101: Data Collectors - Smart Metering | F101: 15-20 | J101: 1915 | K101: Office Furniture & Equipment | L101: 5 | M101: 0.2 | N101: 5 | O101: 0.2

Sheet Instruction for App. 2-C MIFRS
A1: General Instructions to MIFRS Appendices
A2: Types of Schedules to File
A4: The purpose of this tab is to provide general instructions. The specific instructions to each appendix are listed in footnotes to each appendix.
A6: Applicants filing a MIFRS application should provide the following information regarding Appendix 2-B and Appendix 2-C:
A8: · If an applicant chooses to adopt IFRS for financial reporting in 2012, in its 2014 cost of service application it must file information for the historic year (2012),modified IFRS and also provide forecasts for the bridge year (2013) and test year (2014) information in modified IFRS format. The years required to be filed prior to the historic year 2012 may be provided in CGAAP only, except for the year 2011 which must also be presented in modified IFRS format.
A11: · If an applicant chooses to adopt IFRS for financial reporting in 2013, in its 2014 cost of service application it must file information for the year prior (i.e. 2012 – the historic year) in both CGAAP and modified IFRS format, and present modified IFRS based forecasts for the bridge (2013) and test years (2014). The years required to be filed prior to the historic year 2012 may be provided in CGAAP only.
A14: · If an applicant chooses to adopt IFRS for financial reporting in 2014, in its 2014 cost of service application it must provide the required actual years (2012) and the bridge year (2013) in CGAAP based format. An applicant must present modified IFRS based forecasts for the bridge (2013) and test years (2014).
E18: Date of Adoption of IFRS
E19: for Financial Reporting Purposes:
E20: January 1, 2012 | F20: January 1, 2013 | G20: January 1, 2014
A21: Information | C21: 2010 H & Prior | E21: CGAAP | F21: CGAAP | G21: CGAAP
A22: Required to be | C22: 2011 H | E22: MIFRS & CGAAP | F22: CGAAP | G22: CGAAP
A23: Filed in 2014 | C23: 2012 H | E23: MIFRS | F23: MIFRS & CGAAP | G23: CGAAP
A24: CoS Application: | C24: 2013 B | E24: MIFRS | F24: MIFRS | G24: MIFRS & CGAAP
C25: 2014 T | E25: MIFRS | F25: MIFRS | G25: MIFRS
A27: Date of Transition to IFRS | E27: January 1, 2011 | F27: January 1, 2012 | G27: January 1, 2013
A29: H - historic year regulatory financial information
A30: B - bridge year regulatory financial information
A31: T - test year regulatory financial information
B32: Year in which both CGAAP and MIFRS information required
A34: For those applicants that adopted IFRS on January 1, 2012 for financial reporting purposes, the date of transition is January 1, 2011. For those applicants that adopted IFRS on January 1, 2013 for financial reporting purposes, the date of transition is January 1, 2012. For those applicants that adopted IFRS on January 1, 2014 for financial reporting purposes, the date of transition is January 1, 2013.
A39: Summary of Impacts to Revenue Requirement from Transition to MIFRS - Appendix 2-YA
A40: For modified IFRS applications, the applicants must provide a summary of the dollar impacts of modified IFRS to each component of the revenue requirement (e.g. rate base, operating costs, etc), including the overall impact on the proposed revenue requirement. Accordingly, the applicants must identify financial differences and resulting revenue requirement impacts arising from the adoption of modified IFRS accounting.
A45: Depreciation and Amortization - Appendix 2-C
A46: If an applicant chooses to adopt IFRS for financial reporting in 2012, the applicant must complete Appendix 2-CA to Appendix 2-CE (inclusive).
A47: If an applicant chooses to adopt IFRS for financial reporting in 2013, the applicant must complete Appendix 2-CF to Appendix 2-CI (inclusive).
A48: If an applicant chooses to adopt IFRS for financial reporting in 2014, the applicant must complete Appendix 2-CJ to Appendix 2-CM (inclusive).
A51: Continuity of Historic Cost under MIFRS - Appendix 2-BA2
A53: Regulatory Gross Assets of Property, Plant and Equipment
A54: For an applicant that adopted IFRS on January 1, 2012 for financial reporting purposes, the applicant must establish the continuity of historic cost by using the December 31, 2010 regulatory gross assets of property, plant and equipment as the opening January 1, 2011 regulatory gross assets. The applicant must provide schedules (including Appendix 2-BA2, Fixed Asset Continuity Schedule) which must identify the following details to substantiate the continuity of historic cost for regulatory purposes:
A58: · December 31, 2010 regulatory gross assets of property, plant and equipment, by asset class; and
A59: · January 1, 2011 regulatory gross assets of property, plant and equipment, by asset class.
A61: For an applicant that adopts IFRS on January 1, 2013 for financial reporting purposes, the applicant must establish the continuity of historic cost by using the December 31, 2011 regulatory gross assets of property, plant and equipment as the opening January 1, 2012 regulatory gross assets. The applicant must provide schedules (including Appendix 2-BA2, Fixed Asset Continuity Schedule) which must identify the following details to substantiate the continuity of historic cost for regulatory purposes:
A65: · December 31, 2011 regulatory gross assets of property, plant and equipment, by asset class; and
A66: · January 1, 2012 regulatory gross assets of property, plant and equipment, by asset class.
A68: For an applicant that adopts IFRS on January 1, 2014 for financial reporting purposes, the applicant must establish the continuity of historic cost by using the December 31, 2012 regulatory gross assets of property, plant and equipment as the opening January 1, 2013 regulatory gross assets. The applicant must provide schedules (including Appendix 2-BA2, Fixed Asset Continuity Schedule) which must identify the following details to substantiate the continuity of historic cost for regulatory purposes:
A72: · December 31, 2012 regulatory gross assets of property, plant and equipment, by asset class; and
A73: · January 1, 2013 regulatory gross assets of property, plant and equipment, by asset class.
A75: Accumulated Depreciation
A76: For an applicant that adopted IFRS on January 1, 2012 for financial reporting purposes, the applicant must establish the continuity of historic cost by using the December 31, 2010 regulatory accumulated depreciation as the opening January 1, 2011 regulatory accumulated depreciation. The applicant must provide schedules (including Appendix 2-BA2, Fixed Asset Continuity Schedule) which must identify the following details to substantiate the continuity of historic cost for regulatory purposes:
A79: · December 31, 2010 regulatory accumulated depreciation, by asset class; and
A80: · January 1, 2011 regulatory accumulated depreciation, by asset class.
A82: For an applicant that adopted IFRS on January 1, 2013 for financial reporting purposes, the applicant must establish the continuity of historic cost by using the December 31, 2011 regulatory accumulated depreciation as the opening January 1, 2012 regulatory accumulated depreciation. The applicant must provide schedules (including Appendix 2-BA2, Fixed Asset Continuity Schedule) which must identify the following details to substantiate the continuity of historic cost for regulatory purposes:
A85: · December 31, 2011 regulatory accumulated depreciation, by asset class; and
A86: · January 1, 2012 regulatory accumulated depreciation, by asset class.
A88: For an applicant that adopted IFRS on January 1, 2014 for financial reporting purposes, the applicant must establish the continuity of historic cost by using the December 31, 2012 regulatory accumulated depreciation as the opening January 1, 2013 regulatory accumulated depreciation. The applicant must provide schedules (including Appendix 2-BA2, Fixed Asset Continuity Schedule) which must identify the following details to substantiate the continuity of historic cost for regulatory purposes:
A91: · December 31, 2012 regulatory accumulated depreciation, by asset class; and
A92: · January 1, 2013 regulatory accumulated depreciation, by asset class.
A94: Account 1575, IFRS-CGAAP Transitional PP&E Amounts - Appendix 2-EA, Appendix 2-EB, Appendix 2-EC
A95: Please refer to section 2.12.4 of the Filing Requirements.
A97: Account 1576, Accounting Changes Under CGAAP - Appendix 2-ED, Appendix 2-EE
A98: Please refer to section 2.12.5 of the Filing Requirements.

Sheet App.2-CA_CGAAP_DepExp_2011
K1: File Number: | L1: =EBNUMBER -> EB-2013-0115
K2: Exhibit:
K3: Tab:
K4: Schedule:
K5: Page:
K7: Date:
A9: Appendix 2-CA
A10: Depreciation and Amortization Expense
A11: Assumes the applicant adopted IFRS for financial reporting purposes January 1, 2012
C12: Year | D12: 2011 | E12: CGAAP
A14: Account | B14: Description | C14: Opening Regulatory Gross PP&E as at Jan 1, 2011 | D14: Less Fully Depreciated | E14: Net for Depreciation | F14: Additions | G14: Total for Depreciation | H14: Years | I14: Depreciation Rate | J14: Depreciation Expense | K14: 2011 Depreciation Expense per Appendix 2-B Fixed Assets, Column K (l) | L14: Variance 2
C15: (a) | D15: (b) | E15: (c) | F15: (d) | G15: (e) = (c) + ½ x (d) 1 | H15: (f) | I15: (g) = 1 / (f) | J15: (h) = (e) / (f) | L15: (m) = (h) - (l)
A16: 1611 | B16: Computer Software (Formally known as Account 1925) | E16: =C16-D16 -> 0 | G16: =E16+0.5*F16 -> 0 | I16: =IF(H16=0,0,1/H16) -> 0 | J16: =IF(H16=0,0,G16/H16) -> 0 | L16: =IF(ISERROR(+J16-K16), 0, +J16-K16) -> 0
A17: 1612 | B17: Land Rights (Formally known as Account 1906) | E17: =C17-D17 -> 0 | G17: =E17+0.5*F17 -> 0 | I17: 0 | J17: 0 | L17: 0
A18: 1805 | B18: Land | E18: 0 | G18: 0 | I18: 0 | J18: 0 | L18: 0
A19: 1808 | B19: Buildings | E19: 0 | G19: 0 | I19: 0 | J19: 0 | L19: 0
A20: 1810 | B20: Leasehold Improvements | E20: 0 | G20: 0 | I20: 0 | J20: 0 | L20: 0
A21: 1815 | B21: Transformer Station Equipment >50 kV | E21: 0 | G21: 0 | I21: 0 | J21: 0 | L21: 0
A22: 1820 | B22: Distribution Station Equipment <50 kV | E22: 0 | G22: 0 | I22: 0 | J22: 0 | L22: 0
A23: 1825 | B23: Storage Battery Equipment | E23: 0 | G23: 0 | I23: 0 | J23: 0 | L23: 0
A24: 1830 | B24: Poles, Towers & Fixtures | E24: 0 | G24: 0 | I24: 0 | J24: 0 | L24: 0
A25: 1835 | B25: Overhead Conductors & Devices | E25: 0 | G25: 0 | I25: 0 | J25: 0 | L25: 0
A26: 1840 | B26: Underground Conduit | E26: 0 | G26: 0 | I26: 0 | J26: 0 | L26: 0
A27: 1845 | B27: Underground Conductors & Devices | E27: 0 | G27: 0 | I27: 0 | J27: 0 | L27: 0
A28: 1850 | B28: Line Transformers | E28: 0 | G28: 0 | I28: 0 | J28: 0 | L28: 0
A29: 1855 | B29: Services (Overhead & Underground) | E29: 0 | G29: 0 | I29: 0 | J29: 0 | L29: 0
A30: 1860 | B30: Meters | E30: 0 | G30: 0 | I30: 0 | J30: 0 | L30: 0
A31: 1860 | B31: Meters (Smart Meters) | E31: 0 | G31: 0 | I31: 0 | J31: 0 | L31: 0
A32: 1905 | B32: Land | E32: 0 | G32: 0 | I32: 0 | J32: 0 | L32: 0
A33: 1908 | B33: Buildings & Fixtures | E33: 0 | G33: 0 | I33: 0 | J33: 0 | L33: 0
A34: 1910 | B34: Leasehold Improvements | E34: 0 | G34: 0 | I34: 0 | J34: 0 | L34: 0
A35: 1915 | B35: Office Furniture & Equipment (10 years) | E35: 0 | G35: 0 | I35: 0 | J35: 0 | L35: 0
A36: 1915 | B36: Office Furniture & Equipment (5 years) | E36: 0 | G36: 0 | I36: 0 | J36: 0 | L36: 0
A37: 1920 | B37: Computer Equipment - Hardware | E37: 0 | G37: 0 | I37: 0 | J37: 0 | L37: 0
A38: 1920 | B38: Computer Equip.-Hardware(Post Mar. 22/04) | E38: 0 | G38: 0 | I38: 0 | J38: 0 | L38: 0
A39: 1920 | B39: Computer Equip.-Hardware(Post Mar. 19/07) | E39: 0 | G39: 0 | I39: 0 | J39: 0 | L39: 0
A40: 1930 | B40: Transportation Equipment | E40: 0 | G40: 0 | I40: 0 | J40: 0 | L40: 0
A41: 1935 | B41: Stores Equipment | E41: 0 | G41: 0 | I41: 0 | J41: 0 | L41: 0
A42: 1940 | B42: Tools, Shop & Garage Equipment | E42: 0 | G42: 0 | I42: 0 | J42: 0 | L42: 0
A43: 1945 | B43: Measurement & Testing Equipment | E43: 0 | G43: 0 | I43: 0 | J43: 0 | L43: 0
A44: 1950 | B44: Power Operated Equipment | E44: 0 | G44: 0 | I44: 0 | J44: 0 | L44: 0
A45: 1955 | B45: Communications Equipment | E45: 0 | G45: 0 | I45: 0 | J45: 0 | L45: 0
A46: 1955 | B46: Communication Equipment (Smart Meters) | E46: 0 | G46: 0 | I46: 0 | J46: 0 | L46: 0
A47: 1960 | B47: Miscellaneous Equipment | E47: 0 | G47: 0 | I47: 0 | J47: 0 | L47: 0
A48: 1970 | B48: Load Management Controls Customer Premises | E48: 0 | G48: 0 | I48: 0 | J48: 0 | L48: 0
A49: 1975 | B49: Load Management Controls Utility Premises | E49: 0 | G49: 0 | I49: 0 | J49: 0 | L49: 0
A50: 1980 | B50: System Supervisor Equipment | E50: 0 | G50: 0 | I50: 0 | J50: 0 | L50: 0
A51: 1985 | B51: Miscellaneous Fixed Assets | E51: 0 | G51: 0 | I51: 0 | J51: 0 | L51: 0
A52: 1990 | B52: Other Tangible Property | E52: 0 | G52: 0 | I52: 0 | J52: 0 | L52: 0
A53: 1995 | B53: Contributions & Grants | E53: 0 | G53: 0 | I53: 0 | J53: 0 | L53: 0
A54: etc. | E54: 0 | G54: 0 | I54: 0 | J54: 0 | L54: 0
E55: 0 | G55: 0 | I55: 0 | J55: 0 | L55: 0
B56: Total | C56: =SUM(C16:C55) -> 0 | D56: =SUM(D16:D55) -> 0 | E56: =SUM(E16:E55) -> 0 | F56: =SUM(F16:F55) -> 0 | G56: =SUM(G16:G55) -> 0 | J56: =SUM(J16:J55) -> 0 | K56: =SUM(K16:K55) -> 0 | L56: =SUM(L16:L55) -> 0
A58: Notes:
A60: 1 | B60: Board policy of the "half-year" rule - the applicant must ensure that additions in the year attract a half-year depreciation expense in the first year. Deviations from this standard practice must be supported in the application.
A61: 2 | B61: The applicant must provide an explanation of material variances in evidence.
A63: General | B63: Applicants must provide a breakdown of depreciation and amortization expense in the above format for all relevant accounts. Asset Retirement Obligations (AROs), depreciation and accretion expense should be disclosed separately consistent with the Notes of historical Audited Financial Statements.

Sheet App.2-CB_MIFRS_DepExp_2011
N1: File Number: | O1: =EBNUMBER -> EB-2013-0115
N2: Exhibit:
N3: Tab:
N4: Schedule:
N5: Page:
N7: Date:
A9: Appendix 2-CB
A10: Depreciation and Amortization Expense
A11: Assumes the applicant adopted IFRS for financial reporting purposes January 1, 2012
C12: Year | D12: 2011 | E12: MIFRS
A14: Account | B14: Description | C14: Opening NBV as at Jan 1, 2011 5 | D14: Additions | E14: Average Remaining Life of Opening NBV 4 | F14: Years (new additions only) 3 | G14: Depreciation Rate on New Additions | H14: Depreciation Expense on Opening NBV | I14: Depreciation Expense on Additions 1 | J14: 2011 Depreciation Expense | K14: 2011 Depreciation Expense per Appendix 2-B Fixed Assets, Column K (l) | L14: Variance 2 | M14: Depreciation Expense on 2011 Full Year Additions | N14: Less Depreciation Expense on Assets Fully Depreciated during the year (o) | O14: 2011 Full Year Depreciation 6
C15: (a) | D15: (d) | E15: (i) | F15: (f) | G15: (g) = 1 / (f) | H15: (j) = (a) / (i) | I15: (h)=((d)*0.5)/(f) | J15: (k) = (j) + (h) | L15: (m) = (k) - (l) | M15: (n) = (d)/(f) | O15: (p) = (j) + (n) - (o)
A16: 1611 | B16: Computer Software (Formally known as Account 1925) | G16: =IF(F16=0,0,1/F16) -> 0 | H16: =IF(E16=0,0,+C16/E16) -> 0 | I16: =IF(F16=0,0,+(D16*0.5)/F16) -> 0 | J16: =IF(ISERROR(+H16+I16), 0, +H16+I16) -> 0 | L16: =IF(ISERROR(+J16-K16), 0, +J16-K16) -> 0 | M16: =IF(F16=0,0,+(D16)/F16) -> 0 | O16: =IF(ISERROR(+M16+H16-N16), 0, +M16+H16-N16) -> 0
A17: 1612 | B17: Land Rights (Formally known as Account 1906) | G17: 0 | H17: 0 | I17: 0 | J17: 0 | L17: 0 | M17: 0 | O17: =IF(ISERROR(+M17+H17-N17), 0, +M17+H17-N17) -> 0
A18: 1805 | B18: Land | G18: 0 | H18: 0 | I18: 0 | J18: 0 | L18: 0 | M18: 0 | O18: 0
A19: 1808 | B19: Buildings | G19: 0 | H19: 0 | I19: 0 | J19: 0 | L19: 0 | M19: 0 | O19: 0
A20: 1810 | B20: Leasehold Improvements | G20: 0 | H20: 0 | I20: 0 | J20: 0 | L20: 0 | M20: 0 | O20: 0
A21: 1815 | B21: Transformer Station Equipment >50 kV | G21: 0 | H21: 0 | I21: 0 | J21: 0 | L21: 0 | M21: 0 | O21: 0
A22: 1820 | B22: Distribution Station Equipment <50 kV | G22: 0 | H22: 0 | I22: 0 | J22: 0 | L22: 0 | M22: 0 | O22: 0
A23: 1825 | B23: Storage Battery Equipment | G23: 0 | H23: 0 | I23: 0 | J23: 0 | L23: 0 | M23: 0 | O23: 0
A24: 1830 | B24: Poles, Towers & Fixtures | G24: 0 | H24: 0 | I24: 0 | J24: 0 | L24: 0 | M24: 0 | O24: 0
A25: 1835 | B25: Overhead Conductors & Devices | G25: 0 | H25: 0 | I25: 0 | J25: 0 | L25: 0 | M25: 0 | O25: 0
A26: 1840 | B26: Underground Conduit | G26: 0 | H26: 0 | I26: 0 | J26: 0 | L26: 0 | M26: 0 | O26: 0
A27: 1845 | B27: Underground Conductors & Devices | G27: 0 | H27: 0 | I27: 0 | J27: 0 | L27: 0 | M27: 0 | O27: 0
A28: 1850 | B28: Line Transformers | G28: 0 | H28: 0 | I28: 0 | J28: 0 | L28: 0 | M28: 0 | O28: 0
A29: 1855 | B29: Services (Overhead & Underground) | G29: 0 | H29: 0 | I29: 0 | J29: 0 | L29: 0 | M29: 0 | O29: 0
A30: 1860 | B30: Meters | G30: 0 | H30: 0 | I30: 0 | J30: 0 | L30: 0 | M30: 0 | O30: 0
A31: 1860 | B31: Meters (Smart Meters) | G31: 0 | H31: 0 | I31: 0 | J31: 0 | L31: 0 | M31: 0 | O31: 0
A32: 1905 | B32: Land | G32: 0 | H32: 0 | I32: 0 | J32: 0 | L32: 0 | M32: 0 | O32: 0
A33: 1908 | B33: Buildings & Fixtures | G33: 0 | H33: 0 | I33: 0 | J33: 0 | L33: 0 | M33: 0 | O33: 0
A34: 1910 | B34: Leasehold Improvements | G34: 0 | H34: 0 | I34: 0 | J34: 0 | L34: 0 | M34: 0 | O34: 0
A35: 1915 | B35: Office Furniture & Equipment (10 years) | G35: 0 | H35: 0 | I35: 0 | J35: 0 | L35: 0 | M35: 0 | O35: 0
A36: 1915 | B36: Office Furniture & Equipment (5 years) | G36: 0 | H36: 0 | I36: 0 | J36: 0 | L36: 0 | M36: 0 | O36: 0
A37: 1920 | B37: Computer Equipment - Hardware | G37: 0 | H37: 0 | I37: 0 | J37: 0 | L37: 0 | M37: 0 | O37: 0
A38: 1920 | B38: Computer Equip.-Hardware(Post Mar. 22/04) | G38: 0 | H38: 0 | I38: 0 | J38: 0 | L38: 0 | M38: 0 | O38: 0
A39: 1920 | B39: Computer Equip.-Hardware(Post Mar. 19/07) | G39: 0 | H39: 0 | I39: 0 | J39: 0 | L39: 0 | M39: 0 | O39: 0
A40: 1930 | B40: Transportation Equipment | G40: 0 | H40: 0 | I40: 0 | J40: 0 | L40: 0 | M40: 0 | O40: 0
A41: 1935 | B41: Stores Equipment | G41: 0 | H41: 0 | I41: 0 | J41: 0 | L41: 0 | M41: 0 | O41: 0
A42: 1940 | B42: Tools, Shop & Garage Equipment | G42: 0 | H42: 0 | I42: 0 | J42: 0 | L42: 0 | M42: 0 | O42: 0
A43: 1945 | B43: Measurement & Testing Equipment | G43: 0 | H43: 0 | I43: 0 | J43: 0 | L43: 0 | M43: 0 | O43: 0
A44: 1950 | B44: Power Operated Equipment | G44: 0 | H44: 0 | I44: 0 | J44: 0 | L44: 0 | M44: 0 | O44: 0
A45: 1955 | B45: Communications Equipment | G45: 0 | H45: 0 | I45: 0 | J45: 0 | L45: 0 | M45: 0 | O45: 0
A46: 1955 | B46: Communication Equipment (Smart Meters) | G46: 0 | H46: 0 | I46: 0 | J46: 0 | L46: 0 | M46: 0 | O46: 0
A47: 1960 | B47: Miscellaneous Equipment | G47: 0 | H47: 0 | I47: 0 | J47: 0 | L47: 0 | M47: 0 | O47: 0
A48: 1970 | B48: Load Management Controls Customer Premises | G48: 0 | H48: 0 | I48: 0 | J48: 0 | L48: 0 | M48: 0 | O48: 0
A49: 1975 | B49: Load Management Controls Utility Premises | G49: 0 | H49: 0 | I49: 0 | J49: 0 | L49: 0 | M49: 0 | O49: 0
A50: 1980 | B50: System Supervisor Equipment | G50: 0 | H50: 0 | I50: 0 | J50: 0 | L50: 0 | M50: 0 | O50: 0
A51: 1985 | B51: Miscellaneous Fixed Assets | G51: 0 | H51: 0 | I51: 0 | J51: 0 | L51: 0 | M51: 0 | O51: 0
A52: 1990 | B52: Other Tangible Property | G52: 0 | H52: 0 | I52: 0 | J52: 0 | L52: 0 | M52: 0 | O52: 0
A53: 1995 | B53: Contributions & Grants | G53: 0 | H53: 0 | I53: 0 | J53: 0 | L53: 0 | M53: 0 | O53: 0
A54: etc. | G54: 0 | H54: 0 | I54: 0 | J54: 0 | L54: 0 | M54: 0 | O54: 0
G55: 0 | H55: 0 | I55: 0 | J55: 0 | L55: 0 | M55: 0 | O55: 0
B56: Total | C56: =SUM(C16:C55) -> 0 | D56: =SUM(D16:D55) -> 0 | H56: =SUM(H16:H55) -> 0 | I56: 0 | J56: 0 | K56: 0 | L56: 0 | M56: 0 | N56: =SUM(N16:N55) -> 0 | O56: 0
B57: Depreciation exp. adj. from gain or loss on the retirement of assets (pool of like assets) | J57: 0
B58: Total | J58: =+J57+J56 -> 0
A59: Notes:
A61: 1 | B61: Board policy of the "half-year" rule - the applicant must ensure that additions in the year attract a half-year depreciation expense in the first year. Deviations from this standard practice must be supported in the application.
A62: 2 | B62: The applicant must provide an explanation of material variances in evidence.
A63: 3 | B63: The applicant should ensure that the years for new additions of assets are the asset useful lives determined by management in accordance with IFRS.
A64: 4 | B64: A recalculation should be performed to determine the average remaining life of opening balance of assets (i.e. excluding 2011 additions) under IFRS. For example, Asset A had a useful life of 20 years under CGAAP. On January 1, 2011, the date of transition, Asset A was 3 years depreciated. As a result, Asset A would have a remaining service life of 17 years (20 years less 3 years) under CGAAP as of January 1, 2011. Due to the transition to IFRS, management re-assessed the asset useful lives under IFRS principles and concluded that the revised useful life of Asset A is now 30 years. Therefore, the average remaining useful life of opening balance of Asset A is determined to be 27 years (30 years less 3 years) under IFRS as of January 1, 2011.
A65: 5 | B65: NBV must exclude assets still on the books but which have been fully amortized or depreciated.
A66: 6 | B66: This column refers to the calculated full year depreciation but excludes the depreciation expense on assets fully depreciated during the year. This column is used for the purpose of calculating depreciation expense in the following year on the next worksheet.
A68: General: | B68: Applicants must provide a breakdown of depreciation and amortization expense in the above format for all relevant accounts. Asset Retirement Obligations (AROs), depreciation and accretion expense should be disclosed separately consistent with the Notes of historical Audited Financial Statements.

Sheet App.2-CC_MIFRS_DepExp_2012
J1: File Number: | K1: =EBNUMBER -> EB-2013-0115
J2: Exhibit:
J3: Tab:
J4: Schedule:
J5: Page:
J7: Date:
A9: Appendix 2-CC
A10: Depreciation and Amortization Expense
A11: Assumes the applicant adopted IFRS for financial reporting purposes January 1, 2012
C12: 2012 | D12: MIFRS
A14: Account | B14: Description | C14: Additions | D14: Years (new additions only) | E14: Depreciation Rate on New Additions | F14: 2012 Depreciation Expense 1 | G14: 2012 Depreciation Expense per Apppendix 2-B Fixed Assets, Column K (l) | H14: Variance 2 | I14: Depreciation Expense on 2012 Full Year Additions | J14: Less Depreciation Expense on Assets Fully Depreciated during the year (o) | K14: 2012 Full Year Depreciation 3
C15: (d) | D15: (f) | E15: (g) = 1 / (f) | F15: (h)=2011 Full Year Deprecation + ((d)*0.5)/(f) | H15: (m) = (h) - (l) | I15: (n)=((d))/(f) | K15: (p) = 2011 Full Year Depreciation + (n) - (o)
A16: 1611 | B16: Computer Software (Formally known as Account 1925) | E16: =IF(D16=0,0,1/D16) -> 0 | F16: =IF(D16=0,+'App.2-CB_MIFRS_DepExp_2011'!O16,+'App.2-CB_MIFRS_DepExp_2011'!O16+((C16*0.5)/D16)) -> 0 | H16: =IF(ISERROR(+F16-G16), 0, +F16-G16) -> 0 | I16: =IF(D16=0,0,+(C16)/D16) -> 0 | K16: =IF(ISERROR(+I16+'App.2-CB_MIFRS_DepExp_2011'!O16-J16), 0, +I16+'App.2-CB_MIFRS_DepExp_2011'!O16-J16) -> 0
A17: 1612 | B17: Land Rights (Formally known as Account 1906) | E17: 0 | F17: =IF(D17=0,+'App.2-CB_MIFRS_DepExp_2011'!O17,+'App.2-CB_MIFRS_DepExp_2011'!O17+((C17*0.5)/D17)) -> 0 | H17: 0 | I17: 0 | K17: =IF(ISERROR(+I17+'App.2-CB_MIFRS_DepExp_2011'!O17-J17), 0, +I17+'App.2-CB_MIFRS_DepExp_2011'!O17-J17) -> 0
A18: 1805 | B18: Land | E18: 0 | F18: =IF(D18=0,+'App.2-CB_MIFRS_DepExp_2011'!O18,+'App.2-CB_MIFRS_DepExp_2011'!O18+((C18*0.5)/D18)) -> 0 | H18: 0 | I18: 0 | K18: =IF(ISERROR(+I18+'App.2-CB_MIFRS_DepExp_2011'!O18-J18), 0, +I18+'App.2-CB_MIFRS_DepExp_2011'!O18-J18) -> 0
A19: 1808 | B19: Buildings | E19: 0 | F19: =IF(D19=0,+'App.2-CB_MIFRS_DepExp_2011'!O19,+'App.2-CB_MIFRS_DepExp_2011'!O19+((C19*0.5)/D19)) -> 0 | H19: 0 | I19: 0 | K19: =IF(ISERROR(+I19+'App.2-CB_MIFRS_DepExp_2011'!O19-J19), 0, +I19+'App.2-CB_MIFRS_DepExp_2011'!O19-J19) -> 0
A20: 1810 | B20: Leasehold Improvements | E20: 0 | F20: =IF(D20=0,+'App.2-CB_MIFRS_DepExp_2011'!O20,+'App.2-CB_MIFRS_DepExp_2011'!O20+((C20*0.5)/D20)) -> 0 | H20: 0 | I20: 0 | K20: =IF(ISERROR(+I20+'App.2-CB_MIFRS_DepExp_2011'!O20-J20), 0, +I20+'App.2-CB_MIFRS_DepExp_2011'!O20-J20) -> 0
A21: 1815 | B21: Transformer Station Equipment >50 kV | E21: 0 | F21: =IF(D21=0,+'App.2-CB_MIFRS_DepExp_2011'!O21,+'App.2-CB_MIFRS_DepExp_2011'!O21+((C21*0.5)/D21)) -> 0 | H21: 0 | I21: 0 | K21: =IF(ISERROR(+I21+'App.2-CB_MIFRS_DepExp_2011'!O21-J21), 0, +I21+'App.2-CB_MIFRS_DepExp_2011'!O21-J21) -> 0
A22: 1820 | B22: Distribution Station Equipment <50 kV | E22: 0 | F22: =IF(D22=0,+'App.2-CB_MIFRS_DepExp_2011'!O22,+'App.2-CB_MIFRS_DepExp_2011'!O22+((C22*0.5)/D22)) -> 0 | H22: 0 | I22: 0 | K22: =IF(ISERROR(+I22+'App.2-CB_MIFRS_DepExp_2011'!O22-J22), 0, +I22+'App.2-CB_MIFRS_DepExp_2011'!O22-J22) -> 0
A23: 1825 | B23: Storage Battery Equipment | E23: 0 | F23: =IF(D23=0,+'App.2-CB_MIFRS_DepExp_2011'!O23,+'App.2-CB_MIFRS_DepExp_2011'!O23+((C23*0.5)/D23)) -> 0 | H23: 0 | I23: 0 | K23: =IF(ISERROR(+I23+'App.2-CB_MIFRS_DepExp_2011'!O23-J23), 0, +I23+'App.2-CB_MIFRS_DepExp_2011'!O23-J23) -> 0
A24: 1830 | B24: Poles, Towers & Fixtures | E24: 0 | F24: =IF(D24=0,+'App.2-CB_MIFRS_DepExp_2011'!O24,+'App.2-CB_MIFRS_DepExp_2011'!O24+((C24*0.5)/D24)) -> 0 | H24: 0 | I24: 0 | K24: =IF(ISERROR(+I24+'App.2-CB_MIFRS_DepExp_2011'!O24-J24), 0, +I24+'App.2-CB_MIFRS_DepExp_2011'!O24-J24) -> 0
A25: 1835 | B25: Overhead Conductors & Devices | E25: 0 | F25: =IF(D25=0,+'App.2-CB_MIFRS_DepExp_2011'!O25,+'App.2-CB_MIFRS_DepExp_2011'!O25+((C25*0.5)/D25)) -> 0 | H25: 0 | I25: 0 | K25: =IF(ISERROR(+I25+'App.2-CB_MIFRS_DepExp_2011'!O25-J25), 0, +I25+'App.2-CB_MIFRS_DepExp_2011'!O25-J25) -> 0
A26: 1840 | B26: Underground Conduit | E26: 0 | F26: =IF(D26=0,+'App.2-CB_MIFRS_DepExp_2011'!O26,+'App.2-CB_MIFRS_DepExp_2011'!O26+((C26*0.5)/D26)) -> 0 | H26: 0 | I26: 0 | K26: =IF(ISERROR(+I26+'App.2-CB_MIFRS_DepExp_2011'!O26-J26), 0, +I26+'App.2-CB_MIFRS_DepExp_2011'!O26-J26) -> 0
A27: 1845 | B27: Underground Conductors & Devices | E27: 0 | F27: =IF(D27=0,+'App.2-CB_MIFRS_DepExp_2011'!O27,+'App.2-CB_MIFRS_DepExp_2011'!O27+((C27*0.5)/D27)) -> 0 | H27: 0 | I27: 0 | K27: =IF(ISERROR(+I27+'App.2-CB_MIFRS_DepExp_2011'!O27-J27), 0, +I27+'App.2-CB_MIFRS_DepExp_2011'!O27-J27) -> 0
A28: 1850 | B28: Line Transformers | E28: 0 | F28: =IF(D28=0,+'App.2-CB_MIFRS_DepExp_2011'!O28,+'App.2-CB_MIFRS_DepExp_2011'!O28+((C28*0.5)/D28)) -> 0 | H28: 0 | I28: 0 | K28: =IF(ISERROR(+I28+'App.2-CB_MIFRS_DepExp_2011'!O28-J28), 0, +I28+'App.2-CB_MIFRS_DepExp_2011'!O28-J28) -> 0
A29: 1855 | B29: Services (Overhead & Underground) | E29: 0 | F29: =IF(D29=0,+'App.2-CB_MIFRS_DepExp_2011'!O29,+'App.2-CB_MIFRS_DepExp_2011'!O29+((C29*0.5)/D29)) -> 0 | H29: 0 | I29: 0 | K29: =IF(ISERROR(+I29+'App.2-CB_MIFRS_DepExp_2011'!O29-J29), 0, +I29+'App.2-CB_MIFRS_DepExp_2011'!O29-J29) -> 0
A30: 1860 | B30: Meters | E30: 0 | F30: =IF(D30=0,+'App.2-CB_MIFRS_DepExp_2011'!O30,+'App.2-CB_MIFRS_DepExp_2011'!O30+((C30*0.5)/D30)) -> 0 | H30: 0 | I30: 0 | K30: =IF(ISERROR(+I30+'App.2-CB_MIFRS_DepExp_2011'!O30-J30), 0, +I30+'App.2-CB_MIFRS_DepExp_2011'!O30-J30) -> 0
A31: 1860 | B31: Meters (Smart Meters) | E31: 0 | F31: =IF(D31=0,+'App.2-CB_MIFRS_DepExp_2011'!O31,+'App.2-CB_MIFRS_DepExp_2011'!O31+((C31*0.5)/D31)) -> 0 | H31: 0 | I31: 0 | K31: =IF(ISERROR(+I31+'App.2-CB_MIFRS_DepExp_2011'!O31-J31), 0, +I31+'App.2-CB_MIFRS_DepExp_2011'!O31-J31) -> 0
A32: 1905 | B32: Land | E32: 0 | F32: =IF(D32=0,+'App.2-CB_MIFRS_DepExp_2011'!O32,+'App.2-CB_MIFRS_DepExp_2011'!O32+((C32*0.5)/D32)) -> 0 | H32: 0 | I32: 0 | K32: =IF(ISERROR(+I32+'App.2-CB_MIFRS_DepExp_2011'!O32-J32), 0, +I32+'App.2-CB_MIFRS_DepExp_2011'!O32-J32) -> 0
A33: 1908 | B33: Buildings & Fixtures | E33: 0 | F33: =IF(D33=0,+'App.2-CB_MIFRS_DepExp_2011'!O33,+'App.2-CB_MIFRS_DepExp_2011'!O33+((C33*0.5)/D33)) -> 0 | H33: 0 | I33: 0 | K33: =IF(ISERROR(+I33+'App.2-CB_MIFRS_DepExp_2011'!O33-J33), 0, +I33+'App.2-CB_MIFRS_DepExp_2011'!O33-J33) -> 0
A34: 1910 | B34: Leasehold Improvements | E34: 0 | F34: =IF(D34=0,+'App.2-CB_MIFRS_DepExp_2011'!O34,+'App.2-CB_MIFRS_DepExp_2011'!O34+((C34*0.5)/D34)) -> 0 | H34: 0 | I34: 0 | K34: =IF(ISERROR(+I34+'App.2-CB_MIFRS_DepExp_2011'!O34-J34), 0, +I34+'App.2-CB_MIFRS_DepExp_2011'!O34-J34) -> 0
A35: 1915 | B35: Office Furniture & Equipment (10 years) | E35: 0 | F35: =IF(D35=0,+'App.2-CB_MIFRS_DepExp_2011'!O35,+'App.2-CB_MIFRS_DepExp_2011'!O35+((C35*0.5)/D35)) -> 0 | H35: 0 | I35: 0 | K35: =IF(ISERROR(+I35+'App.2-CB_MIFRS_DepExp_2011'!O35-J35), 0, +I35+'App.2-CB_MIFRS_DepExp_2011'!O35-J35) -> 0
A36: 1915 | B36: Office Furniture & Equipment (5 years) | E36: 0 | F36: =IF(D36=0,+'App.2-CB_MIFRS_DepExp_2011'!O36,+'App.2-CB_MIFRS_DepExp_2011'!O36+((C36*0.5)/D36)) -> 0 | H36: 0 | I36: 0 | K36: =IF(ISERROR(+I36+'App.2-CB_MIFRS_DepExp_2011'!O36-J36), 0, +I36+'App.2-CB_MIFRS_DepExp_2011'!O36-J36) -> 0
A37: 1920 | B37: Computer Equipment - Hardware | E37: 0 | F37: =IF(D37=0,+'App.2-CB_MIFRS_DepExp_2011'!O37,+'App.2-CB_MIFRS_DepExp_2011'!O37+((C37*0.5)/D37)) -> 0 | H37: 0 | I37: 0 | K37: =IF(ISERROR(+I37+'App.2-CB_MIFRS_DepExp_2011'!O37-J37), 0, +I37+'App.2-CB_MIFRS_DepExp_2011'!O37-J37) -> 0
A38: 1920 | B38: Computer Equip.-Hardware(Post Mar. 22/04) | E38: 0 | F38: =IF(D38=0,+'App.2-CB_MIFRS_DepExp_2011'!O38,+'App.2-CB_MIFRS_DepExp_2011'!O38+((C38*0.5)/D38)) -> 0 | H38: 0 | I38: 0 | K38: =IF(ISERROR(+I38+'App.2-CB_MIFRS_DepExp_2011'!O38-J38), 0, +I38+'App.2-CB_MIFRS_DepExp_2011'!O38-J38) -> 0
A39: 1920 | B39: Computer Equip.-Hardware(Post Mar. 19/07) | E39: 0 | F39: =IF(D39=0,+'App.2-CB_MIFRS_DepExp_2011'!O39,+'App.2-CB_MIFRS_DepExp_2011'!O39+((C39*0.5)/D39)) -> 0 | H39: 0 | I39: 0 | K39: =IF(ISERROR(+I39+'App.2-CB_MIFRS_DepExp_2011'!O39-J39), 0, +I39+'App.2-CB_MIFRS_DepExp_2011'!O39-J39) -> 0
A40: 1930 | B40: Transportation Equipment | E40: 0 | F40: =IF(D40=0,+'App.2-CB_MIFRS_DepExp_2011'!O40,+'App.2-CB_MIFRS_DepExp_2011'!O40+((C40*0.5)/D40)) -> 0 | H40: 0 | I40: 0 | K40: =IF(ISERROR(+I40+'App.2-CB_MIFRS_DepExp_2011'!O40-J40), 0, +I40+'App.2-CB_MIFRS_DepExp_2011'!O40-J40) -> 0
A41: 1935 | B41: Stores Equipment | E41: 0 | F41: =IF(D41=0,+'App.2-CB_MIFRS_DepExp_2011'!O41,+'App.2-CB_MIFRS_DepExp_2011'!O41+((C41*0.5)/D41)) -> 0 | H41: 0 | I41: 0 | K41: =IF(ISERROR(+I41+'App.2-CB_MIFRS_DepExp_2011'!O41-J41), 0, +I41+'App.2-CB_MIFRS_DepExp_2011'!O41-J41) -> 0
A42: 1940 | B42: Tools, Shop & Garage Equipment | E42: 0 | F42: =IF(D42=0,+'App.2-CB_MIFRS_DepExp_2011'!O42,+'App.2-CB_MIFRS_DepExp_2011'!O42+((C42*0.5)/D42)) -> 0 | H42: 0 | I42: 0 | K42: =IF(ISERROR(+I42+'App.2-CB_MIFRS_DepExp_2011'!O42-J42), 0, +I42+'App.2-CB_MIFRS_DepExp_2011'!O42-J42) -> 0
A43: 1945 | B43: Measurement & Testing Equipment | E43: 0 | F43: =IF(D43=0,+'App.2-CB_MIFRS_DepExp_2011'!O43,+'App.2-CB_MIFRS_DepExp_2011'!O43+((C43*0.5)/D43)) -> 0 | H43: 0 | I43: 0 | K43: =IF(ISERROR(+I43+'App.2-CB_MIFRS_DepExp_2011'!O43-J43), 0, +I43+'App.2-CB_MIFRS_DepExp_2011'!O43-J43) -> 0
A44: 1950 | B44: Power Operated Equipment | E44: 0 | F44: =IF(D44=0,+'App.2-CB_MIFRS_DepExp_2011'!O44,+'App.2-CB_MIFRS_DepExp_2011'!O44+((C44*0.5)/D44)) -> 0 | H44: 0 | I44: 0 | K44: =IF(ISERROR(+I44+'App.2-CB_MIFRS_DepExp_2011'!O44-J44), 0, +I44+'App.2-CB_MIFRS_DepExp_2011'!O44-J44) -> 0
A45: 1955 | B45: Communications Equipment | E45: 0 | F45: =IF(D45=0,+'App.2-CB_MIFRS_DepExp_2011'!O45,+'App.2-CB_MIFRS_DepExp_2011'!O45+((C45*0.5)/D45)) -> 0 | H45: 0 | I45: 0 | K45: =IF(ISERROR(+I45+'App.2-CB_MIFRS_DepExp_2011'!O45-J45), 0, +I45+'App.2-CB_MIFRS_DepExp_2011'!O45-J45) -> 0
A46: 1955 | B46: Communication Equipment (Smart Meters) | E46: 0 | F46: =IF(D46=0,+'App.2-CB_MIFRS_DepExp_2011'!O46,+'App.2-CB_MIFRS_DepExp_2011'!O46+((C46*0.5)/D46)) -> 0 | H46: 0 | I46: 0 | K46: =IF(ISERROR(+I46+'App.2-CB_MIFRS_DepExp_2011'!O46-J46), 0, +I46+'App.2-CB_MIFRS_DepExp_2011'!O46-J46) -> 0
A47: 1960 | B47: Miscellaneous Equipment | E47: 0 | F47: =IF(D47=0,+'App.2-CB_MIFRS_DepExp_2011'!O47,+'App.2-CB_MIFRS_DepExp_2011'!O47+((C47*0.5)/D47)) -> 0 | H47: 0 | I47: 0 | K47: =IF(ISERROR(+I47+'App.2-CB_MIFRS_DepExp_2011'!O47-J47), 0, +I47+'App.2-CB_MIFRS_DepExp_2011'!O47-J47) -> 0
A48: 1970 | B48: Load Management Controls Customer Premises | E48: 0 | F48: =IF(D48=0,+'App.2-CB_MIFRS_DepExp_2011'!O48,+'App.2-CB_MIFRS_DepExp_2011'!O48+((C48*0.5)/D48)) -> 0 | H48: 0 | I48: 0 | K48: =IF(ISERROR(+I48+'App.2-CB_MIFRS_DepExp_2011'!O48-J48), 0, +I48+'App.2-CB_MIFRS_DepExp_2011'!O48-J48) -> 0
A49: 1975 | B49: Load Management Controls Utility Premises | E49: 0 | F49: =IF(D49=0,+'App.2-CB_MIFRS_DepExp_2011'!O49,+'App.2-CB_MIFRS_DepExp_2011'!O49+((C49*0.5)/D49)) -> 0 | H49: 0 | I49: 0 | K49: =IF(ISERROR(+I49+'App.2-CB_MIFRS_DepExp_2011'!O49-J49), 0, +I49+'App.2-CB_MIFRS_DepExp_2011'!O49-J49) -> 0
A50: 1980 | B50: System Supervisor Equipment | E50: 0 | F50: =IF(D50=0,+'App.2-CB_MIFRS_DepExp_2011'!O50,+'App.2-CB_MIFRS_DepExp_2011'!O50+((C50*0.5)/D50)) -> 0 | H50: 0 | I50: 0 | K50: =IF(ISERROR(+I50+'App.2-CB_MIFRS_DepExp_2011'!O50-J50), 0, +I50+'App.2-CB_MIFRS_DepExp_2011'!O50-J50) -> 0
A51: 1985 | B51: Miscellaneous Fixed Assets | E51: 0 | F51: =IF(D51=0,+'App.2-CB_MIFRS_DepExp_2011'!O51,+'App.2-CB_MIFRS_DepExp_2011'!O51+((C51*0.5)/D51)) -> 0 | H51: 0 | I51: 0 | K51: =IF(ISERROR(+I51+'App.2-CB_MIFRS_DepExp_2011'!O51-J51), 0, +I51+'App.2-CB_MIFRS_DepExp_2011'!O51-J51) -> 0
A52: 1990 | B52: Other Tangible Property | E52: 0 | F52: =IF(D52=0,+'App.2-CB_MIFRS_DepExp_2011'!O52,+'App.2-CB_MIFRS_DepExp_2011'!O52+((C52*0.5)/D52)) -> 0 | H52: 0 | I52: 0 | K52: =IF(ISERROR(+I52+'App.2-CB_MIFRS_DepExp_2011'!O52-J52), 0, +I52+'App.2-CB_MIFRS_DepExp_2011'!O52-J52) -> 0
A53: 1995 | B53: Contributions & Grants | E53: 0 | F53: =IF(D53=0,+'App.2-CB_MIFRS_DepExp_2011'!O53,+'App.2-CB_MIFRS_DepExp_2011'!O53+((C53*0.5)/D53)) -> 0 | H53: 0 | I53: 0 | K53: =IF(ISERROR(+I53+'App.2-CB_MIFRS_DepExp_2011'!O53-J53), 0, +I53+'App.2-CB_MIFRS_DepExp_2011'!O53-J53) -> 0
A54: etc. | E54: 0 | F54: =IF(D54=0,+'App.2-CB_MIFRS_DepExp_2011'!O54,+'App.2-CB_MIFRS_DepExp_2011'!O54+((C54*0.5)/D54)) -> 0 | H54: 0 | I54: 0 | K54: =IF(ISERROR(+I54+'App.2-CB_MIFRS_DepExp_2011'!O54-J54), 0, +I54+'App.2-CB_MIFRS_DepExp_2011'!O54-J54) -> 0
E55: 0 | F55: =IF(D55=0,+'App.2-CB_MIFRS_DepExp_2011'!O55,+'App.2-CB_MIFRS_DepExp_2011'!O55+((C55*0.5)/D55)) -> 0 | H55: 0 | I55: 0 | K55: =IF(ISERROR(+I55+'App.2-CB_MIFRS_DepExp_2011'!O55-J55), 0, +I55+'App.2-CB_MIFRS_DepExp_2011'!O55-J55) -> 0
B56: Total | C56: =SUM(C16:C55) -> 0 | F56: =SUM(F16:F55) -> 0 | G56: 0 | H56: 0 | I56: 0 | J56: 0 | K56: 0
B57: Depreciation exp. adj. from gain or loss on the retirement of assets (pool of like assets) | F57: 0
B58: Total | F58: =+F56+F57 -> 0
A59: Notes:
A60: 1 | B60: Board policy of the "half-year" rule - the applicant must ensure that additions in the year attract a half-year depreciation expense in the first year. Deviations from this standard practice must be supported in the application.
A61: 2 | B61: The applicant must provide an explanation of material variances in evidence.
A62: 3 | B62: This column refers to the calculated full year depreciation but excludes the depreciation expense on assets fully depreciated during the year. This column is used for the purpose of calculating depreciation expense in the following year on the next worksheet.
A64: General: | B64: Applicants must provide a breakdown of depreciation and amortization expense in the above format for all relevant accounts. Asset Retirement Obligations (AROs), depreciation and accretion expense should be disclosed separately consistent with the Notes of historical Audited Financial Statements.

Sheet App.2-CD_MIFRS_DepExp_2013
J1: File Number: | K1: =EBNUMBER -> EB-2013-0115
J2: Exhibit:
J3: Tab:
J4: Schedule:
J5: Page:
J7: Date:
A9: Appendix 2-CD
A10: Depreciation and Amortization Expense
A11: Assumes the applicant adopted IFRS for financial reporting purposes January 1, 2012
C12: 2013 | D12: MIFRS
A14: Account | B14: Description | C14: Additions | D14: Years (new additions only) | E14: Depreciation Rate on New Additions | F14: 2013 Depreciation Expense 1 | G14: 2013 Depreciation Expense per Apppendix 2-B Fixed Assets, Column K (l) | H14: Variance 2 | I14: Depreciation Expense on 2013 Full Year Additions | J14: Less Depreciation Expense on Assets Fully Depreciated during the year (o) | K14: 2013 Full Year Depreciation 3
C15: (d) | D15: (f) | E15: (g) = 1 / (f) | F15: (h)=2012 Full Year Deprecation + ((d)*0.5)/(f) | H15: (m) = (h) - (l) | I15: (n)=((d))/(f) | K15: (p) = 2012 Full Year Depreciation + (n) - (o)
A16: 1611 | B16: Computer Software (Formally known as Account 1925) | E16: =IF(D16=0,0,1/D16) -> 0 | F16: =IF(D16=0,+'App.2-CC_MIFRS_DepExp_2012'!K16,+'App.2-CC_MIFRS_DepExp_2012'!K16+((C16*0.5)/D16)) -> 0 | H16: =IF(ISERROR(+F16-G16), 0, +F16-G16) -> 0 | I16: =IF(D16=0,0,+(C16)/D16) -> 0 | K16: =IF(ISERROR(+I16+'App.2-CC_MIFRS_DepExp_2012'!K16-J16), 0, +I16+'App.2-CC_MIFRS_DepExp_2012'!K16-J16) -> 0
A17: 1612 | B17: Land Rights (Formally known as Account 1906) | E17: 0 | F17: =IF(D17=0,+'App.2-CC_MIFRS_DepExp_2012'!K17,+'App.2-CC_MIFRS_DepExp_2012'!K17+((C17*0.5)/D17)) -> 0 | H17: 0 | I17: 0 | K17: =IF(ISERROR(+I17+'App.2-CC_MIFRS_DepExp_2012'!K17-J17), 0, +I17+'App.2-CC_MIFRS_DepExp_2012'!K17-J17) -> 0
A18: 1805 | B18: Land | E18: 0 | F18: =IF(D18=0,+'App.2-CC_MIFRS_DepExp_2012'!K18,+'App.2-CC_MIFRS_DepExp_2012'!K18+((C18*0.5)/D18)) -> 0 | H18: 0 | I18: 0 | K18: =IF(ISERROR(+I18+'App.2-CC_MIFRS_DepExp_2012'!K18-J18), 0, +I18+'App.2-CC_MIFRS_DepExp_2012'!K18-J18) -> 0
A19: 1808 | B19: Buildings | E19: 0 | F19: =IF(D19=0,+'App.2-CC_MIFRS_DepExp_2012'!K19,+'App.2-CC_MIFRS_DepExp_2012'!K19+((C19*0.5)/D19)) -> 0 | H19: 0 | I19: 0 | K19: =IF(ISERROR(+I19+'App.2-CC_MIFRS_DepExp_2012'!K19-J19), 0, +I19+'App.2-CC_MIFRS_DepExp_2012'!K19-J19) -> 0
A20: 1810 | B20: Leasehold Improvements | E20: 0 | F20: =IF(D20=0,+'App.2-CC_MIFRS_DepExp_2012'!K20,+'App.2-CC_MIFRS_DepExp_2012'!K20+((C20*0.5)/D20)) -> 0 | H20: 0 | I20: 0 | K20: =IF(ISERROR(+I20+'App.2-CC_MIFRS_DepExp_2012'!K20-J20), 0, +I20+'App.2-CC_MIFRS_DepExp_2012'!K20-J20) -> 0
A21: 1815 | B21: Transformer Station Equipment >50 kV | E21: 0 | F21: =IF(D21=0,+'App.2-CC_MIFRS_DepExp_2012'!K21,+'App.2-CC_MIFRS_DepExp_2012'!K21+((C21*0.5)/D21)) -> 0 | H21: 0 | I21: 0 | K21: =IF(ISERROR(+I21+'App.2-CC_MIFRS_DepExp_2012'!K21-J21), 0, +I21+'App.2-CC_MIFRS_DepExp_2012'!K21-J21) -> 0
A22: 1820 | B22: Distribution Station Equipment <50 kV | E22: 0 | F22: =IF(D22=0,+'App.2-CC_MIFRS_DepExp_2012'!K22,+'App.2-CC_MIFRS_DepExp_2012'!K22+((C22*0.5)/D22)) -> 0 | H22: 0 | I22: 0 | K22: =IF(ISERROR(+I22+'App.2-CC_MIFRS_DepExp_2012'!K22-J22), 0, +I22+'App.2-CC_MIFRS_DepExp_2012'!K22-J22) -> 0
A23: 1825 | B23: Storage Battery Equipment | E23: 0 | F23: =IF(D23=0,+'App.2-CC_MIFRS_DepExp_2012'!K23,+'App.2-CC_MIFRS_DepExp_2012'!K23+((C23*0.5)/D23)) -> 0 | H23: 0 | I23: 0 | K23: =IF(ISERROR(+I23+'App.2-CC_MIFRS_DepExp_2012'!K23-J23), 0, +I23+'App.2-CC_MIFRS_DepExp_2012'!K23-J23) -> 0
A24: 1830 | B24: Poles, Towers & Fixtures | E24: 0 | F24: =IF(D24=0,+'App.2-CC_MIFRS_DepExp_2012'!K24,+'App.2-CC_MIFRS_DepExp_2012'!K24+((C24*0.5)/D24)) -> 0 | H24: 0 | I24: 0 | K24: =IF(ISERROR(+I24+'App.2-CC_MIFRS_DepExp_2012'!K24-J24), 0, +I24+'App.2-CC_MIFRS_DepExp_2012'!K24-J24) -> 0
A25: 1835 | B25: Overhead Conductors & Devices | E25: 0 | F25: =IF(D25=0,+'App.2-CC_MIFRS_DepExp_2012'!K25,+'App.2-CC_MIFRS_DepExp_2012'!K25+((C25*0.5)/D25)) -> 0 | H25: 0 | I25: 0 | K25: =IF(ISERROR(+I25+'App.2-CC_MIFRS_DepExp_2012'!K25-J25), 0, +I25+'App.2-CC_MIFRS_DepExp_2012'!K25-J25) -> 0
A26: 1840 | B26: Underground Conduit | E26: 0 | F26: =IF(D26=0,+'App.2-CC_MIFRS_DepExp_2012'!K26,+'App.2-CC_MIFRS_DepExp_2012'!K26+((C26*0.5)/D26)) -> 0 | H26: 0 | I26: 0 | K26: =IF(ISERROR(+I26+'App.2-CC_MIFRS_DepExp_2012'!K26-J26), 0, +I26+'App.2-CC_MIFRS_DepExp_2012'!K26-J26) -> 0
A27: 1845 | B27: Underground Conductors & Devices | E27: 0 | F27: =IF(D27=0,+'App.2-CC_MIFRS_DepExp_2012'!K27,+'App.2-CC_MIFRS_DepExp_2012'!K27+((C27*0.5)/D27)) -> 0 | H27: 0 | I27: 0 | K27: =IF(ISERROR(+I27+'App.2-CC_MIFRS_DepExp_2012'!K27-J27), 0, +I27+'App.2-CC_MIFRS_DepExp_2012'!K27-J27) -> 0
A28: 1850 | B28: Line Transformers | E28: 0 | F28: =IF(D28=0,+'App.2-CC_MIFRS_DepExp_2012'!K28,+'App.2-CC_MIFRS_DepExp_2012'!K28+((C28*0.5)/D28)) -> 0 | H28: 0 | I28: 0 | K28: =IF(ISERROR(+I28+'App.2-CC_MIFRS_DepExp_2012'!K28-J28), 0, +I28+'App.2-CC_MIFRS_DepExp_2012'!K28-J28) -> 0
A29: 1855 | B29: Services (Overhead & Underground) | E29: 0 | F29: =IF(D29=0,+'App.2-CC_MIFRS_DepExp_2012'!K29,+'App.2-CC_MIFRS_DepExp_2012'!K29+((C29*0.5)/D29)) -> 0 | H29: 0 | I29: 0 | K29: =IF(ISERROR(+I29+'App.2-CC_MIFRS_DepExp_2012'!K29-J29), 0, +I29+'App.2-CC_MIFRS_DepExp_2012'!K29-J29) -> 0
A30: 1860 | B30: Meters | E30: 0 | F30: =IF(D30=0,+'App.2-CC_MIFRS_DepExp_2012'!K30,+'App.2-CC_MIFRS_DepExp_2012'!K30+((C30*0.5)/D30)) -> 0 | H30: 0 | I30: 0 | K30: =IF(ISERROR(+I30+'App.2-CC_MIFRS_DepExp_2012'!K30-J30), 0, +I30+'App.2-CC_MIFRS_DepExp_2012'!K30-J30) -> 0
A31: 1860 | B31: Meters (Smart Meters) | E31: 0 | F31: =IF(D31=0,+'App.2-CC_MIFRS_DepExp_2012'!K31,+'App.2-CC_MIFRS_DepExp_2012'!K31+((C31*0.5)/D31)) -> 0 | H31: 0 | I31: 0 | K31: =IF(ISERROR(+I31+'App.2-CC_MIFRS_DepExp_2012'!K31-J31), 0, +I31+'App.2-CC_MIFRS_DepExp_2012'!K31-J31) -> 0
A32: 1905 | B32: Land | E32: 0 | F32: =IF(D32=0,+'App.2-CC_MIFRS_DepExp_2012'!K32,+'App.2-CC_MIFRS_DepExp_2012'!K32+((C32*0.5)/D32)) -> 0 | H32: 0 | I32: 0 | K32: =IF(ISERROR(+I32+'App.2-CC_MIFRS_DepExp_2012'!K32-J32), 0, +I32+'App.2-CC_MIFRS_DepExp_2012'!K32-J32) -> 0
A33: 1908 | B33: Buildings & Fixtures | E33: 0 | F33: =IF(D33=0,+'App.2-CC_MIFRS_DepExp_2012'!K33,+'App.2-CC_MIFRS_DepExp_2012'!K33+((C33*0.5)/D33)) -> 0 | H33: 0 | I33: 0 | K33: =IF(ISERROR(+I33+'App.2-CC_MIFRS_DepExp_2012'!K33-J33), 0, +I33+'App.2-CC_MIFRS_DepExp_2012'!K33-J33) -> 0
A34: 1910 | B34: Leasehold Improvements | E34: 0 | F34: =IF(D34=0,+'App.2-CC_MIFRS_DepExp_2012'!K34,+'App.2-CC_MIFRS_DepExp_2012'!K34+((C34*0.5)/D34)) -> 0 | H34: 0 | I34: 0 | K34: =IF(ISERROR(+I34+'App.2-CC_MIFRS_DepExp_2012'!K34-J34), 0, +I34+'App.2-CC_MIFRS_DepExp_2012'!K34-J34) -> 0
A35: 1915 | B35: Office Furniture & Equipment (10 years) | E35: 0 | F35: =IF(D35=0,+'App.2-CC_MIFRS_DepExp_2012'!K35,+'App.2-CC_MIFRS_DepExp_2012'!K35+((C35*0.5)/D35)) -> 0 | H35: 0 | I35: 0 | K35: =IF(ISERROR(+I35+'App.2-CC_MIFRS_DepExp_2012'!K35-J35), 0, +I35+'App.2-CC_MIFRS_DepExp_2012'!K35-J35) -> 0
A36: 1915 | B36: Office Furniture & Equipment (5 years) | E36: 0 | F36: =IF(D36=0,+'App.2-CC_MIFRS_DepExp_2012'!K36,+'App.2-CC_MIFRS_DepExp_2012'!K36+((C36*0.5)/D36)) -> 0 | H36: 0 | I36: 0 | K36: =IF(ISERROR(+I36+'App.2-CC_MIFRS_DepExp_2012'!K36-J36), 0, +I36+'App.2-CC_MIFRS_DepExp_2012'!K36-J36) -> 0
A37: 1920 | B37: Computer Equipment - Hardware | E37: 0 | F37: =IF(D37=0,+'App.2-CC_MIFRS_DepExp_2012'!K37,+'App.2-CC_MIFRS_DepExp_2012'!K37+((C37*0.5)/D37)) -> 0 | H37: 0 | I37: 0 | K37: =IF(ISERROR(+I37+'App.2-CC_MIFRS_DepExp_2012'!K37-J37), 0, +I37+'App.2-CC_MIFRS_DepExp_2012'!K37-J37) -> 0
A38: 1920 | B38: Computer Equip.-Hardware(Post Mar. 22/04) | E38: 0 | F38: =IF(D38=0,+'App.2-CC_MIFRS_DepExp_2012'!K38,+'App.2-CC_MIFRS_DepExp_2012'!K38+((C38*0.5)/D38)) -> 0 | H38: 0 | I38: 0 | K38: =IF(ISERROR(+I38+'App.2-CC_MIFRS_DepExp_2012'!K38-J38), 0, +I38+'App.2-CC_MIFRS_DepExp_2012'!K38-J38) -> 0
A39: 1920 | B39: Computer Equip.-Hardware(Post Mar. 19/07) | E39: 0 | F39: =IF(D39=0,+'App.2-CC_MIFRS_DepExp_2012'!K39,+'App.2-CC_MIFRS_DepExp_2012'!K39+((C39*0.5)/D39)) -> 0 | H39: 0 | I39: 0 | K39: =IF(ISERROR(+I39+'App.2-CC_MIFRS_DepExp_2012'!K39-J39), 0, +I39+'App.2-CC_MIFRS_DepExp_2012'!K39-J39) -> 0
A40: 1930 | B40: Transportation Equipment | E40: 0 | F40: =IF(D40=0,+'App.2-CC_MIFRS_DepExp_2012'!K40,+'App.2-CC_MIFRS_DepExp_2012'!K40+((C40*0.5)/D40)) -> 0 | H40: 0 | I40: 0 | K40: =IF(ISERROR(+I40+'App.2-CC_MIFRS_DepExp_2012'!K40-J40), 0, +I40+'App.2-CC_MIFRS_DepExp_2012'!K40-J40) -> 0
A41: 1935 | B41: Stores Equipment | E41: 0 | F41: =IF(D41=0,+'App.2-CC_MIFRS_DepExp_2012'!K41,+'App.2-CC_MIFRS_DepExp_2012'!K41+((C41*0.5)/D41)) -> 0 | H41: 0 | I41: 0 | K41: =IF(ISERROR(+I41+'App.2-CC_MIFRS_DepExp_2012'!K41-J41), 0, +I41+'App.2-CC_MIFRS_DepExp_2012'!K41-J41) -> 0
A42: 1940 | B42: Tools, Shop & Garage Equipment | E42: 0 | F42: =IF(D42=0,+'App.2-CC_MIFRS_DepExp_2012'!K42,+'App.2-CC_MIFRS_DepExp_2012'!K42+((C42*0.5)/D42)) -> 0 | H42: 0 | I42: 0 | K42: =IF(ISERROR(+I42+'App.2-CC_MIFRS_DepExp_2012'!K42-J42), 0, +I42+'App.2-CC_MIFRS_DepExp_2012'!K42-J42) -> 0
A43: 1945 | B43: Measurement & Testing Equipment | E43: 0 | F43: =IF(D43=0,+'App.2-CC_MIFRS_DepExp_2012'!K43,+'App.2-CC_MIFRS_DepExp_2012'!K43+((C43*0.5)/D43)) -> 0 | H43: 0 | I43: 0 | K43: =IF(ISERROR(+I43+'App.2-CC_MIFRS_DepExp_2012'!K43-J43), 0, +I43+'App.2-CC_MIFRS_DepExp_2012'!K43-J43) -> 0
A44: 1950 | B44: Power Operated Equipment | E44: 0 | F44: =IF(D44=0,+'App.2-CC_MIFRS_DepExp_2012'!K44,+'App.2-CC_MIFRS_DepExp_2012'!K44+((C44*0.5)/D44)) -> 0 | H44: 0 | I44: 0 | K44: =IF(ISERROR(+I44+'App.2-CC_MIFRS_DepExp_2012'!K44-J44), 0, +I44+'App.2-CC_MIFRS_DepExp_2012'!K44-J44) -> 0
A45: 1955 | B45: Communications Equipment | E45: 0 | F45: =IF(D45=0,+'App.2-CC_MIFRS_DepExp_2012'!K45,+'App.2-CC_MIFRS_DepExp_2012'!K45+((C45*0.5)/D45)) -> 0 | H45: 0 | I45: 0 | K45: =IF(ISERROR(+I45+'App.2-CC_MIFRS_DepExp_2012'!K45-J45), 0, +I45+'App.2-CC_MIFRS_DepExp_2012'!K45-J45) -> 0
A46: 1955 | B46: Communication Equipment (Smart Meters) | E46: 0 | F46: =IF(D46=0,+'App.2-CC_MIFRS_DepExp_2012'!K46,+'App.2-CC_MIFRS_DepExp_2012'!K46+((C46*0.5)/D46)) -> 0 | H46: 0 | I46: 0 | K46: =IF(ISERROR(+I46+'App.2-CC_MIFRS_DepExp_2012'!K46-J46), 0, +I46+'App.2-CC_MIFRS_DepExp_2012'!K46-J46) -> 0
A47: 1960 | B47: Miscellaneous Equipment | E47: 0 | F47: =IF(D47=0,+'App.2-CC_MIFRS_DepExp_2012'!K47,+'App.2-CC_MIFRS_DepExp_2012'!K47+((C47*0.5)/D47)) -> 0 | H47: 0 | I47: 0 | K47: =IF(ISERROR(+I47+'App.2-CC_MIFRS_DepExp_2012'!K47-J47), 0, +I47+'App.2-CC_MIFRS_DepExp_2012'!K47-J47) -> 0
A48: 1970 | B48: Load Management Controls Customer Premises | E48: 0 | F48: =IF(D48=0,+'App.2-CC_MIFRS_DepExp_2012'!K48,+'App.2-CC_MIFRS_DepExp_2012'!K48+((C48*0.5)/D48)) -> 0 | H48: 0 | I48: 0 | K48: =IF(ISERROR(+I48+'App.2-CC_MIFRS_DepExp_2012'!K48-J48), 0, +I48+'App.2-CC_MIFRS_DepExp_2012'!K48-J48) -> 0
A49: 1975 | B49: Load Management Controls Utility Premises | E49: 0 | F49: =IF(D49=0,+'App.2-CC_MIFRS_DepExp_2012'!K49,+'App.2-CC_MIFRS_DepExp_2012'!K49+((C49*0.5)/D49)) -> 0 | H49: 0 | I49: 0 | K49: =IF(ISERROR(+I49+'App.2-CC_MIFRS_DepExp_2012'!K49-J49), 0, +I49+'App.2-CC_MIFRS_DepExp_2012'!K49-J49) -> 0
A50: 1980 | B50: System Supervisor Equipment | E50: 0 | F50: =IF(D50=0,+'App.2-CC_MIFRS_DepExp_2012'!K50,+'App.2-CC_MIFRS_DepExp_2012'!K50+((C50*0.5)/D50)) -> 0 | H50: 0 | I50: 0 | K50: =IF(ISERROR(+I50+'App.2-CC_MIFRS_DepExp_2012'!K50-J50), 0, +I50+'App.2-CC_MIFRS_DepExp_2012'!K50-J50) -> 0
A51: 1985 | B51: Miscellaneous Fixed Assets | E51: 0 | F51: =IF(D51=0,+'App.2-CC_MIFRS_DepExp_2012'!K51,+'App.2-CC_MIFRS_DepExp_2012'!K51+((C51*0.5)/D51)) -> 0 | H51: 0 | I51: 0 | K51: =IF(ISERROR(+I51+'App.2-CC_MIFRS_DepExp_2012'!K51-J51), 0, +I51+'App.2-CC_MIFRS_DepExp_2012'!K51-J51) -> 0
A52: 1990 | B52: Other Tangible Property | E52: 0 | F52: =IF(D52=0,+'App.2-CC_MIFRS_DepExp_2012'!K52,+'App.2-CC_MIFRS_DepExp_2012'!K52+((C52*0.5)/D52)) -> 0 | H52: 0 | I52: 0 | K52: =IF(ISERROR(+I52+'App.2-CC_MIFRS_DepExp_2012'!K52-J52), 0, +I52+'App.2-CC_MIFRS_DepExp_2012'!K52-J52) -> 0
A53: 1995 | B53: Contributions & Grants | E53: 0 | F53: =IF(D53=0,+'App.2-CC_MIFRS_DepExp_2012'!K53,+'App.2-CC_MIFRS_DepExp_2012'!K53+((C53*0.5)/D53)) -> 0 | H53: 0 | I53: 0 | K53: =IF(ISERROR(+I53+'App.2-CC_MIFRS_DepExp_2012'!K53-J53), 0, +I53+'App.2-CC_MIFRS_DepExp_2012'!K53-J53) -> 0
A54: etc. | E54: 0 | F54: =IF(D54=0,+'App.2-CC_MIFRS_DepExp_2012'!K54,+'App.2-CC_MIFRS_DepExp_2012'!K54+((C54*0.5)/D54)) -> 0 | H54: 0 | I54: 0 | K54: =IF(ISERROR(+I54+'App.2-CC_MIFRS_DepExp_2012'!K54-J54), 0, +I54+'App.2-CC_MIFRS_DepExp_2012'!K54-J54) -> 0
E55: 0 | F55: =IF(D55=0,+'App.2-CC_MIFRS_DepExp_2012'!K55,+'App.2-CC_MIFRS_DepExp_2012'!K55+((C55*0.5)/D55)) -> 0 | H55: 0 | I55: 0 | K55: =IF(ISERROR(+I55+'App.2-CC_MIFRS_DepExp_2012'!K55-J55), 0, +I55+'App.2-CC_MIFRS_DepExp_2012'!K55-J55) -> 0
B56: Total | C56: =SUM(C16:C55) -> 0 | F56: =SUM(F16:F55) -> 0 | G56: 0 | H56: 0 | I56: 0 | J56: 0 | K56: 0
B57: Depreciation exp. adj. from gain or loss on the retirement of assets (pool of like assets) | F57: 0
B58: Total | F58: =+F57+F56 -> 0
A59: Notes:
A60: 1 | B60: Board policy of the "half-year" rule - the applicant must ensure that additions in the year attract a half-year depreciation expense in the first year. Deviations from this standard practice must be supported in the application.
A61: 2 | B61: The applicant must provide an explanation of material variances in evidence.
A62: 3 | B62: This column refers to the calculated full year depreciation but excludes the depreciation expense on assets fully depreciated during the year. This column is used for the purpose of calculating depreciation expense in the following year on the next worksheet.
A64: General: | B64: Applicants must provide a breakdown of depreciation and amortization expense in the above format for all relevant accounts. Asset Retirement Obligations (AROs), depreciation and accretion expense should be disclosed separately consistent with the Notes of historical Audited Financial Statements.

Sheet App.2-CE_MIFRS_DepExp_2014
G1: File Number: | H1: =EBNUMBER -> EB-2013-0115
G2: Exhibit:
G3: Tab:
G4: Schedule:
G5: Page:
G7: Date:
A9: Appendix 2-CE
A10: Depreciation and Amortization Expense
A11: Assumes the applicant adopted IFRS for financial reporting purposes January 1, 2012
C12: 2014 | D12: MIFRS
A14: Account | B14: Description | C14: Additions | D14: Years (new additions only) | E14: Depreciation Rate on New Additions | F14: 2014 Depreciation Expense 1 | G14: 2014 Depreciation Expense per Appendix 2-B Fixed Assets, Column K (l) | H14: Variance 2
C15: (d) | D15: (f) | E15: (g) = 1 / (f) | F15: (h)=2013 Full Year Depreciation + ((d)*0.5)/(f) | H15: (m) = (h) - (l)
A16: 1611 | B16: Computer Software (Formally known as Account 1925) | E16: =IF(D16=0,0,1/D16) -> 0 | F16: =IF(D16=0,'App.2-CD_MIFRS_DepExp_2013'!K16,+'App.2-CD_MIFRS_DepExp_2013'!K16+((C16*0.5)/D16)) -> 0 | H16: =IF(ISERROR(+F16-G16), 0, +F16-G16) -> 0
A17: 1612 | B17: Land Rights (Formally known as Account 1906) | E17: 0 | F17: =IF(D17=0,'App.2-CD_MIFRS_DepExp_2013'!K17,+'App.2-CD_MIFRS_DepExp_2013'!K17+((C17*0.5)/D17)) -> 0 | H17: 0
A18: 1805 | B18: Land | E18: 0 | F18: =IF(D18=0,'App.2-CD_MIFRS_DepExp_2013'!K18,+'App.2-CD_MIFRS_DepExp_2013'!K18+((C18*0.5)/D18)) -> 0 | H18: 0
A19: 1808 | B19: Buildings | E19: 0 | F19: =IF(D19=0,'App.2-CD_MIFRS_DepExp_2013'!K19,+'App.2-CD_MIFRS_DepExp_2013'!K19+((C19*0.5)/D19)) -> 0 | H19: 0
A20: 1810 | B20: Leasehold Improvements | E20: 0 | F20: =IF(D20=0,'App.2-CD_MIFRS_DepExp_2013'!K20,+'App.2-CD_MIFRS_DepExp_2013'!K20+((C20*0.5)/D20)) -> 0 | H20: 0
A21: 1815 | B21: Transformer Station Equipment >50 kV | E21: 0 | F21: =IF(D21=0,'App.2-CD_MIFRS_DepExp_2013'!K21,+'App.2-CD_MIFRS_DepExp_2013'!K21+((C21*0.5)/D21)) -> 0 | H21: 0
A22: 1820 | B22: Distribution Station Equipment <50 kV | E22: 0 | F22: =IF(D22=0,'App.2-CD_MIFRS_DepExp_2013'!K22,+'App.2-CD_MIFRS_DepExp_2013'!K22+((C22*0.5)/D22)) -> 0 | H22: 0
A23: 1825 | B23: Storage Battery Equipment | E23: 0 | F23: =IF(D23=0,'App.2-CD_MIFRS_DepExp_2013'!K23,+'App.2-CD_MIFRS_DepExp_2013'!K23+((C23*0.5)/D23)) -> 0 | H23: 0
A24: 1830 | B24: Poles, Towers & Fixtures | E24: 0 | F24: =IF(D24=0,'App.2-CD_MIFRS_DepExp_2013'!K24,+'App.2-CD_MIFRS_DepExp_2013'!K24+((C24*0.5)/D24)) -> 0 | H24: 0
A25: 1835 | B25: Overhead Conductors & Devices | E25: 0 | F25: =IF(D25=0,'App.2-CD_MIFRS_DepExp_2013'!K25,+'App.2-CD_MIFRS_DepExp_2013'!K25+((C25*0.5)/D25)) -> 0 | H25: 0
A26: 1840 | B26: Underground Conduit | E26: 0 | F26: =IF(D26=0,'App.2-CD_MIFRS_DepExp_2013'!K26,+'App.2-CD_MIFRS_DepExp_2013'!K26+((C26*0.5)/D26)) -> 0 | H26: 0
A27: 1845 | B27: Underground Conductors & Devices | E27: 0 | F27: =IF(D27=0,'App.2-CD_MIFRS_DepExp_2013'!K27,+'App.2-CD_MIFRS_DepExp_2013'!K27+((C27*0.5)/D27)) -> 0 | H27: 0
A28: 1850 | B28: Line Transformers | E28: 0 | F28: =IF(D28=0,'App.2-CD_MIFRS_DepExp_2013'!K28,+'App.2-CD_MIFRS_DepExp_2013'!K28+((C28*0.5)/D28)) -> 0 | H28: 0
A29: 1855 | B29: Services (Overhead & Underground) | E29: 0 | F29: =IF(D29=0,'App.2-CD_MIFRS_DepExp_2013'!K29,+'App.2-CD_MIFRS_DepExp_2013'!K29+((C29*0.5)/D29)) -> 0 | H29: 0
A30: 1860 | B30: Meters | E30: 0 | F30: =IF(D30=0,'App.2-CD_MIFRS_DepExp_2013'!K30,+'App.2-CD_MIFRS_DepExp_2013'!K30+((C30*0.5)/D30)) -> 0 | H30: 0
A31: 1860 | B31: Meters (Smart Meters) | E31: 0 | F31: =IF(D31=0,'App.2-CD_MIFRS_DepExp_2013'!K31,+'App.2-CD_MIFRS_DepExp_2013'!K31+((C31*0.5)/D31)) -> 0 | H31: 0
A32: 1905 | B32: Land | E32: 0 | F32: =IF(D32=0,'App.2-CD_MIFRS_DepExp_2013'!K32,+'App.2-CD_MIFRS_DepExp_2013'!K32+((C32*0.5)/D32)) -> 0 | H32: 0
A33: 1908 | B33: Buildings & Fixtures | E33: 0 | F33: =IF(D33=0,'App.2-CD_MIFRS_DepExp_2013'!K33,+'App.2-CD_MIFRS_DepExp_2013'!K33+((C33*0.5)/D33)) -> 0 | H33: 0
A34: 1910 | B34: Leasehold Improvements | E34: 0 | F34: =IF(D34=0,'App.2-CD_MIFRS_DepExp_2013'!K34,+'App.2-CD_MIFRS_DepExp_2013'!K34+((C34*0.5)/D34)) -> 0 | H34: 0
A35: 1915 | B35: Office Furniture & Equipment (10 years) | E35: 0 | F35: =IF(D35=0,'App.2-CD_MIFRS_DepExp_2013'!K35,+'App.2-CD_MIFRS_DepExp_2013'!K35+((C35*0.5)/D35)) -> 0 | H35: 0
A36: 1915 | B36: Office Furniture & Equipment (5 years) | E36: 0 | F36: =IF(D36=0,'App.2-CD_MIFRS_DepExp_2013'!K36,+'App.2-CD_MIFRS_DepExp_2013'!K36+((C36*0.5)/D36)) -> 0 | H36: 0
A37: 1920 | B37: Computer Equipment - Hardware | E37: 0 | F37: =IF(D37=0,'App.2-CD_MIFRS_DepExp_2013'!K37,+'App.2-CD_MIFRS_DepExp_2013'!K37+((C37*0.5)/D37)) -> 0 | H37: 0
A38: 1920 | B38: Computer Equip.-Hardware(Post Mar. 22/04) | E38: 0 | F38: =IF(D38=0,'App.2-CD_MIFRS_DepExp_2013'!K38,+'App.2-CD_MIFRS_DepExp_2013'!K38+((C38*0.5)/D38)) -> 0 | H38: 0
A39: 1920 | B39: Computer Equip.-Hardware(Post Mar. 19/07) | E39: 0 | F39: =IF(D39=0,'App.2-CD_MIFRS_DepExp_2013'!K39,+'App.2-CD_MIFRS_DepExp_2013'!K39+((C39*0.5)/D39)) -> 0 | H39: 0
A40: 1930 | B40: Transportation Equipment | E40: 0 | F40: =IF(D40=0,'App.2-CD_MIFRS_DepExp_2013'!K40,+'App.2-CD_MIFRS_DepExp_2013'!K40+((C40*0.5)/D40)) -> 0 | H40: 0
A41: 1935 | B41: Stores Equipment | E41: 0 | F41: =IF(D41=0,'App.2-CD_MIFRS_DepExp_2013'!K41,+'App.2-CD_MIFRS_DepExp_2013'!K41+((C41*0.5)/D41)) -> 0 | H41: 0
A42: 1940 | B42: Tools, Shop & Garage Equipment | E42: 0 | F42: =IF(D42=0,'App.2-CD_MIFRS_DepExp_2013'!K42,+'App.2-CD_MIFRS_DepExp_2013'!K42+((C42*0.5)/D42)) -> 0 | H42: 0
A43: 1945 | B43: Measurement & Testing Equipment | E43: 0 | F43: =IF(D43=0,'App.2-CD_MIFRS_DepExp_2013'!K43,+'App.2-CD_MIFRS_DepExp_2013'!K43+((C43*0.5)/D43)) -> 0 | H43: 0
A44: 1950 | B44: Power Operated Equipment | E44: 0 | F44: =IF(D44=0,'App.2-CD_MIFRS_DepExp_2013'!K44,+'App.2-CD_MIFRS_DepExp_2013'!K44+((C44*0.5)/D44)) -> 0 | H44: 0
A45: 1955 | B45: Communications Equipment | E45: 0 | F45: =IF(D45=0,'App.2-CD_MIFRS_DepExp_2013'!K45,+'App.2-CD_MIFRS_DepExp_2013'!K45+((C45*0.5)/D45)) -> 0 | H45: 0
A46: 1955 | B46: Communication Equipment (Smart Meters) | E46: 0 | F46: =IF(D46=0,'App.2-CD_MIFRS_DepExp_2013'!K46,+'App.2-CD_MIFRS_DepExp_2013'!K46+((C46*0.5)/D46)) -> 0 | H46: 0
A47: 1960 | B47: Miscellaneous Equipment | E47: 0 | F47: =IF(D47=0,'App.2-CD_MIFRS_DepExp_2013'!K47,+'App.2-CD_MIFRS_DepExp_2013'!K47+((C47*0.5)/D47)) -> 0 | H47: 0
A48: 1970 | B48: Load Management Controls Customer Premises | E48: 0 | F48: =IF(D48=0,'App.2-CD_MIFRS_DepExp_2013'!K48,+'App.2-CD_MIFRS_DepExp_2013'!K48+((C48*0.5)/D48)) -> 0 | H48: 0
A49: 1975 | B49: Load Management Controls Utility Premises | E49: 0 | F49: =IF(D49=0,'App.2-CD_MIFRS_DepExp_2013'!K49,+'App.2-CD_MIFRS_DepExp_2013'!K49+((C49*0.5)/D49)) -> 0 | H49: 0
A50: 1980 | B50: System Supervisor Equipment | E50: 0 | F50: =IF(D50=0,'App.2-CD_MIFRS_DepExp_2013'!K50,+'App.2-CD_MIFRS_DepExp_2013'!K50+((C50*0.5)/D50)) -> 0 | H50: 0
A51: 1985 | B51: Miscellaneous Fixed Assets | E51: 0 | F51: =IF(D51=0,'App.2-CD_MIFRS_DepExp_2013'!K51,+'App.2-CD_MIFRS_DepExp_2013'!K51+((C51*0.5)/D51)) -> 0 | H51: 0
A52: 1990 | B52: Other Tangible Property | E52: 0 | F52: =IF(D52=0,'App.2-CD_MIFRS_DepExp_2013'!K52,+'App.2-CD_MIFRS_DepExp_2013'!K52+((C52*0.5)/D52)) -> 0 | H52: 0
A53: 1995 | B53: Contributions & Grants | E53: 0 | F53: =IF(D53=0,'App.2-CD_MIFRS_DepExp_2013'!K53,+'App.2-CD_MIFRS_DepExp_2013'!K53+((C53*0.5)/D53)) -> 0 | H53: 0
A54: etc. | E54: 0 | F54: =IF(D54=0,'App.2-CD_MIFRS_DepExp_2013'!K54,+'App.2-CD_MIFRS_DepExp_2013'!K54+((C54*0.5)/D54)) -> 0 | H54: 0
E55: 0 | F55: =IF(D55=0,'App.2-CD_MIFRS_DepExp_2013'!K55,+'App.2-CD_MIFRS_DepExp_2013'!K55+((C55*0.5)/D55)) -> 0 | H55: 0
B56: Total | C56: =SUM(C16:C55) -> 0 | F56: =SUM(F16:F55) -> 0 | G56: =SUM(G16:G55) -> 0 | H56: =SUM(H16:H55) -> 0
B57: Depreciation exp. adj. from gain or loss on the retirement of assets (pool of like assets)
B58: Total Depreciation expense to be included in the test year revenue requirement | F58: =SUM(F56:F57) -> 0
A59: Notes:
A60: 1 | B60: Board policy of the "half-year" rule - the applicant must ensure that additions in the year attract a half-year depreciation expense in the first year. Deviations from this standard practice must be supported in the application.
A61: 2 | B61: The applicant must provide an explanation of material variances in evidence.
A63: General: | B63: Applicants must provide a breakdown of depreciation and amortization expense in the above format for all relevant accounts. Asset Retirement Obligations (AROs), depreciation and accretion expense should be disclosed separately consistent with the Notes of historical Audited Financial Statements.

Sheet App.2-CF_CGAAP_DepExp_2012
K1: File Number: | L1: =EBNUMBER -> EB-2013-0115
K2: Exhibit:
K3: Tab:
K4: Schedule:
K5: Page:
K7: Date:
A9: Appendix 2-CF
A10: Depreciation and Amortization Expense
A11: Assumes the applicant adopted IFRS for financial reporting purposes January 1, 2013
C12: Year | D12: 2012 | E12: CGAAP
A14: Account | B14: Description | C14: Opening Regulatory Gross PP&E as at Jan 1, 2012 | D14: Less Fully Depreciated | E14: Net for Depreciation | F14: Additions | G14: Total for Depreciation | H14: Years | I14: Depreciation Rate | J14: Depreciation Expense | K14: 2012 Depreciation Expense per Appendix 2-B Fixed Assets, Column K (l) | L14: Variance 2
C15: (a) | D15: (b) | E15: (c) | F15: (d) | G15: (e) = (c) + ½ x (d) 1 | H15: (f) | I15: (g) = 1 / (f) | J15: (h) = (e) / (f) | L15: (m) = (h) - (l)
A16: 1611 | B16: Computer Software (Formally known as Account 1925) | E16: =C16-D16 -> 0 | G16: =E16+0.5*F16 -> 0 | I16: =IF(H16=0,0,1/H16) -> 0 | J16: =IF(H16=0,0,G16/H16) -> 0 | L16: =IF(ISERROR(+J16-K16), 0, +J16-K16) -> 0
A17: 1612 | B17: Land Rights (Formally known as Account 1906) | E17: =C17-D17 -> 0 | G17: =E17+0.5*F17 -> 0 | I17: 0 | J17: 0 | L17: 0
A18: 1805 | B18: Land | E18: 0 | G18: 0 | I18: 0 | J18: 0 | L18: 0
A19: 1808 | B19: Buildings | E19: 0 | G19: 0 | I19: 0 | J19: 0 | L19: 0
A20: 1810 | B20: Leasehold Improvements | E20: 0 | G20: 0 | I20: 0 | J20: 0 | L20: 0
A21: 1815 | B21: Transformer Station Equipment >50 kV | E21: 0 | G21: 0 | I21: 0 | J21: 0 | L21: 0
A22: 1820 | B22: Distribution Station Equipment <50 kV | E22: 0 | G22: 0 | I22: 0 | J22: 0 | L22: 0
A23: 1825 | B23: Storage Battery Equipment | E23: 0 | G23: 0 | I23: 0 | J23: 0 | L23: 0
A24: 1830 | B24: Poles, Towers & Fixtures | E24: 0 | G24: 0 | I24: 0 | J24: 0 | L24: 0
A25: 1835 | B25: Overhead Conductors & Devices | E25: 0 | G25: 0 | I25: 0 | J25: 0 | L25: 0
A26: 1840 | B26: Underground Conduit | E26: 0 | G26: 0 | I26: 0 | J26: 0 | L26: 0
A27: 1845 | B27: Underground Conductors & Devices | E27: 0 | G27: 0 | I27: 0 | J27: 0 | L27: 0
A28: 1850 | B28: Line Transformers | E28: 0 | G28: 0 | I28: 0 | J28: 0 | L28: 0
A29: 1855 | B29: Services (Overhead & Underground) | E29: 0 | G29: 0 | I29: 0 | J29: 0 | L29: 0
A30: 1860 | B30: Meters | E30: 0 | G30: 0 | I30: 0 | J30: 0 | L30: 0
A31: 1860 | B31: Meters (Smart Meters) | E31: 0 | G31: 0 | I31: 0 | J31: 0 | L31: 0
A32: 1905 | B32: Land | E32: 0 | G32: 0 | I32: 0 | J32: 0 | L32: 0
A33: 1908 | B33: Buildings & Fixtures | E33: 0 | G33: 0 | I33: 0 | J33: 0 | L33: 0
A34: 1910 | B34: Leasehold Improvements | E34: 0 | G34: 0 | I34: 0 | J34: 0 | L34: 0
A35: 1915 | B35: Office Furniture & Equipment (10 years) | E35: 0 | G35: 0 | I35: 0 | J35: 0 | L35: 0
A36: 1915 | B36: Office Furniture & Equipment (5 years) | E36: 0 | G36: 0 | I36: 0 | J36: 0 | L36: 0
A37: 1920 | B37: Computer Equipment - Hardware | E37: 0 | G37: 0 | I37: 0 | J37: 0 | L37: 0
A38: 1920 | B38: Computer Equip.-Hardware(Post Mar. 22/04) | E38: 0 | G38: 0 | I38: 0 | J38: 0 | L38: 0
A39: 1920 | B39: Computer Equip.-Hardware(Post Mar. 19/07) | E39: 0 | G39: 0 | I39: 0 | J39: 0 | L39: 0
A40: 1930 | B40: Transportation Equipment | E40: 0 | G40: 0 | I40: 0 | J40: 0 | L40: 0
A41: 1935 | B41: Stores Equipment | E41: 0 | G41: 0 | I41: 0 | J41: 0 | L41: 0
A42: 1940 | B42: Tools, Shop & Garage Equipment | E42: 0 | G42: 0 | I42: 0 | J42: 0 | L42: 0
A43: 1945 | B43: Measurement & Testing Equipment | E43: 0 | G43: 0 | I43: 0 | J43: 0 | L43: 0
A44: 1950 | B44: Power Operated Equipment | E44: 0 | G44: 0 | I44: 0 | J44: 0 | L44: 0
A45: 1955 | B45: Communications Equipment | E45: 0 | G45: 0 | I45: 0 | J45: 0 | L45: 0
A46: 1955 | B46: Communication Equipment (Smart Meters) | E46: 0 | G46: 0 | I46: 0 | J46: 0 | L46: 0
A47: 1960 | B47: Miscellaneous Equipment | E47: 0 | G47: 0 | I47: 0 | J47: 0 | L47: 0
A48: 1970 | B48: Load Management Controls Customer Premises | E48: 0 | G48: 0 | I48: 0 | J48: 0 | L48: 0
A49: 1975 | B49: Load Management Controls Utility Premises | E49: 0 | G49: 0 | I49: 0 | J49: 0 | L49: 0
A50: 1980 | B50: System Supervisor Equipment | E50: 0 | G50: 0 | I50: 0 | J50: 0 | L50: 0
A51: 1985 | B51: Miscellaneous Fixed Assets | E51: 0 | G51: 0 | I51: 0 | J51: 0 | L51: 0
A52: 1990 | B52: Other Tangible Property | E52: 0 | G52: 0 | I52: 0 | J52: 0 | L52: 0
A53: 1995 | B53: Contributions & Grants | E53: 0 | G53: 0 | I53: 0 | J53: 0 | L53: 0
A54: etc. | E54: 0 | G54: 0 | I54: 0 | J54: 0 | L54: 0
E55: 0 | G55: 0 | I55: 0 | J55: 0 | L55: 0
B56: Total | C56: =SUM(C16:C55) -> 0 | D56: =SUM(D16:D55) -> 0 | E56: =SUM(E16:E55) -> 0 | F56: =SUM(F16:F55) -> 0 | G56: =SUM(G16:G55) -> 0 | J56: =SUM(J16:J55) -> 0 | K56: =SUM(K16:K55) -> 0 | L56: =SUM(L16:L55) -> 0
A58: Notes:
A60: 1 | B60: Board policy of the "half-year" rule - the applicant must ensure that additions in the year attract a half-year depreciation expense in the first year. Deviations from this standard practice must be supported in the application.
A61: 2 | B61: The applicant must provide an explanation of material variances in evidence.
A63: General | B63: Applicants must provide a breakdown of depreciation and amortization expense in the above format for all relevant accounts. Asset Retirement Obligations (AROs), depreciation and accretion expense should be disclosed separately consistent with the Notes of historical Audited Financial Statements.

Sheet App.2-CG_MIFRS_DepExp_2012
N1: File Number: | O1: =EBNUMBER -> EB-2013-0115
N2: Exhibit:
N3: Tab:
N4: Schedule:
N5: Page:
N7: Date:
A9: Appendix 2-CG
A10: Depreciation and Amortization Expense
A11: Assumes the applicant adopted IFRS for financial reporting purposes January 1, 2013
C12: Year | D12: 2012 | E12: MIFRS
A14: Account | B14: Description | C14: Opening NBV as at Jan 1, 2012 5 | D14: Additions | E14: Average Remaining Life of Opening NBV 4 | F14: Years (new additions only) 3 | G14: Depreciation Rate on New Additions | H14: Depreciation Expense on Opening NBV | I14: Depreciation Expense on Additions 1 | J14: 2012 Depreciation Expense | K14: 2012 Depreciation Expense per Appendix 2-B Fixed Assets, Column K (l) | L14: Variance 2 | M14: Depreciation Expense on 2012 Full Year Additions | N14: Less Depreciation Expense on Assets Fully Depreciated during the year (o) | O14: 2012 Full Year Depreciation 6
C15: (a) | D15: (d) | E15: (i) | F15: (f) | G15: (g) = 1 / (f) | H15: (j) = (a) / (i) | I15: (h)=((d)*0.5)/(f) | J15: (k) = (j) + (h) | L15: (m) = (k) - (l) | M15: (n) = (d)/(f) | O15: (p) = (j) + (n) - (o)
A16: 1611 | B16: Computer Software (Formally known as Account 1925) | G16: =IF(F16=0,0,1/F16) -> 0 | H16: =IF(E16=0,0,+C16/E16) -> 0 | I16: =IF(F16=0,0,+(D16*0.5)/F16) -> 0 | J16: =IF(ISERROR(+H16+I16), 0, +H16+I16) -> 0 | L16: =IF(ISERROR(+J16-K16), 0, +J16-K16) -> 0 | M16: =IF(F16=0,0,+(D16)/F16) -> 0 | O16: =IF(ISERROR(+M16+H16-N16), 0, +M16+H16-N16) -> 0
A17: 1612 | B17: Land Rights (Formally known as Account 1906) | G17: 0 | H17: 0 | I17: 0 | J17: 0 | L17: 0 | M17: 0 | O17: =IF(ISERROR(+M17+H17-N17), 0, +M17+H17-N17) -> 0
A18: 1805 | B18: Land | G18: 0 | H18: 0 | I18: 0 | J18: 0 | L18: 0 | M18: 0 | O18: 0
A19: 1808 | B19: Buildings | G19: 0 | H19: 0 | I19: 0 | J19: 0 | L19: 0 | M19: 0 | O19: 0
A20: 1810 | B20: Leasehold Improvements | G20: 0 | H20: 0 | I20: 0 | J20: 0 | L20: 0 | M20: 0 | O20: 0
A21: 1815 | B21: Transformer Station Equipment >50 kV | G21: 0 | H21: 0 | I21: 0 | J21: 0 | L21: 0 | M21: 0 | O21: 0
A22: 1820 | B22: Distribution Station Equipment <50 kV | G22: 0 | H22: 0 | I22: 0 | J22: 0 | L22: 0 | M22: 0 | O22: 0
A23: 1825 | B23: Storage Battery Equipment | G23: 0 | H23: 0 | I23: 0 | J23: 0 | L23: 0 | M23: 0 | O23: 0
A24: 1830 | B24: Poles, Towers & Fixtures | G24: 0 | H24: 0 | I24: 0 | J24: 0 | L24: 0 | M24: 0 | O24: 0
A25: 1835 | B25: Overhead Conductors & Devices | G25: 0 | H25: 0 | I25: 0 | J25: 0 | L25: 0 | M25: 0 | O25: 0
A26: 1840 | B26: Underground Conduit | G26: 0 | H26: 0 | I26: 0 | J26: 0 | L26: 0 | M26: 0 | O26: 0
A27: 1845 | B27: Underground Conductors & Devices | G27: 0 | H27: 0 | I27: 0 | J27: 0 | L27: 0 | M27: 0 | O27: 0
A28: 1850 | B28: Line Transformers | G28: 0 | H28: 0 | I28: 0 | J28: 0 | L28: 0 | M28: 0 | O28: 0
A29: 1855 | B29: Services (Overhead & Underground) | G29: 0 | H29: 0 | I29: 0 | J29: 0 | L29: 0 | M29: 0 | O29: 0
A30: 1860 | B30: Meters | G30: 0 | H30: 0 | I30: 0 | J30: 0 | L30: 0 | M30: 0 | O30: 0
A31: 1860 | B31: Meters (Smart Meters) | G31: 0 | H31: 0 | I31: 0 | J31: 0 | L31: 0 | M31: 0 | O31: 0
A32: 1905 | B32: Land | G32: 0 | H32: 0 | I32: 0 | J32: 0 | L32: 0 | M32: 0 | O32: 0
A33: 1908 | B33: Buildings & Fixtures | G33: 0 | H33: 0 | I33: 0 | J33: 0 | L33: 0 | M33: 0 | O33: 0
A34: 1910 | B34: Leasehold Improvements | G34: 0 | H34: 0 | I34: 0 | J34: 0 | L34: 0 | M34: 0 | O34: 0
A35: 1915 | B35: Office Furniture & Equipment (10 years) | G35: 0 | H35: 0 | I35: 0 | J35: 0 | L35: 0 | M35: 0 | O35: 0
A36: 1915 | B36: Office Furniture & Equipment (5 years) | G36: 0 | H36: 0 | I36: 0 | J36: 0 | L36: 0 | M36: 0 | O36: 0
A37: 1920 | B37: Computer Equipment - Hardware | G37: 0 | H37: 0 | I37: 0 | J37: 0 | L37: 0 | M37: 0 | O37: 0
A38: 1920 | B38: Computer Equip.-Hardware(Post Mar. 22/04) | G38: 0 | H38: 0 | I38: 0 | J38: 0 | L38: 0 | M38: 0 | O38: 0
A39: 1920 | B39: Computer Equip.-Hardware(Post Mar. 19/07) | G39: 0 | H39: 0 | I39: 0 | J39: 0 | L39: 0 | M39: 0 | O39: 0
A40: 1930 | B40: Transportation Equipment | G40: 0 | H40: 0 | I40: 0 | J40: 0 | L40: 0 | M40: 0 | O40: 0
A41: 1935 | B41: Stores Equipment | G41: 0 | H41: 0 | I41: 0 | J41: 0 | L41: 0 | M41: 0 | O41: 0
A42: 1940 | B42: Tools, Shop & Garage Equipment | G42: 0 | H42: 0 | I42: 0 | J42: 0 | L42: 0 | M42: 0 | O42: 0
A43: 1945 | B43: Measurement & Testing Equipment | G43: 0 | H43: 0 | I43: 0 | J43: 0 | L43: 0 | M43: 0 | O43: 0
A44: 1950 | B44: Power Operated Equipment | G44: 0 | H44: 0 | I44: 0 | J44: 0 | L44: 0 | M44: 0 | O44: 0
A45: 1955 | B45: Communications Equipment | G45: 0 | H45: 0 | I45: 0 | J45: 0 | L45: 0 | M45: 0 | O45: 0
A46: 1955 | B46: Communication Equipment (Smart Meters) | G46: 0 | H46: 0 | I46: 0 | J46: 0 | L46: 0 | M46: 0 | O46: 0
A47: 1960 | B47: Miscellaneous Equipment | G47: 0 | H47: 0 | I47: 0 | J47: 0 | L47: 0 | M47: 0 | O47: 0
A48: 1970 | B48: Load Management Controls Customer Premises | G48: 0 | H48: 0 | I48: 0 | J48: 0 | L48: 0 | M48: 0 | O48: 0
A49: 1975 | B49: Load Management Controls Utility Premises | G49: 0 | H49: 0 | I49: 0 | J49: 0 | L49: 0 | M49: 0 | O49: 0
A50: 1980 | B50: System Supervisor Equipment | G50: 0 | H50: 0 | I50: 0 | J50: 0 | L50: 0 | M50: 0 | O50: 0
A51: 1985 | B51: Miscellaneous Fixed Assets | G51: 0 | H51: 0 | I51: 0 | J51: 0 | L51: 0 | M51: 0 | O51: 0
A52: 1990 | B52: Other Tangible Property | G52: 0 | H52: 0 | I52: 0 | J52: 0 | L52: 0 | M52: 0 | O52: 0
A53: 1995 | B53: Contributions & Grants | G53: 0 | H53: 0 | I53: 0 | J53: 0 | L53: 0 | M53: 0 | O53: 0
A54: etc. | G54: 0 | H54: 0 | I54: 0 | J54: 0 | L54: 0 | M54: 0 | O54: 0
G55: 0 | H55: 0 | I55: 0 | J55: 0 | L55: 0 | M55: 0 | O55: 0
B56: Total | C56: =SUM(C16:C55) -> 0 | D56: =SUM(D16:D55) -> 0 | H56: =SUM(H16:H55) -> 0 | I56: 0 | J56: 0 | K56: 0 | L56: 0 | M56: 0 | N56: =SUM(N16:N55) -> 0 | O56: 0
B57: Depreciation exp. adj. from gain or loss on the retirement of assets (pool of like assets) | J57: 0
B58: Total | J58: =+J56+J57 -> 0
A59: Notes:
A61: 1 | B61: Board policy of the "half-year" rule - the applicant must ensure that additions in the year attract a half-year depreciation expense in the first year. Deviations from this standard practice must be supported in the application.
A62: 2 | B62: The applicant must provide an explanation of material variances in evidence.
A63: 3 | B63: The applicant should ensure that the years for new additions of assets are the asset useful lives determined by management in accordance with IFRS.
A64: 4 | B64: A recalculation should be performed to determine the average remaining life of opening balance of assets (i.e. excluding 2012 additions) under IFRS. For example, Asset A had a useful life of 20 years under CGAAP. On January 1, 2012, the date of transition, Asset A was 3 years depreciated. As a result, Asset A would have a remaining service life of 17 years (20 years less 3 years) under CGAAP as of January 1, 2012. Due to the transition to IFRS, management re-assessed the asset useful lives under IFRS principles and concluded that the revised useful life of Asset A is now 30 years. Therefore, the average remaining useful life of opening balance of Asset A is determined to be 27 years (30 years less 3 years) under IFRS as of January 1, 2012.
A65: 5 | B65: NBV must exclude assets still on the books but which have been fully amortized or depreciated.
A66: 6 | B66: This column refers to the calculated full year depreciation but excludes the depreciation expense on assets fully depreciated during the year. This column is used for the purpose of calculating depreciation expense in the following year on the next worksheet.
A68: General: | B68: Applicants must provide a breakdown of depreciation and amortization expense in the above format for all relevant accounts. Asset Retirement Obligations (AROs), depreciation and accretion expense should be disclosed separately consistent with the Notes of historical Audited Financial Statements.

Sheet App.2-CH_MIFRS_DepExp_2013
J1: File Number: | K1: =EBNUMBER -> EB-2013-0115
J2: Exhibit:
J3: Tab:
J4: Schedule:
J5: Page:
J7: Date:
A9: Appendix 2-CH
A10: Depreciation and Amortization Expense
A11: Assumes the applicant adopted IFRS for financial reporting purposes January 1, 2013
C12: 2013 | D12: MIFRS
A14: Account | B14: Description | C14: Additions | D14: Years (new additions only) | E14: Depreciation Rate on New Additions | F14: 2013 Depreciation Expense 1 | G14: 2013 Depreciation Expense per Apppendix 2-B Fixed Assets, Column K (l) | H14: Variance 2 | I14: Depreciation Expense on 2013 Full Year Additions | J14: Less Depreciation Expense on Assets Fully Depreciated during the year (o) | K14: 2013 Full Year Depreciation 3
C15: (d) | D15: (f) | E15: (g) = 1 / (f) | F15: (h)=2012 Full Year Deprecation + ((d)*0.5)/(f) | H15: (m) = (h) - (l) | I15: (n)=((d))/(f) | K15: (p) = 2012 Full Year Depreciation + (n) - (o)
A16: 1611 | B16: Computer Software (Formally known as Account 1925) | E16: =IF(D16=0,0,1/D16) -> 0 | F16: =IF(D16=0,+'App.2-CG_MIFRS_DepExp_2012'!O16,+'App.2-CG_MIFRS_DepExp_2012'!O16+((C16*0.5)/D16)) -> 0 | H16: =IF(ISERROR(+F16-G16), 0, +F16-G16) -> 0 | I16: =IF(D16=0,0,+(C16)/D16) -> 0 | K16: =IF(ISERROR(+I16+'App.2-CG_MIFRS_DepExp_2012'!O16-J16), 0, +I16+'App.2-CG_MIFRS_DepExp_2012'!O16-J16) -> 0
A17: 1612 | B17: Land Rights (Formally known as Account 1906) | E17: 0 | F17: =IF(D17=0,+'App.2-CG_MIFRS_DepExp_2012'!O17,+'App.2-CG_MIFRS_DepExp_2012'!O17+((C17*0.5)/D17)) -> 0 | H17: 0 | I17: 0 | K17: =IF(ISERROR(+I17+'App.2-CG_MIFRS_DepExp_2012'!O17-J17), 0, +I17+'App.2-CG_MIFRS_DepExp_2012'!O17-J17) -> 0
A18: 1805 | B18: Land | E18: 0 | F18: =IF(D18=0,+'App.2-CG_MIFRS_DepExp_2012'!O18,+'App.2-CG_MIFRS_DepExp_2012'!O18+((C18*0.5)/D18)) -> 0 | H18: 0 | I18: 0 | K18: =IF(ISERROR(+I18+'App.2-CG_MIFRS_DepExp_2012'!O18-J18), 0, +I18+'App.2-CG_MIFRS_DepExp_2012'!O18-J18) -> 0
A19: 1808 | B19: Buildings | E19: 0 | F19: =IF(D19=0,+'App.2-CG_MIFRS_DepExp_2012'!O19,+'App.2-CG_MIFRS_DepExp_2012'!O19+((C19*0.5)/D19)) -> 0 | H19: 0 | I19: 0 | K19: =IF(ISERROR(+I19+'App.2-CG_MIFRS_DepExp_2012'!O19-J19), 0, +I19+'App.2-CG_MIFRS_DepExp_2012'!O19-J19) -> 0
A20: 1810 | B20: Leasehold Improvements | E20: 0 | F20: =IF(D20=0,+'App.2-CG_MIFRS_DepExp_2012'!O20,+'App.2-CG_MIFRS_DepExp_2012'!O20+((C20*0.5)/D20)) -> 0 | H20: 0 | I20: 0 | K20: =IF(ISERROR(+I20+'App.2-CG_MIFRS_DepExp_2012'!O20-J20), 0, +I20+'App.2-CG_MIFRS_DepExp_2012'!O20-J20) -> 0
A21: 1815 | B21: Transformer Station Equipment >50 kV | E21: 0 | F21: =IF(D21=0,+'App.2-CG_MIFRS_DepExp_2012'!O21,+'App.2-CG_MIFRS_DepExp_2012'!O21+((C21*0.5)/D21)) -> 0 | H21: 0 | I21: 0 | K21: =IF(ISERROR(+I21+'App.2-CG_MIFRS_DepExp_2012'!O21-J21), 0, +I21+'App.2-CG_MIFRS_DepExp_2012'!O21-J21) -> 0
A22: 1820 | B22: Distribution Station Equipment <50 kV | E22: 0 | F22: =IF(D22=0,+'App.2-CG_MIFRS_DepExp_2012'!O22,+'App.2-CG_MIFRS_DepExp_2012'!O22+((C22*0.5)/D22)) -> 0 | H22: 0 | I22: 0 | K22: =IF(ISERROR(+I22+'App.2-CG_MIFRS_DepExp_2012'!O22-J22), 0, +I22+'App.2-CG_MIFRS_DepExp_2012'!O22-J22) -> 0
A23: 1825 | B23: Storage Battery Equipment | E23: 0 | F23: =IF(D23=0,+'App.2-CG_MIFRS_DepExp_2012'!O23,+'App.2-CG_MIFRS_DepExp_2012'!O23+((C23*0.5)/D23)) -> 0 | H23: 0 | I23: 0 | K23: =IF(ISERROR(+I23+'App.2-CG_MIFRS_DepExp_2012'!O23-J23), 0, +I23+'App.2-CG_MIFRS_DepExp_2012'!O23-J23) -> 0
A24: 1830 | B24: Poles, Towers & Fixtures | E24: 0 | F24: =IF(D24=0,+'App.2-CG_MIFRS_DepExp_2012'!O24,+'App.2-CG_MIFRS_DepExp_2012'!O24+((C24*0.5)/D24)) -> 0 | H24: 0 | I24: 0 | K24: =IF(ISERROR(+I24+'App.2-CG_MIFRS_DepExp_2012'!O24-J24), 0, +I24+'App.2-CG_MIFRS_DepExp_2012'!O24-J24) -> 0
A25: 1835 | B25: Overhead Conductors & Devices | E25: 0 | F25: =IF(D25=0,+'App.2-CG_MIFRS_DepExp_2012'!O25,+'App.2-CG_MIFRS_DepExp_2012'!O25+((C25*0.5)/D25)) -> 0 | H25: 0 | I25: 0 | K25: =IF(ISERROR(+I25+'App.2-CG_MIFRS_DepExp_2012'!O25-J25), 0, +I25+'App.2-CG_MIFRS_DepExp_2012'!O25-J25) -> 0
A26: 1840 | B26: Underground Conduit | E26: 0 | F26: =IF(D26=0,+'App.2-CG_MIFRS_DepExp_2012'!O26,+'App.2-CG_MIFRS_DepExp_2012'!O26+((C26*0.5)/D26)) -> 0 | H26: 0 | I26: 0 | K26: =IF(ISERROR(+I26+'App.2-CG_MIFRS_DepExp_2012'!O26-J26), 0, +I26+'App.2-CG_MIFRS_DepExp_2012'!O26-J26) -> 0
A27: 1845 | B27: Underground Conductors & Devices | E27: 0 | F27: =IF(D27=0,+'App.2-CG_MIFRS_DepExp_2012'!O27,+'App.2-CG_MIFRS_DepExp_2012'!O27+((C27*0.5)/D27)) -> 0 | H27: 0 | I27: 0 | K27: =IF(ISERROR(+I27+'App.2-CG_MIFRS_DepExp_2012'!O27-J27), 0, +I27+'App.2-CG_MIFRS_DepExp_2012'!O27-J27) -> 0
A28: 1850 | B28: Line Transformers | E28: 0 | F28: =IF(D28=0,+'App.2-CG_MIFRS_DepExp_2012'!O28,+'App.2-CG_MIFRS_DepExp_2012'!O28+((C28*0.5)/D28)) -> 0 | H28: 0 | I28: 0 | K28: =IF(ISERROR(+I28+'App.2-CG_MIFRS_DepExp_2012'!O28-J28), 0, +I28+'App.2-CG_MIFRS_DepExp_2012'!O28-J28) -> 0
A29: 1855 | B29: Services (Overhead & Underground) | E29: 0 | F29: =IF(D29=0,+'App.2-CG_MIFRS_DepExp_2012'!O29,+'App.2-CG_MIFRS_DepExp_2012'!O29+((C29*0.5)/D29)) -> 0 | H29: 0 | I29: 0 | K29: =IF(ISERROR(+I29+'App.2-CG_MIFRS_DepExp_2012'!O29-J29), 0, +I29+'App.2-CG_MIFRS_DepExp_2012'!O29-J29) -> 0
A30: 1860 | B30: Meters | E30: 0 | F30: =IF(D30=0,+'App.2-CG_MIFRS_DepExp_2012'!O30,+'App.2-CG_MIFRS_DepExp_2012'!O30+((C30*0.5)/D30)) -> 0 | H30: 0 | I30: 0 | K30: =IF(ISERROR(+I30+'App.2-CG_MIFRS_DepExp_2012'!O30-J30), 0, +I30+'App.2-CG_MIFRS_DepExp_2012'!O30-J30) -> 0
A31: 1860 | B31: Meters (Smart Meters) | E31: 0 | F31: =IF(D31=0,+'App.2-CG_MIFRS_DepExp_2012'!O31,+'App.2-CG_MIFRS_DepExp_2012'!O31+((C31*0.5)/D31)) -> 0 | H31: 0 | I31: 0 | K31: =IF(ISERROR(+I31+'App.2-CG_MIFRS_DepExp_2012'!O31-J31), 0, +I31+'App.2-CG_MIFRS_DepExp_2012'!O31-J31) -> 0
A32: 1905 | B32: Land | E32: 0 | F32: =IF(D32=0,+'App.2-CG_MIFRS_DepExp_2012'!O32,+'App.2-CG_MIFRS_DepExp_2012'!O32+((C32*0.5)/D32)) -> 0 | H32: 0 | I32: 0 | K32: =IF(ISERROR(+I32+'App.2-CG_MIFRS_DepExp_2012'!O32-J32), 0, +I32+'App.2-CG_MIFRS_DepExp_2012'!O32-J32) -> 0
A33: 1908 | B33: Buildings & Fixtures | E33: 0 | F33: =IF(D33=0,+'App.2-CG_MIFRS_DepExp_2012'!O33,+'App.2-CG_MIFRS_DepExp_2012'!O33+((C33*0.5)/D33)) -> 0 | H33: 0 | I33: 0 | K33: =IF(ISERROR(+I33+'App.2-CG_MIFRS_DepExp_2012'!O33-J33), 0, +I33+'App.2-CG_MIFRS_DepExp_2012'!O33-J33) -> 0
A34: 1910 | B34: Leasehold Improvements | E34: 0 | F34: =IF(D34=0,+'App.2-CG_MIFRS_DepExp_2012'!O34,+'App.2-CG_MIFRS_DepExp_2012'!O34+((C34*0.5)/D34)) -> 0 | H34: 0 | I34: 0 | K34: =IF(ISERROR(+I34+'App.2-CG_MIFRS_DepExp_2012'!O34-J34), 0, +I34+'App.2-CG_MIFRS_DepExp_2012'!O34-J34) -> 0
A35: 1915 | B35: Office Furniture & Equipment (10 years) | E35: 0 | F35: =IF(D35=0,+'App.2-CG_MIFRS_DepExp_2012'!O35,+'App.2-CG_MIFRS_DepExp_2012'!O35+((C35*0.5)/D35)) -> 0 | H35: 0 | I35: 0 | K35: =IF(ISERROR(+I35+'App.2-CG_MIFRS_DepExp_2012'!O35-J35), 0, +I35+'App.2-CG_MIFRS_DepExp_2012'!O35-J35) -> 0
A36: 1915 | B36: Office Furniture & Equipment (5 years) | E36: 0 | F36: =IF(D36=0,+'App.2-CG_MIFRS_DepExp_2012'!O36,+'App.2-CG_MIFRS_DepExp_2012'!O36+((C36*0.5)/D36)) -> 0 | H36: 0 | I36: 0 | K36: =IF(ISERROR(+I36+'App.2-CG_MIFRS_DepExp_2012'!O36-J36), 0, +I36+'App.2-CG_MIFRS_DepExp_2012'!O36-J36) -> 0
A37: 1920 | B37: Computer Equipment - Hardware | E37: 0 | F37: =IF(D37=0,+'App.2-CG_MIFRS_DepExp_2012'!O37,+'App.2-CG_MIFRS_DepExp_2012'!O37+((C37*0.5)/D37)) -> 0 | H37: 0 | I37: 0 | K37: =IF(ISERROR(+I37+'App.2-CG_MIFRS_DepExp_2012'!O37-J37), 0, +I37+'App.2-CG_MIFRS_DepExp_2012'!O37-J37) -> 0
A38: 1920 | B38: Computer Equip.-Hardware(Post Mar. 22/04) | E38: 0 | F38: =IF(D38=0,+'App.2-CG_MIFRS_DepExp_2012'!O38,+'App.2-CG_MIFRS_DepExp_2012'!O38+((C38*0.5)/D38)) -> 0 | H38: 0 | I38: 0 | K38: =IF(ISERROR(+I38+'App.2-CG_MIFRS_DepExp_2012'!O38-J38), 0, +I38+'App.2-CG_MIFRS_DepExp_2012'!O38-J38) -> 0
A39: 1920 | B39: Computer Equip.-Hardware(Post Mar. 19/07) | E39: 0 | F39: =IF(D39=0,+'App.2-CG_MIFRS_DepExp_2012'!O39,+'App.2-CG_MIFRS_DepExp_2012'!O39+((C39*0.5)/D39)) -> 0 | H39: 0 | I39: 0 | K39: =IF(ISERROR(+I39+'App.2-CG_MIFRS_DepExp_2012'!O39-J39), 0, +I39+'App.2-CG_MIFRS_DepExp_2012'!O39-J39) -> 0
A40: 1930 | B40: Transportation Equipment | E40: 0 | F40: =IF(D40=0,+'App.2-CG_MIFRS_DepExp_2012'!O40,+'App.2-CG_MIFRS_DepExp_2012'!O40+((C40*0.5)/D40)) -> 0 | H40: 0 | I40: 0 | K40: =IF(ISERROR(+I40+'App.2-CG_MIFRS_DepExp_2012'!O40-J40), 0, +I40+'App.2-CG_MIFRS_DepExp_2012'!O40-J40) -> 0
A41: 1935 | B41: Stores Equipment | E41: 0 | F41: =IF(D41=0,+'App.2-CG_MIFRS_DepExp_2012'!O41,+'App.2-CG_MIFRS_DepExp_2012'!O41+((C41*0.5)/D41)) -> 0 | H41: 0 | I41: 0 | K41: =IF(ISERROR(+I41+'App.2-CG_MIFRS_DepExp_2012'!O41-J41), 0, +I41+'App.2-CG_MIFRS_DepExp_2012'!O41-J41) -> 0
A42: 1940 | B42: Tools, Shop & Garage Equipment | E42: 0 | F42: =IF(D42=0,+'App.2-CG_MIFRS_DepExp_2012'!O42,+'App.2-CG_MIFRS_DepExp_2012'!O42+((C42*0.5)/D42)) -> 0 | H42: 0 | I42: 0 | K42: =IF(ISERROR(+I42+'App.2-CG_MIFRS_DepExp_2012'!O42-J42), 0, +I42+'App.2-CG_MIFRS_DepExp_2012'!O42-J42) -> 0
A43: 1945 | B43: Measurement & Testing Equipment | E43: 0 | F43: =IF(D43=0,+'App.2-CG_MIFRS_DepExp_2012'!O43,+'App.2-CG_MIFRS_DepExp_2012'!O43+((C43*0.5)/D43)) -> 0 | H43: 0 | I43: 0 | K43: =IF(ISERROR(+I43+'App.2-CG_MIFRS_DepExp_2012'!O43-J43), 0, +I43+'App.2-CG_MIFRS_DepExp_2012'!O43-J43) -> 0
A44: 1950 | B44: Power Operated Equipment | E44: 0 | F44: =IF(D44=0,+'App.2-CG_MIFRS_DepExp_2012'!O44,+'App.2-CG_MIFRS_DepExp_2012'!O44+((C44*0.5)/D44)) -> 0 | H44: 0 | I44: 0 | K44: =IF(ISERROR(+I44+'App.2-CG_MIFRS_DepExp_2012'!O44-J44), 0, +I44+'App.2-CG_MIFRS_DepExp_2012'!O44-J44) -> 0
A45: 1955 | B45: Communications Equipment | E45: 0 | F45: =IF(D45=0,+'App.2-CG_MIFRS_DepExp_2012'!O45,+'App.2-CG_MIFRS_DepExp_2012'!O45+((C45*0.5)/D45)) -> 0 | H45: 0 | I45: 0 | K45: =IF(ISERROR(+I45+'App.2-CG_MIFRS_DepExp_2012'!O45-J45), 0, +I45+'App.2-CG_MIFRS_DepExp_2012'!O45-J45) -> 0
A46: 1955 | B46: Communication Equipment (Smart Meters) | E46: 0 | F46: =IF(D46=0,+'App.2-CG_MIFRS_DepExp_2012'!O46,+'App.2-CG_MIFRS_DepExp_2012'!O46+((C46*0.5)/D46)) -> 0 | H46: 0 | I46: 0 | K46: =IF(ISERROR(+I46+'App.2-CG_MIFRS_DepExp_2012'!O46-J46), 0, +I46+'App.2-CG_MIFRS_DepExp_2012'!O46-J46) -> 0
A47: 1960 | B47: Miscellaneous Equipment | E47: 0 | F47: =IF(D47=0,+'App.2-CG_MIFRS_DepExp_2012'!O47,+'App.2-CG_MIFRS_DepExp_2012'!O47+((C47*0.5)/D47)) -> 0 | H47: 0 | I47: 0 | K47: =IF(ISERROR(+I47+'App.2-CG_MIFRS_DepExp_2012'!O47-J47), 0, +I47+'App.2-CG_MIFRS_DepExp_2012'!O47-J47) -> 0
A48: 1970 | B48: Load Management Controls Customer Premises | E48: 0 | F48: =IF(D48=0,+'App.2-CG_MIFRS_DepExp_2012'!O48,+'App.2-CG_MIFRS_DepExp_2012'!O48+((C48*0.5)/D48)) -> 0 | H48: 0 | I48: 0 | K48: =IF(ISERROR(+I48+'App.2-CG_MIFRS_DepExp_2012'!O48-J48), 0, +I48+'App.2-CG_MIFRS_DepExp_2012'!O48-J48) -> 0
A49: 1975 | B49: Load Management Controls Utility Premises | E49: 0 | F49: =IF(D49=0,+'App.2-CG_MIFRS_DepExp_2012'!O49,+'App.2-CG_MIFRS_DepExp_2012'!O49+((C49*0.5)/D49)) -> 0 | H49: 0 | I49: 0 | K49: =IF(ISERROR(+I49+'App.2-CG_MIFRS_DepExp_2012'!O49-J49), 0, +I49+'App.2-CG_MIFRS_DepExp_2012'!O49-J49) -> 0
A50: 1980 | B50: System Supervisor Equipment | E50: 0 | F50: =IF(D50=0,+'App.2-CG_MIFRS_DepExp_2012'!O50,+'App.2-CG_MIFRS_DepExp_2012'!O50+((C50*0.5)/D50)) -> 0 | H50: 0 | I50: 0 | K50: =IF(ISERROR(+I50+'App.2-CG_MIFRS_DepExp_2012'!O50-J50), 0, +I50+'App.2-CG_MIFRS_DepExp_2012'!O50-J50) -> 0
A51: 1985 | B51: Miscellaneous Fixed Assets | E51: 0 | F51: =IF(D51=0,+'App.2-CG_MIFRS_DepExp_2012'!O51,+'App.2-CG_MIFRS_DepExp_2012'!O51+((C51*0.5)/D51)) -> 0 | H51: 0 | I51: 0 | K51: =IF(ISERROR(+I51+'App.2-CG_MIFRS_DepExp_2012'!O51-J51), 0, +I51+'App.2-CG_MIFRS_DepExp_2012'!O51-J51) -> 0
A52: 1990 | B52: Other Tangible Property | E52: 0 | F52: =IF(D52=0,+'App.2-CG_MIFRS_DepExp_2012'!O52,+'App.2-CG_MIFRS_DepExp_2012'!O52+((C52*0.5)/D52)) -> 0 | H52: 0 | I52: 0 | K52: =IF(ISERROR(+I52+'App.2-CG_MIFRS_DepExp_2012'!O52-J52), 0, +I52+'App.2-CG_MIFRS_DepExp_2012'!O52-J52) -> 0
A53: 1995 | B53: Contributions & Grants | E53: 0 | F53: =IF(D53=0,+'App.2-CG_MIFRS_DepExp_2012'!O53,+'App.2-CG_MIFRS_DepExp_2012'!O53+((C53*0.5)/D53)) -> 0 | H53: 0 | I53: 0 | K53: =IF(ISERROR(+I53+'App.2-CG_MIFRS_DepExp_2012'!O53-J53), 0, +I53+'App.2-CG_MIFRS_DepExp_2012'!O53-J53) -> 0
A54: etc. | E54: 0 | F54: =IF(D54=0,+'App.2-CG_MIFRS_DepExp_2012'!O54,+'App.2-CG_MIFRS_DepExp_2012'!O54+((C54*0.5)/D54)) -> 0 | H54: 0 | I54: 0 | K54: =IF(ISERROR(+I54+'App.2-CG_MIFRS_DepExp_2012'!O54-J54), 0, +I54+'App.2-CG_MIFRS_DepExp_2012'!O54-J54) -> 0
E55: 0 | F55: =IF(D55=0,+'App.2-CG_MIFRS_DepExp_2012'!O55,+'App.2-CG_MIFRS_DepExp_2012'!O55+((C55*0.5)/D55)) -> 0 | H55: 0 | I55: 0 | K55: =IF(ISERROR(+I55+'App.2-CG_MIFRS_DepExp_2012'!O55-J55), 0, +I55+'App.2-CG_MIFRS_DepExp_2012'!O55-J55) -> 0
B56: Total | C56: =SUM(C16:C55) -> 0 | F56: =SUM(F16:F55) -> 0 | G56: 0 | H56: 0 | I56: 0 | J56: 0 | K56: 0
B57: Depreciation exp. adj. from gain or loss on the retirement of assets (pool of like assets) | F57: 0
B58: Total | F58: =+F57+F56 -> 0
A59: Notes:
A60: 1 | B60: Board policy of the "half-year" rule - the applicant must ensure that additions in the year attract a half-year depreciation expense in the first year. Deviations from this standard practice must be supported in the application.
A61: 2 | B61: The applicant must provide an explanation of material variances in evidence.
A62: 3 | B62: This column refers to the calculated full year depreciation but excludes the depreciation expense on assets fully depreciated during the year. This column is used for the purpose of calculating depreciation expense in the following year on the next worksheet.
A64: General: | B64: Applicants must provide a breakdown of depreciation and amortization expense in the above format for all relevant accounts. Asset Retirement Obligations (AROs), depreciation and accretion expense should be disclosed separately consistent with the Notes of historical Audited Financial Statements.

Sheet App.2-CI_MIFRS_DepExp_2014
G1: File Number: | H1: =EBNUMBER -> EB-2013-0115
G2: Exhibit:
G3: Tab:
G4: Schedule:
G5: Page:
G7: Date:
A9: Appendix 2-CI
A10: Depreciation and Amortization Expense
A11: Assumes the applicant adopted IFRS for financial reporting purposes January 1, 2013
C12: 2014 | D12: MIFRS
A14: Account | B14: Description | C14: Additions | D14: Years (new additions only) | E14: Depreciation Rate on New Additions | F14: 2014 Depreciation Expense 1 | G14: 2014 Depreciation Expense per Appendix 2-B Fixed Assets, Column K (l) | H14: Variance 2
C15: (d) | D15: (f) | E15: (g) = 1 / (f) | F15: (h)=2013 Full Year Depreciation + ((d)*0.5)/(f) | H15: (m) = (h) - (l)
A16: 1611 | B16: Computer Software (Formally known as Account 1925) | E16: =IF(D16=0,0,1/D16) -> 0 | F16: =IF(D16=0,'App.2-CH_MIFRS_DepExp_2013'!K16,+'App.2-CH_MIFRS_DepExp_2013'!K16+((C16*0.5)/D16)) -> 0 | H16: =IF(ISERROR(+F16-G16), 0, +F16-G16) -> 0
A17: 1612 | B17: Land Rights (Formally known as Account 1906) | E17: 0 | F17: =IF(D17=0,'App.2-CH_MIFRS_DepExp_2013'!K17,+'App.2-CH_MIFRS_DepExp_2013'!K17+((C17*0.5)/D17)) -> 0 | H17: 0
A18: 1805 | B18: Land | E18: 0 | F18: =IF(D18=0,'App.2-CH_MIFRS_DepExp_2013'!K18,+'App.2-CH_MIFRS_DepExp_2013'!K18+((C18*0.5)/D18)) -> 0 | H18: 0
A19: 1808 | B19: Buildings | E19: 0 | F19: =IF(D19=0,'App.2-CH_MIFRS_DepExp_2013'!K19,+'App.2-CH_MIFRS_DepExp_2013'!K19+((C19*0.5)/D19)) -> 0 | H19: 0
A20: 1810 | B20: Leasehold Improvements | E20: 0 | F20: =IF(D20=0,'App.2-CH_MIFRS_DepExp_2013'!K20,+'App.2-CH_MIFRS_DepExp_2013'!K20+((C20*0.5)/D20)) -> 0 | H20: 0
A21: 1815 | B21: Transformer Station Equipment >50 kV | E21: 0 | F21: =IF(D21=0,'App.2-CH_MIFRS_DepExp_2013'!K21,+'App.2-CH_MIFRS_DepExp_2013'!K21+((C21*0.5)/D21)) -> 0 | H21: 0
A22: 1820 | B22: Distribution Station Equipment <50 kV | E22: 0 | F22: =IF(D22=0,'App.2-CH_MIFRS_DepExp_2013'!K22,+'App.2-CH_MIFRS_DepExp_2013'!K22+((C22*0.5)/D22)) -> 0 | H22: 0
A23: 1825 | B23: Storage Battery Equipment | E23: 0 | F23: =IF(D23=0,'App.2-CH_MIFRS_DepExp_2013'!K23,+'App.2-CH_MIFRS_DepExp_2013'!K23+((C23*0.5)/D23)) -> 0 | H23: 0
A24: 1830 | B24: Poles, Towers & Fixtures | E24: 0 | F24: =IF(D24=0,'App.2-CH_MIFRS_DepExp_2013'!K24,+'App.2-CH_MIFRS_DepExp_2013'!K24+((C24*0.5)/D24)) -> 0 | H24: 0
A25: 1835 | B25: Overhead Conductors & Devices | E25: 0 | F25: =IF(D25=0,'App.2-CH_MIFRS_DepExp_2013'!K25,+'App.2-CH_MIFRS_DepExp_2013'!K25+((C25*0.5)/D25)) -> 0 | H25: 0
A26: 1840 | B26: Underground Conduit | E26: 0 | F26: =IF(D26=0,'App.2-CH_MIFRS_DepExp_2013'!K26,+'App.2-CH_MIFRS_DepExp_2013'!K26+((C26*0.5)/D26)) -> 0 | H26: 0
A27: 1845 | B27: Underground Conductors & Devices | E27: 0 | F27: =IF(D27=0,'App.2-CH_MIFRS_DepExp_2013'!K27,+'App.2-CH_MIFRS_DepExp_2013'!K27+((C27*0.5)/D27)) -> 0 | H27: 0
A28: 1850 | B28: Line Transformers | E28: 0 | F28: =IF(D28=0,'App.2-CH_MIFRS_DepExp_2013'!K28,+'App.2-CH_MIFRS_DepExp_2013'!K28+((C28*0.5)/D28)) -> 0 | H28: 0
A29: 1855 | B29: Services (Overhead & Underground) | E29: 0 | F29: =IF(D29=0,'App.2-CH_MIFRS_DepExp_2013'!K29,+'App.2-CH_MIFRS_DepExp_2013'!K29+((C29*0.5)/D29)) -> 0 | H29: 0
A30: 1860 | B30: Meters | E30: 0 | F30: =IF(D30=0,'App.2-CH_MIFRS_DepExp_2013'!K30,+'App.2-CH_MIFRS_DepExp_2013'!K30+((C30*0.5)/D30)) -> 0 | H30: 0
A31: 1860 | B31: Meters (Smart Meters) | E31: 0 | F31: =IF(D31=0,'App.2-CH_MIFRS_DepExp_2013'!K31,+'App.2-CH_MIFRS_DepExp_2013'!K31+((C31*0.5)/D31)) -> 0 | H31: 0
A32: 1905 | B32: Land | E32: 0 | F32: =IF(D32=0,'App.2-CH_MIFRS_DepExp_2013'!K32,+'App.2-CH_MIFRS_DepExp_2013'!K32+((C32*0.5)/D32)) -> 0 | H32: 0
A33: 1908 | B33: Buildings & Fixtures | E33: 0 | F33: =IF(D33=0,'App.2-CH_MIFRS_DepExp_2013'!K33,+'App.2-CH_MIFRS_DepExp_2013'!K33+((C33*0.5)/D33)) -> 0 | H33: 0
A34: 1910 | B34: Leasehold Improvements | E34: 0 | F34: =IF(D34=0,'App.2-CH_MIFRS_DepExp_2013'!K34,+'App.2-CH_MIFRS_DepExp_2013'!K34+((C34*0.5)/D34)) -> 0 | H34: 0
A35: 1915 | B35: Office Furniture & Equipment (10 years) | E35: 0 | F35: =IF(D35=0,'App.2-CH_MIFRS_DepExp_2013'!K35,+'App.2-CH_MIFRS_DepExp_2013'!K35+((C35*0.5)/D35)) -> 0 | H35: 0
A36: 1915 | B36: Office Furniture & Equipment (5 years) | E36: 0 | F36: =IF(D36=0,'App.2-CH_MIFRS_DepExp_2013'!K36,+'App.2-CH_MIFRS_DepExp_2013'!K36+((C36*0.5)/D36)) -> 0 | H36: 0
A37: 1920 | B37: Computer Equipment - Hardware | E37: 0 | F37: =IF(D37=0,'App.2-CH_MIFRS_DepExp_2013'!K37,+'App.2-CH_MIFRS_DepExp_2013'!K37+((C37*0.5)/D37)) -> 0 | H37: 0
A38: 1920 | B38: Computer Equip.-Hardware(Post Mar. 22/04) | E38: 0 | F38: =IF(D38=0,'App.2-CH_MIFRS_DepExp_2013'!K38,+'App.2-CH_MIFRS_DepExp_2013'!K38+((C38*0.5)/D38)) -> 0 | H38: 0
A39: 1920 | B39: Computer Equip.-Hardware(Post Mar. 19/07) | E39: 0 | F39: =IF(D39=0,'App.2-CH_MIFRS_DepExp_2013'!K39,+'App.2-CH_MIFRS_DepExp_2013'!K39+((C39*0.5)/D39)) -> 0 | H39: 0
A40: 1930 | B40: Transportation Equipment | E40: 0 | F40: =IF(D40=0,'App.2-CH_MIFRS_DepExp_2013'!K40,+'App.2-CH_MIFRS_DepExp_2013'!K40+((C40*0.5)/D40)) -> 0 | H40: 0
A41: 1935 | B41: Stores Equipment | E41: 0 | F41: =IF(D41=0,'App.2-CH_MIFRS_DepExp_2013'!K41,+'App.2-CH_MIFRS_DepExp_2013'!K41+((C41*0.5)/D41)) -> 0 | H41: 0
A42: 1940 | B42: Tools, Shop & Garage Equipment | E42: 0 | F42: =IF(D42=0,'App.2-CH_MIFRS_DepExp_2013'!K42,+'App.2-CH_MIFRS_DepExp_2013'!K42+((C42*0.5)/D42)) -> 0 | H42: 0
A43: 1945 | B43: Measurement & Testing Equipment | E43: 0 | F43: =IF(D43=0,'App.2-CH_MIFRS_DepExp_2013'!K43,+'App.2-CH_MIFRS_DepExp_2013'!K43+((C43*0.5)/D43)) -> 0 | H43: 0
A44: 1950 | B44: Power Operated Equipment | E44: 0 | F44: =IF(D44=0,'App.2-CH_MIFRS_DepExp_2013'!K44,+'App.2-CH_MIFRS_DepExp_2013'!K44+((C44*0.5)/D44)) -> 0 | H44: 0
A45: 1955 | B45: Communications Equipment | E45: 0 | F45: =IF(D45=0,'App.2-CH_MIFRS_DepExp_2013'!K45,+'App.2-CH_MIFRS_DepExp_2013'!K45+((C45*0.5)/D45)) -> 0 | H45: 0
A46: 1955 | B46: Communication Equipment (Smart Meters) | E46: 0 | F46: =IF(D46=0,'App.2-CH_MIFRS_DepExp_2013'!K46,+'App.2-CH_MIFRS_DepExp_2013'!K46+((C46*0.5)/D46)) -> 0 | H46: 0
A47: 1960 | B47: Miscellaneous Equipment | E47: 0 | F47: =IF(D47=0,'App.2-CH_MIFRS_DepExp_2013'!K47,+'App.2-CH_MIFRS_DepExp_2013'!K47+((C47*0.5)/D47)) -> 0 | H47: 0
A48: 1970 | B48: Load Management Controls Customer Premises | E48: 0 | F48: =IF(D48=0,'App.2-CH_MIFRS_DepExp_2013'!K48,+'App.2-CH_MIFRS_DepExp_2013'!K48+((C48*0.5)/D48)) -> 0 | H48: 0
A49: 1975 | B49: Load Management Controls Utility Premises | E49: 0 | F49: =IF(D49=0,'App.2-CH_MIFRS_DepExp_2013'!K49,+'App.2-CH_MIFRS_DepExp_2013'!K49+((C49*0.5)/D49)) -> 0 | H49: 0
A50: 1980 | B50: System Supervisor Equipment | E50: 0 | F50: =IF(D50=0,'App.2-CH_MIFRS_DepExp_2013'!K50,+'App.2-CH_MIFRS_DepExp_2013'!K50+((C50*0.5)/D50)) -> 0 | H50: 0
A51: 1985 | B51: Miscellaneous Fixed Assets | E51: 0 | F51: =IF(D51=0,'App.2-CH_MIFRS_DepExp_2013'!K51,+'App.2-CH_MIFRS_DepExp_2013'!K51+((C51*0.5)/D51)) -> 0 | H51: 0
A52: 1990 | B52: Other Tangible Property | E52: 0 | F52: =IF(D52=0,'App.2-CH_MIFRS_DepExp_2013'!K52,+'App.2-CH_MIFRS_DepExp_2013'!K52+((C52*0.5)/D52)) -> 0 | H52: 0
A53: 1995 | B53: Contributions & Grants | E53: 0 | F53: =IF(D53=0,'App.2-CH_MIFRS_DepExp_2013'!K53,+'App.2-CH_MIFRS_DepExp_2013'!K53+((C53*0.5)/D53)) -> 0 | H53: 0
A54: etc. | E54: 0 | F54: =IF(D54=0,'App.2-CH_MIFRS_DepExp_2013'!K54,+'App.2-CH_MIFRS_DepExp_2013'!K54+((C54*0.5)/D54)) -> 0 | H54: 0
E55: 0 | F55: =IF(D55=0,'App.2-CH_MIFRS_DepExp_2013'!K55,+'App.2-CH_MIFRS_DepExp_2013'!K55+((C55*0.5)/D55)) -> 0 | H55: 0
B56: Total | C56: =SUM(C16:C55) -> 0 | F56: =SUM(F16:F55) -> 0 | G56: =SUM(G16:G55) -> 0 | H56: =SUM(H16:H55) -> 0
B57: Depreciation exp. adj. from gain or loss on the retirement of assets (pool of like assets) | F57: 0
B58: Total Depreciation expense to be included in the test year revenue requirement | F58: =SUM(F56:F57) -> 0
A59: Notes:
A60: 1 | B60: Board policy of the "half-year" rule - the applicant must ensure that additions in the year attract a half-year depreciation expense in the first year. Deviations from this standard practice must be supported in the application.
A61: 2 | B61: The applicant must provide an explanation of material variances in evidence.
A63: General: | B63: Applicants must provide a breakdown of depreciation and amortization expense in the above format for all relevant accounts. Asset Retirement Obligations (AROs), depreciation and accretion expense should be disclosed separately consistent with the Notes of historical Audited Financial Statements.

Sheet App.2-CJ_CGAAP_DepExp_2012
K1: File Number: | L1: =EBNUMBER -> EB-2013-0115
K2: Exhibit:
K3: Tab:
K4: Schedule:
K5: Page:
K7: Date:
A9: Appendix 2-CJ
A10: Depreciation and Amortization Expense
A11: Assumes the applicant adopted IFRS for financial reporting purposes January 1, 2014
C12: Year | D12: 2012 | E12: CGAAP
A14: Account | B14: Description | C14: Opening Regulatory Gross PP&E as at Jan 1, 2012 | D14: Less Fully Depreciated | E14: Net for Depreciation | F14: Additions | G14: Total for Depreciation | H14: Years | I14: Depreciation Rate | J14: 2012 Depreciation Expense | K14: 2012 Depreciation Expense per Appendix 2-B Fixed Assets, Column K (l) | L14: Variance 2
C15: (a) | D15: (b) | E15: (c) | F15: (d) | G15: (e) = (c) + ½ x (d) 1 | H15: (f) | I15: (g) = 1 / (f) | J15: (h) = (e) / (f) | L15: (m) = (h) - (l)
A16: 1611 | B16: Computer Software (Formally known as Account 1925) | E16: =C16-D16 -> 0 | G16: =E16+0.5*F16 -> 0 | I16: =IF(H16=0,"",1/H16) ->  | J16: =IF(H16=0,0,G16/H16) -> 0 | L16: =IF(ISERROR(+J16-K16), "", +J16-K16) -> 0
A17: 1612 | B17: Land Rights (Formally known as Account 1906) | E17: =C17-D17 -> 0 | G17: =E17+0.5*F17 -> 0 | J17: 0 | L17: =IF(ISERROR(+J17-K17), "", +J17-K17) -> 0
A18: 1805 | B18: Land | E18: 0 | G18: 0 | J18: 0 | L18: 0
A19: 1808 | B19: Buildings | E19: 0 | G19: 0 | J19: 0 | L19: 0
A20: 1810 | B20: Leasehold Improvements | E20: 0 | G20: 0 | J20: 0 | L20: 0
A21: 1815 | B21: Transformer Station Equipment >50 kV | E21: 0 | G21: 0 | J21: 0 | L21: 0
A22: 1820 | B22: Distribution Station Equipment <50 kV | E22: 0 | G22: 0 | J22: 0 | L22: 0
A23: 1825 | B23: Storage Battery Equipment | E23: 0 | G23: 0 | J23: 0 | L23: 0
A24: 1830 | B24: Poles, Towers & Fixtures | E24: 0 | G24: 0 | J24: 0 | L24: 0
A25: 1835 | B25: Overhead Conductors & Devices | E25: 0 | G25: 0 | J25: 0 | L25: 0
A26: 1840 | B26: Underground Conduit | E26: 0 | G26: 0 | J26: 0 | L26: 0
A27: 1845 | B27: Underground Conductors & Devices | E27: 0 | G27: 0 | J27: 0 | L27: 0
A28: 1850 | B28: Line Transformers | E28: 0 | G28: 0 | J28: 0 | L28: 0
A29: 1855 | B29: Services (Overhead & Underground) | E29: 0 | G29: 0 | J29: 0 | L29: 0
A30: 1860 | B30: Meters | E30: 0 | G30: 0 | J30: 0 | L30: 0
A31: 1860 | B31: Meters (Smart Meters) | E31: 0 | G31: 0 | J31: 0 | L31: 0
A32: 1905 | B32: Land | E32: 0 | G32: 0 | J32: 0 | L32: 0
A33: 1908 | B33: Buildings & Fixtures | E33: 0 | G33: 0 | J33: 0 | L33: 0
A34: 1910 | B34: Leasehold Improvements | E34: 0 | G34: 0 | J34: 0 | L34: 0
A35: 1915 | B35: Office Furniture & Equipment (10 years) | E35: 0 | G35: 0 | J35: 0 | L35: 0
A36: 1915 | B36: Office Furniture & Equipment (5 years) | E36: 0 | G36: 0 | J36: 0 | L36: 0
A37: 1920 | B37: Computer Equipment - Hardware | E37: 0 | G37: 0 | J37: 0 | L37: 0
A38: 1920 | B38: Computer Equip.-Hardware(Post Mar. 22/04) | E38: 0 | G38: 0 | J38: 0 | L38: 0
A39: 1920 | B39: Computer Equip.-Hardware(Post Mar. 19/07) | E39: 0 | G39: 0 | J39: 0 | L39: 0
A40: 1930 | B40: Transportation Equipment | E40: 0 | G40: 0 | J40: 0 | L40: 0
A41: 1935 | B41: Stores Equipment | E41: 0 | G41: 0 | J41: 0 | L41: 0
A42: 1940 | B42: Tools, Shop & Garage Equipment | E42: 0 | G42: 0 | J42: 0 | L42: 0
A43: 1945 | B43: Measurement & Testing Equipment | E43: 0 | G43: 0 | J43: 0 | L43: 0
A44: 1950 | B44: Power Operated Equipment | E44: 0 | G44: 0 | J44: 0 | L44: 0
A45: 1955 | B45: Communications Equipment | E45: 0 | G45: 0 | J45: 0 | L45: 0
A46: 1955 | B46: Communication Equipment (Smart Meters) | E46: 0 | G46: 0 | J46: 0 | L46: 0
A47: 1960 | B47: Miscellaneous Equipment | E47: 0 | G47: 0 | J47: 0 | L47: 0
A48: 1970 | B48: Load Management Controls Customer Premises | E48: 0 | G48: 0 | J48: 0 | L48: 0
A49: 1975 | B49: Load Management Controls Utility Premises | E49: 0 | G49: 0 | J49: 0 | L49: 0
A50: 1980 | B50: System Supervisor Equipment | E50: 0 | G50: 0 | J50: 0 | L50: 0
A51: 1985 | B51: Miscellaneous Fixed Assets | E51: 0 | G51: 0 | J51: 0 | L51: 0
A52: 1990 | B52: Other Tangible Property | E52: 0 | G52: 0 | J52: 0 | L52: 0
A53: 1995 | B53: Contributions & Grants | E53: 0 | G53: 0 | J53: 0 | L53: 0
A54: etc. | E54: 0 | G54: 0 | J54: 0 | L54: 0
E55: 0 | G55: 0 | J55: 0 | L55: 0
B56: Total | C56: =SUM(C16:C55) -> 0 | D56: =SUM(D16:D55) -> 0 | E56: =SUM(E16:E55) -> 0 | F56: =SUM(F16:F55) -> 0 | G56: =SUM(G16:G55) -> 0 | J56: =SUM(J16:J55) -> 0 | K56: =SUM(K16:K55) -> 0 | L56: =SUM(L16:L55) -> 0
A58: Notes:
A59: 1 | B59: Board policy of the "half-year" rule - the applicant must ensure that additions in the year attract a half-year depreciation expense in the first year. Deviations from this standard practice must be supported in the application.
A60: 2 | B60: The applicant must provide an explanation of material variances in evidence.
A61: General: | B61: Applicants must provide a breakdown of depreciation and amortization expense in the above format for all relevant accounts. Asset Retirement Obligations (AROs), depreciation and accretion expense should be disclosed separately consistent with the Notes of historical Audited Financial Statements.

Sheet App.2-CK_CGAAP_DepExp_2013
K1: File Number: | L1: =EBNUMBER -> EB-2013-0115
K2: Exhibit:
K3: Tab:
K4: Schedule:
K5: Page:
K7: Date:
A9: Appendix 2-CK
A10: Depreciation and Amortization Expense
A11: Assumes the applicant adopted IFRS for financial reporting purposes January 1, 2014
C12: Year | D12: 2013 | E12: CGAAP
A14: Account | B14: Description | C14: Opening Regulatory Gross PP&E as at Jan 1, 2013 | D14: Less Fully Depreciated | E14: Net for Depreciation | F14: Additions | G14: Total for Depreciation | H14: Years | I14: Depreciation Rate | J14: 2013 Depreciation Expense | K14: 2013 Depreciation Expense per Appendix 2-B Fixed Assets, Column K (l) | L14: Variance 2
C15: (a) | D15: (b) | E15: (c) | F15: (d) | G15: (e) = (c) + ½ x (d) 1 | H15: (f) | I15: (g) = 1 / (f) | J15: (h) = (e) / (f) | L15: (m) = (h) - (l)
A16: 1611 | B16: Computer Software (Formally known as Account 1925) | E16: =C16-D16 -> 0 | G16: =E16+0.5*F16 -> 0 | I16: =IF(H16=0,0,1/H16) -> 0 | J16: =IF(H16=0,0,G16/H16) -> 0 | L16: =IF(ISERROR(+J16-K16), 0, +J16-K16) -> 0
A17: 1612 | B17: Land Rights (Formally known as Account 1906) | E17: =C17-D17 -> 0 | G17: =E17+0.5*F17 -> 0 | I17: 0 | J17: 0 | L17: 0
A18: 1805 | B18: Land | E18: 0 | G18: 0 | I18: 0 | J18: 0 | L18: 0
A19: 1808 | B19: Buildings | E19: 0 | G19: 0 | I19: 0 | J19: 0 | L19: 0
A20: 1810 | B20: Leasehold Improvements | E20: 0 | G20: 0 | I20: 0 | J20: 0 | L20: 0
A21: 1815 | B21: Transformer Station Equipment >50 kV | E21: 0 | G21: 0 | I21: 0 | J21: 0 | L21: 0
A22: 1820 | B22: Distribution Station Equipment <50 kV | E22: 0 | G22: 0 | I22: 0 | J22: 0 | L22: 0
A23: 1825 | B23: Storage Battery Equipment | E23: 0 | G23: 0 | I23: 0 | J23: 0 | L23: 0
A24: 1830 | B24: Poles, Towers & Fixtures | E24: 0 | G24: 0 | I24: 0 | J24: 0 | L24: 0
A25: 1835 | B25: Overhead Conductors & Devices | E25: 0 | G25: 0 | I25: 0 | J25: 0 | L25: 0
A26: 1840 | B26: Underground Conduit | E26: 0 | G26: 0 | I26: 0 | J26: 0 | L26: 0
A27: 1845 | B27: Underground Conductors & Devices | E27: 0 | G27: 0 | I27: 0 | J27: 0 | L27: 0
A28: 1850 | B28: Line Transformers | E28: 0 | G28: 0 | I28: 0 | J28: 0 | L28: 0
A29: 1855 | B29: Services (Overhead & Underground) | E29: 0 | G29: 0 | I29: 0 | J29: 0 | L29: 0
A30: 1860 | B30: Meters | E30: 0 | G30: 0 | I30: 0 | J30: 0 | L30: 0
A31: 1860 | B31: Meters (Smart Meters) | E31: 0 | G31: 0 | I31: 0 | J31: 0 | L31: 0
A32: 1905 | B32: Land | E32: 0 | G32: 0 | I32: 0 | J32: 0 | L32: 0
A33: 1908 | B33: Buildings & Fixtures | E33: 0 | G33: 0 | I33: 0 | J33: 0 | L33: 0
A34: 1910 | B34: Leasehold Improvements | E34: 0 | G34: 0 | I34: 0 | J34: 0 | L34: 0
A35: 1915 | B35: Office Furniture & Equipment (10 years) | E35: 0 | G35: 0 | I35: 0 | J35: 0 | L35: 0
A36: 1915 | B36: Office Furniture & Equipment (5 years) | E36: 0 | G36: 0 | I36: 0 | J36: 0 | L36: 0
A37: 1920 | B37: Computer Equipment - Hardware | E37: 0 | G37: 0 | I37: 0 | J37: 0 | L37: 0
A38: 1920 | B38: Computer Equip.-Hardware(Post Mar. 22/04) | E38: 0 | G38: 0 | I38: 0 | J38: 0 | L38: 0
A39: 1920 | B39: Computer Equip.-Hardware(Post Mar. 19/07) | E39: 0 | G39: 0 | I39: 0 | J39: 0 | L39: 0
A40: 1930 | B40: Transportation Equipment | E40: 0 | G40: 0 | I40: 0 | J40: 0 | L40: 0
A41: 1935 | B41: Stores Equipment | E41: 0 | G41: 0 | I41: 0 | J41: 0 | L41: 0
A42: 1940 | B42: Tools, Shop & Garage Equipment | E42: 0 | G42: 0 | I42: 0 | J42: 0 | L42: 0
A43: 1945 | B43: Measurement & Testing Equipment | E43: 0 | G43: 0 | I43: 0 | J43: 0 | L43: 0
A44: 1950 | B44: Power Operated Equipment | E44: 0 | G44: 0 | I44: 0 | J44: 0 | L44: 0
A45: 1955 | B45: Communications Equipment | E45: 0 | G45: 0 | I45: 0 | J45: 0 | L45: 0
A46: 1955 | B46: Communication Equipment (Smart Meters) | E46: 0 | G46: 0 | I46: 0 | J46: 0 | L46: 0
A47: 1960 | B47: Miscellaneous Equipment | E47: 0 | G47: 0 | I47: 0 | J47: 0 | L47: 0
A48: 1970 | B48: Load Management Controls Customer Premises | E48: 0 | G48: 0 | I48: 0 | J48: 0 | L48: 0
A49: 1975 | B49: Load Management Controls Utility Premises | E49: 0 | G49: 0 | I49: 0 | J49: 0 | L49: 0
A50: 1980 | B50: System Supervisor Equipment | E50: 0 | G50: 0 | I50: 0 | J50: 0 | L50: 0
A51: 1985 | B51: Miscellaneous Fixed Assets | E51: 0 | G51: 0 | I51: 0 | J51: 0 | L51: 0
A52: 1990 | B52: Other Tangible Property | E52: 0 | G52: 0 | I52: 0 | J52: 0 | L52: 0
A53: 1995 | B53: Contributions & Grants | E53: 0 | G53: 0 | I53: 0 | J53: 0 | L53: 0
A54: etc. | E54: 0 | G54: 0 | I54: 0 | J54: 0 | L54: 0
E55: 0 | G55: 0 | I55: 0 | J55: 0 | L55: 0
B56: Total | C56: =SUM(C16:C55) -> 0 | D56: =SUM(D16:D55) -> 0 | E56: =SUM(E16:E55) -> 0 | F56: =SUM(F16:F55) -> 0 | G56: =SUM(G16:G55) -> 0 | J56: =SUM(J16:J55) -> 0 | K56: =SUM(K16:K55) -> 0 | L56: =SUM(L16:L55) -> 0
A58: Notes:
A59: 1 | B59: Board policy of the "half-year" rule - the applicant must ensure that additions in the year attract a half-year depreciation expense in the first year. Deviations from this standard practice must be supported in the application.
A60: 2 | B60: The applicant must provide an explanation of material variances in evidence.
A62: General: | B62: Applicants must provide a breakdown of depreciation and amortization expense in the above format for all relevant accounts. Asset Retirement Obligations (AROs), depreciation and accretion expense should be disclosed separately consistent with the Notes of historical Audited Financial Statements.

Sheet App.2-CL_MIFRS_DepExp_2013
N1: File Number: | O1: =EBNUMBER -> EB-2013-0115
N2: Exhibit:
N3: Tab:
N4: Schedule:
N5: Page:
N7: Date:
A9: Appendix 2-CL
A10: Depreciation and Amortization Expense
A11: Assumes the applicant adopted IFRS for financial reporting purposes January 1, 2014
C12: Year | D12: 2013 | E12: MIFRS
A14: Account | B14: Description | C14: Opening NBV as at Jan 1, 2013 5 | D14: Additions | E14: Average Remaining Life of Opening NBV 4 | F14: Years (new additions only) 3 | G14: Depreciation Rate on New Additions | H14: Depreciation Expense on Opening NBV | I14: Depreciation Expense on Additions 1 | J14: 2013 Depreciation Expense | K14: 2013 Depreciation Expense per Appendix 2-B Fixed Assets, Column K (l) | L14: Variance 2 | M14: Depreciation Expense on 2013 Full Year Additions | N14: Less Depreciation Expense on Assets Fully Depreciated during the year (o) | O14: 2013 Full Year Depreciation 6
C15: (a) | D15: (d) | E15: (i) | F15: (f) | G15: (g) = 1 / (f) | H15: (j) = (a) / (i) | I15: (h)=((d)*0.5)/(f) | J15: (k) = (j) + (h) | L15: (m) = (k) - (l) | M15: (n)=((d))/(f) | O15: (p) = (j) + (n) - (o)
A16: 1611 | B16: Computer Software (Formally known as Account 1925) | G16: =IF(F16=0,0,1/F16) -> 0 | H16: =IF(E16=0,0,+C16/E16) -> 0 | I16: =IF(F16=0,0,+(D16*0.5)/F16) -> 0 | J16: =IF(ISERROR(+H16+I16), 0, +H16+I16) -> 0 | L16: =IF(ISERROR(+J16-K16), 0, +J16-K16) -> 0 | M16: =IF(F16=0,0,+(D16)/F16) -> 0 | O16: =IF(ISERROR(+M16+H16-N16), 0, +M16+H16-N16) -> 0
A17: 1612 | B17: Land Rights (Formally known as Account 1906) | G17: 0 | H17: 0 | I17: 0 | J17: 0 | L17: 0 | M17: 0 | O17: =IF(ISERROR(+M17+H17-N17), 0, +M17+H17-N17) -> 0
A18: 1805 | B18: Land | G18: 0 | H18: 0 | I18: 0 | J18: 0 | L18: 0 | M18: 0 | O18: 0
A19: 1808 | B19: Buildings | G19: 0 | H19: 0 | I19: 0 | J19: 0 | L19: 0 | M19: 0 | O19: 0
A20: 1810 | B20: Leasehold Improvements | G20: 0 | H20: 0 | I20: 0 | J20: 0 | L20: 0 | M20: 0 | O20: 0
A21: 1815 | B21: Transformer Station Equipment >50 kV | G21: 0 | H21: 0 | I21: 0 | J21: 0 | L21: 0 | M21: 0 | O21: 0
A22: 1820 | B22: Distribution Station Equipment <50 kV | G22: 0 | H22: 0 | I22: 0 | J22: 0 | L22: 0 | M22: 0 | O22: 0
A23: 1825 | B23: Storage Battery Equipment | G23: 0 | H23: 0 | I23: 0 | J23: 0 | L23: 0 | M23: 0 | O23: 0
A24: 1830 | B24: Poles, Towers & Fixtures | G24: 0 | H24: 0 | I24: 0 | J24: 0 | L24: 0 | M24: 0 | O24: 0
A25: 1835 | B25: Overhead Conductors & Devices | G25: 0 | H25: 0 | I25: 0 | J25: 0 | L25: 0 | M25: 0 | O25: 0
A26: 1840 | B26: Underground Conduit | G26: 0 | H26: 0 | I26: 0 | J26: 0 | L26: 0 | M26: 0 | O26: 0
A27: 1845 | B27: Underground Conductors & Devices | G27: 0 | H27: 0 | I27: 0 | J27: 0 | L27: 0 | M27: 0 | O27: 0
A28: 1850 | B28: Line Transformers | G28: 0 | H28: 0 | I28: 0 | J28: 0 | L28: 0 | M28: 0 | O28: 0
A29: 1855 | B29: Services (Overhead & Underground) | G29: 0 | H29: 0 | I29: 0 | J29: 0 | L29: 0 | M29: 0 | O29: 0
A30: 1860 | B30: Meters | G30: 0 | H30: 0 | I30: 0 | J30: 0 | L30: 0 | M30: 0 | O30: 0
A31: 1860 | B31: Meters (Smart Meters) | G31: 0 | H31: 0 | I31: 0 | J31: 0 | L31: 0 | M31: 0 | O31: 0
A32: 1905 | B32: Land | G32: 0 | H32: 0 | I32: 0 | J32: 0 | L32: 0 | M32: 0 | O32: 0
A33: 1908 | B33: Buildings & Fixtures | G33: 0 | H33: 0 | I33: 0 | J33: 0 | L33: 0 | M33: 0 | O33: 0
A34: 1910 | B34: Leasehold Improvements | G34: 0 | H34: 0 | I34: 0 | J34: 0 | L34: 0 | M34: 0 | O34: 0
A35: 1915 | B35: Office Furniture & Equipment (10 years) | G35: 0 | H35: 0 | I35: 0 | J35: 0 | L35: 0 | M35: 0 | O35: 0
A36: 1915 | B36: Office Furniture & Equipment (5 years) | G36: 0 | H36: 0 | I36: 0 | J36: 0 | L36: 0 | M36: 0 | O36: 0
A37: 1920 | B37: Computer Equipment - Hardware | G37: 0 | H37: 0 | I37: 0 | J37: 0 | L37: 0 | M37: 0 | O37: 0
A38: 1920 | B38: Computer Equip.-Hardware(Post Mar. 22/04) | G38: 0 | H38: 0 | I38: 0 | J38: 0 | L38: 0 | M38: 0 | O38: 0
A39: 1920 | B39: Computer Equip.-Hardware(Post Mar. 19/07) | G39: 0 | H39: 0 | I39: 0 | J39: 0 | L39: 0 | M39: 0 | O39: 0
A40: 1930 | B40: Transportation Equipment | G40: 0 | H40: 0 | I40: 0 | J40: 0 | L40: 0 | M40: 0 | O40: 0
A41: 1935 | B41: Stores Equipment | G41: 0 | H41: 0 | I41: 0 | J41: 0 | L41: 0 | M41: 0 | O41: 0
A42: 1940 | B42: Tools, Shop & Garage Equipment | G42: 0 | H42: 0 | I42: 0 | J42: 0 | L42: 0 | M42: 0 | O42: 0
A43: 1945 | B43: Measurement & Testing Equipment | G43: 0 | H43: 0 | I43: 0 | J43: 0 | L43: 0 | M43: 0 | O43: 0
A44: 1950 | B44: Power Operated Equipment | G44: 0 | H44: 0 | I44: 0 | J44: 0 | L44: 0 | M44: 0 | O44: 0
A45: 1955 | B45: Communications Equipment | G45: 0 | H45: 0 | I45: 0 | J45: 0 | L45: 0 | M45: 0 | O45: 0
A46: 1955 | B46: Communication Equipment (Smart Meters) | G46: 0 | H46: 0 | I46: 0 | J46: 0 | L46: 0 | M46: 0 | O46: 0
A47: 1960 | B47: Miscellaneous Equipment | G47: 0 | H47: 0 | I47: 0 | J47: 0 | L47: 0 | M47: 0 | O47: 0
A48: 1970 | B48: Load Management Controls Customer Premises | G48: 0 | H48: 0 | I48: 0 | J48: 0 | L48: 0 | M48: 0 | O48: 0
A49: 1975 | B49: Load Management Controls Utility Premises | G49: 0 | H49: 0 | I49: 0 | J49: 0 | L49: 0 | M49: 0 | O49: 0
A50: 1980 | B50: System Supervisor Equipment | G50: 0 | H50: 0 | I50: 0 | J50: 0 | L50: 0 | M50: 0 | O50: 0
A51: 1985 | B51: Miscellaneous Fixed Assets | G51: 0 | H51: 0 | I51: 0 | J51: 0 | L51: 0 | M51: 0 | O51: 0
A52: 1990 | B52: Other Tangible Property | G52: 0 | H52: 0 | I52: 0 | J52: 0 | L52: 0 | M52: 0 | O52: 0
A53: 1995 | B53: Contributions & Grants | G53: 0 | H53: 0 | I53: 0 | J53: 0 | L53: 0 | M53: 0 | O53: 0
A54: etc. | G54: 0 | H54: 0 | I54: 0 | J54: 0 | L54: 0 | M54: 0 | O54: 0
G55: 0 | H55: 0 | I55: 0 | J55: 0 | L55: 0 | M55: 0 | O55: 0
B56: Total | C56: =SUM(C16:C55) -> 0 | D56: =SUM(D16:D55) -> 0 | H56: =SUM(H16:H55) -> 0 | I56: 0 | J56: 0 | K56: 0 | L56: 0 | M56: 0 | N56: =SUM(N16:N55) -> 0 | O56: 0
B57: Depreciation exp. adj. from gain or loss on the retirement of assets (pool of like assets) | J57: 0
B58: Total | J58: =+J56+J57 -> 0
A59: Notes:
A61: 1 | B61: Board policy of the "half-year" rule - the applicant must ensure that additions in the year attract a half-year depreciation expense in the first year. Deviations from this standard practice must be supported in the application.
A62: 2 | B62: The applicant must provide an explanation of material variances in evidence.
A63: 3 | B63: The applicant should ensure that the years for new additions of assets are the asset useful lives determined by management in accordance with IFRS.
A64: 4 | B64: A recalculation should be performed to determine the average remaining life of opening balance of assets (i.e. excluding 2013 additions) under IFRS. For example, Asset A had a useful life of 20 years under CGAAP. On January 1, 2013, the date of transition, Asset A was 3 years depreciated. As a result, Asset A would have a remaining service life of 17 years (20 years less 3 years) under CGAAP as of January 1, 2013. Due to the transition to IFRS, management re-assessed the asset useful lives under IFRS principles and concluded that the revised useful life of Asset A is now 30 years. Therefore, the average remaining useful life of opening balance of Asset A is determined to be 27 years (30 years less 3 years) under IFRS as of January 1, 2013.
A65: 5 | B65: NBV must exclude assets still on the books but which have been fully amortized or depreciated.
A66: 6 | B66: This column refers to the calculated full year depreciation but excludes the depreciation expense on assets fully depreciated during the year. This column is used for the purpose of calculating depreciation expense in the following year on the next worksheet.
A68: General: | B68: Applicants must provide a breakdown of depreciation and amortization expense in the above format for all relevant accounts. Asset Retirement Obligations (AROs), depreciation and accretion expense should be disclosed separately consistent with the Notes of historical Audited Financial Statements.

Sheet App.2-CM_MIFRS_DepExp_2014
I1: File Number: | J1: =EBNUMBER -> EB-2013-0115
I2: Exhibit:
I3: Tab:
I4: Schedule:
I5: Page:
I7: Date:
A9: Appendix 2-CM
A10: Depreciation and Amortization Expense
A11: Assumes the applicant adopted IFRS for financial reporting purposes January 1, 2014
C12: Year | D12: 2014 | E12: MIFRS
A14: Account | B14: Description | C14: Additions | D14: Years (new additions only) | E14: Depreciation Rate on New Additions | F14: 2014 Depreciation Expense 1 | G14: 2014 Depreciation Expense per Appendix 2-B Fixed Assets, Column K (l) | H14: Variance 2
C15: (d) | D15: (f) | E15: (g) = 1 / (f) | F15: (h)=2013 Full Year Depreciation + ((d)*0.5)/(f) | H15: (m) = (h) - (l)
A16: 1611 | B16: Computer Software (Formally known as Account 1925) | E16: =IF(D16=0,0,1/D16) -> 0 | F16: =IF(D16=0,'App.2-CL_MIFRS_DepExp_2013'!O16,+'App.2-CL_MIFRS_DepExp_2013'!O16+((C16*0.5)/D16)) -> 0 | H16: =IF(ISERROR(+F16-G16), 0, +F16-G16) -> 0
A17: 1612 | B17: Land Rights (Formally known as Account 1906) | E17: 0 | F17: =IF(D17=0,'App.2-CL_MIFRS_DepExp_2013'!O17,+'App.2-CL_MIFRS_DepExp_2013'!O17+((C17*0.5)/D17)) -> 0 | H17: 0
A18: 1805 | B18: Land | E18: 0 | F18: =IF(D18=0,'App.2-CL_MIFRS_DepExp_2013'!O18,+'App.2-CL_MIFRS_DepExp_2013'!O18+((C18*0.5)/D18)) -> 0 | H18: 0
A19: 1808 | B19: Buildings | E19: 0 | F19: =IF(D19=0,'App.2-CL_MIFRS_DepExp_2013'!O19,+'App.2-CL_MIFRS_DepExp_2013'!O19+((C19*0.5)/D19)) -> 0 | H19: 0
A20: 1810 | B20: Leasehold Improvements | E20: 0 | F20: =IF(D20=0,'App.2-CL_MIFRS_DepExp_2013'!O20,+'App.2-CL_MIFRS_DepExp_2013'!O20+((C20*0.5)/D20)) -> 0 | H20: 0
A21: 1815 | B21: Transformer Station Equipment >50 kV | E21: 0 | F21: =IF(D21=0,'App.2-CL_MIFRS_DepExp_2013'!O21,+'App.2-CL_MIFRS_DepExp_2013'!O21+((C21*0.5)/D21)) -> 0 | H21: 0
A22: 1820 | B22: Distribution Station Equipment <50 kV | E22: 0 | F22: =IF(D22=0,'App.2-CL_MIFRS_DepExp_2013'!O22,+'App.2-CL_MIFRS_DepExp_2013'!O22+((C22*0.5)/D22)) -> 0 | H22: 0
A23: 1825 | B23: Storage Battery Equipment | E23: 0 | F23: =IF(D23=0,'App.2-CL_MIFRS_DepExp_2013'!O23,+'App.2-CL_MIFRS_DepExp_2013'!O23+((C23*0.5)/D23)) -> 0 | H23: 0
A24: 1830 | B24: Poles, Towers & Fixtures | E24: 0 | F24: =IF(D24=0,'App.2-CL_MIFRS_DepExp_2013'!O24,+'App.2-CL_MIFRS_DepExp_2013'!O24+((C24*0.5)/D24)) -> 0 | H24: 0
A25: 1835 | B25: Overhead Conductors & Devices | E25: 0 | F25: =IF(D25=0,'App.2-CL_MIFRS_DepExp_2013'!O25,+'App.2-CL_MIFRS_DepExp_2013'!O25+((C25*0.5)/D25)) -> 0 | H25: 0
A26: 1840 | B26: Underground Conduit | E26: 0 | F26: =IF(D26=0,'App.2-CL_MIFRS_DepExp_2013'!O26,+'App.2-CL_MIFRS_DepExp_2013'!O26+((C26*0.5)/D26)) -> 0 | H26: 0
A27: 1845 | B27: Underground Conductors & Devices | E27: 0 | F27: =IF(D27=0,'App.2-CL_MIFRS_DepExp_2013'!O27,+'App.2-CL_MIFRS_DepExp_2013'!O27+((C27*0.5)/D27)) -> 0 | H27: 0
A28: 1850 | B28: Line Transformers | E28: 0 | F28: =IF(D28=0,'App.2-CL_MIFRS_DepExp_2013'!O28,+'App.2-CL_MIFRS_DepExp_2013'!O28+((C28*0.5)/D28)) -> 0 | H28: 0
A29: 1855 | B29: Services (Overhead & Underground) | E29: 0 | F29: =IF(D29=0,'App.2-CL_MIFRS_DepExp_2013'!O29,+'App.2-CL_MIFRS_DepExp_2013'!O29+((C29*0.5)/D29)) -> 0 | H29: 0
A30: 1860 | B30: Meters | E30: 0 | F30: =IF(D30=0,'App.2-CL_MIFRS_DepExp_2013'!O30,+'App.2-CL_MIFRS_DepExp_2013'!O30+((C30*0.5)/D30)) -> 0 | H30: 0
A31: 1860 | B31: Meters (Smart Meters) | E31: 0 | F31: =IF(D31=0,'App.2-CL_MIFRS_DepExp_2013'!O31,+'App.2-CL_MIFRS_DepExp_2013'!O31+((C31*0.5)/D31)) -> 0 | H31: 0
A32: 1905 | B32: Land | E32: 0 | F32: =IF(D32=0,'App.2-CL_MIFRS_DepExp_2013'!O32,+'App.2-CL_MIFRS_DepExp_2013'!O32+((C32*0.5)/D32)) -> 0 | H32: 0
A33: 1908 | B33: Buildings & Fixtures | E33: 0 | F33: =IF(D33=0,'App.2-CL_MIFRS_DepExp_2013'!O33,+'App.2-CL_MIFRS_DepExp_2013'!O33+((C33*0.5)/D33)) -> 0 | H33: 0
A34: 1910 | B34: Leasehold Improvements | E34: 0 | F34: =IF(D34=0,'App.2-CL_MIFRS_DepExp_2013'!O34,+'App.2-CL_MIFRS_DepExp_2013'!O34+((C34*0.5)/D34)) -> 0 | H34: 0
A35: 1915 | B35: Office Furniture & Equipment (10 years) | E35: 0 | F35: =IF(D35=0,'App.2-CL_MIFRS_DepExp_2013'!O35,+'App.2-CL_MIFRS_DepExp_2013'!O35+((C35*0.5)/D35)) -> 0 | H35: 0
A36: 1915 | B36: Office Furniture & Equipment (5 years) | E36: 0 | F36: =IF(D36=0,'App.2-CL_MIFRS_DepExp_2013'!O36,+'App.2-CL_MIFRS_DepExp_2013'!O36+((C36*0.5)/D36)) -> 0 | H36: 0
A37: 1920 | B37: Computer Equipment - Hardware | E37: 0 | F37: =IF(D37=0,'App.2-CL_MIFRS_DepExp_2013'!O37,+'App.2-CL_MIFRS_DepExp_2013'!O37+((C37*0.5)/D37)) -> 0 | H37: 0
A38: 1920 | B38: Computer Equip.-Hardware(Post Mar. 22/04) | E38: 0 | F38: =IF(D38=0,'App.2-CL_MIFRS_DepExp_2013'!O38,+'App.2-CL_MIFRS_DepExp_2013'!O38+((C38*0.5)/D38)) -> 0 | H38: 0
A39: 1920 | B39: Computer Equip.-Hardware(Post Mar. 19/07) | E39: 0 | F39: =IF(D39=0,'App.2-CL_MIFRS_DepExp_2013'!O39,+'App.2-CL_MIFRS_DepExp_2013'!O39+((C39*0.5)/D39)) -> 0 | H39: 0
A40: 1930 | B40: Transportation Equipment | E40: 0 | F40: =IF(D40=0,'App.2-CL_MIFRS_DepExp_2013'!O40,+'App.2-CL_MIFRS_DepExp_2013'!O40+((C40*0.5)/D40)) -> 0 | H40: 0
A41: 1935 | B41: Stores Equipment | E41: 0 | F41: =IF(D41=0,'App.2-CL_MIFRS_DepExp_2013'!O41,+'App.2-CL_MIFRS_DepExp_2013'!O41+((C41*0.5)/D41)) -> 0 | H41: 0
A42: 1940 | B42: Tools, Shop & Garage Equipment | E42: 0 | F42: =IF(D42=0,'App.2-CL_MIFRS_DepExp_2013'!O42,+'App.2-CL_MIFRS_DepExp_2013'!O42+((C42*0.5)/D42)) -> 0 | H42: 0
A43: 1945 | B43: Measurement & Testing Equipment | E43: 0 | F43: =IF(D43=0,'App.2-CL_MIFRS_DepExp_2013'!O43,+'App.2-CL_MIFRS_DepExp_2013'!O43+((C43*0.5)/D43)) -> 0 | H43: 0
A44: 1950 | B44: Power Operated Equipment | E44: 0 | F44: =IF(D44=0,'App.2-CL_MIFRS_DepExp_2013'!O44,+'App.2-CL_MIFRS_DepExp_2013'!O44+((C44*0.5)/D44)) -> 0 | H44: 0
A45: 1955 | B45: Communications Equipment | E45: 0 | F45: =IF(D45=0,'App.2-CL_MIFRS_DepExp_2013'!O45,+'App.2-CL_MIFRS_DepExp_2013'!O45+((C45*0.5)/D45)) -> 0 | H45: 0
A46: 1955 | B46: Communication Equipment (Smart Meters) | E46: 0 | F46: =IF(D46=0,'App.2-CL_MIFRS_DepExp_2013'!O46,+'App.2-CL_MIFRS_DepExp_2013'!O46+((C46*0.5)/D46)) -> 0 | H46: 0
A47: 1960 | B47: Miscellaneous Equipment | E47: 0 | F47: =IF(D47=0,'App.2-CL_MIFRS_DepExp_2013'!O47,+'App.2-CL_MIFRS_DepExp_2013'!O47+((C47*0.5)/D47)) -> 0 | H47: 0
A48: 1970 | B48: Load Management Controls Customer Premises | E48: 0 | F48: =IF(D48=0,'App.2-CL_MIFRS_DepExp_2013'!O48,+'App.2-CL_MIFRS_DepExp_2013'!O48+((C48*0.5)/D48)) -> 0 | H48: 0
A49: 1975 | B49: Load Management Controls Utility Premises | E49: 0 | F49: =IF(D49=0,'App.2-CL_MIFRS_DepExp_2013'!O49,+'App.2-CL_MIFRS_DepExp_2013'!O49+((C49*0.5)/D49)) -> 0 | H49: 0
A50: 1980 | B50: System Supervisor Equipment | E50: 0 | F50: =IF(D50=0,'App.2-CL_MIFRS_DepExp_2013'!O50,+'App.2-CL_MIFRS_DepExp_2013'!O50+((C50*0.5)/D50)) -> 0 | H50: 0
A51: 1985 | B51: Miscellaneous Fixed Assets | E51: 0 | F51: =IF(D51=0,'App.2-CL_MIFRS_DepExp_2013'!O51,+'App.2-CL_MIFRS_DepExp_2013'!O51+((C51*0.5)/D51)) -> 0 | H51: 0
A52: 1990 | B52: Other Tangible Property | E52: 0 | F52: =IF(D52=0,'App.2-CL_MIFRS_DepExp_2013'!O52,+'App.2-CL_MIFRS_DepExp_2013'!O52+((C52*0.5)/D52)) -> 0 | H52: 0
A53: 1995 | B53: Contributions & Grants | E53: 0 | F53: =IF(D53=0,'App.2-CL_MIFRS_DepExp_2013'!O53,+'App.2-CL_MIFRS_DepExp_2013'!O53+((C53*0.5)/D53)) -> 0 | H53: 0
A54: etc. | E54: 0 | F54: =IF(D54=0,'App.2-CL_MIFRS_DepExp_2013'!O54,+'App.2-CL_MIFRS_DepExp_2013'!O54+((C54*0.5)/D54)) -> 0 | H54: 0
E55: 0 | F55: =IF(D55=0,'App.2-CL_MIFRS_DepExp_2013'!O55,+'App.2-CL_MIFRS_DepExp_2013'!O55+((C55*0.5)/D55)) -> 0 | H55: 0
B56: Total | C56: =SUM(C16:C55) -> 0 | F56: =SUM(F16:F55) -> 0 | G56: =SUM(G16:G55) -> 0 | H56: =SUM(H16:H55) -> 0
B57: Depreciation exp. adj. from gain or loss on the retirement of assets (pool of like assets) | F57: 0
B58: Total Depreciation expense to be included in the test year revenue requirement | F58: =SUM(F56:F57) -> 0
A60: Notes:
A61: 1 | B61: Board policy of the "half-year" rule - the applicant must ensure that additions in the year attract a half-year depreciation expense in the first year. Deviations from this standard practice must be supported in the application.
A62: 2 | B62: The applicant must provide an explanation of material variances in evidence.
A65: General: | B65: Applicants must provide a breakdown of depreciation and amortization expense in the above format for all relevant accounts. Asset Retirement Obligations (AROs), depreciation and accretion expense should be disclosed separately consistent with the Notes of historical Audited Financial Statements.

Sheet Instruction for App. 2-C CGAAP
A1: General Instructions to CGAAP - ASPE Appendices
A2: Types of Schedules to File
A5: Applicants filing a CGAAP or ASPE application should provide the following information:
A7: Depreciation and Amortization - Appendix 2-C
A8: If an applicant chooses to remain on CGAAP or adopt ASPE and make the changes to capitalization and depreciation expense policies in 2012, the applicant must complete Appendix 2-CN to Appendix 2-CQ (inclusive).
A9: If an applicant chooses to remain on CGAAP or adopt ASPE and make the changes to capitalization and depreciation expense policies in 2013, the applicant must complete Appendix 2-CR to Appendix 2-CU (inclusive).
A11: Account 1576, Accounting Changes Under CGAAP - Appendix 2-ED, Appendix 2-EE
A12: Please refer to section 2.12.5 of the Filing Requirements.

Sheet App.2-CN_OldCGAAP_DepExp_2012
K1: File Number: | L1: =EBNUMBER -> EB-2013-0115
K2: Exhibit:
K3: Tab:
K4: Schedule:
K5: Page:
K7: Date:
A9: Appendix 2-CN
A10: Depreciation and Amortization Expense
A11: Assumes the applicant made capitalization and depreciation expense accounting policy changes under CGAAP effective January 1, 2012
C12: Year | D12: 2012 | E12: Former CGAAP - CGAAP without the changes to the policies
A14: Account | B14: Description | C14: Opening Regulatory Gross PP&E as at Jan 1, 2012 | D14: Less Fully Depreciated | E14: Net for Depreciation | F14: Additions | G14: Total for Depreciation | H14: Years | I14: Depreciation Rate | J14: Depreciation Expense | K14: 2012 Depreciation Expense per Appendix 2-B Fixed Assets, Column K (l) | L14: Variance 2
C15: (a) | D15: (b) | E15: (c) | F15: (d) | G15: (e) = (c) + ½ x (d) 1 | H15: (f) | I15: (g) = 1 / (f) | J15: (h) = (e) / (f) | L15: (m) = (h) - (l)
A16: 1611 | B16: Computer Software (Formally known as Account 1925) | E16: =C16-D16 -> 0 | G16: =E16+0.5*F16 -> 0 | I16: =IF(H16=0,0,1/H16) -> 0 | J16: =IF(H16=0,0,G16/H16) -> 0 | L16: =IF(ISERROR(+J16-K16), 0, +J16-K16) -> 0
A17: 1612 | B17: Land Rights (Formally known as Account 1906) | E17: =C17-D17 -> 0 | G17: =E17+0.5*F17 -> 0 | I17: 0 | J17: 0 | L17: 0
A18: 1805 | B18: Land | E18: 0 | G18: 0 | I18: 0 | J18: 0 | L18: 0
A19: 1808 | B19: Buildings | E19: 0 | G19: 0 | I19: 0 | J19: 0 | L19: 0
A20: 1810 | B20: Leasehold Improvements | E20: 0 | G20: 0 | I20: 0 | J20: 0 | L20: 0
A21: 1815 | B21: Transformer Station Equipment >50 kV | E21: 0 | G21: 0 | I21: 0 | J21: 0 | L21: 0
A22: 1820 | B22: Distribution Station Equipment <50 kV | E22: 0 | G22: 0 | I22: 0 | J22: 0 | L22: 0
A23: 1825 | B23: Storage Battery Equipment | E23: 0 | G23: 0 | I23: 0 | J23: 0 | L23: 0
A24: 1830 | B24: Poles, Towers & Fixtures | E24: 0 | G24: 0 | I24: 0 | J24: 0 | L24: 0
A25: 1835 | B25: Overhead Conductors & Devices | E25: 0 | G25: 0 | I25: 0 | J25: 0 | L25: 0
A26: 1840 | B26: Underground Conduit | E26: 0 | G26: 0 | I26: 0 | J26: 0 | L26: 0
A27: 1845 | B27: Underground Conductors & Devices | E27: 0 | G27: 0 | I27: 0 | J27: 0 | L27: 0
A28: 1850 | B28: Line Transformers | E28: 0 | G28: 0 | I28: 0 | J28: 0 | L28: 0
A29: 1855 | B29: Services (Overhead & Underground) | E29: 0 | G29: 0 | I29: 0 | J29: 0 | L29: 0
A30: 1860 | B30: Meters | E30: 0 | G30: 0 | I30: 0 | J30: 0 | L30: 0
A31: 1860 | B31: Meters (Smart Meters) | E31: 0 | G31: 0 | I31: 0 | J31: 0 | L31: 0
A32: 1905 | B32: Land | E32: 0 | G32: 0 | I32: 0 | J32: 0 | L32: 0
A33: 1908 | B33: Buildings & Fixtures | E33: 0 | G33: 0 | I33: 0 | J33: 0 | L33: 0
A34: 1910 | B34: Leasehold Improvements | E34: 0 | G34: 0 | I34: 0 | J34: 0 | L34: 0
A35: 1915 | B35: Office Furniture & Equipment (10 years) | E35: 0 | G35: 0 | I35: 0 | J35: 0 | L35: 0
A36: 1915 | B36: Office Furniture & Equipment (5 years) | E36: 0 | G36: 0 | I36: 0 | J36: 0 | L36: 0
A37: 1920 | B37: Computer Equipment - Hardware | E37: 0 | G37: 0 | I37: 0 | J37: 0 | L37: 0
A38: 1920 | B38: Computer Equip.-Hardware(Post Mar. 22/04) | E38: 0 | G38: 0 | I38: 0 | J38: 0 | L38: 0
A39: 1920 | B39: Computer Equip.-Hardware(Post Mar. 19/07) | E39: 0 | G39: 0 | I39: 0 | J39: 0 | L39: 0
A40: 1930 | B40: Transportation Equipment | E40: 0 | G40: 0 | I40: 0 | J40: 0 | L40: 0
A41: 1935 | B41: Stores Equipment | E41: 0 | G41: 0 | I41: 0 | J41: 0 | L41: 0
A42: 1940 | B42: Tools, Shop & Garage Equipment | E42: 0 | G42: 0 | I42: 0 | J42: 0 | L42: 0
A43: 1945 | B43: Measurement & Testing Equipment | E43: 0 | G43: 0 | I43: 0 | J43: 0 | L43: 0
A44: 1950 | B44: Power Operated Equipment | E44: 0 | G44: 0 | I44: 0 | J44: 0 | L44: 0
A45: 1955 | B45: Communications Equipment | E45: 0 | G45: 0 | I45: 0 | J45: 0 | L45: 0
A46: 1955 | B46: Communication Equipment (Smart Meters) | E46: 0 | G46: 0 | I46: 0 | J46: 0 | L46: 0
A47: 1960 | B47: Miscellaneous Equipment | E47: 0 | G47: 0 | I47: 0 | J47: 0 | L47: 0
A48: 1970 | B48: Load Management Controls - Customer Premises | E48: 0 | G48: 0 | I48: 0 | J48: 0 | L48: 0
A49: 1975 | B49: Load Management Controls Utility Premises | E49: 0 | G49: 0 | I49: 0 | J49: 0 | L49: 0
A50: 1980 | B50: System Supervisor Equipment | E50: 0 | G50: 0 | I50: 0 | J50: 0 | L50: 0
A51: 1985 | B51: Miscellaneous Fixed Assets | E51: 0 | G51: 0 | I51: 0 | J51: 0 | L51: 0
A52: 1990 | B52: Other Tangible Property | E52: 0 | G52: 0 | I52: 0 | J52: 0 | L52: 0
A53: 1995 | B53: Contributions & Grants | E53: 0 | G53: 0 | I53: 0 | J53: 0 | L53: 0
A54: etc. | E54: 0 | G54: 0 | I54: 0 | J54: 0 | L54: 0
E55: 0 | G55: 0 | I55: 0 | J55: 0 | L55: 0
B56: Total | C56: =SUM(C16:C55) -> 0 | D56: =SUM(D16:D55) -> 0 | E56: =SUM(E16:E55) -> 0 | F56: =SUM(F16:F55) -> 0 | G56: =SUM(G16:G55) -> 0 | J56: =SUM(J16:J55) -> 0 | K56: =SUM(K16:K55) -> 0 | L56: =SUM(L16:L55) -> 0
A58: Notes:
A60: 1 | B60: Board policy of the "half-year" rule - the applicant must ensure that additions in the year attract a half-year depreciation expense in the first year. Deviations from this standard practice must be supported in the application.
A61: 2 | B61: The applicant must provide an explanation of material variances in evidence.
A63: General | B63: Applicants must provide a breakdown of depreciation and amortization expense in the above format for all relevant accounts. Asset Retirement Obligations (AROs), depreciation and accretion expense should be disclosed separately consistent with the Notes of historical Audited Financial Statements.

Sheet App.2-CO_NewCGAAP_DepExp_2012
N1: File Number: | O1: =EBNUMBER -> EB-2013-0115
N2: Exhibit:
N3: Tab:
N4: Schedule:
N5: Page:
N7: Date:
A9: Appendix 2-CO
A10: Depreciation and Amortization Expense
A11: Assumes the applicant made capitalization and depreciation expense accounting policy changes under CGAAP effective January 1, 2012
C13: Year | D13: 2012 | E13: Revised CGAAP or ASPE - CGAAP or ASPE with the changes to the policies
A15: Account | B15: Description | C15: Opening NBV as at Jan 1, 2012 5 | D15: Additions | E15: Average Remaining Life of Opening NBV 4 | F15: Years (new additions only) 3 | G15: Depreciation Rate on New Additions | H15: Depreciation Expense on Opening NBV | I15: Depreciation Expense on Additions 1 | J15: 2012 Depreciation Expense | K15: 2012 Depreciation Expense per Appendix 2-B Fixed Assets, Column K (l) | L15: Variance 2 | M15: Depreciation Expense on 2012 Full Year Additions | N15: Less Depreciation Expense on Assets Fully Depreciated during the year (o) | O15: 2012 Full Year Depreciation 6
C16: (a) | D16: (d) | E16: (i) | F16: (f) | G16: (g) = 1 / (f) | H16: (j) = (a) / (i) | I16: (h)=((d)*0.5)/(f) | J16: (k) = (j) + (h) | L16: (m) = (k) - (l) | M16: (n) = (d)/(f) | O16: (p) = (j) + (n) - (o)
A17: 1611 | B17: Computer Software (Formally known as Account 1925) | G17: =IF(F17=0,0,1/F17) -> 0 | H17: =IF(E17=0,0,+C17/E17) -> 0 | I17: =IF(F17=0,0,+(D17*0.5)/F17) -> 0 | J17: =IF(ISERROR(+H17+I17), 0, +H17+I17) -> 0 | L17: =IF(ISERROR(+J17-K17), 0, +J17-K17) -> 0 | M17: =IF(F17=0,0,+(D17)/F17) -> 0 | O17: =IF(ISERROR(+M17+H17-N17), 0, +M17+H17-N17) -> 0
A18: 1612 | B18: Land Rights (Formally known as Account 1906) | G18: 0 | H18: 0 | I18: 0 | J18: 0 | L18: 0 | M18: 0 | O18: =IF(ISERROR(+M18+H18-N18), 0, +M18+H18-N18) -> 0
A19: 1805 | B19: Land | G19: 0 | H19: 0 | I19: 0 | J19: 0 | L19: 0 | M19: 0 | O19: 0
A20: 1808 | B20: Buildings | G20: 0 | H20: 0 | I20: 0 | J20: 0 | L20: 0 | M20: 0 | O20: 0
A21: 1810 | B21: Leasehold Improvements | G21: 0 | H21: 0 | I21: 0 | J21: 0 | L21: 0 | M21: 0 | O21: 0
A22: 1815 | B22: Transformer Station Equipment >50 kV | G22: 0 | H22: 0 | I22: 0 | J22: 0 | L22: 0 | M22: 0 | O22: 0
A23: 1820 | B23: Distribution Station Equipment <50 kV | G23: 0 | H23: 0 | I23: 0 | J23: 0 | L23: 0 | M23: 0 | O23: 0
A24: 1825 | B24: Storage Battery Equipment | G24: 0 | H24: 0 | I24: 0 | J24: 0 | L24: 0 | M24: 0 | O24: 0
A25: 1830 | B25: Poles, Towers & Fixtures | G25: 0 | H25: 0 | I25: 0 | J25: 0 | L25: 0 | M25: 0 | O25: 0
A26: 1835 | B26: Overhead Conductors & Devices | G26: 0 | H26: 0 | I26: 0 | J26: 0 | L26: 0 | M26: 0 | O26: 0
A27: 1840 | B27: Underground Conduit | G27: 0 | H27: 0 | I27: 0 | J27: 0 | L27: 0 | M27: 0 | O27: 0
A28: 1845 | B28: Underground Conductors & Devices | G28: 0 | H28: 0 | I28: 0 | J28: 0 | L28: 0 | M28: 0 | O28: 0
A29: 1850 | B29: Line Transformers | G29: 0 | H29: 0 | I29: 0 | J29: 0 | L29: 0 | M29: 0 | O29: 0
A30: 1855 | B30: Services (Overhead & Underground) | G30: 0 | H30: 0 | I30: 0 | J30: 0 | L30: 0 | M30: 0 | O30: 0
A31: 1860 | B31: Meters | G31: 0 | H31: 0 | I31: 0 | J31: 0 | L31: 0 | M31: 0 | O31: 0
A32: 1860 | B32: Meters (Smart Meters) | G32: 0 | H32: 0 | I32: 0 | J32: 0 | L32: 0 | M32: 0 | O32: 0
A33: 1905 | B33: Land | G33: 0 | H33: 0 | I33: 0 | J33: 0 | L33: 0 | M33: 0 | O33: 0
A34: 1908 | B34: Buildings & Fixtures | G34: 0 | H34: 0 | I34: 0 | J34: 0 | L34: 0 | M34: 0 | O34: 0
A35: 1910 | B35: Leasehold Improvements | G35: 0 | H35: 0 | I35: 0 | J35: 0 | L35: 0 | M35: 0 | O35: 0
A36: 1915 | B36: Office Furniture & Equipment (10 years) | G36: 0 | H36: 0 | I36: 0 | J36: 0 | L36: 0 | M36: 0 | O36: 0
A37: 1915 | B37: Office Furniture & Equipment (5 years) | G37: 0 | H37: 0 | I37: 0 | J37: 0 | L37: 0 | M37: 0 | O37: 0
A38: 1920 | B38: Computer Equipment - Hardware | G38: 0 | H38: 0 | I38: 0 | J38: 0 | L38: 0 | M38: 0 | O38: 0
A39: 1920 | B39: Computer Equip.-Hardware(Post Mar. 22/04) | G39: 0 | H39: 0 | I39: 0 | J39: 0 | L39: 0 | M39: 0 | O39: 0
A40: 1920 | B40: Computer Equip.-Hardware(Post Mar. 19/07) | G40: 0 | H40: 0 | I40: 0 | J40: 0 | L40: 0 | M40: 0 | O40: 0
A41: 1930 | B41: Transportation Equipment | G41: 0 | H41: 0 | I41: 0 | J41: 0 | L41: 0 | M41: 0 | O41: 0
A42: 1935 | B42: Stores Equipment | G42: 0 | H42: 0 | I42: 0 | J42: 0 | L42: 0 | M42: 0 | O42: 0
A43: 1940 | B43: Tools, Shop & Garage Equipment | G43: 0 | H43: 0 | I43: 0 | J43: 0 | L43: 0 | M43: 0 | O43: 0
A44: 1945 | B44: Measurement & Testing Equipment | G44: 0 | H44: 0 | I44: 0 | J44: 0 | L44: 0 | M44: 0 | O44: 0
A45: 1950 | B45: Power Operated Equipment | G45: 0 | H45: 0 | I45: 0 | J45: 0 | L45: 0 | M45: 0 | O45: 0
A46: 1955 | B46: Communications Equipment | G46: 0 | H46: 0 | I46: 0 | J46: 0 | L46: 0 | M46: 0 | O46: 0
A47: 1955 | B47: Communication Equipment (Smart Meters) | G47: 0 | H47: 0 | I47: 0 | J47: 0 | L47: 0 | M47: 0 | O47: 0
A48: 1960 | B48: Miscellaneous Equipment | G48: 0 | H48: 0 | I48: 0 | J48: 0 | L48: 0 | M48: 0 | O48: 0
A49: 1970 | B49: Load Management Controls - Customer Premises | G49: 0 | H49: 0 | I49: 0 | J49: 0 | L49: 0 | M49: 0 | O49: 0
A50: 1975 | B50: Load Management Controls Utility Premises | G50: 0 | H50: 0 | I50: 0 | J50: 0 | L50: 0 | M50: 0 | O50: 0
A51: 1980 | B51: System Supervisor Equipment | G51: 0 | H51: 0 | I51: 0 | J51: 0 | L51: 0 | M51: 0 | O51: 0
A52: 1985 | B52: Miscellaneous Fixed Assets | G52: 0 | H52: 0 | I52: 0 | J52: 0 | L52: 0 | M52: 0 | O52: 0
A53: 1990 | B53: Other Tangible Property | G53: 0 | H53: 0 | I53: 0 | J53: 0 | L53: 0 | M53: 0 | O53: 0
A54: 1995 | B54: Contributions & Grants | G54: 0 | H54: 0 | I54: 0 | J54: 0 | L54: 0 | M54: 0 | O54: 0
A55: etc. | G55: 0 | H55: 0 | I55: 0 | J55: 0 | L55: 0 | M55: 0 | O55: 0
G56: 0 | H56: 0 | I56: 0 | J56: 0 | L56: 0 | M56: 0 | O56: 0
B57: Total | C57: =SUM(C17:C56) -> 0 | D57: =SUM(D17:D56) -> 0 | H57: =SUM(H17:H56) -> 0 | I57: 0 | J57: 0 | K57: 0 | L57: 0 | M57: 0 | N57: =SUM(N17:N56) -> 0 | O57: 0
A59: Notes:
A61: 1 | B61: Board policy of the "half-year" rule - the applicant must ensure that additions in the year attract a half-year depreciation expense in the first year. Deviations from this standard practice must be supported in the application.
A62: 2 | B62: The applicant must provide an explanation of material variances in evidence.
A63: 3 | B63: The applicant should ensure that the years for new additions of assets are the asset useful lives determined by management in accordance with the Board's regulatory accounting policies. The capitalization and depreciation expense accounting changes should be implemented consistent with the Board’s regulatory accounting policies as set out for modified IFRS as contained in the Report of the Board, Transition to International Financial Reporting Standards, EB-2008-0408, the Kinectrics Report, and the Revised 2012 Accounting Procedures Handbook for Electricity Distributors (“APH”).
A64: 4 | B64: A recalculation should be performed to determine the average remaining life of opening balance of assets (i.e. excluding 2012 additions) under the change in policies under CGAAP. For example, Asset A had a useful life of 20 years under CGAAP without the change in policies. On January 1, 2012, the effective date of the changes in policies, Asset A was 3 years depreciated. As a result, Asset A would have a remaining service life of 17 years (20 years less 3 years) as of January 1, 2012. Due to making the change in policies under CGAAP, management re-assessed the asset useful lives and concluded that the revised useful life of Asset A is now 30 years. Therefore, the average remaining useful life of the opening balance of Asset A is determined to be 27 years (30 years less 3 years) under the revised CGAAP as of January 1, 2012.
A65: 5 | B65: NBV must exclude assets still on the books but which have been fully amortized or depreciated.
A66: 6 | B66: This column refers to the calculated full year depreciation but excludes the depreciation expense on assets fully depreciated during the year. This column is used for the purpose of calculating depreciation expense in the following year on the next worksheet.
A68: General: | B68: Applicants must provide a breakdown of depreciation and amortization expense in the above format for all relevant accounts. Asset Retirement Obligations (AROs), depreciation and accretion expense should be disclosed separately consistent with the Notes of historical Audited Financial Statements.

Sheet App.2-CP_NewCGAAP_DepExp_2013
J1: File Number: | K1: =EBNUMBER -> EB-2013-0115
J2: Exhibit:
J3: Tab:
J4: Schedule:
J5: Page:
J7: Date:
A9: Appendix 2-CP
A10: Depreciation and Amortization Expense
A11: Assumes the applicant made capitalization and depreciation expense accounting policy changes under CGAAP effective January 1, 2012
C12: 2013 | D12: Revised CGAAP or ASPE - CGAAP or ASPE with the changes to the policies
A14: Account | B14: Description | C14: Additions | D14: Years (new additions only) | E14: Depreciation Rate on New Additions | F14: 2013 Depreciation Expense 1 | G14: 2013 Depreciation Expense per Apppendix 2-B Fixed Assets, Column K (l) | H14: Variance 2 | I14: Depreciation Expense on 2013 Full Year Additions | J14: Less Depreciation Expense on Assets Fully Depreciated during the year (o) | K14: 2013 Full Year Depreciation 3
C15: (d) | D15: (f) | E15: (g) = 1 / (f) | F15: (h)=2012 Full Year Deprecation + ((d)*0.5)/(f) | H15: (m) = (h) - (l) | I15: (n)=((d))/(f) | K15: (p) = 2012 Full Year Depreciation + (n) - (o)
A16: 1611 | B16: Computer Software (Formally known as Account 1925) | E16: =IF(D16=0,0,1/D16) -> 0 | F16: =IF(D16=0,+'App.2-CO_NewCGAAP_DepExp_2012'!O17,+'App.2-CO_NewCGAAP_DepExp_2012'!O17+((C16*0.5)/D16)) -> 0 | H16: =IF(ISERROR(+F16-G16), 0, +F16-G16) -> 0 | I16: =IF(D16=0,0,+(C16)/D16) -> 0 | K16: =IF(ISERROR(+I16+'App.2-CO_NewCGAAP_DepExp_2012'!O17-J16), 0, +I16+'App.2-CO_NewCGAAP_DepExp_2012'!O17-J16) -> 0
A17: 1612 | B17: Land Rights (Formally known as Account 1906) | E17: 0 | F17: =IF(D17=0,+'App.2-CO_NewCGAAP_DepExp_2012'!O18,+'App.2-CO_NewCGAAP_DepExp_2012'!O18+((C17*0.5)/D17)) -> 0 | H17: 0 | I17: 0 | K17: =IF(ISERROR(+I17+'App.2-CO_NewCGAAP_DepExp_2012'!O18-J17), 0, +I17+'App.2-CO_NewCGAAP_DepExp_2012'!O18-J17) -> 0
A18: 1805 | B18: Land | E18: 0 | F18: =IF(D18=0,+'App.2-CO_NewCGAAP_DepExp_2012'!O19,+'App.2-CO_NewCGAAP_DepExp_2012'!O19+((C18*0.5)/D18)) -> 0 | H18: 0 | I18: 0 | K18: =IF(ISERROR(+I18+'App.2-CO_NewCGAAP_DepExp_2012'!O19-J18), 0, +I18+'App.2-CO_NewCGAAP_DepExp_2012'!O19-J18) -> 0
A19: 1808 | B19: Buildings | E19: 0 | F19: =IF(D19=0,+'App.2-CO_NewCGAAP_DepExp_2012'!O20,+'App.2-CO_NewCGAAP_DepExp_2012'!O20+((C19*0.5)/D19)) -> 0 | H19: 0 | I19: 0 | K19: =IF(ISERROR(+I19+'App.2-CO_NewCGAAP_DepExp_2012'!O20-J19), 0, +I19+'App.2-CO_NewCGAAP_DepExp_2012'!O20-J19) -> 0
A20: 1810 | B20: Leasehold Improvements | E20: 0 | F20: =IF(D20=0,+'App.2-CO_NewCGAAP_DepExp_2012'!O21,+'App.2-CO_NewCGAAP_DepExp_2012'!O21+((C20*0.5)/D20)) -> 0 | H20: 0 | I20: 0 | K20: =IF(ISERROR(+I20+'App.2-CO_NewCGAAP_DepExp_2012'!O21-J20), 0, +I20+'App.2-CO_NewCGAAP_DepExp_2012'!O21-J20) -> 0
A21: 1815 | B21: Transformer Station Equipment >50 kV | E21: 0 | F21: =IF(D21=0,+'App.2-CO_NewCGAAP_DepExp_2012'!O22,+'App.2-CO_NewCGAAP_DepExp_2012'!O22+((C21*0.5)/D21)) -> 0 | H21: 0 | I21: 0 | K21: =IF(ISERROR(+I21+'App.2-CO_NewCGAAP_DepExp_2012'!O22-J21), 0, +I21+'App.2-CO_NewCGAAP_DepExp_2012'!O22-J21) -> 0
A22: 1820 | B22: Distribution Station Equipment <50 kV | E22: 0 | F22: =IF(D22=0,+'App.2-CO_NewCGAAP_DepExp_2012'!O23,+'App.2-CO_NewCGAAP_DepExp_2012'!O23+((C22*0.5)/D22)) -> 0 | H22: 0 | I22: 0 | K22: =IF(ISERROR(+I22+'App.2-CO_NewCGAAP_DepExp_2012'!O23-J22), 0, +I22+'App.2-CO_NewCGAAP_DepExp_2012'!O23-J22) -> 0
A23: 1825 | B23: Storage Battery Equipment | E23: 0 | F23: =IF(D23=0,+'App.2-CO_NewCGAAP_DepExp_2012'!O24,+'App.2-CO_NewCGAAP_DepExp_2012'!O24+((C23*0.5)/D23)) -> 0 | H23: 0 | I23: 0 | K23: =IF(ISERROR(+I23+'App.2-CO_NewCGAAP_DepExp_2012'!O24-J23), 0, +I23+'App.2-CO_NewCGAAP_DepExp_2012'!O24-J23) -> 0
A24: 1830 | B24: Poles, Towers & Fixtures | E24: 0 | F24: =IF(D24=0,+'App.2-CO_NewCGAAP_DepExp_2012'!O25,+'App.2-CO_NewCGAAP_DepExp_2012'!O25+((C24*0.5)/D24)) -> 0 | H24: 0 | I24: 0 | K24: =IF(ISERROR(+I24+'App.2-CO_NewCGAAP_DepExp_2012'!O25-J24), 0, +I24+'App.2-CO_NewCGAAP_DepExp_2012'!O25-J24) -> 0
A25: 1835 | B25: Overhead Conductors & Devices | E25: 0 | F25: =IF(D25=0,+'App.2-CO_NewCGAAP_DepExp_2012'!O26,+'App.2-CO_NewCGAAP_DepExp_2012'!O26+((C25*0.5)/D25)) -> 0 | H25: 0 | I25: 0 | K25: =IF(ISERROR(+I25+'App.2-CO_NewCGAAP_DepExp_2012'!O26-J25), 0, +I25+'App.2-CO_NewCGAAP_DepExp_2012'!O26-J25) -> 0
A26: 1840 | B26: Underground Conduit | E26: 0 | F26: =IF(D26=0,+'App.2-CO_NewCGAAP_DepExp_2012'!O27,+'App.2-CO_NewCGAAP_DepExp_2012'!O27+((C26*0.5)/D26)) -> 0 | H26: 0 | I26: 0 | K26: =IF(ISERROR(+I26+'App.2-CO_NewCGAAP_DepExp_2012'!O27-J26), 0, +I26+'App.2-CO_NewCGAAP_DepExp_2012'!O27-J26) -> 0
A27: 1845 | B27: Underground Conductors & Devices | E27: 0 | F27: =IF(D27=0,+'App.2-CO_NewCGAAP_DepExp_2012'!O28,+'App.2-CO_NewCGAAP_DepExp_2012'!O28+((C27*0.5)/D27)) -> 0 | H27: 0 | I27: 0 | K27: =IF(ISERROR(+I27+'App.2-CO_NewCGAAP_DepExp_2012'!O28-J27), 0, +I27+'App.2-CO_NewCGAAP_DepExp_2012'!O28-J27) -> 0
A28: 1850 | B28: Line Transformers | E28: 0 | F28: =IF(D28=0,+'App.2-CO_NewCGAAP_DepExp_2012'!O29,+'App.2-CO_NewCGAAP_DepExp_2012'!O29+((C28*0.5)/D28)) -> 0 | H28: 0 | I28: 0 | K28: =IF(ISERROR(+I28+'App.2-CO_NewCGAAP_DepExp_2012'!O29-J28), 0, +I28+'App.2-CO_NewCGAAP_DepExp_2012'!O29-J28) -> 0
A29: 1855 | B29: Services (Overhead & Underground) | E29: 0 | F29: =IF(D29=0,+'App.2-CO_NewCGAAP_DepExp_2012'!O30,+'App.2-CO_NewCGAAP_DepExp_2012'!O30+((C29*0.5)/D29)) -> 0 | H29: 0 | I29: 0 | K29: =IF(ISERROR(+I29+'App.2-CO_NewCGAAP_DepExp_2012'!O30-J29), 0, +I29+'App.2-CO_NewCGAAP_DepExp_2012'!O30-J29) -> 0
A30: 1860 | B30: Meters | E30: 0 | F30: =IF(D30=0,+'App.2-CO_NewCGAAP_DepExp_2012'!O31,+'App.2-CO_NewCGAAP_DepExp_2012'!O31+((C30*0.5)/D30)) -> 0 | H30: 0 | I30: 0 | K30: =IF(ISERROR(+I30+'App.2-CO_NewCGAAP_DepExp_2012'!O31-J30), 0, +I30+'App.2-CO_NewCGAAP_DepExp_2012'!O31-J30) -> 0
A31: 1860 | B31: Meters (Smart Meters) | E31: 0 | F31: =IF(D31=0,+'App.2-CO_NewCGAAP_DepExp_2012'!O32,+'App.2-CO_NewCGAAP_DepExp_2012'!O32+((C31*0.5)/D31)) -> 0 | H31: 0 | I31: 0 | K31: =IF(ISERROR(+I31+'App.2-CO_NewCGAAP_DepExp_2012'!O32-J31), 0, +I31+'App.2-CO_NewCGAAP_DepExp_2012'!O32-J31) -> 0
A32: 1905 | B32: Land | E32: 0 | F32: =IF(D32=0,+'App.2-CO_NewCGAAP_DepExp_2012'!O33,+'App.2-CO_NewCGAAP_DepExp_2012'!O33+((C32*0.5)/D32)) -> 0 | H32: 0 | I32: 0 | K32: =IF(ISERROR(+I32+'App.2-CO_NewCGAAP_DepExp_2012'!O33-J32), 0, +I32+'App.2-CO_NewCGAAP_DepExp_2012'!O33-J32) -> 0
A33: 1908 | B33: Buildings & Fixtures | E33: 0 | F33: =IF(D33=0,+'App.2-CO_NewCGAAP_DepExp_2012'!O34,+'App.2-CO_NewCGAAP_DepExp_2012'!O34+((C33*0.5)/D33)) -> 0 | H33: 0 | I33: 0 | K33: =IF(ISERROR(+I33+'App.2-CO_NewCGAAP_DepExp_2012'!O34-J33), 0, +I33+'App.2-CO_NewCGAAP_DepExp_2012'!O34-J33) -> 0
A34: 1910 | B34: Leasehold Improvements | E34: 0 | F34: =IF(D34=0,+'App.2-CO_NewCGAAP_DepExp_2012'!O35,+'App.2-CO_NewCGAAP_DepExp_2012'!O35+((C34*0.5)/D34)) -> 0 | H34: 0 | I34: 0 | K34: =IF(ISERROR(+I34+'App.2-CO_NewCGAAP_DepExp_2012'!O35-J34), 0, +I34+'App.2-CO_NewCGAAP_DepExp_2012'!O35-J34) -> 0
A35: 1915 | B35: Office Furniture & Equipment (10 years) | E35: 0 | F35: =IF(D35=0,+'App.2-CO_NewCGAAP_DepExp_2012'!O36,+'App.2-CO_NewCGAAP_DepExp_2012'!O36+((C35*0.5)/D35)) -> 0 | H35: 0 | I35: 0 | K35: =IF(ISERROR(+I35+'App.2-CO_NewCGAAP_DepExp_2012'!O36-J35), 0, +I35+'App.2-CO_NewCGAAP_DepExp_2012'!O36-J35) -> 0
A36: 1915 | B36: Office Furniture & Equipment (5 years) | E36: 0 | F36: =IF(D36=0,+'App.2-CO_NewCGAAP_DepExp_2012'!O37,+'App.2-CO_NewCGAAP_DepExp_2012'!O37+((C36*0.5)/D36)) -> 0 | H36: 0 | I36: 0 | K36: =IF(ISERROR(+I36+'App.2-CO_NewCGAAP_DepExp_2012'!O37-J36), 0, +I36+'App.2-CO_NewCGAAP_DepExp_2012'!O37-J36) -> 0
A37: 1920 | B37: Computer Equipment - Hardware | E37: 0 | F37: =IF(D37=0,+'App.2-CO_NewCGAAP_DepExp_2012'!O38,+'App.2-CO_NewCGAAP_DepExp_2012'!O38+((C37*0.5)/D37)) -> 0 | H37: 0 | I37: 0 | K37: =IF(ISERROR(+I37+'App.2-CO_NewCGAAP_DepExp_2012'!O38-J37), 0, +I37+'App.2-CO_NewCGAAP_DepExp_2012'!O38-J37) -> 0
A38: 1920 | B38: Computer Equip.-Hardware(Post Mar. 22/04) | E38: 0 | F38: =IF(D38=0,+'App.2-CO_NewCGAAP_DepExp_2012'!O39,+'App.2-CO_NewCGAAP_DepExp_2012'!O39+((C38*0.5)/D38)) -> 0 | H38: 0 | I38: 0 | K38: =IF(ISERROR(+I38+'App.2-CO_NewCGAAP_DepExp_2012'!O39-J38), 0, +I38+'App.2-CO_NewCGAAP_DepExp_2012'!O39-J38) -> 0
A39: 1920 | B39: Computer Equip.-Hardware(Post Mar. 19/07) | E39: 0 | F39: =IF(D39=0,+'App.2-CO_NewCGAAP_DepExp_2012'!O40,+'App.2-CO_NewCGAAP_DepExp_2012'!O40+((C39*0.5)/D39)) -> 0 | H39: 0 | I39: 0 | K39: =IF(ISERROR(+I39+'App.2-CO_NewCGAAP_DepExp_2012'!O40-J39), 0, +I39+'App.2-CO_NewCGAAP_DepExp_2012'!O40-J39) -> 0
A40: 1930 | B40: Transportation Equipment | E40: 0 | F40: =IF(D40=0,+'App.2-CO_NewCGAAP_DepExp_2012'!O41,+'App.2-CO_NewCGAAP_DepExp_2012'!O41+((C40*0.5)/D40)) -> 0 | H40: 0 | I40: 0 | K40: =IF(ISERROR(+I40+'App.2-CO_NewCGAAP_DepExp_2012'!O41-J40), 0, +I40+'App.2-CO_NewCGAAP_DepExp_2012'!O41-J40) -> 0
A41: 1935 | B41: Stores Equipment | E41: 0 | F41: =IF(D41=0,+'App.2-CO_NewCGAAP_DepExp_2012'!O42,+'App.2-CO_NewCGAAP_DepExp_2012'!O42+((C41*0.5)/D41)) -> 0 | H41: 0 | I41: 0 | K41: =IF(ISERROR(+I41+'App.2-CO_NewCGAAP_DepExp_2012'!O42-J41), 0, +I41+'App.2-CO_NewCGAAP_DepExp_2012'!O42-J41) -> 0
A42: 1940 | B42: Tools, Shop & Garage Equipment | E42: 0 | F42: =IF(D42=0,+'App.2-CO_NewCGAAP_DepExp_2012'!O43,+'App.2-CO_NewCGAAP_DepExp_2012'!O43+((C42*0.5)/D42)) -> 0 | H42: 0 | I42: 0 | K42: =IF(ISERROR(+I42+'App.2-CO_NewCGAAP_DepExp_2012'!O43-J42), 0, +I42+'App.2-CO_NewCGAAP_DepExp_2012'!O43-J42) -> 0
A43: 1945 | B43: Measurement & Testing Equipment | E43: 0 | F43: =IF(D43=0,+'App.2-CO_NewCGAAP_DepExp_2012'!O44,+'App.2-CO_NewCGAAP_DepExp_2012'!O44+((C43*0.5)/D43)) -> 0 | H43: 0 | I43: 0 | K43: =IF(ISERROR(+I43+'App.2-CO_NewCGAAP_DepExp_2012'!O44-J43), 0, +I43+'App.2-CO_NewCGAAP_DepExp_2012'!O44-J43) -> 0
A44: 1950 | B44: Power Operated Equipment | E44: 0 | F44: =IF(D44=0,+'App.2-CO_NewCGAAP_DepExp_2012'!O45,+'App.2-CO_NewCGAAP_DepExp_2012'!O45+((C44*0.5)/D44)) -> 0 | H44: 0 | I44: 0 | K44: =IF(ISERROR(+I44+'App.2-CO_NewCGAAP_DepExp_2012'!O45-J44), 0, +I44+'App.2-CO_NewCGAAP_DepExp_2012'!O45-J44) -> 0
A45: 1955 | B45: Communications Equipment | E45: 0 | F45: =IF(D45=0,+'App.2-CO_NewCGAAP_DepExp_2012'!O46,+'App.2-CO_NewCGAAP_DepExp_2012'!O46+((C45*0.5)/D45)) -> 0 | H45: 0 | I45: 0 | K45: =IF(ISERROR(+I45+'App.2-CO_NewCGAAP_DepExp_2012'!O46-J45), 0, +I45+'App.2-CO_NewCGAAP_DepExp_2012'!O46-J45) -> 0
A46: 1955 | B46: Communication Equipment (Smart Meters) | E46: 0 | F46: =IF(D46=0,+'App.2-CO_NewCGAAP_DepExp_2012'!O47,+'App.2-CO_NewCGAAP_DepExp_2012'!O47+((C46*0.5)/D46)) -> 0 | H46: 0 | I46: 0 | K46: =IF(ISERROR(+I46+'App.2-CO_NewCGAAP_DepExp_2012'!O47-J46), 0, +I46+'App.2-CO_NewCGAAP_DepExp_2012'!O47-J46) -> 0
A47: 1960 | B47: Miscellaneous Equipment | E47: 0 | F47: =IF(D47=0,+'App.2-CO_NewCGAAP_DepExp_2012'!O48,+'App.2-CO_NewCGAAP_DepExp_2012'!O48+((C47*0.5)/D47)) -> 0 | H47: 0 | I47: 0 | K47: =IF(ISERROR(+I47+'App.2-CO_NewCGAAP_DepExp_2012'!O48-J47), 0, +I47+'App.2-CO_NewCGAAP_DepExp_2012'!O48-J47) -> 0
A48: 1970 | B48: Load Management Controls - Customer Premises | E48: 0 | F48: =IF(D48=0,+'App.2-CO_NewCGAAP_DepExp_2012'!O49,+'App.2-CO_NewCGAAP_DepExp_2012'!O49+((C48*0.5)/D48)) -> 0 | H48: 0 | I48: 0 | K48: =IF(ISERROR(+I48+'App.2-CO_NewCGAAP_DepExp_2012'!O49-J48), 0, +I48+'App.2-CO_NewCGAAP_DepExp_2012'!O49-J48) -> 0
A49: 1975 | B49: Load Management Controls Utility Premises | E49: 0 | F49: =IF(D49=0,+'App.2-CO_NewCGAAP_DepExp_2012'!O50,+'App.2-CO_NewCGAAP_DepExp_2012'!O50+((C49*0.5)/D49)) -> 0 | H49: 0 | I49: 0 | K49: =IF(ISERROR(+I49+'App.2-CO_NewCGAAP_DepExp_2012'!O50-J49), 0, +I49+'App.2-CO_NewCGAAP_DepExp_2012'!O50-J49) -> 0
A50: 1980 | B50: System Supervisor Equipment | E50: 0 | F50: =IF(D50=0,+'App.2-CO_NewCGAAP_DepExp_2012'!O51,+'App.2-CO_NewCGAAP_DepExp_2012'!O51+((C50*0.5)/D50)) -> 0 | H50: 0 | I50: 0 | K50: =IF(ISERROR(+I50+'App.2-CO_NewCGAAP_DepExp_2012'!O51-J50), 0, +I50+'App.2-CO_NewCGAAP_DepExp_2012'!O51-J50) -> 0
A51: 1985 | B51: Miscellaneous Fixed Assets | E51: 0 | F51: =IF(D51=0,+'App.2-CO_NewCGAAP_DepExp_2012'!O52,+'App.2-CO_NewCGAAP_DepExp_2012'!O52+((C51*0.5)/D51)) -> 0 | H51: 0 | I51: 0 | K51: =IF(ISERROR(+I51+'App.2-CO_NewCGAAP_DepExp_2012'!O52-J51), 0, +I51+'App.2-CO_NewCGAAP_DepExp_2012'!O52-J51) -> 0
A52: 1990 | B52: Other Tangible Property | E52: 0 | F52: =IF(D52=0,+'App.2-CO_NewCGAAP_DepExp_2012'!O53,+'App.2-CO_NewCGAAP_DepExp_2012'!O53+((C52*0.5)/D52)) -> 0 | H52: 0 | I52: 0 | K52: =IF(ISERROR(+I52+'App.2-CO_NewCGAAP_DepExp_2012'!O53-J52), 0, +I52+'App.2-CO_NewCGAAP_DepExp_2012'!O53-J52) -> 0
A53: 1995 | B53: Contributions & Grants | E53: 0 | F53: =IF(D53=0,+'App.2-CO_NewCGAAP_DepExp_2012'!O54,+'App.2-CO_NewCGAAP_DepExp_2012'!O54+((C53*0.5)/D53)) -> 0 | H53: 0 | I53: 0 | K53: =IF(ISERROR(+I53+'App.2-CO_NewCGAAP_DepExp_2012'!O54-J53), 0, +I53+'App.2-CO_NewCGAAP_DepExp_2012'!O54-J53) -> 0
A54: etc. | E54: 0 | F54: =IF(D54=0,+'App.2-CO_NewCGAAP_DepExp_2012'!O55,+'App.2-CO_NewCGAAP_DepExp_2012'!O55+((C54*0.5)/D54)) -> 0 | H54: 0 | I54: 0 | K54: =IF(ISERROR(+I54+'App.2-CO_NewCGAAP_DepExp_2012'!O55-J54), 0, +I54+'App.2-CO_NewCGAAP_DepExp_2012'!O55-J54) -> 0
E55: 0 | F55: =IF(D55=0,+'App.2-CO_NewCGAAP_DepExp_2012'!O56,+'App.2-CO_NewCGAAP_DepExp_2012'!O56+((C55*0.5)/D55)) -> 0 | H55: 0 | I55: 0 | K55: =IF(ISERROR(+I55+'App.2-CO_NewCGAAP_DepExp_2012'!O56-J55), 0, +I55+'App.2-CO_NewCGAAP_DepExp_2012'!O56-J55) -> 0
B56: Total | C56: =SUM(C16:C55) -> 0 | F56: =SUM(F16:F55) -> 0 | G56: 0 | H56: 0 | I56: 0 | J56: 0 | K56: 0
A58: Notes:
A59: 1 | B59: Board policy of the "half-year" rule - the applicant must ensure that additions in the year attract a half-year depreciation expense in the first year. Deviations from this standard practice must be supported in the application.
A60: 2 | B60: The applicant must provide an explanation of material variances in evidence.
A61: 3 | B61: This column refers to the calculated full year depreciation but excludes the depreciation expense on assets fully depreciated during the year. This column is used for the purpose of calculating depreciation expense in the following year on the next worksheet.
A63: General: | B63: Applicants must provide a breakdown of depreciation and amortization expense in the above format for all relevant accounts. Asset Retirement Obligations (AROs), depreciation and accretion expense should be disclosed separately consistent with the Notes of historical Audited Financial Statements.

Sheet App.2-CQ NewCGAAP_DepExp_2014
G1: File Number: | H1: =EBNUMBER -> EB-2013-0115
G2: Exhibit:
G3: Tab:
G4: Schedule:
G5: Page:
G7: Date:
A9: Appendix 2-CQ
A10: Depreciation and Amortization Expense
A11: Assumes the applicant made capitalization and depreciation expense accounting policy changes under CGAAP effective January 1, 2012
B12: 2014 | C12: Revised CGAAP or ASPE - CGAAP or ASPE with the changes to the policies
A14: Account | B14: Description | C14: Additions | D14: Years (new additions only) | E14: Depreciation Rate on New Additions | F14: 2014 Depreciation Expense 1 | G14: 2014 Depreciation Expense per Appendix 2-B Fixed Assets, Column K (l) | H14: Variance 2
C15: (d) | D15: (f) | E15: (g) = 1 / (f) | F15: (h)=2013 Full Year Depreciation + ((d)*0.5)/(f) | H15: (m) = (h) - (l)
A16: 1611 | B16: Computer Software (Formally known as Account 1925) | E16: =IF(D16=0,0,1/D16) -> 0 | F16: =IF(D16=0,'App.2-CP_NewCGAAP_DepExp_2013'!K16,+'App.2-CP_NewCGAAP_DepExp_2013'!K16+((C16*0.5)/D16)) -> 0 | H16: =IF(ISERROR(+F16-G16), 0, +F16-G16) -> 0
A17: 1612 | B17: Land Rights (Formally known as Account 1906) | E17: 0 | F17: =IF(D17=0,'App.2-CP_NewCGAAP_DepExp_2013'!K17,+'App.2-CP_NewCGAAP_DepExp_2013'!K17+((C17*0.5)/D17)) -> 0 | H17: 0
A18: 1805 | B18: Land | E18: 0 | F18: =IF(D18=0,'App.2-CP_NewCGAAP_DepExp_2013'!K18,+'App.2-CP_NewCGAAP_DepExp_2013'!K18+((C18*0.5)/D18)) -> 0 | H18: 0
A19: 1808 | B19: Buildings | E19: 0 | F19: =IF(D19=0,'App.2-CP_NewCGAAP_DepExp_2013'!K19,+'App.2-CP_NewCGAAP_DepExp_2013'!K19+((C19*0.5)/D19)) -> 0 | H19: 0
A20: 1810 | B20: Leasehold Improvements | E20: 0 | F20: =IF(D20=0,'App.2-CP_NewCGAAP_DepExp_2013'!K20,+'App.2-CP_NewCGAAP_DepExp_2013'!K20+((C20*0.5)/D20)) -> 0 | H20: 0
A21: 1815 | B21: Transformer Station Equipment >50 kV | E21: 0 | F21: =IF(D21=0,'App.2-CP_NewCGAAP_DepExp_2013'!K21,+'App.2-CP_NewCGAAP_DepExp_2013'!K21+((C21*0.5)/D21)) -> 0 | H21: 0
A22: 1820 | B22: Distribution Station Equipment <50 kV | E22: 0 | F22: =IF(D22=0,'App.2-CP_NewCGAAP_DepExp_2013'!K22,+'App.2-CP_NewCGAAP_DepExp_2013'!K22+((C22*0.5)/D22)) -> 0 | H22: 0
A23: 1825 | B23: Storage Battery Equipment | E23: 0 | F23: =IF(D23=0,'App.2-CP_NewCGAAP_DepExp_2013'!K23,+'App.2-CP_NewCGAAP_DepExp_2013'!K23+((C23*0.5)/D23)) -> 0 | H23: 0
A24: 1830 | B24: Poles, Towers & Fixtures | E24: 0 | F24: =IF(D24=0,'App.2-CP_NewCGAAP_DepExp_2013'!K24,+'App.2-CP_NewCGAAP_DepExp_2013'!K24+((C24*0.5)/D24)) -> 0 | H24: 0
A25: 1835 | B25: Overhead Conductors & Devices | E25: 0 | F25: =IF(D25=0,'App.2-CP_NewCGAAP_DepExp_2013'!K25,+'App.2-CP_NewCGAAP_DepExp_2013'!K25+((C25*0.5)/D25)) -> 0 | H25: 0
A26: 1840 | B26: Underground Conduit | E26: 0 | F26: =IF(D26=0,'App.2-CP_NewCGAAP_DepExp_2013'!K26,+'App.2-CP_NewCGAAP_DepExp_2013'!K26+((C26*0.5)/D26)) -> 0 | H26: 0
A27: 1845 | B27: Underground Conductors & Devices | E27: 0 | F27: =IF(D27=0,'App.2-CP_NewCGAAP_DepExp_2013'!K27,+'App.2-CP_NewCGAAP_DepExp_2013'!K27+((C27*0.5)/D27)) -> 0 | H27: 0
A28: 1850 | B28: Line Transformers | E28: 0 | F28: =IF(D28=0,'App.2-CP_NewCGAAP_DepExp_2013'!K28,+'App.2-CP_NewCGAAP_DepExp_2013'!K28+((C28*0.5)/D28)) -> 0 | H28: 0
A29: 1855 | B29: Services (Overhead & Underground) | E29: 0 | F29: =IF(D29=0,'App.2-CP_NewCGAAP_DepExp_2013'!K29,+'App.2-CP_NewCGAAP_DepExp_2013'!K29+((C29*0.5)/D29)) -> 0 | H29: 0
A30: 1860 | B30: Meters | E30: 0 | F30: =IF(D30=0,'App.2-CP_NewCGAAP_DepExp_2013'!K30,+'App.2-CP_NewCGAAP_DepExp_2013'!K30+((C30*0.5)/D30)) -> 0 | H30: 0
A31: 1860 | B31: Meters (Smart Meters) | E31: 0 | F31: =IF(D31=0,'App.2-CP_NewCGAAP_DepExp_2013'!K31,+'App.2-CP_NewCGAAP_DepExp_2013'!K31+((C31*0.5)/D31)) -> 0 | H31: 0
A32: 1905 | B32: Land | E32: 0 | F32: =IF(D32=0,'App.2-CP_NewCGAAP_DepExp_2013'!K32,+'App.2-CP_NewCGAAP_DepExp_2013'!K32+((C32*0.5)/D32)) -> 0 | H32: 0
A33: 1908 | B33: Buildings & Fixtures | E33: 0 | F33: =IF(D33=0,'App.2-CP_NewCGAAP_DepExp_2013'!K33,+'App.2-CP_NewCGAAP_DepExp_2013'!K33+((C33*0.5)/D33)) -> 0 | H33: 0
A34: 1910 | B34: Leasehold Improvements | E34: 0 | F34: =IF(D34=0,'App.2-CP_NewCGAAP_DepExp_2013'!K34,+'App.2-CP_NewCGAAP_DepExp_2013'!K34+((C34*0.5)/D34)) -> 0 | H34: 0
A35: 1915 | B35: Office Furniture & Equipment (10 years) | E35: 0 | F35: =IF(D35=0,'App.2-CP_NewCGAAP_DepExp_2013'!K35,+'App.2-CP_NewCGAAP_DepExp_2013'!K35+((C35*0.5)/D35)) -> 0 | H35: 0
A36: 1915 | B36: Office Furniture & Equipment (5 years) | E36: 0 | F36: =IF(D36=0,'App.2-CP_NewCGAAP_DepExp_2013'!K36,+'App.2-CP_NewCGAAP_DepExp_2013'!K36+((C36*0.5)/D36)) -> 0 | H36: 0
A37: 1920 | B37: Computer Equipment - Hardware | E37: 0 | F37: =IF(D37=0,'App.2-CP_NewCGAAP_DepExp_2013'!K37,+'App.2-CP_NewCGAAP_DepExp_2013'!K37+((C37*0.5)/D37)) -> 0 | H37: 0
A38: 1920 | B38: Computer Equip.-Hardware(Post Mar. 22/04) | E38: 0 | F38: =IF(D38=0,'App.2-CP_NewCGAAP_DepExp_2013'!K38,+'App.2-CP_NewCGAAP_DepExp_2013'!K38+((C38*0.5)/D38)) -> 0 | H38: 0
A39: 1920 | B39: Computer Equip.-Hardware(Post Mar. 19/07) | E39: 0 | F39: =IF(D39=0,'App.2-CP_NewCGAAP_DepExp_2013'!K39,+'App.2-CP_NewCGAAP_DepExp_2013'!K39+((C39*0.5)/D39)) -> 0 | H39: 0
A40: 1930 | B40: Transportation Equipment | E40: 0 | F40: =IF(D40=0,'App.2-CP_NewCGAAP_DepExp_2013'!K40,+'App.2-CP_NewCGAAP_DepExp_2013'!K40+((C40*0.5)/D40)) -> 0 | H40: 0
A41: 1935 | B41: Stores Equipment | E41: 0 | F41: =IF(D41=0,'App.2-CP_NewCGAAP_DepExp_2013'!K41,+'App.2-CP_NewCGAAP_DepExp_2013'!K41+((C41*0.5)/D41)) -> 0 | H41: 0
A42: 1940 | B42: Tools, Shop & Garage Equipment | E42: 0 | F42: =IF(D42=0,'App.2-CP_NewCGAAP_DepExp_2013'!K42,+'App.2-CP_NewCGAAP_DepExp_2013'!K42+((C42*0.5)/D42)) -> 0 | H42: 0
A43: 1945 | B43: Measurement & Testing Equipment | E43: 0 | F43: =IF(D43=0,'App.2-CP_NewCGAAP_DepExp_2013'!K43,+'App.2-CP_NewCGAAP_DepExp_2013'!K43+((C43*0.5)/D43)) -> 0 | H43: 0
A44: 1950 | B44: Power Operated Equipment | E44: 0 | F44: =IF(D44=0,'App.2-CP_NewCGAAP_DepExp_2013'!K44,+'App.2-CP_NewCGAAP_DepExp_2013'!K44+((C44*0.5)/D44)) -> 0 | H44: 0
A45: 1955 | B45: Communications Equipment | E45: 0 | F45: =IF(D45=0,'App.2-CP_NewCGAAP_DepExp_2013'!K45,+'App.2-CP_NewCGAAP_DepExp_2013'!K45+((C45*0.5)/D45)) -> 0 | H45: 0
A46: 1955 | B46: Communication Equipment (Smart Meters) | E46: 0 | F46: =IF(D46=0,'App.2-CP_NewCGAAP_DepExp_2013'!K46,+'App.2-CP_NewCGAAP_DepExp_2013'!K46+((C46*0.5)/D46)) -> 0 | H46: 0
A47: 1960 | B47: Miscellaneous Equipment | E47: 0 | F47: =IF(D47=0,'App.2-CP_NewCGAAP_DepExp_2013'!K47,+'App.2-CP_NewCGAAP_DepExp_2013'!K47+((C47*0.5)/D47)) -> 0 | H47: 0
A48: 1970 | B48: Load Management Controls - Customer Premises | E48: 0 | F48: =IF(D48=0,'App.2-CP_NewCGAAP_DepExp_2013'!K48,+'App.2-CP_NewCGAAP_DepExp_2013'!K48+((C48*0.5)/D48)) -> 0 | H48: 0
A49: 1975 | B49: Load Management Controls Utility Premises | E49: 0 | F49: =IF(D49=0,'App.2-CP_NewCGAAP_DepExp_2013'!K49,+'App.2-CP_NewCGAAP_DepExp_2013'!K49+((C49*0.5)/D49)) -> 0 | H49: 0
A50: 1980 | B50: System Supervisor Equipment | E50: 0 | F50: =IF(D50=0,'App.2-CP_NewCGAAP_DepExp_2013'!K50,+'App.2-CP_NewCGAAP_DepExp_2013'!K50+((C50*0.5)/D50)) -> 0 | H50: 0
A51: 1985 | B51: Miscellaneous Fixed Assets | E51: 0 | F51: =IF(D51=0,'App.2-CP_NewCGAAP_DepExp_2013'!K51,+'App.2-CP_NewCGAAP_DepExp_2013'!K51+((C51*0.5)/D51)) -> 0 | H51: 0
A52: 1990 | B52: Other Tangible Property | E52: 0 | F52: =IF(D52=0,'App.2-CP_NewCGAAP_DepExp_2013'!K52,+'App.2-CP_NewCGAAP_DepExp_2013'!K52+((C52*0.5)/D52)) -> 0 | H52: 0
A53: 1995 | B53: Contributions & Grants | E53: 0 | F53: =IF(D53=0,'App.2-CP_NewCGAAP_DepExp_2013'!K53,+'App.2-CP_NewCGAAP_DepExp_2013'!K53+((C53*0.5)/D53)) -> 0 | H53: 0
A54: etc. | E54: 0 | F54: =IF(D54=0,'App.2-CP_NewCGAAP_DepExp_2013'!K54,+'App.2-CP_NewCGAAP_DepExp_2013'!K54+((C54*0.5)/D54)) -> 0 | H54: 0
E55: 0 | F55: =IF(D55=0,'App.2-CP_NewCGAAP_DepExp_2013'!K55,+'App.2-CP_NewCGAAP_DepExp_2013'!K55+((C55*0.5)/D55)) -> 0 | H55: 0
B56: Total | C56: =SUM(C16:C55) -> 0 | F56: =SUM(F16:F55) -> 0 | G56: =SUM(G16:G55) -> 0 | H56: =SUM(H16:H55) -> 0
B57: Total Depreciation expense to be included in the test year revenue requirement | F57: =+F56 -> 0
A58: Notes:
A59: 1 | B59: Board policy of the "half-year" rule - the applicant must ensure that additions in the year attract a half-year depreciation expense in the first year. Deviations from this standard practice must be supported in the application.
A60: 2 | B60: The applicant must provide an explanation of material variances in evidence.
A62: General: | B62: Applicants must provide a breakdown of depreciation and amortization expense in the above format for all relevant accounts. Asset Retirement Obligations (AROs), depreciation and accretion expense should be disclosed separately consistent with the Notes of historical Audited Financial Statements.

Sheet App.2-CR_OldCGAAP_DepExp_2012
K1: File Number: | L1: =EBNUMBER -> EB-2013-0115
K2: Exhibit:
K3: Tab:
K4: Schedule:
K5: Page:
K7: Date:
A9: Appendix 2-CR
A10: Depreciation and Amortization Expense
A11: Assumes the applicant made capitalization and depreciation expense accounting policy changes under CGAAP effective January 1, 2013
C13: Year | D13: 2012 | E13: Former CGAAP - CGAAP without the changes to the policies
A15: Account | B15: Description | C15: Opening Regulatory Gross PP&E as at Jan 1, 2012 | D15: Less Fully Depreciated | E15: Net for Depreciation | F15: Additions | G15: Total for Depreciation | H15: Years | I15: Depreciation Rate | J15: 2012 Depreciation Expense | K15: 2012 Depreciation Expense per Appendix 2-B Fixed Assets, Column K (l) | L15: Variance 2
C16: (a) | D16: (b) | E16: (c) | F16: (d) | G16: (e) = (c) + ½ x (d) 1 | H16: (f) | I16: (g) = 1 / (f) | J16: (h) = (e) / (f) | L16: (m) = (h) - (l)
A17: 1611 | B17: Computer Software (Formally known as Account 1925) | C17: 4972576 | D17: 2990941 | E17: =C17-D17 -> 1981635 | F17: 566350 | G17: =E17+0.5*F17 -> 2264810 | H17: 5 | I17: =IF(H17=0,"",1/H17) -> 0.2 | J17: =429908+46989 -> 476897 | K17: 476897 | L17: =IF(ISERROR(+J17-K17), "", +J17-K17) -> 0
A18: 1612 | B18: Land Rights (Formally known as Account 1906) | C18: 12933 | D18: 2130 | E18: =C18-D18 -> 10803 | G18: =E18+0.5*F18 -> 10803 | H18: 35 | I18: 0.02857142857 | J18: =IF(H18=0,0,G18/H18) -> 308.6571429 | K18: 308.6571429 | L18: =IF(ISERROR(+J18-K18), "", +J18-K18) -> 0
A19: 1612 | B19: Land Rights (Formally known as Account 1906) | C19: 176418 | E19: 176418 | G19: 176418 | H19: 70 | I19: 0.01428571429 | J19: 2520.257143 | K19: 2520.257143
A20: 1805 | B20: Land | C20: 202703 | E20: 202703 | G20: 202703 | J20: 0 | K20: 0 | L20: 0
A21: 1808 | B21: Buildings | C21: 203258 | D21: 43131 | E21: 160127 | F21: 5450 | G21: 162852 | H21: 10 | I21: 0.1 | J21: 16285.2 | K21: 16285.2 | L21: 0
A22: 1808 | B22: Buildings | C22: 7599 | E22: 7599 | G22: 7599 | H22: 15 | I22: 0.06666666667 | J22: 506.6 | K22: 506.6 | L22: 0
A23: 1808 | B23: Buildings | C23: 9900 | E23: 9900 | G23: 9900 | H23: 20 | I23: 0.05 | J23: 495 | K23: 495 | L23: 0
A24: 1808 | B24: Buildings | C24: 405824 | D24: 14394 | E24: 391430 | G24: 391430 | H24: 25 | I24: 0.04 | J24: 15657.2 | K24: 15657.2 | L24: 0
A25: 1808 | B25: Buildings | C25: 9085 | E25: 9085 | G25: 9085 | H25: 30 | I25: 0.03333333333 | J25: 302.8333333 | K25: 302.8333333 | L25: 0
A26: 1808 | B26: Buildings | C26: 1655728 | E26: 1655728 | G26: 1655728 | H26: 50 | I26: 0.02 | J26: 33114.56 | K26: 33114.56 | L26: 0
A27: 1810 | B27: Leasehold Improvements | E27: 0 | G27: 0 | J27: 0 | K27: 0 | L27: 0
A28: 1815 | B28: Transformer Station Equipment >50 kV | E28: 0 | G28: 0 | J28: 0 | K28: 0 | L28: 0
A29: 1820 | B29: Distribution Station Equipment <50 kV | C29: 13826211 | D29: 2800272 | E29: 11025939 | F29: 594681 | G29: 11323279.5 | H29: 30 | I29: 0.03333333333 | J29: 367829 | K29: 367829 | L29: 0
A30: 1825 | B30: Storage Battery Equipment | E30: 0 | G30: 0 | J30: 0 | K30: 0 | L30: 0
A31: 1830 | B31: Poles, Towers & Fixtures | C31: 28590096 | D31: 3902970 | E31: 24687126 | F31: 2590416 | G31: 25982334 | H31: 25 | I31: 0.04 | J31: 1039293.36 | K31: 1039293.36 | L31: 0
A32: 1835 | B32: Overhead Conductors & Devices | C32: 39722236 | D32: 6721781 | E32: 33000455 | F32: 1634365 | G32: 33817637.5 | H32: 25 | I32: 0.04 | J32: 1352705.5 | K32: 1352705.5 | L32: 0
A33: 1840 | B33: Underground Conduit | C33: 14422386 | D33: 2168316 | E33: 12254070 | F33: 1764996 | G33: 13136568 | H33: 25 | I33: 0.04 | J33: 525462.72 | K33: 525462.72 | L33: 0
A34: 1845 | B34: Underground Conductors & Devices | C34: 25777253 | D34: 3686138 | E34: 22091115 | F34: 1309497 | G34: 22745863.5 | H34: 25 | I34: 0.04 | J34: 909834.54 | K34: 909834.54 | L34: 0
A35: 1850 | B35: Line Transformers | C35: 46417593 | D35: 6514649 | E35: 39902944 | F35: 1855125 | G35: 40830506.5 | H35: 25 | I35: 0.04 | J35: 1633220.26 | K35: 1633220.26 | L35: 0
A36: 1855 | B36: Services (Overhead & Underground) | C36: 30612058 | D36: 5203960 | E36: 25408098 | F36: 1328442 | G36: 26072319 | H36: 25 | I36: 0.04 | J36: 1042892.76 | K36: 1042892.76 | L36: 0
A37: 1860 | B37: Meters | C37: 8476768.74 | D37: 2165081 | E37: 6311687.74 | F37: =9986098-9558982 -> 427116 | G37: 6525245.74 | H37: 25 | I37: 0.04 | J37: 261009.8296 | K37: 261009.8296 | L37: 0
A38: 1860 | B38: Meters (Smart Meters) | E38: 0 | F38: 9558982 | G38: 4779491 | H38: 15 | I38: 0.06666666667 | J38: =IF(H38=0,0,G38/H38)+1280940 -> 1599572.733 | K38: 1599572.733 | L38: 0
A39: 1905 | B39: Land | C39: 96300 | E39: 96300 | G39: 96300 | J39: 0 | K39: 0 | L39: 0
A40: 1908 | B40: Buildings & Fixtures | E40: 0 | F40: 19446 | G40: 9723 | H40: 5 | I40: 0.2 | J40: 1944.6 | K40: 1944.6 | L40: 0
A41: 1908 | B41: Buildings & Fixtures | C41: =471626+38563 -> 510189 | D41: =167134+9447 -> 176581 | E41: 333608 | F41: =3615+22314 -> 25929 | G41: 346572.5 | H41: 10 | I41: 0.1 | J41: 34657.25 | K41: 34657.25
A42: 1908 | B42: Buildings & Fixtures | C42: =141810 -> 141810 | E42: 141810 | F42: =-19519 -> -19519 | G42: 132050.5 | H42: 15 | I42: 0.06666666667 | J42: 8803.366667 | K42: 8803.366667
A43: 1908 | B43: Buildings & Fixtures | C43: =278188+370060 -> 648248 | D43: =149255+12406 -> 161661 | E43: 486587 | F43: 22593 | G43: 497883.5 | H43: 20 | I43: 0.05 | J43: 24894.175 | K43: 24894.175
A44: 1908 | B44: Buildings & Fixtures | C44: =433266+230201+85909 -> 749376 | E44: 749376 | F44: 178347 | G44: 838549.5 | H44: 25 | I44: 0.04 | J44: 33541.98 | K44: 33541.98
A45: 1908 | B45: Buildings & Fixtures | C45: =3232809+2954630 -> 6187439 | E45: 6187439 | G45: 6187439 | H45: 50 | I45: 0.02 | J45: 123748.78 | K45: 123748.78
A46: 1910 | B46: Leasehold Improvements | E46: 0 | G46: 0 | J46: 0 | K46: 0 | L46: 0
A47: 1915 | B47: Office Furniture & Equipment (10 years) | C47: 1396963 | D47: 916649 | E47: 480314 | F47: 81205 | G47: 520916.5 | H47: 10 | I47: 0.1 | J47: 52091.65 | K47: 52091.65 | L47: 0
A48: 1915 | B48: Office Furniture & Equipment (5 years) | E48: 0 | G48: 0 | J48: 0 | K48: 0 | L48: 0
A49: 1920 | B49: Computer Equipment - Hardware | C49: 855550 | D49: =494929+176983 -> 671912 | E49: 183638 | F49: 89641 | G49: 228458.5 | H49: 5 | I49: 0.2 | J49: =IF(H49=0,0,G49/H49)+14742 -> 60433.7 | K49: 60433.7 | L49: 0
A50: 1920 | B50: Computer Equip.-Hardware(Post Mar. 22/04) | E50: 0 | G50: 0 | J50: 0 | K50: 0 | L50: 0
A51: 1920 | B51: Computer Equip.-Hardware(Post Mar. 19/07) | E51: 0 | G51: 0 | J51: 0 | K51: 0 | L51: 0
A52: 1930 | B52: Transportation Equipment | C52: =29164+834840 -> 864004 | D52: =29164+516477 -> 545641 | E52: 318363 | F52: 64539 | G52: 350632.5 | H52: 5 | I52: 0.2 | J52: 70126.5 | K52: 70126.5 | L52: 0
A53: 1930 | B53: Transportation Equipment | C53: =238713+2561883 -> 2800596 | D53: =238713+1049903+199385 -> 1488001 | E53: 1312595 | G53: 1312595 | H53: 8 | I53: 0.125 | J53: 164074.375 | K53: 164074.375
A54: 1935 | B54: Stores Equipment | C54: 292425 | D54: 292425 | E54: 0 | G54: 0 | J54: 0 | K54: 0 | L54: 0
A55: 1940 | B55: Tools, Shop & Garage Equipment | C55: 1330286 | D55: 1039162 | E55: 291124 | F55: 27128 | G55: 304688 | H55: 10 | I55: 0.1 | J55: =IF(H55=0,0,G55/H55)+1571 -> 32039.8 | K55: 32039.8 | L55: 0
A56: 1945 | B56: Measurement & Testing Equipment | C56: 368936 | D56: 316147 | E56: 52789 | F56: 2519 | G56: 54048.5 | H56: 10 | I56: 0.1 | J56: 5404.85 | K56: 5404.85 | L56: 0
A57: 1950 | B57: Power Operated Equipment | E57: 0 | G57: 0 | J57: 0 | K57: 0 | L57: 0
A58: 1955 | B58: Communications Equipment | C58: 191860 | D58: 191860 | E58: 0 | G58: 0 | J58: 0 | K58: 0 | L58: 0
A59: 1955 | B59: Communication Equipment (Smart Meters) | E59: 0 | G59: 0 | J59: 0 | K59: 0 | L59: 0
A60: 1960 | B60: Miscellaneous Equipment | E60: 0 | G60: 0 | J60: 0 | K60: 0 | L60: 0
A61: 1975 | B61: Load Management Controls Utility Premises | E61: 0 | G61: 0 | J61: 0 | K61: 0 | L61: 0
A62: 1980 | B62: System Supervisor Equipment | C62: 3021560 | D62: 2628421 | E62: 393139 | F62: 64163 | G62: 425220.5 | H62: 15 | I62: 0.06666666667 | J62: 25012 | K62: 25012 | L62: 0
A63: 1985 | B63: Miscellaneous Fixed Assets | E63: 0 | G63: 0 | J63: 0 | K63: 0 | L63: 0
A64: 1995 | B64: Contributions & Grants | C64: -24106435 | E64: -24106435 | F64: -3238245 | G64: -25725557.5 | H64: 25 | I64: 0.04 | J64: -1029022.3 | K64: -1029022.3 | L64: 0
A65: 1609 | B65: Other Tangible Property | C65: 943057 | D65: 0 | E65: 943057 | F65: 5855000 | G65: 3870557 | J65: 0 | K65: 0 | L65: 0
E66: 0 | G66: 0 | J66: 0 | K66: 0 | L66: 0
B67: Total | C67: =SUM(C17:C66) -> 211792789.7 | D67: =SUM(D17:D66) -> 44642223 | E67: =SUM(E17:E66) -> 167150566.7 | F67: =SUM(F17:F66) -> 24808166 | G67: =SUM(G17:G66) -> 179554649.7 | J67: =SUM(J17:J66) -> 8885658.737 | K67: =SUM(K17:K66) -> 8885658.737 | L67: =SUM(L17:L66) -> 0
C70: Year | D70: 2011 | E70: Former CGAAP - CGAAP without the changes to the policies
A72: Account | B72: Description | C72: Opening Regulatory Gross PP&E as at Jan 1, 2011 | D72: Less Fully Depreciated | E72: Net for Depreciation | F72: Additions | G72: Total for Depreciation | H72: Years | I72: Depreciation Rate | J72: 2011 Depreciation Expense | K72: 2011 Depreciation Expense per Appendix 2-B Fixed Assets, Column K (l) | L72: Variance 2
C73: (a) | D73: (b) | E73: (c) | F73: (d) | G73: (e) = (c) + ½ x (d) 1 | H73: (f) | I73: (g) = 1 / (f) | J73: (h) = (e) / (f) | L73: (m) = (h) - (l)
A74: 1611 | B74: Computer Software (Formally known as Account 1925) | C74: 4441146 | D74: =1744085+3359+62928+923641+19251+53848 -> 2807112 | E74: =C74-D74 -> 1634034 | F74: 531430 | G74: =E74+0.5*F74 -> 1899749 | H74: 5 | I74: =IF(H74=0,"",1/H74) -> 0.2 | J74: 358411 | K74: 358411 | L74: =IF(ISERROR(+J74-K74), "", +J74-K74) -> 0
A75: 1612 | B75: Land Rights (Formally known as Account 1906) | C75: 12933 | D75: 2130 | E75: =C75-D75 -> 10803 | G75: =E75+0.5*F75 -> 10803 | H75: 35 | I75: 0.02857142857 | J75: =IF(H75=0,0,G75/H75) -> 308.6571429 | K75: 308.6571429 | L75: =IF(ISERROR(+J75-K75), "", +J75-K75) -> 0
A76: 1612 | B76: Land Rights (Formally known as Account 1906) | C76: 176418 | E76: 176418 | G76: 176418 | H76: 70 | I76: 0.01428571429 | J76: 2520.257143 | K76: 2520.257143 | L76: 0
A77: 1805 | B77: Land | C77: 202703 | E77: 202703 | G77: 202703 | H77: 0 | J77: 0 | K77: 0 | L77: 0
A78: 1808 | B78: Buildings - Equipment | C78: =169172+8830+5700+1400 -> 185102 | D78: 27874 | E78: 157228 | F78: =6278+11880 -> 18158 | G78: 166307 | H78: 10 | I78: 0.1 | J78: 16630.7 | K78: 16630.7 | L78: 0
A79: 1808 | B79: Buildings - Equipment | E79: 0 | F79: 7599 | G79: =E79+0.5*F79 -> 3799.5 | H79: 15 | I79: 0.06666666667 | J79: 253.3 | K79: 253.3
A80: 1808 | B80: Buildings - Equipment | C80: 9900 | E80: 9900 | G80: =E80+0.5*F80 -> 9900 | H80: 20 | I80: 0.05 | J80: 495 | K80: 495
A81: 1808 | B81: Buildings - Major Repairs | C81: 404394 | D81: 14394 | E81: 390000 | F81: 1430 | G81: 390715 | H81: 25 | I81: 0.04 | J81: 15628.6 | K81: 15628.6 | L81: 0
A82: 1808 | B82: Buildings - Major Repairs | C82: 9085 | E82: 9085 | G82: 9085 | H82: 30 | I82: 0.03333333333 | J82: 302.8333333 | K82: 302.8333333
A83: 1808 | B83: Buildings - Brick, Stone, Concrete and Steel | C83: 1655728 | E83: 1655728 | G83: 1655728 | H83: 50 | I83: 0.02 | J83: 33114.56 | K83: 33114.56 | L83: 0
A84: 1810 | B84: Leasehold Improvements | E84: 0 | G84: 0 | H84: 0 | J84: 0 | K84: 0 | L84: 0
A85: 1815 | B85: Transformer Station Equipment >50 kV | E85: 0 | G85: 0 | H85: 0 | J85: 0 | K85: 0 | L85: 0
A86: 1820 | B86: Distribution Station Equipment <50 kV | C86: 13180871 | D86: 2563889 | E86: 10616982 | F86: 645339 | G86: 10939651.5 | H86: 30 | I86: 0.03333333333 | J86: 360175 | K86: 360175 | L86: 0
A87: 1825 | B87: Storage Battery Equipment | E87: 0 | G87: 0 | H87: 0 | J87: 0 | K87: 0 | L87: 0
A88: 1830 | B88: Poles, Towers & Fixtures | C88: 26025505 | D88: 3292696 | E88: 22732809 | F88: 2564592 | G88: 24015105 | H88: 25 | I88: 0.04 | J88: 960604.2 | K88: 960604.2 | L88: 0
A89: 1835 | B89: Overhead Conductors & Devices | C89: 38499884 | D89: 5670755 | E89: 32829129 | F89: 1222353 | G89: 33440305.5 | H89: 25 | I89: 0.04 | J89: 1337612.22 | K89: 1337612.22 | L89: 0
A90: 1840 | B90: Underground Conduit | C90: 13529171 | D90: 1829276 | E90: 11699895 | F90: 893215 | G90: 12146502.5 | H90: 25 | I90: 0.04 | J90: 485860.1 | K90: 485860.1 | L90: 0
A91: 1845 | B91: Underground Conductors & Devices | C91: 24767744 | D91: 3109769 | E91: 21657975 | F91: 1009509 | G91: 22162729.5 | H91: 25 | I91: 0.04 | J91: 886509.18 | K91: 886509.18 | L91: 0
A92: 1850 | B92: Line Transformers | C92: 45814007 | D92: 5225939 | E92: 40588068 | F92: 603586 | G92: 40889861 | H92: 25 | I92: 0.04 | J92: 1635594.44 | K92: 1635594.44 | L92: 0
A93: 1855 | B93: Services (Overhead & Underground) | C93: 29513031 | D93: 4390262 | E93: 25122769 | F93: 1099026 | G93: 25672282 | H93: 25 | I93: 0.04 | J93: 1026891.28 | K93: 1026891.28 | L93: 0
A94: 1860 | B94: Meters | C94: 8202543 | D94: =1766267+55592 -> 1821859 | E94: 6380684 | F94: 329818 | G94: 6545593 | H94: 25 | I94: 0.04 | J94: 261823.72 | K94: 261823.72 | L94: 0
A95: 1860 | B95: Meters (Smart Meters) | E95: 0 | G95: 0 | J95: 0 | K95: 0 | L95: 0
A96: 1905 | B96: Land | C96: 96300 | E96: 96300 | G96: 96300 | H96: 0 | J96: 0 | K96: 0 | L96: 0
A97: 1908 | B97: Buildings & Fixtures - Equipment | C97: =380435+72750 -> 453185 | D97: =132169+9447 -> 141616 | E97: 311569 | F97: 57003 | G97: 340070.5 | H97: 10 | I97: 0.1 | J97: 34007.05 | K97: 34007.05 | L97: 0
A98: 1908 | B98: Buildings & Fixtures - Equipment | F98: 141810 | G98: 70905 | H98: 15 | I98: 0.06666666667 | J98: 4727 | K98: 4727
A99: 1908 | B99: Buildings & Fixtures - Driveways | C99: =571928+76321 -> 648249 | D99: =149255+12406 -> 161661 | E99: 486588 | G99: 486588 | H99: 20 | I99: 0.05 | J99: 24329.4 | K99: 24329.4 | L99: 0
A100: 1908 | B100: Buildings & Fixtures - Major Repairs | C100: =707393+41981 -> 749374 | E100: 749374 | G100: 749374 | H100: 25 | I100: 0.04 | J100: 29974.96 | K100: 29974.96 | L100: 0
A101: 1908 | B101: Buildings & Fixtures - Brick Store etc | C101: 6187440 | E101: 6187440 | G101: 6187440 | H101: 50 | I101: 0.02 | J101: 123748.8 | K101: 123748.8 | L101: 0
A102: 1910 | B102: Leasehold Improvements | E102: 0 | G102: 0 | J102: 0 | K102: 0 | L102: 0
A103: 1915 | B103: Office Furniture & Equipment (10 years) | C103: 1325174 | D103: =714345+185514 -> 899859 | E103: 425315 | F103: 71789 | G103: 461209.5 | H103: 10 | I103: 0.1 | J103: 46120.95 | K103: 46120.95 | L103: 0
A104: 1915 | B104: Office Furniture & Equipment (5 years) | E104: 0 | G104: 0 | J104: 0 | K104: 0 | L104: 0
A105: 1920 | B105: Computer Equipment - Hardware | C105: 813080 | D105: =444183+92465+6575+2695+13597+44175 -> 603690 | E105: 209390 | F105: 42470 | G105: 230625 | H105: 5 | I105: 0.2 | J105: 46125 | K105: 46125 | L105: 0
A106: 1920 | B106: Computer Equip.-Hardware(Post Mar. 22/04) | E106: 0 | G106: 0 | J106: 0 | K106: 0 | L106: 0
A107: 1920 | B107: Computer Equip.-Hardware(Post Mar. 19/07) | E107: 0 | G107: 0 | J107: 0 | K107: 0 | L107: 0
A108: 1930 | B108: Transportation Equipment - under 3 Tons | C108: 951396 | D108: =355662.92+151620 -> 507282.92 | E108: 444113.08 | F108: 64228 | G108: 476227.08 | H108: 5 | I108: 0.2 | J108: 95245.416 | K108: 95245.416 | L108: 0
A109: 1930 | B109: Transportation Equipment - 3 Tons & Over | C109: 2800596.14 | D109: =238713+987648 -> 1226361 | E109: 1574235.14 | G109: 1574235.14 | H109: 8 | I109: 0.125 | J109: 196779.3925 | K109: 196779.3925 | L109: 0
A110: 1935 | B110: Stores Equipment | C110: 292425 | D110: 292425 | E110: 0 | G110: 0 | H110: 10 | I110: 0.1 | J110: 0 | K110: 0 | L110: 0
A111: 1940 | B111: Tools, Shop & Garage Equipment | C111: 1314552 | D111: =385977+303289+314071+1714 -> 1005051 | E111: 309501 | F111: 15734 | G111: 317368 | H111: 10 | I111: 0.1 | J111: 31736.8 | K111: 31736.8 | L111: 0
A112: 1945 | B112: Measurement & Testing Equipment | C112: 366214 | D112: =29125+280811 -> 309936 | E112: 56278 | F112: 2722 | G112: 57639 | H112: 10 | I112: 0.1 | J112: 5763.9 | K112: 5763.9 | L112: 0
A113: 1950 | B113: Power Operated Equipment | E113: 0 | G113: 0 | J113: 0 | K113: 0 | L113: 0
A114: 1955 | B114: Communications Equipment | C114: 191861 | D114: 191861 | E114: 0 | G114: 0 | J114: 0 | K114: 0 | L114: 0
A115: 1955 | B115: Communication Equipment (Smart Meters) | E115: 0 | G115: 0 | J115: 0 | K115: 0 | L115: 0
A116: 1960 | B116: Miscellaneous Equipment | E116: 0 | G116: 0 | J116: 0 | K116: 0 | L116: 0
A117: 1975 | B117: Load Management Controls Utility Premises | E117: 0 | G117: 0 | J117: 0 | K117: 0 | L117: 0
A118: 1980 | B118: System Supervisor Equipment | C118: 2976201 | D118: 2626720 | E118: 349481 | F118: 45359 | G118: 372160.5 | H118: 15 | I118: 0.06666666667 | J118: 22258 | K118: 22258 | L118: 0
A119: 1985 | B119: Miscellaneous Fixed Assets | E119: 0 | G119: 0 | J119: 0 | K119: 0 | L119: 0
A120: 1995 | B120: Contributions & Grants | C120: -22658819 | E120: -22658819 | F120: -1447615 | G120: -23382626.5 | H120: 25 | I120: 0.04 | J120: -935305.06 | K120: -935305.06 | L120: 0
A121: 1609 | B121: Other Tangible Property | E121: 0 | F121: 943057 | G121: 471528.5 | J121: 0 | K121: 0 | L121: 0
E122: 0 | G122: 0 | J122: 0 | L122: 0
B123: Total | C123: =SUM(C74:C122) -> 203137393.1 | D123: =SUM(D74:D122) -> 38722417.92 | E123: =SUM(E74:E122) -> 164414975.2 | F123: =SUM(F74:F122) -> 8862612 | G123: =SUM(G74:G122) -> 168846281.2 | J123: =SUM(J74:J122) -> 7108246.656 | K123: =SUM(K74:K122) -> 7108246.656 | L123: =SUM(L74:L122) -> 0
C125: Year | D125: 2010 | E125: Former CGAAP - CGAAP without the changes to the policies
A128: Account | B128: Description | C128: Opening Regulatory Gross PP&E as at Jan 1, 2010 | D128: Less Fully Depreciated | E128: Net for Depreciation | F128: Additions | G128: Total for Depreciation | H128: Years | I128: Depreciation Rate | J128: 2010 Depreciation Expense | K128: 2010 Depreciation Expense per Appendix 2-B Fixed Assets, Column K (l) | L128: Variance 2
C129: (a) | D129: (b) | E129: (c) | F129: (d) | G129: (e) = (c) + ½ x (d) 1 | H129: (f) | I129: (g) = 1 / (f) | J129: (h) = (e) / (f) | L129: (m) = (h) - (l)
A130: 1611 | B130: Computer Software (Formally known as Account 1925) | C130: 4191890 | D130: =1744085+3359+62928+879693+19251+53848 -> 2763164 | E130: =C130-D130 -> 1428726 | F130: 249256 | G130: =E130+0.5*F130 -> 1553354 | H130: 5 | I130: =IF(H130=0,"",1/H130) -> 0.2 | J130: 305500 | K130: 305500 | L130: =IF(ISERROR(+J130-K130), "", +J130-K130) -> 0
A131: 1612 | B131: Land Rights (Formally known as Account 1906) | C131: 12933 | D131: 2130 | E131: =C131-D131 -> 10803 | G131: =E131+0.5*F131 -> 10803 | H131: 35 | I131: 0.02857142857 | J131: =IF(H131=0,0,G131/H131) -> 308.6571429 | K131: 308.6571429 | L131: =IF(ISERROR(+J131-K131), "", +J131-K131) -> 0
A132: 1612 | B132: Land Rights (Formally known as Account 1906) | C132: 176418 | E132: 176418 | G132: 176418 | H132: 70 | I132: 0.01428571429 | J132: 2520.257143 | K132: 2520.257143 | L132: 0
A133: 1805 | B133: Land | C133: 202703 | E133: 202703 | G133: 202703 | H133: 0 | J133: 0 | K133: 0 | L133: 0
A134: 1808 | B134: Buildings - Equipment | C134: 169172 | D134: 22174 | E134: 146998 | F134: 15930 | G134: 154963 | H134: 10 | I134: 0.1 | J134: 15496.3 | K134: 15496.3 | L134: 0
A135: 1808 | B135: Buildings - Equipment | E135: 0 | F135: 9900 | G135: 4950 | H135: 20 | I135: 0.05 | J135: 247.5 | K135: 247.5
A136: 1808 | B136: Buildings - Major Repairs | C136: 404394 | D136: 14394 | E136: 390000 | F136: 0 | G136: 390000 | H136: 25 | I136: 0.04 | J136: 15600 | K136: 15600 | L136: 0
A137: 1808 | B137: Buildings - Major Repairs | E137: 0 | F137: 9085 | G137: 4542.5 | H137: 30 | I137: 0.03333333333 | J137: 151.4166667 | K137: 151.4166667 | L137: 0
A138: 1808 | B138: Buildings - Brick, Stone, Concrete and Steel | C138: 1655728 | E138: 1655728 | G138: 1655728 | H138: 50 | I138: 0.02 | J138: 33114.56 | K138: 33114.56 | L138: 0
A139: 1810 | B139: Leasehold Improvements | C139: 0 | E139: 0 | G139: 0 | J139: 0 | K139: 0 | L139: 0
A140: 1815 | B140: Transformer Station Equipment >50 kV | C140: 0 | E140: 0 | G140: 0 | J140: 0 | K140: 0 | L140: 0
A141: 1820 | B141: Distribution Station Equipment <50 kV | C141: 12965913 | D141: 2317634 | E141: 10648279 | F141: 214958 | G141: 10755758 | H141: 30 | I141: 0.03333333333 | J141: 357629.64 | K141: 357629.64 | L141: 0
A142: 1825 | B142: Storage Battery Equipment | C142: 0 | E142: 0 | G142: 0 | J142: 0 | K142: 0 | L142: 0
A143: 1830 | B143: Poles, Towers & Fixtures | C143: 24151388 | D143: 2815379 | E143: 21336009 | F143: 1874117 | G143: 22273067.5 | H143: 25 | I143: 0.04 | J143: 890922.7 | K143: 890922.7 | L143: 0
A144: 1835 | B144: Overhead Conductors & Devices | C144: 37300263 | D144: 4848708 | E144: 32451555 | F144: 1199621 | G144: 33051365.5 | H144: 25 | I144: 0.04 | J144: 1322054.62 | K144: 1322054.62 | L144: 0
A145: 1840 | B145: Underground Conduit | C145: 12088085 | D145: 1564099 | E145: 10523986 | F145: 1441086 | G145: 11244529 | H145: 25 | I145: 0.04 | J145: 449781.16 | K145: 449781.16 | L145: 0
A146: 1845 | B146: Underground Conductors & Devices | C146: 23584390 | D146: 2658969 | E146: 20925421 | F146: 1183354 | G146: 21517098 | H146: 25 | I146: 0.04 | J146: 860683.92 | K146: 860683.92 | L146: 0
A147: 1850 | B147: Line Transformers | C147: 43726111 | D147: 4453185 | E147: 39272926 | F147: 2087896 | G147: 40316874 | H147: 25 | I147: 0.04 | J147: 1612674.96 | K147: 1612674.96 | L147: 0
A148: 1855 | B148: Services (Overhead & Underground) | C148: 27927296 | D148: 3753839 | E148: 24173457 | F148: 1585735 | G148: 24966324.5 | H148: 25 | I148: 0.04 | J148: 998652.98 | K148: 998652.98 | L148: 0
A149: 1860 | B149: Meters | C149: 10063029 | D149: =1483897+3967313 -> 5451210 | E149: 4611819 | F149: 2106826 | G149: 5665232 | H149: 25 | I149: 0.04 | J149: 226609.28 | K149: 226609.28 | L149: 0
A150: 1860 | B150: Meters (Smart Meters) | C150: 0 | E150: 0 | G150: 0 | J150: 0 | K150: 0 | L150: 0
A151: 1905 | B151: Land | C151: 96300 | E151: 96300 | G151: 96300 | H151: 0 | J151: 0 | K151: 0 | L151: 0
A152: 1908 | B152: Buildings & Fixtures - Equipment | C152: 380435 | D152: =123761+9447 -> 133208 | E152: 247227 | F152: 72750 | G152: 283602 | H152: 10 | I152: 0.1 | J152: 28360.2 | K152: 28360.2 | L152: 0
A153: 1908 | B153: Buildings & Fixtures - Driveways | C153: 571928 | D153: =149255+12406 -> 161661 | E153: 410267 | F153: 76321 | G153: 448427.5 | H153: 20 | I153: 0.05 | J153: 22421.375 | K153: 22421.375 | L153: 0
A154: 1908 | B154: Buildings & Fixtures - Major Repairs | C154: 707393 | E154: 707393 | F154: 41981 | G154: 728383.5 | H154: 25 | I154: 0.04 | J154: 29135.34 | K154: 29135.34 | L154: 0
A155: 1908 | B155: Buildings & Fixtures - Brick Store etc | C155: 6187439 | E155: 6187439 | G155: 6187439 | H155: 50 | I155: 0.02 | J155: 123748.78 | K155: 123748.78 | L155: 0
A156: 1910 | B156: Leasehold Improvements | C156: 0 | E156: 0 | G156: 0 | J156: 0 | K156: 0 | L156: 0
A157: 1915 | B157: Office Furniture & Equipment (10 years) | C157: 1273709 | D157: =712402.58+185514.63+690 -> 898607.21 | E157: 375101.79 | F157: 52155 | G157: 401179.29 | H157: 10 | I157: 0.1 | J157: 40117.929 | K157: 40117.929 | L157: 0
A158: 1915 | B158: Office Furniture & Equipment (5 years) | C158: 0 | E158: 0 | G158: 0 | J158: 0 | K158: 0 | L158: 0
A159: 1920 | B159: Computer Equipment - Hardware | C159: 738094 | D159: =388416+92465+6575+2695+13597+26894 -> 530642 | E159: 207452 | F159: 74986 | G159: 244945 | H159: 5 | I159: 0.2 | J159: 48989 | K159: 48989 | L159: 0
A160: 1920 | B160: Computer Equip.-Hardware(Post Mar. 22/04) | C160: 0 | E160: 0 | G160: 0 | J160: 0 | K160: 0 | L160: 0
A161: 1920 | B161: Computer Equip.-Hardware(Post Mar. 19/07) | C161: 0 | E161: 0 | G161: 0 | J161: 0 | K161: 0 | L161: 0
A162: 1930 | B162: Transportation Equipment - under 3 Tons | C162: 912989 | D162: 478119 | E162: 434870 | F162: 38406 | G162: 454073 | H162: 5 | I162: 0.2 | J162: 90814.6 | K162: 90814.6 | L162: 0
A163: 1930 | B163: Transportation Equipment - 3 Tons & Over | C163: 2979702 | D163: =238713+987648+221678 -> 1448039 | E163: 1531663 | F163: 42572 | G163: 1552949 | H163: 8 | J163: 194118.625 | K163: 194118.625 | L163: 0
A164: 1935 | B164: Stores Equipment | C164: 292425 | D164: 292425 | E164: 0 | G164: 0 | H164: 10 | I164: 0.1 | J164: 0 | K164: 0 | L164: 0
A165: 1940 | B165: Tools, Shop & Garage Equipment | C165: 1292993 | D165: =373537+303289+293393+1714 -> 971933 | E165: 321060 | F165: 21559 | G165: 331839.5 | H165: 10 | I165: 0.1 | J165: 33183.95 | K165: 33183.95 | L165: 0
A166: 1945 | B166: Measurement & Testing Equipment | C166: 362219 | D166: =29125+280811 -> 309936 | E166: 52283 | F166: 3995 | G166: 54280.5 | H166: 10 | I166: 0.1 | J166: 5428.05 | K166: 5428.05 | L166: 0
A167: 1950 | B167: Power Operated Equipment | C167: 0 | E167: 0 | G167: 0 | J167: 0 | K167: 0 | L167: 0
A168: 1955 | B168: Communications Equipment | C168: 191861 | D168: 191861 | E168: 0 | G168: 0 | J168: 0 | K168: 0 | L168: 0
A169: 1955 | B169: Communication Equipment (Smart Meters) | C169: 0 | E169: 0 | G169: 0 | J169: 0 | K169: 0 | L169: 0
A170: 1960 | B170: Miscellaneous Equipment | C170: 0 | E170: 0 | G170: 0 | J170: 0 | K170: 0 | L170: 0
A171: 1975 | B171: Load Management Controls Utility Premises | C171: 0 | E171: 0 | G171: 0 | J171: 0 | K171: 0 | L171: 0
A172: 1980 | B172: System Supervisor Equipment | C172: 2883378 | D172: 150363 | E172: 2733015 | F172: 92823 | G172: 2779426.5 | H172: 15 | I172: 0.06666666667 | J172: 184143 | K172: 184143 | L172: 0
A173: 1985 | B173: Miscellaneous Fixed Assets | C173: 0 | E173: 0 | G173: 0 | J173: 0 | K173: 0 | L173: 0
A174: 1995 | B174: Contributions & Grants | C174: -19753629 | E174: -19753629 | F174: -2905190 | G174: -21206224 | H174: 25 | I174: 0.04 | J174: -848248.96 | K174: -848248.96 | L174: 0
A175: etc. | E175: 0 | G175: 0 | J175: 0 | L175: 0
E176: 0 | G176: 0 | J176: 0 | L176: 0
B177: Total | C177: =SUM(C130:C176) -> 197736949 | D177: =SUM(D130:D176) -> 36231679.21 | E177: =SUM(E130:E176) -> 161505269.8 | F177: =SUM(F130:F176) -> 9590122 | G177: =SUM(G130:G176) -> 166300330.8 | J177: =SUM(J130:J176) -> 7044159.84 | K177: =SUM(K130:K176) -> 7044159.84 | L177: =SUM(L130:L176) -> 0
C180: Year | D180: 2009 | E180: Former CGAAP - CGAAP without the changes to the policies
A182: Account | B182: Description | C182: Opening Regulatory Gross PP&E as at Jan 1, 2009 | D182: Less Fully Depreciated | E182: Net for Depreciation | F182: Additions | G182: Total for Depreciation | H182: Years | I182: Depreciation Rate | J182: 2009 Depreciation Expense | K182: 2009 Depreciation Expense per Appendix 2-B Fixed Assets, Column K (l) | L182: Variance 2
C183: (a) | D183: (b) | E183: (c) | F183: (d) | G183: (e) = (c) + ½ x (d) 1 | H183: (f) | I183: (g) = 1 / (f) | J183: (h) = (e) / (f) | L183: (m) = (h) - (l)
A184: 1611 | B184: Computer Software (Formally known as Account 1925) | C184: 3501452 | D184: =2319826+92388 -> 2412214 | E184: =C184-D184 -> 1089238 | F184: 782826 | G184: =E184+0.5*F184 -> 1480651 | H184: 5 | I184: =IF(H184=0,"",1/H184) -> 0.2 | J184: 277324 | K184: 277324 | L184: =IF(ISERROR(+J184-K184), "", +J184-K184) -> 0
A185: 1612 | B185: Land Rights (Formally known as Account 1906) | C185: 12933 | D185: 2130 | E185: =C185-D185 -> 10803 | G185: =E185+0.5*F185 -> 10803 | H185: 35 | I185: 0.02857142857 | J185: =IF(H185=0,0,G185/H185) -> 308.6571429 | K185: 308.6571429 | L185: =IF(ISERROR(+J185-K185), "", +J185-K185) -> 0
A186: 1612 | B186: Land Rights (Formally known as Account 1906) | C186: 176418 | E186: 176418 | G186: 176418 | H186: 70 | I186: 0.01428571429 | J186: 2520.257143 | K186: 2520.257143 | L186: 0
A187: 1805 | B187: Land | C187: 202703 | E187: 202703 | G187: 202703 | H187: 0 | J187: 0 | K187: 0 | L187: 0
A188: 1808 | B188: Buildings - Equipment | C188: 161977 | D188: 22174 | E188: 139803 | F188: 7195 | G188: 143400.5 | H188: 10 | I188: 0.1 | J188: 14340.05 | K188: 14340.05 | L188: 0
A189: 1808 | B189: Buildings - Major Repairs | C189: 199541 | D189: 14394 | E189: 185147 | F189: 204853 | G189: 287573.5 | H189: 25 | I189: 0.04 | J189: 11502.94 | K189: 11502.94 | L189: 0
A190: 1808 | B190: Buildings - Brick, Stone, Concrete and Steel | C190: 1655728 | E190: 1655728 | G190: 1655728 | H190: 50 | I190: 0.02 | J190: 33114.56 | K190: 33114.56 | L190: 0
A191: 1810 | B191: Leasehold Improvements | C191: 0 | E191: 0 | G191: 0 | J191: 0 | K191: 0 | L191: 0
A192: 1815 | B192: Transformer Station Equipment >50 kV | C192: 0 | E192: 0 | G192: 0 | J192: 0 | K192: 0 | L192: 0
A193: 1820 | B193: Distribution Station Equipment <50 kV | C193: 12783395 | D193: =2563889-208748-37507 -> 2317634 | E193: 10465761 | F193: 182518 | G193: 10557020 | H193: 30 | I193: 0.03333333333 | J193: 351900.6667 | K193: 351900.6667 | L193: 0
A194: 1825 | B194: Storage Battery Equipment | C194: 0 | E194: 0 | G194: 0 | J194: 0 | K194: 0 | L194: 0
A195: 1830 | B195: Poles, Towers & Fixtures | C195: 22037933 | D195: 2681053 | E195: 19356880 | F195: 2113455 | G195: 20413607.5 | H195: 25 | I195: 0.04 | J195: 816544.3 | K195: 816544.3 | L195: 0
A196: 1835 | B196: Overhead Conductors & Devices | C196: 35342997 | D196: 4617368 | E196: 30725629 | F196: 1957266 | G196: 31704262 | H196: 25 | I196: 0.04 | J196: 1268170.48 | K196: 1268170.48 | L196: 0
A197: 1840 | B197: Underground Conduit | C197: 10733310 | D197: 1489474 | E197: 9243836 | F197: 1354775 | G197: 9921223.5 | H197: 25 | I197: 0.04 | J197: 396848.94 | K197: 396848.94 | L197: 0
A198: 1845 | B198: Underground Conductors & Devices | C198: 20652799 | D198: 2532105 | E198: 18120694 | F198: 2931591 | G198: 19586489.5 | H198: 25 | I198: 0.04 | J198: 783459.58 | K198: 783459.58 | L198: 0
A199: 1850 | B199: Line Transformers | C199: 39911353 | D199: 4311517 | E199: 35599836 | F199: 3814758 | G199: 37507215 | H199: 25 | I199: 0.04 | J199: 1500288.6 | K199: 1500288.6 | L199: 0
A200: 1855 | B200: Services (Overhead & Underground) | C200: 24660397 | D200: 3574737 | E200: 21085660 | F200: 3266899 | G200: 22719109.5 | H200: 25 | I200: 0.04 | J200: 908764.38 | K200: 908764.38 | L200: 0
A201: 1860 | B201: Meters | C201: 13557072 | D201: =1483897+3885280 -> 5369177 | E201: 8187895 | F201: 391237 | G201: 8383513.5 | H201: 25 | I201: 0.04 | J201: 335340.54 | K201: 335340.54 | L201: 0
A202: 1860 | B202: Meters (Smart Meters) | C202: 0 | E202: 0 | G202: 0 | J202: 0 | K202: 0 | L202: 0
A203: 1905 | B203: Land | C203: 96300 | E203: 96300 | G203: 96300 | H203: 0 | J203: 0 | K203: 0 | L203: 0
A204: 1908 | B204: Buildings & Fixtures - Equipment | C204: 231107 | D204: 133208 | E204: 97899 | F204: 149328 | G204: 172563 | H204: 10 | I204: 0.1 | J204: 17256.3 | K204: 17256.3 | L204: 0
A205: 1908 | B205: Buildings & Fixtures - Driveways | C205: 555994 | D205: 161661 | E205: 394333 | F205: 15934 | G205: 402300 | H205: 20 | I205: 0.05 | J205: 20115 | K205: 20115 | L205: 0
A206: 1908 | B206: Buildings & Fixtures - Major Repairs | C206: 609173 | E206: 609173 | F206: 98221 | G206: 658283.5 | H206: 25 | I206: 0.04 | J206: 26331.34 | K206: 26331.34 | L206: 0
A207: 1908 | B207: Buildings & Fixtures - Brick Store etc | C207: 6187439 | E207: 6187439 | G207: 6187439 | H207: 50 | I207: 0.02 | J207: 123748.78 | K207: 123748.78 | L207: 0
A208: 1910 | B208: Leasehold Improvements | C208: 0 | E208: 0 | G208: 0 | J208: 0 | K208: 0 | L208: 0
A209: 1915 | B209: Office Furniture & Equipment (10 years) | C209: 1191252 | D209: 865122 | E209: 326130 | F209: 82457 | G209: 367358.5 | H209: 10 | I209: 0.1 | J209: 36735.85 | K209: 36735.85 | L209: 0
A210: 1915 | B210: Office Furniture & Equipment (5 years) | C210: 0 | E210: 0 | G210: 0 | J210: 0 | K210: 0 | L210: 0
A211: 1920 | B211: Computer Equipment - Hardware | C211: 1836832 | D211: =416852+1127023 -> 1543875 | E211: 292957 | F211: 28284 | G211: 307099 | H211: 5 | I211: 0.2 | J211: 61419.8 | K211: 61419.8 | L211: 0
A212: 1920 | B212: Computer Equip.-Hardware(Post Mar. 22/04) | C212: 0 | E212: 0 | G212: 0 | J212: 0 | K212: 0 | L212: 0
A213: 1920 | B213: Computer Equip.-Hardware(Post Mar. 19/07) | C213: 0 | E213: 0 | G213: 0 | J213: 0 | K213: 0 | L213: 0
... 16 more rows

Sheet App.2-CS_OldCGAAP_DepExp_2013
K1: File Number: | L1: =EBNUMBER -> EB-2013-0115
K2: Exhibit:
K3: Tab:
K4: Schedule:
K5: Page:
K7: Date:
A9: Appendix 2-CS
A10: Depreciation and Amortization Expense
A11: Assumes the applicant made capitalization and depreciation expense accounting policy changes under CGAAP effective January 1, 2013
C12: Year | D12: 2013 | E12: Former CGAAP - CGAAP without the changes to the policies
A14: Account | B14: Description | C14: Opening Regulatory Gross PP&E as at Jan 1, 2013 | D14: Less Fully Depreciated | E14: Net for Depreciation | F14: Additions | G14: Total for Depreciation | H14: Years | I14: Depreciation Rate | J14: 2013 Depreciation Expense | K14: 2013 Depreciation Expense per Appendix 2-B Fixed Assets, Column K (l) | L14: Variance 2
C15: (a) | D15: (b) | E15: (c) | F15: (d) | G15: (e) = (c) + ½ x (d) 1 | H15: (f) | I15: (g) = 1 / (f) | J15: (h) = (e) / (f) | L15: (m) = (h) - (l)
A16: 1611 | B16: Computer Software (Formally known as Account 1925) | C16: 5538925.86 | D16: =3209130.66 -> 3209130.66 | E16: =C16-D16 -> 2329795.2 | F16: 345000 | G16: =E16+0.5*F16 -> 2502295.2 | H16: 6.6464 | I16: =IF(H16=0,"",1/H16) -> 0.1504573905 | J16: =IF(H16=0,0,G16/H16) -> 376488.806 | K16: 376488.806 | L16: =IF(ISERROR(+J16-K16),"",+J16-K16) -> 0
A17: 1612 | B17: Land Rights (Formally known as Account 1906) | C17: 12932.5 | D17: 2130 | E17: =C17-D17 -> 10802.5 | G17: =E17+0.5*F17 -> 10802.5 | H17: 35 | I17: =IF(H17=0,"",1/H17) -> 0.02857142857 | J17: =IF(H17=0,0,G17/H17) -> 308.6428571 | K17: 308.6428571 | L17: =IF(ISERROR(+J17-K17),"",+J17-K17) -> 0
A18: 1612 | B18: Land Rights (Formally known as Account 1906) | C18: 176418 | E18: 176418 | G18: 176418 | H18: 70 | I18: 0.01428571429 | J18: =IF(H18=0,0,G18/H18) -> 2520.257143 | K18: 2520.257143 | L18: 0
A19: 1805 | B19: Land | C19: 202702.95 | E19: 202702.95 | G19: 202702.95 | H19: 0 | J19: 0 | K19: 0 | L19: 0
A20: 1808 | B20: Buildings | C20: 208708.45 | D20: 61436.89 | E20: 147271.56 | F20: 5000 | G20: 149771.56 | H20: 10 | I20: 0.1 | J20: 14977.156 | K20: 14977.156 | L20: 0
A21: 1808 | B21: Buildings | C21: 7598.54 | E21: 7598.54 | G21: 7598.54 | H21: 15 | I21: 0.06666666667 | J21: 506.5693333 | K21: 506.5693333 | L21: 0
A22: 1808 | B22: Buildings | C22: 9900 | E22: 9900 | G22: 9900 | H22: 20 | I22: 0.05 | J22: 495 | K22: 495 | L22: 0
A23: 1808 | B23: Buildings | C23: 405824.25 | D23: 23224.04 | E23: 382600.21 | G23: 382600.21 | H23: 25 | I23: 0.04 | J23: 15304.0084 | K23: 15304.0084 | L23: 0
A24: 1808 | B24: Buildings | C24: 9085 | E24: 9085 | G24: 9085 | H24: 30 | I24: 0.03333333333 | J24: 302.8333333 | K24: 302.8333333 | L24: 0
A25: 1808 | B25: Buildings | C25: 1655728.02 | E25: 1655728.02 | G25: 1655728.02 | H25: 50 | I25: 0.02 | J25: 33114.5604 | K25: 33114.5604 | L25: 0
A26: 1810 | B26: Leasehold Improvements | E26: 0 | G26: 0 | J26: 0 | K26: 0 | L26: 0
A27: 1815 | B27: Transformer Station Equipment >50 kV | E27: 0 | G27: 0 | J27: 0 | K27: 0 | L27: 0
A28: 1820 | B28: Distribution Station Equipment <50 kV | C28: 14420892.07 | D28: =2861189.74+117707.79 -> 2978897.53 | E28: 11441994.54 | F28: 229738.99 | G28: 11556864.03 | H28: 30 | I28: 0.03333333333 | J28: 385228.8012 | K28: 385228.8012 | L28: 0
A29: 1825 | B29: Storage Battery Equipment | E29: 0 | G29: 0 | J29: 0 | K29: 0 | L29: 0
A30: 1830 | B30: Poles, Towers & Fixtures | C30: 31180512.15 | D30: 4601676.12 | E30: 26578836.03 | F30: 3720150.82 | G30: 28438911.44 | H30: 25.0695 | I30: 0.03988910828 | J30: 1134402.818 | K30: 1134402.818 | L30: 0
A31: 1835 | B31: Overhead Conductors & Devices | C31: 41356601.16 | D31: 7925108.88 | E31: 33431492.28 | F31: 1205634.42 | G31: 34034309.49 | H31: 25.2434 | I31: 0.03961431503 | J31: 1348245.858 | K31: 1348245.858 | L31: 0
A32: 1840 | B32: Underground Conduit | C32: 16187381.56 | D32: 2556486.74 | E32: 13630894.82 | F32: 2113875.24 | G32: 14687832.44 | H32: 25.1817 | I32: 0.03971137771 | J32: 583274.0617 | K32: 583274.0617 | L32: 0
A33: 1845 | B33: Underground Conductors & Devices | C33: 27086749.73 | D33: 4346027.45 | E33: 22740722.28 | F33: 1710859.43 | G33: 23596152 | H33: 25.1921 | I33: 0.03969498374 | J33: 936648.8699 | K33: 936648.8699 | L33: 0
A34: 1850 | B34: Line Transformers | C34: 48272718.32 | D34: 7922689.54 | E34: 40350028.78 | F34: 2142678.45 | G34: 41421368.01 | H34: 26.5397 | I34: 0.03767940105 | J34: 1560732.337 | K34: 1560732.337 | L34: 0
A35: 1855 | B35: Services (Overhead & Underground) | C35: 31940499.33 | D35: 6135568.17 | E35: 25804931.16 | F35: 1210801.65 | G35: 26410331.98 | H35: 25.2428 | I35: 0.03961525663 | J35: 1046252.079 | K35: 1046252.079 | L35: 0
A36: 1860 | B36: Meters | C36: 18462866.49 | D36: 2617696.98 | E36: 15845169.51 | F36: 670000 | G36: 16180169.51 | H36: 17.87514 | I36: 0.05594361778 | J36: 905177.2188 | K36: 905177.2188 | L36: 0
A37: 1860 | B37: Meters (Smart Meters) | E37: 0 | G37: 0 | J37: 0 | K37: 0 | L37: 0
A38: 1905 | B38: Land | C38: 96299.71 | E38: 96299.71 | G38: 96299.71 | H38: 0 | J38: 0 | K38: 0 | L38: 0
A39: 1908 | B39: Buildings & Fixtures | C39: 19446.25 | E39: 19446.25 | G39: 19446.25 | H39: 5 | I39: 0.2 | J39: 3889.25 | K39: 3889.25 | L39: 0
A40: 1908 | B40: Buildings & Fixtures | C40: =475240.2+60876.89 -> 536117.09 | D40: =150143.42+21117.4 -> 171260.82 | E40: 364856.27 | G40: 364856.27 | H40: 10 | I40: 0.1 | J40: 36485.627 | K40: 36485.627 | L40: 0
A41: 1908 | B41: Buildings & Fixtures | C41: =122290.61 -> 122290.61 | E41: 122290.61 | G41: 122290.61 | H41: 15 | I41: 0.06666666667 | J41: 8152.707333 | K41: 8152.707333 | L41: 0
A42: 1908 | B42: Buildings & Fixtures | C42: =278188.29+392652.73 -> 670841.02 | D42: =149254.8+12406.1 -> 161660.9 | E42: 509180.12 | G42: 509180.12 | H42: 20 | I42: 0.05 | J42: 25459.006 | K42: 25459.006 | L42: 0
A43: 1908 | B43: Buildings & Fixtures | C43: =611612.88+230200.66+85909.1 -> 927722.64 | E43: 927722.64 | F43: 35000 | G43: 945222.64 | H43: 25 | I43: 0.04 | J43: 37808.9056 | K43: 37808.9056 | L43: 0
A44: 1908 | B44: Buildings & Fixtures | C44: =3232809.46+2954630.31 -> 6187439.77 | E44: 6187439.77 | G44: 6187439.77 | H44: 50 | I44: 0.02 | J44: 123748.7954 | K44: 123748.7954 | L44: 0
A45: 1910 | B45: Leasehold Improvements | E45: 0 | G45: 0 | J45: 0 | K45: 0 | L45: 0
A46: 1915 | B46: Office Furniture & Equipment (10 years) | C46: 1478168.42 | D46: 864006.37 | E46: 614162.05 | F46: 54000 | G46: 641162.05 | H46: 10 | I46: 0.1 | J46: 64116.205 | K46: 64116.205 | L46: 0
A47: 1915 | B47: Office Furniture & Equipment (5 years) | E47: 0 | G47: 0 | J47: 0 | K47: 0 | L47: 0
A48: 1920 | B48: Computer Equipment - Hardware | C48: 768207.89 | D48: 545460.62 | E48: 222747.27 | F48: 98000 | G48: 271747.27 | H48: 5 | I48: 0.2 | J48: 54349.454 | K48: 54349.454 | L48: 0
A49: 1920 | B49: Computer Equip.-Hardware(Post Mar. 22/04) | E49: 0 | G49: 0 | J49: 0 | K49: 0 | L49: 0
A50: 1920 | B50: Computer Equip.-Hardware(Post Mar. 19/07) | E50: 0 | G50: 0 | J50: 0 | K50: 0 | L50: 0
A51: 1930 | B51: Transportation Equipment | C51: =29164.32+899378.31 -> 928542.63 | D51: =29164.32+518666.26 -> 547830.58 | E51: 380712.05 | G51: 380712.05 | H51: 5 | I51: 0.2 | J51: 76142.41 | K51: 76142.41 | L51: 0
A52: 1930 | B52: Transportation Equipment | C52: =238713.31+2362497.55 -> 2601210.86 | D52: =232941.54+1049902.8 -> 1282844.34 | E52: 1318366.52 | F52: 46000 | G52: 1341366.52 | H52: 8 | I52: 0.125 | J52: 167670.815 | K52: 167670.815 | L52: 0
A53: 1935 | B53: Stores Equipment | C53: 292425 | D53: 292425 | E53: 0 | G53: 0 | H53: 10 | I53: 0.1 | J53: 0 | K53: 0 | L53: 0
A54: 1940 | B54: Tools, Shop & Garage Equipment | C54: 1357414.37 | D54: 797694.93 | E54: 559719.44 | F54: 18000 | G54: 568719.44 | H54: 10 | I54: 0.1 | J54: 56871.944 | K54: 56871.944 | L54: 0
A55: 1945 | B55: Measurement & Testing Equipment | C55: 371455.48 | D55: 300312.09 | E55: 71143.39 | F55: 3000 | G55: 72643.39 | H55: 10 | I55: 0.1 | J55: 7264.339 | K55: 7264.339 | L55: 0
A56: 1950 | B56: Power Operated Equipment | E56: 0 | G56: 0 | J56: 0 | K56: 0 | L56: 0
A57: 1955 | B57: Communications Equipment | C57: 191861 | D57: 191861 | E57: 0 | G57: 0 | J57: 0 | K57: 0 | L57: 0
A58: 1955 | B58: Communication Equipment (Smart Meters) | E58: 0 | G58: 0 | J58: 0 | K58: 0 | L58: 0
A59: 1960 | B59: Miscellaneous Equipment | E59: 0 | G59: 0 | J59: 0 | K59: 0 | L59: 0
A60: 1975 | B60: Load Management Controls Utility Premises | E60: 0 | G60: 0 | J60: 0 | K60: 0 | L60: 0
A61: 1980 | B61: System Supervisor Equipment | C61: 3085723.59 | D61: =2719786.73-117707.79 -> 2602078.94 | E61: 483644.65 | F61: 95261.01 | G61: 531275.155 | H61: 15 | I61: 0.06666666667 | J61: 35418.34367 | K61: 35418.34367 | L61: 0
A62: 1985 | B62: Miscellaneous Fixed Assets | E62: 0 | G62: 0 | J62: 0 | K62: 0 | L62: 0
A63: 1995 | B63: Contributions & Grants | C63: -27344679.59 | E63: -27344679.59 | F63: -3460000 | G63: -29074679.59 | H63: 25 | I63: 0.04 | J63: -1162987.184 | K63: -1162987.184 | L63: 0
A64: 1609 | B64: Other Tangible Property | C64: 6798057 | E64: 6798057 | F64: -1477000 | G64: 6059557 | H64: 60 | I64: 0.01666666667 | J64: 44342.14 | K64: 44342.14 | L64: 0
E65: 0 | G65: 0 | J65: 0 | L65: 0
B66: Total | C66: =SUM(C16:C65) -> 236224588.1 | D66: =SUM(D16:D65) -> 50137508.59 | E66: 186087079.5 | F66: 8766000.01 | G66: 190470079.5 | J66: =SUM(J16:J65) -> 7922712.635 | K66: 7922712.635 | L66: 0
A68: Notes:
A69: 1 | B69: Board policy of the "half-year" rule - the applicant must ensure that additions in the year attract a half-year depreciation expense in the first year. Deviations from this standard practice must be supported in the application.
A70: 2 | B70: The applicant must provide an explanation of material variances in evidence.
A72: General: | B72: Applicants must provide a breakdown of depreciation and amortization expense in the above format for all relevant accounts. Asset Retirement Obligations (AROs), depreciation and accretion expense should be disclosed separately consistent with the Notes of historical Audited Financial Statements.

Sheet App.2-CT_NewCGAAP_DepExp_2013
N1: File Number: | O1: =EBNUMBER -> EB-2013-0115
N2: Exhibit:
N3: Tab:
N4: Schedule:
N5: Page:
N7: Date:
A9: Appendix 2-CT
A10: Depreciation and Amortization Expense
A11: Assumes the applicant made capitalization and depreciation expense accounting policy changes under CGAAP effective January 1, 2013
C12: Year | D12: 2013 | E12: Revised CGAAP or ASPE - CGAAP or ASPE with the changes to the policies
A14: Account | B14: Description | C14: Opening NBV as at Jan 1, 2013 5 | D14: Additions | E14: Average Remaining Life of Opening NBV 4 | F14: Years (new additions only) 3 | G14: Depreciation Rate on New Additions | H14: Depreciation Expense on Opening NBV | I14: Depreciation Expense on Additions 1 | J14: 2013 Depreciation Expense | K14: 2013 Depreciation Expense per Appendix 2-B Fixed Assets, Column K (l) | L14: Variance 2 | M14: Depreciation Expense on 2013 Full Year Additions | N14: Less Depreciation Expense on Assets Fully Depreciated during the year (o) | O14: 2013 Full Year Depreciation 6 | P14: Reclass | Q14: Only 2013
C15: (a) | D15: (d) | E15: (i) | F15: (f) | G15: (g) = 1 / (f) | H15: (j) = (a) / (i) | I15: (h)=((d)*0.5)/(f) | J15: (k) = (j) + (h) | L15: (m) = (k) - (l) | M15: (n)=((d))/(f) | O15: (p) = (j) + (n) - (o)
A16: 1611 | B16: Computer Software (Formally known as Account 1925) | C16: =1461466+345 -> 1461811 | D16: 345000 | E16: 5.88 | F16: 6 | G16: =IF(F16=0,0,1/F16) -> 0.1666666667 | H16: =IF(E16=0,0,+C16/E16) -> 248607.3129 | I16: 29500 | J16: =IF(ISERROR(+H16+I16), 0, +H16+I16) -> 278107.3129 | K16: 278107.3129 | L16: =IF(ISERROR(+J16-K16), 0, +J16-K16) -> 0 | M16: 59000 | N16: 22316 | O16: =IF(ISERROR(+M16+H16-N16), 0, +M16+H16-N16)+56150 -> 341441.3129 | P16: =43130+9584+3436 -> 56150
A17: 1612 | B17: Land Rights (Formally known as Account 1906) | C17: 1537 | E17: 5 | G17: 0 | H17: =IF(E17=0,0,+C17/E17) -> 307.4 | I17: =IF(F17=0,0,+(D17*0.5)/F17) -> 0 | J17: 307.4 | K17: 307.4 | L17: 0 | M17: =IF(F17=0,0,+(D17)/F17) -> 0 | O17: =IF(ISERROR(+M17+H17-N17), 0, +M17+H17-N17) -> 307.4
A18: 1612 | B18: Land Rights (Formally known as Account 1906) | C18: 161297 | E18: 64 | G18: 0 | H18: 2520.265625 | I18: 0 | J18: 2520.265625 | K18: 2520.265625 | L18: 0 | M18: 0 | O18: 2520.265625
A19: 1805 | B19: Land | C19: 202703 | G19: 0 | H19: 0 | I19: 0 | J19: 0 | K19: 0 | L19: 0 | M19: 0 | O19: 0
A20: 1808 | B20: Buildings | C20: 145956 | D20: 5000 | E20: 9.9107 | F20: 10 | G20: 0.1 | H20: 14727.11312 | I20: 250 | J20: 14977.11312 | K20: 14977.11312 | L20: 0 | M20: 500 | O20: 15227.11312
A21: 1808 | B21: Buildings | C21: 6839 | E21: 13.51 | H21: 506.2176166 | I21: 0 | J21: 506.2176166 | K21: 506.2176166 | L21: 0 | M21: 0 | O21: 506.2176166
A22: 1808 | B22: Buildings | C22: 8663 | E22: 17.5 | H22: 495.0285714 | I22: 0 | J22: 495.0285714 | K22: 495.0285714 | L22: 0 | M22: 0 | O22: 495.0285714
A23: 1808 | B23: Buildings | C23: 347435 | E23: 22.7022 | H23: 15304.0234 | I23: 0 | J23: 15304.0234 | K23: 15304.0234 | L23: 0 | M23: 0 | O23: 15304.0234
A24: 1808 | B24: Buildings | C24: 8328 | E24: 27.48 | H24: 303.0567686 | I24: 0 | J24: 303.0567686 | K24: 303.0567686 | L24: 0 | M24: 0 | O24: 303.0567686
A25: 1808 | B25: Buildings | C25: 625709 | E25: 18.6865 | H25: 33484.54767 | I25: 0 | J25: 33484.54767 | K25: 33484.54767 | L25: 0 | M25: 0 | N25: 2184 | O25: 31300.54767
A26: 1810 | B26: Leasehold Improvements | G26: 0 | H26: 0 | I26: 0 | J26: 0 | K26: 0 | L26: 0 | M26: 0 | O26: 0
A27: 1815 | B27: Transformer Station Equipment >50 kV | G27: 0 | H27: 0 | I27: 0 | J27: 0 | K27: 0 | L27: 0 | M27: 0 | O27: 0
A28: 1820 | B28: Distribution Station Equipment <50 kV | C28: =5313261-117708 -> 5195553 | D28: 206520 | E28: 24.1774 | F28: 40 | G28: 0.025 | H28: 214892.9579 | I28: 2581.5 | J28: 217474.4579 | K28: 217474.4579 | L28: 0 | M28: 5163 | O28: 220055.9579
A29: 1820 | B29: Distribution Station Equipment <50 kV | D29: 7695 | F29: 20 | G29: 0.05 | H29: 0 | I29: 192.375 | J29: 192.375 | K29: 192.375 | L29: 0 | M29: 384.75 | O29: 384.75
A30: 1825 | B30: Storage Battery Equipment | G30: 0 | H30: 0 | I30: 0 | J30: 0 | K30: 0 | L30: 0 | M30: 0 | O30: 0
A31: 1830 | B31: Poles, Towers & Fixtures | C31: 16364710 | D31: 3252295 | E31: 33.0282 | F31: 40 | G31: 0.025 | H31: 495476.8955 | I31: 40653.6875 | J31: 536130.583 | K31: 536130.583 | L31: 0 | M31: 81307.375 | O31: =IF(ISERROR(+M31+H31-N31), 0, +M31+H31-N31) -> 576784.2705
A32: 1835 | B32: Overhead Conductors & Devices | C32: 17410602 | D32: 226610 | E32: 31.2912 | F32: 40 | G32: 0.025 | H32: 556405.6987 | I32: 2832.625 | J32: 559238.3237 | K32: 559238.3237 | L32: 0 | M32: 5665.25 | O32: =IF(ISERROR(+M32+H32-N32), 0, +M32+H32-N32)-43130-34987 -> 483953.9487 | P32: -43130 | Q32: -34987
A33: 1835 | B33: Overhead Conductors & Devices | D33: 401155 | F33: 60 | G33: 0.01666666667 | I33: 3342.958333 | J33: 3342.958333 | K33: 3342.958333 | L33: 0 | M33: 6685.916667 | O33: 6685.916667
A34: 1835 | B34: Overhead Conductors & Devices | D34: 54005 | F34: 20 | G34: 0.05 | I34: 1350.125 | J34: 1350.125 | K34: 1350.125 | L34: 0 | M34: 2700.25 | O34: 2700.25
A35: 1840 | B35: Underground Conduit | C35: 8374179 | D35: 1981565 | E35: 52.0012 | F35: 60 | G35: 0.01666666667 | H35: 161038.1876 | I35: 16513.04167 | J35: 177551.2292 | K35: 177551.2292 | L35: 0 | M35: 33026.08333 | O35: 194064.2709
A36: 1845 | B36: Underground Conductors & Devices | C36: 12959955 | D36: 1399615 | E36: 22.2444 | F36: 40 | G36: 0.025 | H36: 582616.5237 | I36: 17495.1875 | J36: 600111.7112 | K36: 600111.7112 | L36: 0 | M36: 34990.375 | O36: =IF(ISERROR(+M36+H36-N36), 0, +M36+H36-N36)-54496 -> 563110.8987 | Q36: -54496
A37: 1845 | B37: Underground Conductors & Devices | D37: 204710 | F37: 30 | G37: 0.03333333333 | I37: 3411.833333 | J37: 3411.833333 | K37: 3411.833333 | L37: 0 | M37: 6823.666667 | O37: 6823.666667
A38: 1850 | B38: Line Transformers | C38: 20769135 | D38: 2008135 | E38: 30.9156 | F38: 40 | G38: 0.025 | H38: 671801.1295 | I38: 25101.6875 | J38: 696902.817 | K38: 696902.817 | L38: 0 | M38: 50203.375 | O38: 722004.5045
A39: 1855 | B39: Services (Overhead & Underground) | C39: 13750012 | D39: 1589650 | E39: 51.4059 | F39: 60 | G39: 0.01666666667 | H39: 267479.2582 | I39: 13247.08333 | J39: 280726.3416 | K39: 280726.3416 | L39: 0 | M39: 26494.16667 | O39: 293973.4249
A40: 1860 | B40: Meters | C40: =12001434-7959409 -> 4042025 | D40: 271400 | E40: 11.8652 | F40: 15 | G40: 0.06666666667 | H40: 340662.1886 | I40: 9046.666667 | J40: 349708.8553 | K40: 349708.8553 | L40: 0 | M40: 18093.33333 | O40: =IF(ISERROR(+M40+H40-N40), 0, +M40+H40-N40)-9584-72753 -> 276418.5219 | P40: -9584 | Q40: -72753
A41: 1860 | B41: Meters | D41: 304565 | F41: 20 | G41: 0.05 | I41: 7614.125 | J41: 7614.125 | K41: 7614.125 | L41: 0 | M41: 15228.25 | O41: 15228.25
A42: 1860 | B42: Meters | D42: 58780 | F42: 45 | G42: 0.02222222222 | I42: 653.1111111 | J42: 653.1111111 | K42: 653.1111111 | L42: 0 | M42: 1306.222222 | O42: 1306.222222
A43: 1860 | B43: Meters (Smart Meters) | C43: 7959409 | E43: 12.4899 | G43: 0 | H43: 637267.6322 | I43: 0 | J43: 637267.6322 | K43: 637267.6322 | L43: 0 | M43: 0 | O43: 637267.6322
A44: 1905 | B44: Land | C44: 96300 | G44: 0 | H44: 0 | I44: 0 | J44: 0 | K44: 0 | L44: 0 | M44: 0 | O44: 0
A45: 1908 | B45: Buildings & Fixtures | C45: 17501.62 | E45: 4.5002 | G45: 0 | H45: 3889.076041 | I45: 0 | J45: 3889.076041 | K45: 3889.076041 | L45: 0 | M45: 0 | O45: 3889.076041
A46: 1908 | B46: Buildings & Fixtures | C46: =372811+49026 -> 421837 | E46: 11.5619 | G46: 0 | H46: 36485.09328 | I46: 0 | J46: 36485.09328 | K46: 36485.09328 | L46: 0 | M46: 0 | O46: 36485.09328
A47: 1908 | B47: Buildings & Fixtures | C47: =108760 -> 108760 | E47: 13.3415 | G47: 0 | H47: 8152.006896 | I47: 0 | J47: 8152.006896 | K47: 8152.006896 | L47: 0 | M47: 0 | O47: 8152.006896
A48: 1908 | B48: Buildings & Fixtures | C48: =258524+320557 -> 579081 | E48: 22.7456 | G48: 0 | H48: 25459.03384 | I48: 0 | J48: 25459.03384 | K48: 25459.03384 | L48: 0 | M48: 0 | O48: 25459.03384
A49: 1908 | B49: Buildings & Fixtures | C49: =540840+195735+61751 -> 798326 | D49: 35000 | E49: 21.5135 | F49: 25 | G49: 0.04 | H49: 37108.1414 | I49: 700 | J49: 37808.1414 | K49: 37808.1414 | L49: 0 | M49: 1400 | O49: 38508.1414
A50: 1908 | B50: Buildings & Fixtures | C50: =1334267+1324244 -> 2658511 | E50: 19.9807 | G50: 0 | H50: 133053.9471 | I50: 0 | J50: 133053.9471 | K50: 133053.9471 | L50: 0 | M50: 0 | N50: 2367 | O50: =IF(ISERROR(+M50+H50-N50), 0, +M50+H50-N50)-3436 -> 127250.9471 | P50: -3436
A51: 1910 | B51: Leasehold Improvements | G51: 0 | H51: 0 | I51: 0 | J51: 0 | K51: 0 | L51: 0 | M51: 0 | O51: 0
A52: 1915 | B52: Office Furniture & Equipment (10 years) | C52: 319085 | D52: 54000 | E52: 5.5504 | F52: 10 | G52: 0.1 | H52: 57488.64947 | I52: 2700 | J52: 60188.64947 | K52: 60188.64947 | L52: 0 | M52: 5400 | N52: 7221 | O52: 55667.64947
A53: 1915 | B53: Office Furniture & Equipment (5 years) | G53: 0 | H53: 0 | I53: 0 | J53: 0 | K53: 0 | L53: 0 | M53: 0 | O53: 0
A54: 1920 | B54: Computer Equipment - Hardware | C54: 154526 | D54: 98000 | E54: 3.0987 | F54: 5 | G54: 0.2 | H54: 49868.00917 | I54: 9800 | J54: 59668.00917 | K54: 59668.00917 | L54: 0 | M54: 19600 | N54: 8973 | O54: =IF(ISERROR(+M54+H54-N54), 0, +M54+H54-N54)-2580 -> 57915.00917 | Q54: -2580
A55: 1920 | B55: Computer Equip.-Hardware(Post Mar. 22/04) | G55: 0 | H55: 0 | I55: 0 | J55: 0 | K55: 0 | L55: 0 | M55: 0 | O55: 0
A56: 1920 | B56: Computer Equip.-Hardware(Post Mar. 19/07) | G56: 0 | H56: 0 | I56: 0 | J56: 0 | K56: 0 | L56: 0 | M56: 0 | O56: 0
A57: 1930 | B57: Transportation Equipment | C57: 258981 | E57: 14.2918 | G57: 0 | H57: 18120.95048 | I57: 0 | J57: 18120.95048 | K57: 18120.95048 | L57: 0 | M57: 0 | O57: 18120.95048
A58: 1930 | B58: Transportation Equipment | C58: 569810 | D58: 46000 | E58: 11.0148 | F58: 12 | G58: 0.08333333333 | H58: 51731.30697 | I58: 1916.666667 | J58: 53647.97364 | K58: 53647.97364 | L58: 0 | M58: 3833.333333 | O58: 55564.6403
A59: 1935 | B59: Stores Equipment | G59: 0 | H59: 0 | I59: 0 | J59: 0 | K59: 0 | L59: 0 | M59: 0 | O59: 0
A60: 1940 | B60: Tools, Shop & Garage Equipment | C60: 149260 | D60: 18000 | E60: 4.9421 | F60: 10 | G60: 0.1 | H60: 30201.7361 | I60: 900 | J60: 31101.7361 | K60: 31101.7361 | L60: 0 | M60: 1800 | N60: 5920 | O60: 26081.7361
A61: 1945 | B61: Measurement & Testing Equipment | C61: 53785 | D61: 3000 | E61: 9.881 | F61: 10 | G61: 0.1 | H61: 5443.274972 | I61: 150 | J61: 5593.274972 | K61: 5593.274972 | L61: 0 | M61: 300 | N61: 1268 | O61: 4475.274972
A62: 1950 | B62: Power Operated Equipment | G62: 0 | H62: 0 | I62: 0 | J62: 0 | K62: 0 | L62: 0 | M62: 0 | O62: 0
A63: 1955 | B63: Communications Equipment | G63: 0 | H63: 0 | I63: 0 | J63: 0 | K63: 0 | L63: 0 | M63: 0 | O63: 0
A64: 1955 | B64: Communication Equipment (Smart Meters) | G64: 0 | H64: 0 | I64: 0 | J64: 0 | K64: 0 | L64: 0 | M64: 0 | O64: 0
A65: 1960 | B65: Miscellaneous Equipment | G65: 0 | H65: 0 | I65: 0 | J65: 0 | K65: 0 | L65: 0 | M65: 0 | O65: 0
A66: 1970 | B66: Load Management Controls - Customer Premises | G66: 0 | H66: 0 | I66: 0 | J66: 0 | K66: 0 | L66: 0 | M66: 0 | O66: 0
A67: 1975 | B67: Load Management Controls Utility Premises | G67: 0 | H67: 0 | I67: 0 | J67: 0 | K67: 0 | L67: 0 | M67: 0 | O67: 0
A68: 1980 | B68: System Supervisor Equipment | C68: =362894+117708 -> 480602 | D68: 36195 | E68: 2.9069 | F68: 30 | G68: 0.03333333333 | H68: 165331.4528 | I68: 603.25 | J68: 165934.7028 | K68: 165934.7028 | L68: 0 | M68: 1206.5 | N68: 101961 | O68: 64576.95275
A69: 1980 | B69: System Supervisor Equipment | D69: 52625 | F69: 10 | G69: 0.1 | H69: 0 | I69: 2631.25 | J69: 2631.25 | K69: 2631.25 | L69: 0 | M69: 5262.5 | O69: 5262.5
A70: 1985 | B70: Miscellaneous Fixed Assets | G70: 0 | H70: 0 | I70: 0 | J70: 0 | K70: 0 | L70: 0 | M70: 0 | O70: 0
A71: 1990 | B71: Other Tangible Property | G71: 0 | H71: 0 | I71: 0 | J71: 0 | K71: 0 | L71: 0 | M71: 0 | O71: 0
A72: 1995 | B72: Contributions & Grants | C72: =-21546388 -> -21546388 | D72: -3217443 | E72: 41.2309 | F72: 46.6568 | G72: 0.021433103 | H72: -522578.6485 | I72: -34479.89361 | J72: -557058.5421 | K72: -557059.0152 | L72: 0.47306059 | M72: -68959.78721 | O72: -591538.4358
A73: 1609 | B73: Other Tangible Property | C73: 6798057 | D73: -1477000 | F73: 60 | G73: 0.01666666667 | H73: 0 | I73: 44342 | J73: 44342 | K73: 44342 | L73: 0 | M73: 88684 | O73: 88684
G74: 0 | H74: 0 | I74: 0 | J74: 0 | K74: 0 | L74: 0 | M74: 0 | O74: 0
B75: Total | C75: =SUM(C16:C74) -> 101713892.6 | D75: =SUM(D16:D74) -> 7965077 | H75: =SUM(H16:H74) -> 4343649.468 | I75: 203049.28 | J75: 4546698.748 | K75: 4546698.274 | L75: 0.47306059 | M75: 406098.56 | N75: =SUM(N16:N74) -> 152210 | O75: 4432722.028 | P75: =SUM(P16:P74) -> 0 | Q75: =SUM(Q16:Q74) -> -164816
A77: Notes:
A79: 1 | B79: Board policy of the "half-year" rule - the applicant must ensure that additions in the year attract a half-year depreciation expense in the first year. Deviations from this standard practice must be supported in the application.
A80: 2 | B80: The applicant must provide an explanation of material variances in evidence.
A81: 3 | B81: The applicant should ensure that the years for new additions of assets are the asset useful lives determined by management in accordance with the Board's regulatory accounting policies. The capitalization and depreciation expense accounting changes should be implemented consistent with the Board’s regulatory accounting policies as set out for modified IFRS as contained in the Report of the Board, Transition to International Financial Reporting Standards, EB-2008-0408, the Kinectrics Report, and the Revised 2012 Accounting Procedures Handbook for Electricity Distributors (“APH”).
A82: 4 | B82: A recalculation should be performed to determine the average remaining life of opening balance of assets (i.e. excluding 2013 additions) under the change in policies under CGAAP. For example, Asset A had a useful life of 20 years under CGAAP without the change in policies. On January 1, 2013, the effective date of the changes in poliices, Asset A was 3 years depreciated. As a result, Asset A would have a remaining service life of 17 years (20 years less 3 years) as of January 1, 2013. Due to making the change in policies under CGAAP, management re-assessed the asset useful lives and concluded that the revised useful life of Asset A is now 30 years. Therefore, the average remaining useful life of the opening balance of Asset A is determined to be 27 years (30 years less 3 years) under the revised CGAAP as of January 1, 2013.
A83: 5 | B83: NBV must exclude assets still on the books but which have been fully amortized or depreciated.
A84: 6 | B84: This column refers to the calculated full year depreciation but excludes the depreciation expense on assets fully depreciated during the year. This column is used for the purpose of calculating depreciation expense in the following year on the next worksheet.
A86: General: | B86: Applicants must provide a breakdown of depreciation and amortization expense in the above format for all relevant accounts. Asset Retirement Obligations (AROs), depreciation and accretion expense should be disclosed separately consistent with the Notes of historical Audited Financial Statements.

Sheet App.2-CU_NewCGAAP_DepExp_2014
I1: File Number: | J1: =EBNUMBER -> EB-2013-0115
I2: Exhibit:
I3: Tab:
I4: Schedule:
I5: Page:
I7: Date:
A9: Appendix 2-CU
A10: Depreciation and Amortization Expense
A11: Assumes the applicant made capitalization and depreciation expense accounting policy changes under CGAAP effective January 1, 2013
C12: Year | D12: 2014 | E12: Revised CGAAP or ASPE - CGAAP or ASPE with the changes to the policies
A13: Account | B13: Description | C13: Additions | D13: Years (new additions only) | E13: Depreciation Rate on New Additions | F13: 2014 Depreciation Expense 1 | G13: 2014 Depreciation Expense per Appendix 2-B Fixed Assets, Column K (l) | H13: Variance 2
C14: (d) | D14: (f) | E14: (g) = 1 / (f) | F14: (h)=2013 Full Year Depreciation + ((d)*0.5)/(f) | H14: (m) = (h) - (l)
A15: 1611 | B15: Computer Software (Formally known as Account 1925) | C15: 195000 | D15: 5 | E15: =IF(D15=0,0,1/D15) -> 0.2 | F15: 360941.3129 | G15: 360633 | H15: =IF(ISERROR(+F15-G15), 0, +F15-G15) -> 308.3129252
A16: 1611 | B16: Computer Software (Formally known as Account 1925) | C16: 50000 | D16: 10 | E16: 0.1 | F16: 2807.4 | G16: 2807.4 | H16: 0
A17: 1612 | B17: Land Rights (Formally known as Account 1906) | C17: 60000 | D17: 60 | E17: 0.01666666667 | F17: 807.4 | G17: 807.4 | H17: 0
A18: 1612 | B18: Land Rights (Formally known as Account 1906) | E18: 0 | F18: 2520.265625 | G18: 2520.265625 | H18: 0
A19: 1805 | B19: Land | E19: 0 | F19: 0 | G19: 0 | H19: 0
A20: 1808 | B20: Buildings | C20: 5000 | D20: 10 | E20: 0.1 | F20: 15477.11312 | G20: 15477.11312 | H20: 0
A21: 1808 | B21: Buildings | E21: 0 | F21: 506.2176166 | G21: 506.2176166 | H21: 0
A22: 1808 | B22: Buildings | E22: 0 | F22: 495.0285714 | G22: 495.0285714 | H22: 0
A23: 1808 | B23: Buildings | E23: 0 | F23: 15304.0234 | G23: 15304.0234 | H23: 0
A24: 1808 | B24: Buildings | E24: 0 | F24: 303.0567686 | G24: 303.0567686 | H24: 0
A25: 1808 | B25: Buildings | E25: 0 | F25: 31300.54767 | G25: 31300.54767 | H25: 0
A26: 1810 | B26: Leasehold Improvements | E26: 0 | F26: 0 | G26: 0 | H26: 0
A27: 1815 | B27: Transformer Station Equipment >50 kV | E27: 0 | F27: 0 | G27: 0 | H27: 0
A28: 1820 | B28: Distribution Station Equipment <50 kV | C28: 557619 | D28: 40 | E28: 0.025 | F28: 227026.1954 | G28: 227026.1954 | H28: 0
A29: 1820 | B29: Distribution Station Equipment <50 kV | C29: 7693 | D29: 20 | E29: 0.05 | F29: 577.075 | G29: 577.075 | H29: 0
A30: 1825 | B30: Storage Battery Equipment | E30: 0 | F30: 0 | G30: 0 | H30: 0
A31: 1830 | B31: Poles, Towers & Fixtures | C31: 1686483 | D31: 40 | E31: 0.025 | F31: 597865.308 | G31: 597865.308 | H31: 0
A32: 1835 | B32: Overhead Conductors & Devices | C32: 351359 | D32: 40 | E32: 0.025 | F32: 488345.9362 | G32: 488345.9362 | H32: 0
A33: 1835 | B33: Overhead Conductors & Devices | C33: 321114 | D33: 60 | E33: 0.01666666667 | F33: 9361.866667 | G33: 9361.866667 | H33: 0
A34: 1835 | B34: Overhead Conductors & Devices | C34: 174733 | D34: 20 | E34: 0.05 | F34: 7068.575 | G34: 7068.575 | H34: 0
A35: 1840 | B35: Underground Conduit | C35: 1669428 | D35: 60 | E35: 0.01666666667 | F35: 207976.1709 | G35: 207976.1709 | H35: 0
A36: 1845 | B36: Underground Conductors & Devices | C36: 1293949 | D36: 40 | E36: 0.025 | F36: 579285.2612 | G36: 579285.2612 | H36: 0
A37: 1845 | B37: Underground Conductors & Devices | C37: 588523 | D37: 30 | E37: 0.03333333333 | F37: 16632.38333 | G37: 16632.38333 | H37: 0
A38: 1850 | B38: Line Transformers | C38: 1909205 | D38: 40 | E38: 0.025 | F38: 745869.567 | G38: 745869.567 | H38: 0
A39: 1855 | B39: Services (Overhead & Underground) | C39: 1261637 | D39: 60 | E39: 0.01666666667 | F39: 304487.0666 | G39: 304487.0666 | H39: 0
A40: 1860 | B40: Meters | C40: 240309 | D40: 15 | E40: 0.06666666667 | F40: 284428.8219 | G40: 284428.8219 | H40: 0
A41: 1860 | B41: Meters | C41: 347826 | D41: 20 | E41: 0.05 | F41: 23923.9 | G41: 23923.9 | H41: 0
A42: 1860 | B42: Meters | C42: 18749 | D42: 45 | E42: 0.02222222222 | F42: 1514.544444 | G42: 1514.544444 | H42: 0
A43: 1860 | B43: Meters (Smart Meters) | E43: 0 | F43: 637267.6322 | G43: 637267.6322 | H43: 0
A44: 1905 | B44: Land | E44: 0 | F44: 0 | G44: 0 | H44: 0
A45: 1908 | B45: Buildings & Fixtures | E45: 0 | F45: 3889.076041 | G45: 3889.076041 | H45: 0
A46: 1908 | B46: Buildings & Fixtures | E46: 0 | F46: 36485.09328 | G46: 36485.09328 | H46: 0
A47: 1908 | B47: Buildings & Fixtures | E47: 0 | F47: 8152.006896 | G47: 8152.006896 | H47: 0
A48: 1908 | B48: Buildings & Fixtures | E48: 0 | F48: 25459.03384 | G48: 25459.03384 | H48: 0
A49: 1908 | B49: Buildings & Fixtures | C49: 327000 | D49: 25 | E49: 0.04 | F49: 45048.1414 | G49: 45048.1414 | H49: 0
A50: 1908 | B50: Buildings & Fixtures | E50: 0 | F50: 127250.9471 | G50: 127250.9471 | H50: 0
A51: 1910 | B51: Leasehold Improvements | E51: 0 | F51: 0 | G51: 0 | H51: 0
A52: 1915 | B52: Office Furniture & Equipment (10 years) | C52: 38000 | D52: 10 | E52: 0.1 | F52: 57567.64947 | G52: 57567.64947 | H52: 0
A53: 1915 | B53: Office Furniture & Equipment (5 years) | E53: 0 | F53: 0 | G53: 0 | H53: 0
A54: 1920 | B54: Computer Equipment - Hardware | C54: 70000 | D54: 5 | E54: 0.2 | F54: 64915.00917 | G54: 64915.00917 | H54: 0
A55: 1920 | B55: Computer Equip.-Hardware(Post Mar. 22/04) | E55: 0 | F55: 0 | G55: 0 | H55: 0
A56: 1920 | B56: Computer Equip.-Hardware(Post Mar. 19/07) | E56: 0 | F56: 0 | G56: 0 | H56: 0
A57: 1930 | B57: Transportation Equipment | C57: 50000 | D57: 12 | E57: 0.08333333333 | F57: 20204.28381 | G57: 20204.28381 | H57: 0
A58: 1930 | B58: Transportation Equipment | E58: 0 | F58: 55564.6403 | G58: 55564.6403 | H58: 0
A59: 1935 | B59: Stores Equipment | E59: 0 | F59: 0 | G59: 0 | H59: 0
A60: 1940 | B60: Tools, Shop & Garage Equipment | C60: 9000 | D60: 10 | E60: 0.1 | F60: 26531.7361 | G60: 26531.7361 | H60: 0
A61: 1945 | B61: Measurement & Testing Equipment | C61: 3000 | D61: 10 | E61: 0.1 | F61: 4625.274972 | G61: 4625.274972 | H61: 0
A62: 1950 | B62: Power Operated Equipment | E62: 0 | F62: 0 | G62: 0 | H62: 0
A63: 1955 | B63: Communications Equipment | E63: 0 | F63: 0 | G63: 0 | H63: 0
A64: 1955 | B64: Communication Equipment (Smart Meters) | E64: 0 | F64: 0 | G64: 0 | H64: 0
A65: 1960 | B65: Miscellaneous Equipment | E65: 0 | F65: 0 | G65: 0 | H65: 0
A66: 1970 | B66: Load Management Controls - Customer Premises | E66: 0 | F66: 0 | G66: 0 | H66: 0
A67: 1975 | B67: Load Management Controls Utility Premises | E67: 0 | F67: 0 | G67: 0 | H67: 0
A68: 1980 | B68: System Supervisor Equipment | C68: 31104 | D68: 30 | E68: 0.03333333333 | F68: 65095.35275 | G68: 65095.35275 | H68: 0
A69: 1980 | B69: System Supervisor Equipment | C69: 42521 | D69: 10 | E69: 0.1 | F69: 7388.55 | G69: 7388.55 | H69: 0
A70: 1985 | B70: Miscellaneous Fixed Assets | C70: 0 | D70: 0 | E70: 0 | F70: 0 | G70: 0 | H70: 0
A71: 1990 | B71: Other Tangible Property | E71: 0 | F71: 0 | G71: 0 | H71: 0
A72: 1995 | B72: Contributions & Grants | C72: -3579205 | D72: 44.0276 | E72: 0.02271302547 | F72: -632185.7229 | G72: -632185.7229 | H72: 0
A73: etc. | E73: 0 | F73: 88684 | G73: 88684 | H73: 0
E74: 0 | F74: 0 | G74: 0 | H74: 0
B75: Total | C75: =SUM(C15:C74) -> 7730047 | F75: =SUM(F15:F74) -> 4566767.742 | G75: =SUM(G15:G74) -> 4566459.429 | H75: =SUM(H15:H74) -> 308.3129252
B76: Total Depreciation expense to be included in the test year revenue requirement | F76: =+F75 -> 4566767.742

Sheet App.2-CV_USGAAP_DepExp
K1: File Number: | L1: =EBNUMBER -> EB-2013-0115
K2: Exhibit:
K3: Tab:
K4: Schedule:
K5: Page:
K7: Date:
A9: Appendix 2-CV
A10: Depreciation and Amortization Expense
A11: Assumes the applicant adopted USGAAP for financial reporting purposes. For applicants adopting USGAAP for financial reporting purposes January 1, 2012, applicants must complete 5 versions of the table below (2011 CGAAP, 2011 USGAAP, 2012 USGAAP, 2013 USGAAP, and 2014 USGAAP). For applicants adopting USGAAP for financial reporting purposes January 1, 2013, applicants must complete 4 versions of the table below (2012 CGAAP, 2012 USGAAP, 2013 USGAAP, and 2014 USGAAP). For applicants adopting USGAAP for financial reporting purposes January 1, 2014, applicants must complete 4 versions of the table below (2012 CGAAP, 2013 CGAAP, 2013 USGAAP, and 2014 USGAAP).
B12: Year | D12: USGAAP
A14: Account | B14: Description | C14: Opening Regulatory Gross PP&E | D14: Less Fully Depreciated | E14: Net for Depreciation | F14: Additions | G14: Total for Depreciation | H14: Years | I14: Depreciation Rate | J14: Depreciation Expense | K14: Depreciation Expense per Appendix 2-B Fixed Assets, Column K (l) | L14: Variance 2
C15: (a) | D15: (b) | E15: (c) | F15: (d) | G15: (e) = (c) + ½ x (d) 1 | H15: (f) | I15: (g) = 1 / (f) | J15: (h) = (e) / (f) | L15: (m) = (h) - (l)
A16: 1611 | B16: Computer Software (Formally known as Account 1925) | E16: =C16-D16 -> 0 | G16: =E16+0.5*F16 -> 0 | I16: =IF(H16=0,0,1/H16) -> 0 | J16: =IF(H16=0,0,G16/H16) -> 0 | L16: =IF(ISERROR(+J16-K16), 0, +J16-K16) -> 0
A17: 1612 | B17: Land Rights (Formally known as Account 1906) | E17: =C17-D17 -> 0 | G17: =E17+0.5*F17 -> 0 | I17: 0 | J17: 0 | L17: 0
A18: 1805 | B18: Land | E18: 0 | G18: 0 | I18: 0 | J18: 0 | L18: 0
A19: 1808 | B19: Buildings | E19: 0 | G19: 0 | I19: 0 | J19: 0 | L19: 0
A20: 1810 | B20: Leasehold Improvements | E20: 0 | G20: 0 | I20: 0 | J20: 0 | L20: 0
A21: 1815 | B21: Transformer Station Equipment >50 kV | E21: 0 | G21: 0 | I21: 0 | J21: 0 | L21: 0
A22: 1820 | B22: Distribution Station Equipment <50 kV | E22: 0 | G22: 0 | I22: 0 | J22: 0 | L22: 0
A23: 1825 | B23: Storage Battery Equipment | E23: 0 | G23: 0 | I23: 0 | J23: 0 | L23: 0
A24: 1830 | B24: Poles, Towers & Fixtures | E24: 0 | G24: 0 | I24: 0 | J24: 0 | L24: 0
A25: 1835 | B25: Overhead Conductors & Devices | E25: 0 | G25: 0 | I25: 0 | J25: 0 | L25: 0
A26: 1840 | B26: Underground Conduit | E26: 0 | G26: 0 | I26: 0 | J26: 0 | L26: 0
A27: 1845 | B27: Underground Conductors & Devices | E27: 0 | G27: 0 | I27: 0 | J27: 0 | L27: 0
A28: 1850 | B28: Line Transformers | E28: 0 | G28: 0 | I28: 0 | J28: 0 | L28: 0
A29: 1855 | B29: Services (Overhead & Underground) | E29: 0 | G29: 0 | I29: 0 | J29: 0 | L29: 0
A30: 1860 | B30: Meters | E30: 0 | G30: 0 | I30: 0 | J30: 0 | L30: 0
A31: 1860 | B31: Meters (Smart Meters) | E31: 0 | G31: 0 | I31: 0 | J31: 0 | L31: 0
A32: 1905 | B32: Land | E32: 0 | G32: 0 | I32: 0 | J32: 0 | L32: 0
A33: 1908 | B33: Buildings & Fixtures | E33: 0 | G33: 0 | I33: 0 | J33: 0 | L33: 0
A34: 1910 | B34: Leasehold Improvements | E34: 0 | G34: 0 | I34: 0 | J34: 0 | L34: 0
A35: 1915 | B35: Office Furniture & Equipment (10 years) | E35: 0 | G35: 0 | I35: 0 | J35: 0 | L35: 0
A36: 1915 | B36: Office Furniture & Equipment (5 years) | E36: 0 | G36: 0 | I36: 0 | J36: 0 | L36: 0
A37: 1920 | B37: Computer Equipment - Hardware | E37: 0 | G37: 0 | I37: 0 | J37: 0 | L37: 0
A38: 1920 | B38: Computer Equip.-Hardware(Post Mar. 22/04) | E38: 0 | G38: 0 | I38: 0 | J38: 0 | L38: 0
A39: 1920 | B39: Computer Equip.-Hardware(Post Mar. 19/07) | E39: 0 | G39: 0 | I39: 0 | J39: 0 | L39: 0
A40: 1930 | B40: Transportation Equipment | E40: 0 | G40: 0 | I40: 0 | J40: 0 | L40: 0
A41: 1935 | B41: Stores Equipment | E41: 0 | G41: 0 | I41: 0 | J41: 0 | L41: 0
A42: 1940 | B42: Tools, Shop & Garage Equipment | E42: 0 | G42: 0 | I42: 0 | J42: 0 | L42: 0
A43: 1945 | B43: Measurement & Testing Equipment | E43: 0 | G43: 0 | I43: 0 | J43: 0 | L43: 0
A44: 1950 | B44: Power Operated Equipment | E44: 0 | G44: 0 | I44: 0 | J44: 0 | L44: 0
A45: 1955 | B45: Communications Equipment | E45: 0 | G45: 0 | I45: 0 | J45: 0 | L45: 0
A46: 1955 | B46: Communication Equipment (Smart Meters) | E46: 0 | G46: 0 | I46: 0 | J46: 0 | L46: 0
A47: 1960 | B47: Miscellaneous Equipment | E47: 0 | G47: 0 | I47: 0 | J47: 0 | L47: 0
A48: 1970 | B48: Load Management Controls - Customer Premises | E48: 0 | G48: 0 | I48: 0 | J48: 0 | L48: 0
A49: 1975 | B49: Load Management Controls Utility Premises | E49: 0 | G49: 0 | I49: 0 | J49: 0 | L49: 0
A50: 1980 | B50: System Supervisor Equipment | E50: 0 | G50: 0 | I50: 0 | J50: 0 | L50: 0
A51: 1985 | B51: Miscellaneous Fixed Assets | E51: 0 | G51: 0 | I51: 0 | J51: 0 | L51: 0
A52: 1990 | B52: Other Tangible Property | E52: 0 | G52: 0 | I52: 0 | J52: 0 | L52: 0
A53: 1995 | B53: Contributions & Grants | E53: 0 | G53: 0 | I53: 0 | J53: 0 | L53: 0
A54: etc. | E54: 0 | G54: 0 | I54: 0 | J54: 0 | L54: 0
E55: 0 | G55: 0 | I55: 0 | J55: 0 | L55: 0
B56: Total | C56: =SUM(C16:C55) -> 0 | D56: =SUM(D16:D55) -> 0 | E56: =SUM(E16:E55) -> 0 | F56: 0 | G56: 0 | J56: =SUM(J16:J55) -> 0 | K56: =SUM(K16:K55) -> 0 | L56: =SUM(L16:L55) -> 0
A58: Notes:
A60: 1 | B60: Board policy of the "half-year" rule - the applicant must ensure that additions in the year attract a half-year depreciation expense in the first year. Deviations from this standard practice must be supported in the application.
A61: 2 | B61: The applicant must provide an explanation of material variances in evidence.
A64: General: | B64: Applicants must provide a breakdown of depreciation and amortization expense in the above format for all relevant accounts. Asset Retirement Obligations (AROs), depreciation and accretion expense should be disclosed separately consistent with the Notes of historical Audited Financial Statements.

Sheet App.2-DA_Overhead
L1: File Number: | M1: =EBNUMBER -> EB-2013-0115
L2: Exhibit:
L3: Tab:
L4: Schedule:
L5: Page:
L7: Date:
A9: Appendix 2-DA
A10: Overhead Expense
A12: The following table should be completed based on the information requested below. An explanation should be provided for any blank entries. The entries should include overhead costs that are currently capitalized on self-constructed assets under MIFRS.
E13: (A) 1 | F13: (B) | G13: (C) | H13: (D) | I13: (E) 1 | J13: (F) | K13: (G)
A14: Nature of the Overhead Costs | E14: Dollar | F14: Dollar | G14: Dollar | H14: Dollar Impact - | I14: Dollar Impact - | J14: Directly | K14: Reasons why the overhead costs are allowed to be
E15: Impact on PP&E | F15: Impact on PP&E | G15: Impact on PP&E | H15: PP&E Variance | I15: PP&E Variance | J15: Attributable? | K15: capitalized under MIFRS or an alternate accounting
E16: Historic Year | F16: Bridge Year | G16: Test Year | H16: Test versus Bridge | I16: Test versus Historic | J16: (Y/N) | K16: standard given limitations on capitalized overhead
A17: employee benefits | H17: =+G17-F17 -> 0 | I17: =+G17-E17 -> 0
A18: costs of site preparation | H18: 0 | I18: 0
A19: initial delivery and handling costs | H19: 0 | I19: 0
A20: costs of testing whether the asset is functioning properly | H20: 0 | I20: 0
A21: professional fees | H21: 0 | I21: 0
H22: 0 | I22: 0
A23: costs of opening a new facility | H23: 0 | I23: 0
A24: costs of introducing a new product or service (including costs of advertising and promotional activities) | H24: 0 | I24: 0
A25: costs of conducting business in a new location or with a new class of customer (including costs of staff training) | H25: 0 | I25: 0
A26: administration and other general overhead costs | H26: 0 | I26: 0
H27: 0 | I27: 0
H28: 0 | I28: 0
H29: 0 | I29: 0
A30: Insert description of additional item(s) and new rows if needed. | H30: 0 | I30: 0
A31: Total | E31: =SUM(E17:E30) -> 0 | F31: =SUM(F17:F30) -> 0 | G31: =SUM(G17:G30) -> 0 | H31: =SUM(H17:H30) -> 0 | I31: =SUM(I17:I30) -> 0
A34: The following table should be completed based on the information requested below. An explanation should be provided for any blank entries. The entries should include overhead costs that were capitalized on self-constructed assets under CGAAP but are no longer capitalized under MIFRS or an alternate accounting standard and are included in OM&A.
E35: (A) 1 | F35: (B) | G35: (C) | H35: (D) | I35: (E) 1 | J35: (F) | K35: (G)
A36: Nature of the Overhead Costs | E36: Dollar | F36: Dollar | G36: Dollar | H36: Dollar Impact - | I36: Dollar Impact - | J36: Directly | K36: Reasons why the overhead costs are not allowed to be
E37: Impact on OM&A | F37: Impact on OM&A | G37: Impact on OM&A | H37: OM&A Variance | I37: OM&A Variance | J37: Attributable? | K37: capitalized under MIFRS or an alternate accounting
E38: Historic Year | F38: Bridge Year | G38: Test Year | H38: Test versus Bridge | I38: Test versus Historic | J38: (Y/N) | K38: standard given limitations on capitalized overhead
A39: employee benefits | H39: =+G39-F39 -> 0 | I39: =+G39-E39 -> 0
A40: costs of site preparation | H40: =+G40-F40 -> 0 | I40: =+G40-E40 -> 0
A41: initial delivery and handling costs | H41: =+G41-F41 -> 0 | I41: =+G41-E41 -> 0
A42: costs of testing whether the asset is functioning properly | H42: =+G42-F42 -> 0 | I42: =+G42-E42 -> 0
A43: professional fees | H43: =+G43-F43 -> 0 | I43: =+G43-E43 -> 0
A45: costs of opening a new facility | H45: =+G45-F45 -> 0 | I45: =+G45-E45 -> 0
A46: costs of introducing a new product or service (including costs of advertising and promotional activities) | H46: 0 | I46: 0
A47: costs of conducting business in a new location or with a new class of customer (including costs of staff training) | H47: 0 | I47: 0
